Workbook

Sheet Analyzer
B1: A | D1: B | F1: Stock | H1: Final Gearing | L1: % Gear Change | O1: Total Final Gearing | R1: Intergear Ratio | U1: MPH Difference @ RPM: | X1: 5800 | Y1: A = Current
B2: Gear | C2: R&P | D2: Gear | E2: R&P | F2: Gear | G2: R&P | H2: Gear | I2: A | J2: B | K2: Stock | L2: A | M2: B | N2: Stock | O2: A | P2: B | Q2: Stock | R2: A | S2: B | T2: Stock | U2: Gears | V2: A | W2: B | X2: Stock | Y2: B = 2Y but using a 0.894 5th
A3: 1st | B3: 3.455 | C3: 3.813 | D3: 3.455 | E3: 3.667 | F3: 3.455 | G3: 3.667 | H3: 1st | I3: =$C$3*B3 -> 13.173915 | J3: =$E$3*D3 -> 12.669485 | K3: =$G$3*F3 -> 12.669485 | O3: =$C$3*B3*$C$5 -> 299.9700446 | P3: =$E$3*D3*$E$5 -> 288.4841735 | Q3: =$G$3*F3*$G$5 -> 288.4841735 | R3: =B3-B4 -> 1.399 | S3: =D3-D4 -> 1.337 | T3: =F3-F4 -> 1.511 | U3: 0-1st | V3: =IF((LEFT(TEXT(HLOOKUP(RPM_Difference,A_Grid,2,FALSE)-0, "00.0"),1)="-"), 0,HLOOKUP(RPM_Difference,A_Grid,2,FALSE)-0) -> 29.83574522 | W3: =IF((LEFT(TEXT(HLOOKUP(RPM_Difference,B_Grid,2,FALSE)-0, "00.0"),1)="-"), 0,HLOOKUP(RPM_Difference,B_Grid,2,FALSE)-0) -> 31.02364235 | X3: =IF((LEFT(TEXT(HLOOKUP(RPM_Difference,Stock_Grid,2,FALSE)-0, "00.0"),1)="-"), 0,HLOOKUP(RPM_Difference,Stock_Grid,2,FALSE)-0) -> 0
A4: 2nd | B4: 2.056 | C4: Tire Height | D4: 2.118 | E4: Tire Height | F4: 1.944 | G4: Tire Height | H4: 2nd | I4: 7.839528 | J4: 7.766706 | K4: 7.128648 | L4: =IF(ISERROR((I3-I4)/I4),0,(I3-I4)/I4) -> 0.6804474708 | M4: 0.6312559018 | N4: 0.7772633745 | O4: 178.5060526 | P4: 176.8478956 | Q4: 162.319315 | R4: =B4-B5 -> 0.686 | S4: =D4-D5 -> 0.674 | T4: =F4-F5 -> 0.658 | U4: 1st-2nd | V4: =IF((LEFT(TEXT(HLOOKUP(RPM_Difference,A_Grid,3,FALSE)-HLOOKUP(RPM_Difference,A_Grid,2,FALSE), "00.0"),1)="-"), 0,HLOOKUP(RPM_Difference,A_Grid,3,FALSE)-HLOOKUP(RPM_Difference,A_Grid,2,FALSE)) -> 20.30165737 | W4: =IF((LEFT(TEXT(HLOOKUP(RPM_Difference,B_Grid,3,FALSE)-HLOOKUP(RPM_Difference,B_Grid,2,FALSE), "00.0"),1)="-"), 0,HLOOKUP(RPM_Difference,B_Grid,3,FALSE)-HLOOKUP(RPM_Difference,B_Grid,2,FALSE)) -> 19.58385733 | X4: =IF((LEFT(TEXT(HLOOKUP(RPM_Difference,Stock_Grid,3,FALSE)-HLOOKUP(RPM_Difference,Stock_Grid,2,FALSE), "00.0"),1)="-"), 0,HLOOKUP(RPM_Difference,Stock_Grid,3,FALSE)-HLOOKUP(RPM_Difference,Stock_Grid,2,FALSE)) -> 0
A5: 3rd | B5: 1.37 | C5: 22.77 | D5: 1.444 | E5: 22.77 | F5: 1.286 | G5: 22.77 | H5: 3rd | I5: 5.22381 | J5: 5.295148 | K5: 4.715762 | L5: 0.500729927 | M5: 0.4667590028 | N5: 0.5116640747 | O5: 118.9461537 | P5: 120.57052 | Q5: 107.3779007 | R5: =B5-B6 -> 0.338 | S5: =D5-D6 -> 0.315 | T5: =F5-F6 -> 0.317 | U5: 2nd-3rd | V5: =IF((LEFT(TEXT(HLOOKUP(RPM_Difference,A_Grid,4,FALSE)-HLOOKUP(RPM_Difference,A_Grid,3,FALSE), "00.0"),1)="-"), 0,HLOOKUP(RPM_Difference,A_Grid,4,FALSE)-HLOOKUP(RPM_Difference,A_Grid,3,FALSE)) -> 25.10529794 | W5: =IF((LEFT(TEXT(HLOOKUP(RPM_Difference,B_Grid,4,FALSE)-HLOOKUP(RPM_Difference,B_Grid,3,FALSE), "00.0"),1)="-"), 0,HLOOKUP(RPM_Difference,B_Grid,4,FALSE)-HLOOKUP(RPM_Difference,B_Grid,3,FALSE)) -> 23.62150608 | X5: =IF((LEFT(TEXT(HLOOKUP(RPM_Difference,Stock_Grid,4,FALSE)-HLOOKUP(RPM_Difference,Stock_Grid,3,FALSE), "00.0"),1)="-"), 0,HLOOKUP(RPM_Difference,Stock_Grid,4,FALSE)-HLOOKUP(RPM_Difference,Stock_Grid,3,FALSE)) -> 0
A6: 4th | B6: 1.032 | D6: 1.129 | F6: 0.969 | H6: 4th | I6: 3.935016 | J6: 4.140043 | K6: 3.553323 | L6: 0.3275193798 | M6: 0.2790079717 | N6: 0.3271413829 | O6: 89.60031432 | P6: 94.26877911 | Q6: 80.90916471 | R6: =B6-B7 -> 0.182 | S6: =D6-D7 -> 0.235 | T6: =F6-F7 -> 0.164 | U6: 3rd-4th | V6: =IF((LEFT(TEXT(HLOOKUP(RPM_Difference,A_Grid,5,FALSE)-HLOOKUP(RPM_Difference,A_Grid,4,FALSE), "00.0"),1)="-"), 0,HLOOKUP(RPM_Difference,A_Grid,5,FALSE)-HLOOKUP(RPM_Difference,A_Grid,4,FALSE)) -> 24.64344261 | W6: =IF((LEFT(TEXT(HLOOKUP(RPM_Difference,B_Grid,5,FALSE)-HLOOKUP(RPM_Difference,B_Grid,4,FALSE), "00.0"),1)="-"), 0,HLOOKUP(RPM_Difference,B_Grid,5,FALSE)-HLOOKUP(RPM_Difference,B_Grid,4,FALSE)) -> 20.71048434 | X6: =IF((LEFT(TEXT(HLOOKUP(RPM_Difference,Stock_Grid,5,FALSE)-HLOOKUP(RPM_Difference,Stock_Grid,4,FALSE), "00.0"),1)="-"), 0,HLOOKUP(RPM_Difference,Stock_Grid,5,FALSE)-HLOOKUP(RPM_Difference,Stock_Grid,4,FALSE)) -> 0
A7: 5th | B7: 0.85 | D7: 0.894 | F7: 0.805 | H7: 5th | I7: 3.24105 | J7: 3.278298 | K7: 2.951935 | L7: 0.2141176471 | M7: 0.2628635347 | N7: 0.2037267081 | O7: 73.7987085 | P7: 74.64684546 | Q7: 67.21555995 | R7: =B7-B8 -> 0.85 | S7: =D7-D8 -> 0.894 | T7: =F7-F8 -> 0.805 | U7: 4th-5th | V7: =IF((LEFT(TEXT(HLOOKUP(RPM_Difference,A_Grid,6,FALSE)-HLOOKUP(RPM_Difference,A_Grid,5,FALSE), "00.0"),1)="-"), 0,HLOOKUP(RPM_Difference,A_Grid,6,FALSE)-HLOOKUP(RPM_Difference,A_Grid,5,FALSE)) -> 21.38738594 | W7: =IF((LEFT(TEXT(HLOOKUP(RPM_Difference,B_Grid,6,FALSE)-HLOOKUP(RPM_Difference,B_Grid,5,FALSE), "00.0"),1)="-"), 0,HLOOKUP(RPM_Difference,B_Grid,6,FALSE)-HLOOKUP(RPM_Difference,B_Grid,5,FALSE)) -> 24.95612995 | X7: =IF((LEFT(TEXT(HLOOKUP(RPM_Difference,Stock_Grid,6,FALSE)-HLOOKUP(RPM_Difference,Stock_Grid,5,FALSE), "00.0"),1)="-"), 0,HLOOKUP(RPM_Difference,Stock_Grid,6,FALSE)-HLOOKUP(RPM_Difference,Stock_Grid,5,FALSE)) -> 0
A8: 6th | B8: 0 | D8: 0 | F8: 0 | H8: 6th | I8: 0 | J8: 0 | K8: 0 | L8: 0 | M8: 0 | N8: 0 | O8: 0 | P8: 0 | Q8: 0 | U8: 5th-6th | V8: =IF((LEFT(TEXT(HLOOKUP(RPM_Difference,A_Grid,7,FALSE)-HLOOKUP(RPM_Difference,A_Grid,6,FALSE), "00.0"),1)="-"), 0,HLOOKUP(RPM_Difference,A_Grid,7,FALSE)-HLOOKUP(RPM_Difference,A_Grid,6,FALSE)) -> 0 | W8: =IF((LEFT(TEXT(HLOOKUP(RPM_Difference,B_Grid,7,FALSE)-HLOOKUP(RPM_Difference,B_Grid,6,FALSE), "00.0"),1)="-"), 0,HLOOKUP(RPM_Difference,B_Grid,7,FALSE)-HLOOKUP(RPM_Difference,B_Grid,6,FALSE)) -> 0 | X8: =IF((LEFT(TEXT(HLOOKUP(RPM_Difference,Stock_Grid,7,FALSE)-HLOOKUP(RPM_Difference,Stock_Grid,6,FALSE), "00.0"),1)="-"), 0,HLOOKUP(RPM_Difference,Stock_Grid,7,FALSE)-HLOOKUP(RPM_Difference,Stock_Grid,6,FALSE)) -> 0

Sheet Raw data (hidden)
A1: Gearing A | B1: TRUE | AM1: 0 | AN1: 1 | AO1: 2 | AP1: 3 | AQ1: 4 | AR1: 5 | AS1: 6 | AT1: 7 | AU1: 8 | AV1: 9 | AW1: 10 | AX1: 11 | AY1: 12 | AZ1: 13 | BA1: 14 | BB1: 15 | BC1: 16 | BD1: 17 | BE1: 18 | BF1: 19 | BG1: 20 | BH1: 21 | BI1: 22 | BJ1: 23 | BK1: 24 | BL1: 25 | BM1: 26 | BN1: 27 | BO1: 28 | BP1: 29 | BQ1: 30 | BR1: 31 | BS1: 32 | BT1: 33 | BU1: 34 | BV1: 35 | BW1: 36 | BX1: 37 | BY1: 38 | BZ1: 39 | CA1: 40 | CB1: 41 | CC1: 42 | CD1: 43 | CE1: 44 | CF1: 45 | CG1: 46 | CH1: 47 | CI1: 48 | CJ1: 49 | CK1: 50 | CL1: 51 | CM1: 52 | CN1: 53 | CO1: 54 | CP1: 55 | CQ1: 56 | CR1: 57 | CS1: 58 | CT1: 59 | CU1: 60
B2: 600 | C2: 800 | D2: 1000 | E2: 1200 | F2: 1400 | G2: 1600 | H2: 1800 | I2: 2000 | J2: 2200 | K2: 2400 | L2: 2600 | M2: 2800 | N2: 3000 | O2: 3200 | P2: 3400 | Q2: 3600 | R2: 3800 | S2: 4000 | T2: 4200 | U2: 4400 | V2: 4600 | W2: 4800 | X2: 5000 | Y2: 5200 | Z2: 5400 | AA2: 5600 | AB2: 5800 | AC2: 6000 | AD2: 6200 | AE2: 6400 | AF2: 6600 | AG2: 6800 | AH2: 7000 | AI2: 7200 | AJ2: 7400 | AK2: 7600 | AL2: 7800 | AM2: 8000 | AN2: 8200 | AO2: 8400 | AP2: 8600 | AQ2: 8800 | AR2: 9000 | AS2: 9200 | AT2: 9400 | AU2: 9600 | AV2: 9800 | AW2: 10000 | AX2: 10200 | AY2: 10400 | AZ2: 10600 | BA2: 10800 | BB2: 11000 | BC2: 11200 | BD2: 11400 | BE2: 11600 | BF2: 11800 | BG2: 12000 | BH2: 12200 | BI2: 12400 | BJ2: 12600 | BK2: 12800 | BL2: 13000 | BM2: 13200 | BN2: 13400 | BO2: 13600 | BP2: 13800 | BQ2: 14000 | BR2: 14200 | BS2: 14400 | BT2: 14600 | BU2: 14800 | BV2: 15000 | BW2: 15200 | BX2: 15400 | BY2: 15600 | BZ2: 15800 | CA2: 16000 | CB2: 16200 | CC2: 16400 | CD2: 16600 | CE2: 16800 | CF2: 17000 | CG2: 17200 | CH2: 17400 | CI2: 17600 | CJ2: 17800 | CK2: 18000 | CL2: 18200 | CM2: 18400 | CN2: 18600 | CO2: 18800 | CP2: 19000 | CQ2: 19200 | CR2: 19400 | CS2: 19600 | CT2: 19800 | CU2: 20000
A3: A-1st | B3: =IF(ShowA,IF(ISERROR((B$2*Analyzer!$C$5)/(Analyzer!$I$3*336)),0,SpeedConv*(B$2*Analyzer!$C$5)/(Analyzer!$I$3*336)),0) -> 3.086456402 | C3: =IF(ShowA,IF(ISERROR((C$2*Analyzer!$C$5)/(Analyzer!$I$3*336)),0,SpeedConv*(C$2*Analyzer!$C$5)/(Analyzer!$I$3*336)),0) -> 4.115275202 | D3: =IF(ShowA,IF(ISERROR((D$2*Analyzer!$C$5)/(Analyzer!$I$3*336)),0,SpeedConv*(D$2*Analyzer!$C$5)/(Analyzer!$I$3*336)),0) -> 5.144094003 | E3: =IF(ShowA,IF(ISERROR((E$2*Analyzer!$C$5)/(Analyzer!$I$3*336)),0,SpeedConv*(E$2*Analyzer!$C$5)/(Analyzer!$I$3*336)),0) -> 6.172912803 | F3: =IF(ShowA,IF(ISERROR((F$2*Analyzer!$C$5)/(Analyzer!$I$3*336)),0,SpeedConv*(F$2*Analyzer!$C$5)/(Analyzer!$I$3*336)),0) -> 7.201731604 | G3: =IF(ShowA,IF(ISERROR((G$2*Analyzer!$C$5)/(Analyzer!$I$3*336)),0,SpeedConv*(G$2*Analyzer!$C$5)/(Analyzer!$I$3*336)),0) -> 8.230550404 | H3: =IF(ShowA,IF(ISERROR((H$2*Analyzer!$C$5)/(Analyzer!$I$3*336)),0,SpeedConv*(H$2*Analyzer!$C$5)/(Analyzer!$I$3*336)),0) -> 9.259369205 | I3: =IF(ShowA,IF(ISERROR((I$2*Analyzer!$C$5)/(Analyzer!$I$3*336)),0,SpeedConv*(I$2*Analyzer!$C$5)/(Analyzer!$I$3*336)),0) -> 10.28818801 | J3: =IF(ShowA,IF(ISERROR((J$2*Analyzer!$C$5)/(Analyzer!$I$3*336)),0,SpeedConv*(J$2*Analyzer!$C$5)/(Analyzer!$I$3*336)),0) -> 11.31700681 | K3: =IF(ShowA,IF(ISERROR((K$2*Analyzer!$C$5)/(Analyzer!$I$3*336)),0,SpeedConv*(K$2*Analyzer!$C$5)/(Analyzer!$I$3*336)),0) -> 12.34582561 | L3: =IF(ShowA,IF(ISERROR((L$2*Analyzer!$C$5)/(Analyzer!$I$3*336)),0,SpeedConv*(L$2*Analyzer!$C$5)/(Analyzer!$I$3*336)),0) -> 13.37464441 | M3: =IF(ShowA,IF(ISERROR((M$2*Analyzer!$C$5)/(Analyzer!$I$3*336)),0,SpeedConv*(M$2*Analyzer!$C$5)/(Analyzer!$I$3*336)),0) -> 14.40346321 | N3: =IF(ShowA,IF(ISERROR((N$2*Analyzer!$C$5)/(Analyzer!$I$3*336)),0,SpeedConv*(N$2*Analyzer!$C$5)/(Analyzer!$I$3*336)),0) -> 15.43228201 | O3: =IF(ShowA,IF(ISERROR((O$2*Analyzer!$C$5)/(Analyzer!$I$3*336)),0,SpeedConv*(O$2*Analyzer!$C$5)/(Analyzer!$I$3*336)),0) -> 16.46110081 | P3: =IF(ShowA,IF(ISERROR((P$2*Analyzer!$C$5)/(Analyzer!$I$3*336)),0,SpeedConv*(P$2*Analyzer!$C$5)/(Analyzer!$I$3*336)),0) -> 17.48991961 | Q3: =IF(ShowA,IF(ISERROR((Q$2*Analyzer!$C$5)/(Analyzer!$I$3*336)),0,SpeedConv*(Q$2*Analyzer!$C$5)/(Analyzer!$I$3*336)),0) -> 18.51873841 | R3: =IF(ShowA,IF(ISERROR((R$2*Analyzer!$C$5)/(Analyzer!$I$3*336)),0,SpeedConv*(R$2*Analyzer!$C$5)/(Analyzer!$I$3*336)),0) -> 19.54755721 | S3: =IF(ShowA,IF(ISERROR((S$2*Analyzer!$C$5)/(Analyzer!$I$3*336)),0,SpeedConv*(S$2*Analyzer!$C$5)/(Analyzer!$I$3*336)),0) -> 20.57637601 | T3: =IF(ShowA,IF(ISERROR((T$2*Analyzer!$C$5)/(Analyzer!$I$3*336)),0,SpeedConv*(T$2*Analyzer!$C$5)/(Analyzer!$I$3*336)),0) -> 21.60519481 | U3: =IF(ShowA,IF(ISERROR((U$2*Analyzer!$C$5)/(Analyzer!$I$3*336)),0,SpeedConv*(U$2*Analyzer!$C$5)/(Analyzer!$I$3*336)),0) -> 22.63401361 | V3: =IF(ShowA,IF(ISERROR((V$2*Analyzer!$C$5)/(Analyzer!$I$3*336)),0,SpeedConv*(V$2*Analyzer!$C$5)/(Analyzer!$I$3*336)),0) -> 23.66283241 | W3: =IF(ShowA,IF(ISERROR((W$2*Analyzer!$C$5)/(Analyzer!$I$3*336)),0,SpeedConv*(W$2*Analyzer!$C$5)/(Analyzer!$I$3*336)),0) -> 24.69165121 | X3: =IF(ShowA,IF(ISERROR((X$2*Analyzer!$C$5)/(Analyzer!$I$3*336)),0,SpeedConv*(X$2*Analyzer!$C$5)/(Analyzer!$I$3*336)),0) -> 25.72047001 | Y3: =IF(ShowA,IF(ISERROR((Y$2*Analyzer!$C$5)/(Analyzer!$I$3*336)),0,SpeedConv*(Y$2*Analyzer!$C$5)/(Analyzer!$I$3*336)),0) -> 26.74928881 | Z3: =IF(ShowA,IF(ISERROR((Z$2*Analyzer!$C$5)/(Analyzer!$I$3*336)),0,SpeedConv*(Z$2*Analyzer!$C$5)/(Analyzer!$I$3*336)),0) -> 27.77810761 | AA3: =IF(ShowA,IF(ISERROR((AA$2*Analyzer!$C$5)/(Analyzer!$I$3*336)),0,SpeedConv*(AA$2*Analyzer!$C$5)/(Analyzer!$I$3*336)),0) -> 28.80692641 | AB3: =IF(ShowA,IF(ISERROR((AB$2*Analyzer!$C$5)/(Analyzer!$I$3*336)),0,SpeedConv*(AB$2*Analyzer!$C$5)/(Analyzer!$I$3*336)),0) -> 29.83574522 | AC3: =IF(ShowA,IF(ISERROR((AC$2*Analyzer!$C$5)/(Analyzer!$I$3*336)),0,SpeedConv*(AC$2*Analyzer!$C$5)/(Analyzer!$I$3*336)),0) -> 30.86456402 | AD3: =IF(ShowA,IF(ISERROR((AD$2*Analyzer!$C$5)/(Analyzer!$I$3*336)),0,SpeedConv*(AD$2*Analyzer!$C$5)/(Analyzer!$I$3*336)),0) -> 31.89338282 | AE3: =IF(ShowA,IF(ISERROR((AE$2*Analyzer!$C$5)/(Analyzer!$I$3*336)),0,SpeedConv*(AE$2*Analyzer!$C$5)/(Analyzer!$I$3*336)),0) -> 32.92220162 | AF3: =IF(ShowA,IF(ISERROR((AF$2*Analyzer!$C$5)/(Analyzer!$I$3*336)),0,SpeedConv*(AF$2*Analyzer!$C$5)/(Analyzer!$I$3*336)),0) -> 33.95102042 | AG3: =IF(ShowA,IF(ISERROR((AG$2*Analyzer!$C$5)/(Analyzer!$I$3*336)),0,SpeedConv*(AG$2*Analyzer!$C$5)/(Analyzer!$I$3*336)),0) -> 34.97983922 | AH3: =IF(ShowA,IF(ISERROR((AH$2*Analyzer!$C$5)/(Analyzer!$I$3*336)),0,SpeedConv*(AH$2*Analyzer!$C$5)/(Analyzer!$I$3*336)),0) -> 36.00865802 | AI3: =IF(ShowA,IF(ISERROR((AI$2*Analyzer!$C$5)/(Analyzer!$I$3*336)),0,SpeedConv*(AI$2*Analyzer!$C$5)/(Analyzer!$I$3*336)),0) -> 37.03747682 | AJ3: =IF(ShowA,IF(ISERROR((AJ$2*Analyzer!$C$5)/(Analyzer!$I$3*336)),0,SpeedConv*(AJ$2*Analyzer!$C$5)/(Analyzer!$I$3*336)),0) -> 38.06629562 | AK3: =IF(ShowA,IF(ISERROR((AK$2*Analyzer!$C$5)/(Analyzer!$I$3*336)),0,SpeedConv*(AK$2*Analyzer!$C$5)/(Analyzer!$I$3*336)),0) -> 39.09511442 | AL3: =IF(ShowA,IF(ISERROR((AL$2*Analyzer!$C$5)/(Analyzer!$I$3*336)),0,SpeedConv*(AL$2*Analyzer!$C$5)/(Analyzer!$I$3*336)),0) -> 40.12393322 | AM3: =IF(ShowA,IF(ISERROR((AM$2*Analyzer!$C$5)/(Analyzer!$I$3*336)),0,SpeedConv*(AM$2*Analyzer!$C$5)/(Analyzer!$I$3*336)),0) -> 41.15275202 | AN3: =IF(ShowA,IF(ISERROR((AN$2*Analyzer!$C$5)/(Analyzer!$I$3*336)),0,SpeedConv*(AN$2*Analyzer!$C$5)/(Analyzer!$I$3*336)),0) -> 42.18157082 | AO3: =IF(ShowA,IF(ISERROR((AO$2*Analyzer!$C$5)/(Analyzer!$I$3*336)),0,SpeedConv*(AO$2*Analyzer!$C$5)/(Analyzer!$I$3*336)),0) -> 43.21038962 | AP3: =IF(ShowA,IF(ISERROR((AP$2*Analyzer!$C$5)/(Analyzer!$I$3*336)),0,SpeedConv*(AP$2*Analyzer!$C$5)/(Analyzer!$I$3*336)),0) -> 44.23920842 | AQ3: =IF(ShowA,IF(ISERROR((AQ$2*Analyzer!$C$5)/(Analyzer!$I$3*336)),0,SpeedConv*(AQ$2*Analyzer!$C$5)/(Analyzer!$I$3*336)),0) -> 45.26802722 | AR3: =IF(ShowA,IF(ISERROR((AR$2*Analyzer!$C$5)/(Analyzer!$I$3*336)),0,SpeedConv*(AR$2*Analyzer!$C$5)/(Analyzer!$I$3*336)),0) -> 46.29684602 | AS3: =IF(ShowA,IF(ISERROR((AS$2*Analyzer!$C$5)/(Analyzer!$I$3*336)),0,SpeedConv*(AS$2*Analyzer!$C$5)/(Analyzer!$I$3*336)),0) -> 47.32566482 | AT3: =IF(ShowA,IF(ISERROR((AT$2*Analyzer!$C$5)/(Analyzer!$I$3*336)),0,SpeedConv*(AT$2*Analyzer!$C$5)/(Analyzer!$I$3*336)),0) -> 48.35448362 | AU3: =IF(ShowA,IF(ISERROR((AU$2*Analyzer!$C$5)/(Analyzer!$I$3*336)),0,SpeedConv*(AU$2*Analyzer!$C$5)/(Analyzer!$I$3*336)),0) -> 49.38330243 | AV3: =IF(ShowA,IF(ISERROR((AV$2*Analyzer!$C$5)/(Analyzer!$I$3*336)),0,SpeedConv*(AV$2*Analyzer!$C$5)/(Analyzer!$I$3*336)),0) -> 50.41212123 | AW3: =IF(ShowA,IF(ISERROR((AW$2*Analyzer!$C$5)/(Analyzer!$I$3*336)),0,SpeedConv*(AW$2*Analyzer!$C$5)/(Analyzer!$I$3*336)),0) -> 51.44094003 | AX3: =IF(ShowA,IF(ISERROR((AX$2*Analyzer!$C$5)/(Analyzer!$I$3*336)),0,SpeedConv*(AX$2*Analyzer!$C$5)/(Analyzer!$I$3*336)),0) -> 52.46975883 | AY3: =IF(ShowA,IF(ISERROR((AY$2*Analyzer!$C$5)/(Analyzer!$I$3*336)),0,SpeedConv*(AY$2*Analyzer!$C$5)/(Analyzer!$I$3*336)),0) -> 53.49857763 | AZ3: =IF(ShowA,IF(ISERROR((AZ$2*Analyzer!$C$5)/(Analyzer!$I$3*336)),0,SpeedConv*(AZ$2*Analyzer!$C$5)/(Analyzer!$I$3*336)),0) -> 54.52739643 | BA3: =IF(ShowA,IF(ISERROR((BA$2*Analyzer!$C$5)/(Analyzer!$I$3*336)),0,SpeedConv*(BA$2*Analyzer!$C$5)/(Analyzer!$I$3*336)),0) -> 55.55621523 | BB3: =IF(ShowA,IF(ISERROR((BB$2*Analyzer!$C$5)/(Analyzer!$I$3*336)),0,SpeedConv*(BB$2*Analyzer!$C$5)/(Analyzer!$I$3*336)),0) -> 56.58503403 | BC3: =IF(ShowA,IF(ISERROR((BC$2*Analyzer!$C$5)/(Analyzer!$I$3*336)),0,SpeedConv*(BC$2*Analyzer!$C$5)/(Analyzer!$I$3*336)),0) -> 57.61385283 | BD3: =IF(ShowA,IF(ISERROR((BD$2*Analyzer!$C$5)/(Analyzer!$I$3*336)),0,SpeedConv*(BD$2*Analyzer!$C$5)/(Analyzer!$I$3*336)),0) -> 58.64267163 | BE3: =IF(ShowA,IF(ISERROR((BE$2*Analyzer!$C$5)/(Analyzer!$I$3*336)),0,SpeedConv*(BE$2*Analyzer!$C$5)/(Analyzer!$I$3*336)),0) -> 59.67149043 | BF3: =IF(ShowA,IF(ISERROR((BF$2*Analyzer!$C$5)/(Analyzer!$I$3*336)),0,SpeedConv*(BF$2*Analyzer!$C$5)/(Analyzer!$I$3*336)),0) -> 60.70030923 | BG3: =IF(ShowA,IF(ISERROR((BG$2*Analyzer!$C$5)/(Analyzer!$I$3*336)),0,SpeedConv*(BG$2*Analyzer!$C$5)/(Analyzer!$I$3*336)),0) -> 61.72912803 | BH3: =IF(ShowA,IF(ISERROR((BH$2*Analyzer!$C$5)/(Analyzer!$I$3*336)),0,SpeedConv*(BH$2*Analyzer!$C$5)/(Analyzer!$I$3*336)),0) -> 62.75794683 | BI3: =IF(ShowA,IF(ISERROR((BI$2*Analyzer!$C$5)/(Analyzer!$I$3*336)),0,SpeedConv*(BI$2*Analyzer!$C$5)/(Analyzer!$I$3*336)),0) -> 63.78676563 | BJ3: =IF(ShowA,IF(ISERROR((BJ$2*Analyzer!$C$5)/(Analyzer!$I$3*336)),0,SpeedConv*(BJ$2*Analyzer!$C$5)/(Analyzer!$I$3*336)),0) -> 64.81558443 | BK3: =IF(ShowA,IF(ISERROR((BK$2*Analyzer!$C$5)/(Analyzer!$I$3*336)),0,SpeedConv*(BK$2*Analyzer!$C$5)/(Analyzer!$I$3*336)),0) -> 65.84440323 | BL3: =IF(ShowA,IF(ISERROR((BL$2*Analyzer!$C$5)/(Analyzer!$I$3*336)),0,SpeedConv*(BL$2*Analyzer!$C$5)/(Analyzer!$I$3*336)),0) -> 66.87322203 | BM3: =IF(ShowA,IF(ISERROR((BM$2*Analyzer!$C$5)/(Analyzer!$I$3*336)),0,SpeedConv*(BM$2*Analyzer!$C$5)/(Analyzer!$I$3*336)),0) -> 67.90204083 | BN3: =IF(ShowA,IF(ISERROR((BN$2*Analyzer!$C$5)/(Analyzer!$I$3*336)),0,SpeedConv*(BN$2*Analyzer!$C$5)/(Analyzer!$I$3*336)),0) -> 68.93085964 | BO3: =IF(ShowA,IF(ISERROR((BO$2*Analyzer!$C$5)/(Analyzer!$I$3*336)),0,SpeedConv*(BO$2*Analyzer!$C$5)/(Analyzer!$I$3*336)),0) -> 69.95967844 | BP3: =IF(ShowA,IF(ISERROR((BP$2*Analyzer!$C$5)/(Analyzer!$I$3*336)),0,SpeedConv*(BP$2*Analyzer!$C$5)/(Analyzer!$I$3*336)),0) -> 70.98849724 | BQ3: =IF(ShowA,IF(ISERROR((BQ$2*Analyzer!$C$5)/(Analyzer!$I$3*336)),0,SpeedConv*(BQ$2*Analyzer!$C$5)/(Analyzer!$I$3*336)),0) -> 72.01731604 | BR3: =IF(ShowA,IF(ISERROR((BR$2*Analyzer!$C$5)/(Analyzer!$I$3*336)),0,SpeedConv*(BR$2*Analyzer!$C$5)/(Analyzer!$I$3*336)),0) -> 73.04613484 | BS3: =IF(ShowA,IF(ISERROR((BS$2*Analyzer!$C$5)/(Analyzer!$I$3*336)),0,SpeedConv*(BS$2*Analyzer!$C$5)/(Analyzer!$I$3*336)),0) -> 74.07495364 | BT3: =IF(ShowA,IF(ISERROR((BT$2*Analyzer!$C$5)/(Analyzer!$I$3*336)),0,SpeedConv*(BT$2*Analyzer!$C$5)/(Analyzer!$I$3*336)),0) -> 75.10377244 | BU3: =IF(ShowA,IF(ISERROR((BU$2*Analyzer!$C$5)/(Analyzer!$I$3*336)),0,SpeedConv*(BU$2*Analyzer!$C$5)/(Analyzer!$I$3*336)),0) -> 76.13259124 | BV3: =IF(ShowA,IF(ISERROR((BV$2*Analyzer!$C$5)/(Analyzer!$I$3*336)),0,SpeedConv*(BV$2*Analyzer!$C$5)/(Analyzer!$I$3*336)),0) -> 77.16141004 | BW3: =IF(ShowA,IF(ISERROR((BW$2*Analyzer!$C$5)/(Analyzer!$I$3*336)),0,SpeedConv*(BW$2*Analyzer!$C$5)/(Analyzer!$I$3*336)),0) -> 78.19022884 | BX3: =IF(ShowA,IF(ISERROR((BX$2*Analyzer!$C$5)/(Analyzer!$I$3*336)),0,SpeedConv*(BX$2*Analyzer!$C$5)/(Analyzer!$I$3*336)),0) -> 79.21904764 | BY3: =IF(ShowA,IF(ISERROR((BY$2*Analyzer!$C$5)/(Analyzer!$I$3*336)),0,SpeedConv*(BY$2*Analyzer!$C$5)/(Analyzer!$I$3*336)),0) -> 80.24786644 | BZ3: =IF(ShowA,IF(ISERROR((BZ$2*Analyzer!$C$5)/(Analyzer!$I$3*336)),0,SpeedConv*(BZ$2*Analyzer!$C$5)/(Analyzer!$I$3*336)),0) -> 81.27668524 | CA3: =IF(ShowA,IF(ISERROR((CA$2*Analyzer!$C$5)/(Analyzer!$I$3*336)),0,SpeedConv*(CA$2*Analyzer!$C$5)/(Analyzer!$I$3*336)),0) -> 82.30550404 | CB3: =IF(ShowA,IF(ISERROR((CB$2*Analyzer!$C$5)/(Analyzer!$I$3*336)),0,SpeedConv*(CB$2*Analyzer!$C$5)/(Analyzer!$I$3*336)),0) -> 83.33432284 | CC3: =IF(ShowA,IF(ISERROR((CC$2*Analyzer!$C$5)/(Analyzer!$I$3*336)),0,SpeedConv*(CC$2*Analyzer!$C$5)/(Analyzer!$I$3*336)),0) -> 84.36314164 | CD3: =IF(ShowA,IF(ISERROR((CD$2*Analyzer!$C$5)/(Analyzer!$I$3*336)),0,SpeedConv*(CD$2*Analyzer!$C$5)/(Analyzer!$I$3*336)),0) -> 85.39196044 | CE3: =IF(ShowA,IF(ISERROR((CE$2*Analyzer!$C$5)/(Analyzer!$I$3*336)),0,SpeedConv*(CE$2*Analyzer!$C$5)/(Analyzer!$I$3*336)),0) -> 86.42077924 | CF3: =IF(ShowA,IF(ISERROR((CF$2*Analyzer!$C$5)/(Analyzer!$I$3*336)),0,SpeedConv*(CF$2*Analyzer!$C$5)/(Analyzer!$I$3*336)),0) -> 87.44959804 | CG3: =IF(ShowA,IF(ISERROR((CG$2*Analyzer!$C$5)/(Analyzer!$I$3*336)),0,SpeedConv*(CG$2*Analyzer!$C$5)/(Analyzer!$I$3*336)),0) -> 88.47841685 | CH3: =IF(ShowA,IF(ISERROR((CH$2*Analyzer!$C$5)/(Analyzer!$I$3*336)),0,SpeedConv*(CH$2*Analyzer!$C$5)/(Analyzer!$I$3*336)),0) -> 89.50723565 | CI3: =IF(ShowA,IF(ISERROR((CI$2*Analyzer!$C$5)/(Analyzer!$I$3*336)),0,SpeedConv*(CI$2*Analyzer!$C$5)/(Analyzer!$I$3*336)),0) -> 90.53605445 | CJ3: =IF(ShowA,IF(ISERROR((CJ$2*Analyzer!$C$5)/(Analyzer!$I$3*336)),0,SpeedConv*(CJ$2*Analyzer!$C$5)/(Analyzer!$I$3*336)),0) -> 91.56487325 | CK3: =IF(ShowA,IF(ISERROR((CK$2*Analyzer!$C$5)/(Analyzer!$I$3*336)),0,SpeedConv*(CK$2*Analyzer!$C$5)/(Analyzer!$I$3*336)),0) -> 92.59369205 | CL3: =IF(ShowA,IF(ISERROR((CL$2*Analyzer!$C$5)/(Analyzer!$I$3*336)),0,SpeedConv*(CL$2*Analyzer!$C$5)/(Analyzer!$I$3*336)),0) -> 93.62251085 | CM3: =IF(ShowA,IF(ISERROR((CM$2*Analyzer!$C$5)/(Analyzer!$I$3*336)),0,SpeedConv*(CM$2*Analyzer!$C$5)/(Analyzer!$I$3*336)),0) -> 94.65132965 | CN3: =IF(ShowA,IF(ISERROR((CN$2*Analyzer!$C$5)/(Analyzer!$I$3*336)),0,SpeedConv*(CN$2*Analyzer!$C$5)/(Analyzer!$I$3*336)),0) -> 95.68014845 | CO3: =IF(ShowA,IF(ISERROR((CO$2*Analyzer!$C$5)/(Analyzer!$I$3*336)),0,SpeedConv*(CO$2*Analyzer!$C$5)/(Analyzer!$I$3*336)),0) -> 96.70896725 | CP3: =IF(ShowA,IF(ISERROR((CP$2*Analyzer!$C$5)/(Analyzer!$I$3*336)),0,SpeedConv*(CP$2*Analyzer!$C$5)/(Analyzer!$I$3*336)),0) -> 97.73778605 | CQ3: =IF(ShowA,IF(ISERROR((CQ$2*Analyzer!$C$5)/(Analyzer!$I$3*336)),0,SpeedConv*(CQ$2*Analyzer!$C$5)/(Analyzer!$I$3*336)),0) -> 98.76660485 | CR3: =IF(ShowA,IF(ISERROR((CR$2*Analyzer!$C$5)/(Analyzer!$I$3*336)),0,SpeedConv*(CR$2*Analyzer!$C$5)/(Analyzer!$I$3*336)),0) -> 99.79542365 | CS3: =IF(ShowA,IF(ISERROR((CS$2*Analyzer!$C$5)/(Analyzer!$I$3*336)),0,SpeedConv*(CS$2*Analyzer!$C$5)/(Analyzer!$I$3*336)),0) -> 100.8242425 | CT3: =IF(ShowA,IF(ISERROR((CT$2*Analyzer!$C$5)/(Analyzer!$I$3*336)),0,SpeedConv*(CT$2*Analyzer!$C$5)/(Analyzer!$I$3*336)),0) -> 101.8530613 | CU3: =IF(ShowA,IF(ISERROR((CU$2*Analyzer!$C$5)/(Analyzer!$I$3*336)),0,SpeedConv*(CU$2*Analyzer!$C$5)/(Analyzer!$I$3*336)),0) -> 102.8818801
A4: A-2nd | B4: =IF(ShowA,IF(ISERROR((B$2*Analyzer!$C$5)/(Analyzer!$I$4*336)),0,SpeedConv*(B$2*Analyzer!$C$5)/(Analyzer!$I$4*336)),0) -> 5.186627854 | C4: =IF(ShowA,IF(ISERROR((C$2*Analyzer!$C$5)/(Analyzer!$I$4*336)),0,SpeedConv*(C$2*Analyzer!$C$5)/(Analyzer!$I$4*336)),0) -> 6.915503805 | D4: =IF(ShowA,IF(ISERROR((D$2*Analyzer!$C$5)/(Analyzer!$I$4*336)),0,SpeedConv*(D$2*Analyzer!$C$5)/(Analyzer!$I$4*336)),0) -> 8.644379756 | E4: =IF(ShowA,IF(ISERROR((E$2*Analyzer!$C$5)/(Analyzer!$I$4*336)),0,SpeedConv*(E$2*Analyzer!$C$5)/(Analyzer!$I$4*336)),0) -> 10.37325571 | F4: =IF(ShowA,IF(ISERROR((F$2*Analyzer!$C$5)/(Analyzer!$I$4*336)),0,SpeedConv*(F$2*Analyzer!$C$5)/(Analyzer!$I$4*336)),0) -> 12.10213166 | G4: =IF(ShowA,IF(ISERROR((G$2*Analyzer!$C$5)/(Analyzer!$I$4*336)),0,SpeedConv*(G$2*Analyzer!$C$5)/(Analyzer!$I$4*336)),0) -> 13.83100761 | H4: =IF(ShowA,IF(ISERROR((H$2*Analyzer!$C$5)/(Analyzer!$I$4*336)),0,SpeedConv*(H$2*Analyzer!$C$5)/(Analyzer!$I$4*336)),0) -> 15.55988356 | I4: =IF(ShowA,IF(ISERROR((I$2*Analyzer!$C$5)/(Analyzer!$I$4*336)),0,SpeedConv*(I$2*Analyzer!$C$5)/(Analyzer!$I$4*336)),0) -> 17.28875951 | J4: =IF(ShowA,IF(ISERROR((J$2*Analyzer!$C$5)/(Analyzer!$I$4*336)),0,SpeedConv*(J$2*Analyzer!$C$5)/(Analyzer!$I$4*336)),0) -> 19.01763546 | K4: =IF(ShowA,IF(ISERROR((K$2*Analyzer!$C$5)/(Analyzer!$I$4*336)),0,SpeedConv*(K$2*Analyzer!$C$5)/(Analyzer!$I$4*336)),0) -> 20.74651142 | L4: =IF(ShowA,IF(ISERROR((L$2*Analyzer!$C$5)/(Analyzer!$I$4*336)),0,SpeedConv*(L$2*Analyzer!$C$5)/(Analyzer!$I$4*336)),0) -> 22.47538737 | M4: =IF(ShowA,IF(ISERROR((M$2*Analyzer!$C$5)/(Analyzer!$I$4*336)),0,SpeedConv*(M$2*Analyzer!$C$5)/(Analyzer!$I$4*336)),0) -> 24.20426332 | N4: =IF(ShowA,IF(ISERROR((N$2*Analyzer!$C$5)/(Analyzer!$I$4*336)),0,SpeedConv*(N$2*Analyzer!$C$5)/(Analyzer!$I$4*336)),0) -> 25.93313927 | O4: =IF(ShowA,IF(ISERROR((O$2*Analyzer!$C$5)/(Analyzer!$I$4*336)),0,SpeedConv*(O$2*Analyzer!$C$5)/(Analyzer!$I$4*336)),0) -> 27.66201522 | P4: =IF(ShowA,IF(ISERROR((P$2*Analyzer!$C$5)/(Analyzer!$I$4*336)),0,SpeedConv*(P$2*Analyzer!$C$5)/(Analyzer!$I$4*336)),0) -> 29.39089117 | Q4: =IF(ShowA,IF(ISERROR((Q$2*Analyzer!$C$5)/(Analyzer!$I$4*336)),0,SpeedConv*(Q$2*Analyzer!$C$5)/(Analyzer!$I$4*336)),0) -> 31.11976712 | R4: =IF(ShowA,IF(ISERROR((R$2*Analyzer!$C$5)/(Analyzer!$I$4*336)),0,SpeedConv*(R$2*Analyzer!$C$5)/(Analyzer!$I$4*336)),0) -> 32.84864307 | S4: =IF(ShowA,IF(ISERROR((S$2*Analyzer!$C$5)/(Analyzer!$I$4*336)),0,SpeedConv*(S$2*Analyzer!$C$5)/(Analyzer!$I$4*336)),0) -> 34.57751903 | T4: =IF(ShowA,IF(ISERROR((T$2*Analyzer!$C$5)/(Analyzer!$I$4*336)),0,SpeedConv*(T$2*Analyzer!$C$5)/(Analyzer!$I$4*336)),0) -> 36.30639498 | U4: =IF(ShowA,IF(ISERROR((U$2*Analyzer!$C$5)/(Analyzer!$I$4*336)),0,SpeedConv*(U$2*Analyzer!$C$5)/(Analyzer!$I$4*336)),0) -> 38.03527093 | V4: =IF(ShowA,IF(ISERROR((V$2*Analyzer!$C$5)/(Analyzer!$I$4*336)),0,SpeedConv*(V$2*Analyzer!$C$5)/(Analyzer!$I$4*336)),0) -> 39.76414688 | W4: =IF(ShowA,IF(ISERROR((W$2*Analyzer!$C$5)/(Analyzer!$I$4*336)),0,SpeedConv*(W$2*Analyzer!$C$5)/(Analyzer!$I$4*336)),0) -> 41.49302283 | X4: =IF(ShowA,IF(ISERROR((X$2*Analyzer!$C$5)/(Analyzer!$I$4*336)),0,SpeedConv*(X$2*Analyzer!$C$5)/(Analyzer!$I$4*336)),0) -> 43.22189878 | Y4: =IF(ShowA,IF(ISERROR((Y$2*Analyzer!$C$5)/(Analyzer!$I$4*336)),0,SpeedConv*(Y$2*Analyzer!$C$5)/(Analyzer!$I$4*336)),0) -> 44.95077473 | Z4: =IF(ShowA,IF(ISERROR((Z$2*Analyzer!$C$5)/(Analyzer!$I$4*336)),0,SpeedConv*(Z$2*Analyzer!$C$5)/(Analyzer!$I$4*336)),0) -> 46.67965068 | AA4: =IF(ShowA,IF(ISERROR((AA$2*Analyzer!$C$5)/(Analyzer!$I$4*336)),0,SpeedConv*(AA$2*Analyzer!$C$5)/(Analyzer!$I$4*336)),0) -> 48.40852664 | AB4: =IF(ShowA,IF(ISERROR((AB$2*Analyzer!$C$5)/(Analyzer!$I$4*336)),0,SpeedConv*(AB$2*Analyzer!$C$5)/(Analyzer!$I$4*336)),0) -> 50.13740259 | AC4: =IF(ShowA,IF(ISERROR((AC$2*Analyzer!$C$5)/(Analyzer!$I$4*336)),0,SpeedConv*(AC$2*Analyzer!$C$5)/(Analyzer!$I$4*336)),0) -> 51.86627854 | AD4: =IF(ShowA,IF(ISERROR((AD$2*Analyzer!$C$5)/(Analyzer!$I$4*336)),0,SpeedConv*(AD$2*Analyzer!$C$5)/(Analyzer!$I$4*336)),0) -> 53.59515449 | AE4: =IF(ShowA,IF(ISERROR((AE$2*Analyzer!$C$5)/(Analyzer!$I$4*336)),0,SpeedConv*(AE$2*Analyzer!$C$5)/(Analyzer!$I$4*336)),0) -> 55.32403044 | AF4: =IF(ShowA,IF(ISERROR((AF$2*Analyzer!$C$5)/(Analyzer!$I$4*336)),0,SpeedConv*(AF$2*Analyzer!$C$5)/(Analyzer!$I$4*336)),0) -> 57.05290639 | AG4: =IF(ShowA,IF(ISERROR((AG$2*Analyzer!$C$5)/(Analyzer!$I$4*336)),0,SpeedConv*(AG$2*Analyzer!$C$5)/(Analyzer!$I$4*336)),0) -> 58.78178234 | AH4: =IF(ShowA,IF(ISERROR((AH$2*Analyzer!$C$5)/(Analyzer!$I$4*336)),0,SpeedConv*(AH$2*Analyzer!$C$5)/(Analyzer!$I$4*336)),0) -> 60.51065829 | AI4: =IF(ShowA,IF(ISERROR((AI$2*Analyzer!$C$5)/(Analyzer!$I$4*336)),0,SpeedConv*(AI$2*Analyzer!$C$5)/(Analyzer!$I$4*336)),0) -> 62.23953425 | AJ4: =IF(ShowA,IF(ISERROR((AJ$2*Analyzer!$C$5)/(Analyzer!$I$4*336)),0,SpeedConv*(AJ$2*Analyzer!$C$5)/(Analyzer!$I$4*336)),0) -> 63.9684102 | AK4: =IF(ShowA,IF(ISERROR((AK$2*Analyzer!$C$5)/(Analyzer!$I$4*336)),0,SpeedConv*(AK$2*Analyzer!$C$5)/(Analyzer!$I$4*336)),0) -> 65.69728615 | AL4: =IF(ShowA,IF(ISERROR((AL$2*Analyzer!$C$5)/(Analyzer!$I$4*336)),0,SpeedConv*(AL$2*Analyzer!$C$5)/(Analyzer!$I$4*336)),0) -> 67.4261621 | AM4: =IF(ShowA,IF(ISERROR((AM$2*Analyzer!$C$5)/(Analyzer!$I$4*336)),0,SpeedConv*(AM$2*Analyzer!$C$5)/(Analyzer!$I$4*336)),0) -> 69.15503805 | AN4: =IF(ShowA,IF(ISERROR((AN$2*Analyzer!$C$5)/(Analyzer!$I$4*336)),0,SpeedConv*(AN$2*Analyzer!$C$5)/(Analyzer!$I$4*336)),0) -> 70.883914 | AO4: =IF(ShowA,IF(ISERROR((AO$2*Analyzer!$C$5)/(Analyzer!$I$4*336)),0,SpeedConv*(AO$2*Analyzer!$C$5)/(Analyzer!$I$4*336)),0) -> 72.61278995 | AP4: =IF(ShowA,IF(ISERROR((AP$2*Analyzer!$C$5)/(Analyzer!$I$4*336)),0,SpeedConv*(AP$2*Analyzer!$C$5)/(Analyzer!$I$4*336)),0) -> 74.3416659 | AQ4: =IF(ShowA,IF(ISERROR((AQ$2*Analyzer!$C$5)/(Analyzer!$I$4*336)),0,SpeedConv*(AQ$2*Analyzer!$C$5)/(Analyzer!$I$4*336)),0) -> 76.07054186 | AR4: =IF(ShowA,IF(ISERROR((AR$2*Analyzer!$C$5)/(Analyzer!$I$4*336)),0,SpeedConv*(AR$2*Analyzer!$C$5)/(Analyzer!$I$4*336)),0) -> 77.79941781 | AS4: =IF(ShowA,IF(ISERROR((AS$2*Analyzer!$C$5)/(Analyzer!$I$4*336)),0,SpeedConv*(AS$2*Analyzer!$C$5)/(Analyzer!$I$4*336)),0) -> 79.52829376 | AT4: =IF(ShowA,IF(ISERROR((AT$2*Analyzer!$C$5)/(Analyzer!$I$4*336)),0,SpeedConv*(AT$2*Analyzer!$C$5)/(Analyzer!$I$4*336)),0) -> 81.25716971 | AU4: =IF(ShowA,IF(ISERROR((AU$2*Analyzer!$C$5)/(Analyzer!$I$4*336)),0,SpeedConv*(AU$2*Analyzer!$C$5)/(Analyzer!$I$4*336)),0) -> 82.98604566 | AV4: =IF(ShowA,IF(ISERROR((AV$2*Analyzer!$C$5)/(Analyzer!$I$4*336)),0,SpeedConv*(AV$2*Analyzer!$C$5)/(Analyzer!$I$4*336)),0) -> 84.71492161 | AW4: =IF(ShowA,IF(ISERROR((AW$2*Analyzer!$C$5)/(Analyzer!$I$4*336)),0,SpeedConv*(AW$2*Analyzer!$C$5)/(Analyzer!$I$4*336)),0) -> 86.44379756 | AX4: =IF(ShowA,IF(ISERROR((AX$2*Analyzer!$C$5)/(Analyzer!$I$4*336)),0,SpeedConv*(AX$2*Analyzer!$C$5)/(Analyzer!$I$4*336)),0) -> 88.17267352 | AY4: =IF(ShowA,IF(ISERROR((AY$2*Analyzer!$C$5)/(Analyzer!$I$4*336)),0,SpeedConv*(AY$2*Analyzer!$C$5)/(Analyzer!$I$4*336)),0) -> 89.90154947 | AZ4: =IF(ShowA,IF(ISERROR((AZ$2*Analyzer!$C$5)/(Analyzer!$I$4*336)),0,SpeedConv*(AZ$2*Analyzer!$C$5)/(Analyzer!$I$4*336)),0) -> 91.63042542 | BA4: =IF(ShowA,IF(ISERROR((BA$2*Analyzer!$C$5)/(Analyzer!$I$4*336)),0,SpeedConv*(BA$2*Analyzer!$C$5)/(Analyzer!$I$4*336)),0) -> 93.35930137 | BB4: =IF(ShowA,IF(ISERROR((BB$2*Analyzer!$C$5)/(Analyzer!$I$4*336)),0,SpeedConv*(BB$2*Analyzer!$C$5)/(Analyzer!$I$4*336)),0) -> 95.08817732 | BC4: =IF(ShowA,IF(ISERROR((BC$2*Analyzer!$C$5)/(Analyzer!$I$4*336)),0,SpeedConv*(BC$2*Analyzer!$C$5)/(Analyzer!$I$4*336)),0) -> 96.81705327 | BD4: =IF(ShowA,IF(ISERROR((BD$2*Analyzer!$C$5)/(Analyzer!$I$4*336)),0,SpeedConv*(BD$2*Analyzer!$C$5)/(Analyzer!$I$4*336)),0) -> 98.54592922 | BE4: =IF(ShowA,IF(ISERROR((BE$2*Analyzer!$C$5)/(Analyzer!$I$4*336)),0,SpeedConv*(BE$2*Analyzer!$C$5)/(Analyzer!$I$4*336)),0) -> 100.2748052 | BF4: =IF(ShowA,IF(ISERROR((BF$2*Analyzer!$C$5)/(Analyzer!$I$4*336)),0,SpeedConv*(BF$2*Analyzer!$C$5)/(Analyzer!$I$4*336)),0) -> 102.0036811 | BG4: =IF(ShowA,IF(ISERROR((BG$2*Analyzer!$C$5)/(Analyzer!$I$4*336)),0,SpeedConv*(BG$2*Analyzer!$C$5)/(Analyzer!$I$4*336)),0) -> 103.7325571 | BH4: =IF(ShowA,IF(ISERROR((BH$2*Analyzer!$C$5)/(Analyzer!$I$4*336)),0,SpeedConv*(BH$2*Analyzer!$C$5)/(Analyzer!$I$4*336)),0) -> 105.461433 | BI4: =IF(ShowA,IF(ISERROR((BI$2*Analyzer!$C$5)/(Analyzer!$I$4*336)),0,SpeedConv*(BI$2*Analyzer!$C$5)/(Analyzer!$I$4*336)),0) -> 107.190309 | BJ4: =IF(ShowA,IF(ISERROR((BJ$2*Analyzer!$C$5)/(Analyzer!$I$4*336)),0,SpeedConv*(BJ$2*Analyzer!$C$5)/(Analyzer!$I$4*336)),0) -> 108.9191849 | BK4: =IF(ShowA,IF(ISERROR((BK$2*Analyzer!$C$5)/(Analyzer!$I$4*336)),0,SpeedConv*(BK$2*Analyzer!$C$5)/(Analyzer!$I$4*336)),0) -> 110.6480609 | BL4: =IF(ShowA,IF(ISERROR((BL$2*Analyzer!$C$5)/(Analyzer!$I$4*336)),0,SpeedConv*(BL$2*Analyzer!$C$5)/(Analyzer!$I$4*336)),0) -> 112.3769368 | BM4: =IF(ShowA,IF(ISERROR((BM$2*Analyzer!$C$5)/(Analyzer!$I$4*336)),0,SpeedConv*(BM$2*Analyzer!$C$5)/(Analyzer!$I$4*336)),0) -> 114.1058128 | BN4: =IF(ShowA,IF(ISERROR((BN$2*Analyzer!$C$5)/(Analyzer!$I$4*336)),0,SpeedConv*(BN$2*Analyzer!$C$5)/(Analyzer!$I$4*336)),0) -> 115.8346887 | BO4: =IF(ShowA,IF(ISERROR((BO$2*Analyzer!$C$5)/(Analyzer!$I$4*336)),0,SpeedConv*(BO$2*Analyzer!$C$5)/(Analyzer!$I$4*336)),0) -> 117.5635647 | BP4: =IF(ShowA,IF(ISERROR((BP$2*Analyzer!$C$5)/(Analyzer!$I$4*336)),0,SpeedConv*(BP$2*Analyzer!$C$5)/(Analyzer!$I$4*336)),0) -> 119.2924406 | BQ4: =IF(ShowA,IF(ISERROR((BQ$2*Analyzer!$C$5)/(Analyzer!$I$4*336)),0,SpeedConv*(BQ$2*Analyzer!$C$5)/(Analyzer!$I$4*336)),0) -> 121.0213166 | BR4: =IF(ShowA,IF(ISERROR((BR$2*Analyzer!$C$5)/(Analyzer!$I$4*336)),0,SpeedConv*(BR$2*Analyzer!$C$5)/(Analyzer!$I$4*336)),0) -> 122.7501925 | BS4: =IF(ShowA,IF(ISERROR((BS$2*Analyzer!$C$5)/(Analyzer!$I$4*336)),0,SpeedConv*(BS$2*Analyzer!$C$5)/(Analyzer!$I$4*336)),0) -> 124.4790685 | BT4: =IF(ShowA,IF(ISERROR((BT$2*Analyzer!$C$5)/(Analyzer!$I$4*336)),0,SpeedConv*(BT$2*Analyzer!$C$5)/(Analyzer!$I$4*336)),0) -> 126.2079444 | BU4: =IF(ShowA,IF(ISERROR((BU$2*Analyzer!$C$5)/(Analyzer!$I$4*336)),0,SpeedConv*(BU$2*Analyzer!$C$5)/(Analyzer!$I$4*336)),0) -> 127.9368204 | BV4: =IF(ShowA,IF(ISERROR((BV$2*Analyzer!$C$5)/(Analyzer!$I$4*336)),0,SpeedConv*(BV$2*Analyzer!$C$5)/(Analyzer!$I$4*336)),0) -> 129.6656963 | BW4: =IF(ShowA,IF(ISERROR((BW$2*Analyzer!$C$5)/(Analyzer!$I$4*336)),0,SpeedConv*(BW$2*Analyzer!$C$5)/(Analyzer!$I$4*336)),0) -> 131.3945723 | BX4: =IF(ShowA,IF(ISERROR((BX$2*Analyzer!$C$5)/(Analyzer!$I$4*336)),0,SpeedConv*(BX$2*Analyzer!$C$5)/(Analyzer!$I$4*336)),0) -> 133.1234482 | BY4: =IF(ShowA,IF(ISERROR((BY$2*Analyzer!$C$5)/(Analyzer!$I$4*336)),0,SpeedConv*(BY$2*Analyzer!$C$5)/(Analyzer!$I$4*336)),0) -> 134.8523242 | BZ4: =IF(ShowA,IF(ISERROR((BZ$2*Analyzer!$C$5)/(Analyzer!$I$4*336)),0,SpeedConv*(BZ$2*Analyzer!$C$5)/(Analyzer!$I$4*336)),0) -> 136.5812002 | CA4: =IF(ShowA,IF(ISERROR((CA$2*Analyzer!$C$5)/(Analyzer!$I$4*336)),0,SpeedConv*(CA$2*Analyzer!$C$5)/(Analyzer!$I$4*336)),0) -> 138.3100761 | CB4: =IF(ShowA,IF(ISERROR((CB$2*Analyzer!$C$5)/(Analyzer!$I$4*336)),0,SpeedConv*(CB$2*Analyzer!$C$5)/(Analyzer!$I$4*336)),0) -> 140.0389521 | CC4: =IF(ShowA,IF(ISERROR((CC$2*Analyzer!$C$5)/(Analyzer!$I$4*336)),0,SpeedConv*(CC$2*Analyzer!$C$5)/(Analyzer!$I$4*336)),0) -> 141.767828 | CD4: =IF(ShowA,IF(ISERROR((CD$2*Analyzer!$C$5)/(Analyzer!$I$4*336)),0,SpeedConv*(CD$2*Analyzer!$C$5)/(Analyzer!$I$4*336)),0) -> 143.496704 | CE4: =IF(ShowA,IF(ISERROR((CE$2*Analyzer!$C$5)/(Analyzer!$I$4*336)),0,SpeedConv*(CE$2*Analyzer!$C$5)/(Analyzer!$I$4*336)),0) -> 145.2255799 | CF4: =IF(ShowA,IF(ISERROR((CF$2*Analyzer!$C$5)/(Analyzer!$I$4*336)),0,SpeedConv*(CF$2*Analyzer!$C$5)/(Analyzer!$I$4*336)),0) -> 146.9544559 | CG4: =IF(ShowA,IF(ISERROR((CG$2*Analyzer!$C$5)/(Analyzer!$I$4*336)),0,SpeedConv*(CG$2*Analyzer!$C$5)/(Analyzer!$I$4*336)),0) -> 148.6833318 | CH4: =IF(ShowA,IF(ISERROR((CH$2*Analyzer!$C$5)/(Analyzer!$I$4*336)),0,SpeedConv*(CH$2*Analyzer!$C$5)/(Analyzer!$I$4*336)),0) -> 150.4122078 | CI4: =IF(ShowA,IF(ISERROR((CI$2*Analyzer!$C$5)/(Analyzer!$I$4*336)),0,SpeedConv*(CI$2*Analyzer!$C$5)/(Analyzer!$I$4*336)),0) -> 152.1410837 | CJ4: =IF(ShowA,IF(ISERROR((CJ$2*Analyzer!$C$5)/(Analyzer!$I$4*336)),0,SpeedConv*(CJ$2*Analyzer!$C$5)/(Analyzer!$I$4*336)),0) -> 153.8699597 | CK4: =IF(ShowA,IF(ISERROR((CK$2*Analyzer!$C$5)/(Analyzer!$I$4*336)),0,SpeedConv*(CK$2*Analyzer!$C$5)/(Analyzer!$I$4*336)),0) -> 155.5988356 | CL4: =IF(ShowA,IF(ISERROR((CL$2*Analyzer!$C$5)/(Analyzer!$I$4*336)),0,SpeedConv*(CL$2*Analyzer!$C$5)/(Analyzer!$I$4*336)),0) -> 157.3277116 | CM4: =IF(ShowA,IF(ISERROR((CM$2*Analyzer!$C$5)/(Analyzer!$I$4*336)),0,SpeedConv*(CM$2*Analyzer!$C$5)/(Analyzer!$I$4*336)),0) -> 159.0565875 | CN4: =IF(ShowA,IF(ISERROR((CN$2*Analyzer!$C$5)/(Analyzer!$I$4*336)),0,SpeedConv*(CN$2*Analyzer!$C$5)/(Analyzer!$I$4*336)),0) -> 160.7854635 | CO4: =IF(ShowA,IF(ISERROR((CO$2*Analyzer!$C$5)/(Analyzer!$I$4*336)),0,SpeedConv*(CO$2*Analyzer!$C$5)/(Analyzer!$I$4*336)),0) -> 162.5143394 | CP4: =IF(ShowA,IF(ISERROR((CP$2*Analyzer!$C$5)/(Analyzer!$I$4*336)),0,SpeedConv*(CP$2*Analyzer!$C$5)/(Analyzer!$I$4*336)),0) -> 164.2432154 | CQ4: =IF(ShowA,IF(ISERROR((CQ$2*Analyzer!$C$5)/(Analyzer!$I$4*336)),0,SpeedConv*(CQ$2*Analyzer!$C$5)/(Analyzer!$I$4*336)),0) -> 165.9720913 | CR4: =IF(ShowA,IF(ISERROR((CR$2*Analyzer!$C$5)/(Analyzer!$I$4*336)),0,SpeedConv*(CR$2*Analyzer!$C$5)/(Analyzer!$I$4*336)),0) -> 167.7009673 | CS4: =IF(ShowA,IF(ISERROR((CS$2*Analyzer!$C$5)/(Analyzer!$I$4*336)),0,SpeedConv*(CS$2*Analyzer!$C$5)/(Analyzer!$I$4*336)),0) -> 169.4298432 | CT4: =IF(ShowA,IF(ISERROR((CT$2*Analyzer!$C$5)/(Analyzer!$I$4*336)),0,SpeedConv*(CT$2*Analyzer!$C$5)/(Analyzer!$I$4*336)),0) -> 171.1587192 | CU4: =IF(ShowA,IF(ISERROR((CU$2*Analyzer!$C$5)/(Analyzer!$I$4*336)),0,SpeedConv*(CU$2*Analyzer!$C$5)/(Analyzer!$I$4*336)),0) -> 172.8875951
A5: A-3rd | B5: =IF(ShowA,IF(ISERROR((B$2*Analyzer!$C$5)/(Analyzer!$I$5*336)),0,SpeedConv*(B$2*Analyzer!$C$5)/(Analyzer!$I$5*336)),0) -> 7.78372764 | C5: =IF(ShowA,IF(ISERROR((C$2*Analyzer!$C$5)/(Analyzer!$I$5*336)),0,SpeedConv*(C$2*Analyzer!$C$5)/(Analyzer!$I$5*336)),0) -> 10.37830352 | D5: =IF(ShowA,IF(ISERROR((D$2*Analyzer!$C$5)/(Analyzer!$I$5*336)),0,SpeedConv*(D$2*Analyzer!$C$5)/(Analyzer!$I$5*336)),0) -> 12.9728794 | E5: =IF(ShowA,IF(ISERROR((E$2*Analyzer!$C$5)/(Analyzer!$I$5*336)),0,SpeedConv*(E$2*Analyzer!$C$5)/(Analyzer!$I$5*336)),0) -> 15.56745528 | F5: =IF(ShowA,IF(ISERROR((F$2*Analyzer!$C$5)/(Analyzer!$I$5*336)),0,SpeedConv*(F$2*Analyzer!$C$5)/(Analyzer!$I$5*336)),0) -> 18.16203116 | G5: =IF(ShowA,IF(ISERROR((G$2*Analyzer!$C$5)/(Analyzer!$I$5*336)),0,SpeedConv*(G$2*Analyzer!$C$5)/(Analyzer!$I$5*336)),0) -> 20.75660704 | H5: =IF(ShowA,IF(ISERROR((H$2*Analyzer!$C$5)/(Analyzer!$I$5*336)),0,SpeedConv*(H$2*Analyzer!$C$5)/(Analyzer!$I$5*336)),0) -> 23.35118292 | I5: =IF(ShowA,IF(ISERROR((I$2*Analyzer!$C$5)/(Analyzer!$I$5*336)),0,SpeedConv*(I$2*Analyzer!$C$5)/(Analyzer!$I$5*336)),0) -> 25.9457588 | J5: =IF(ShowA,IF(ISERROR((J$2*Analyzer!$C$5)/(Analyzer!$I$5*336)),0,SpeedConv*(J$2*Analyzer!$C$5)/(Analyzer!$I$5*336)),0) -> 28.54033468 | K5: =IF(ShowA,IF(ISERROR((K$2*Analyzer!$C$5)/(Analyzer!$I$5*336)),0,SpeedConv*(K$2*Analyzer!$C$5)/(Analyzer!$I$5*336)),0) -> 31.13491056 | L5: =IF(ShowA,IF(ISERROR((L$2*Analyzer!$C$5)/(Analyzer!$I$5*336)),0,SpeedConv*(L$2*Analyzer!$C$5)/(Analyzer!$I$5*336)),0) -> 33.72948644 | M5: =IF(ShowA,IF(ISERROR((M$2*Analyzer!$C$5)/(Analyzer!$I$5*336)),0,SpeedConv*(M$2*Analyzer!$C$5)/(Analyzer!$I$5*336)),0) -> 36.32406232 | N5: =IF(ShowA,IF(ISERROR((N$2*Analyzer!$C$5)/(Analyzer!$I$5*336)),0,SpeedConv*(N$2*Analyzer!$C$5)/(Analyzer!$I$5*336)),0) -> 38.9186382 | O5: =IF(ShowA,IF(ISERROR((O$2*Analyzer!$C$5)/(Analyzer!$I$5*336)),0,SpeedConv*(O$2*Analyzer!$C$5)/(Analyzer!$I$5*336)),0) -> 41.51321408 | P5: =IF(ShowA,IF(ISERROR((P$2*Analyzer!$C$5)/(Analyzer!$I$5*336)),0,SpeedConv*(P$2*Analyzer!$C$5)/(Analyzer!$I$5*336)),0) -> 44.10778996 | Q5: =IF(ShowA,IF(ISERROR((Q$2*Analyzer!$C$5)/(Analyzer!$I$5*336)),0,SpeedConv*(Q$2*Analyzer!$C$5)/(Analyzer!$I$5*336)),0) -> 46.70236584 | R5: =IF(ShowA,IF(ISERROR((R$2*Analyzer!$C$5)/(Analyzer!$I$5*336)),0,SpeedConv*(R$2*Analyzer!$C$5)/(Analyzer!$I$5*336)),0) -> 49.29694172 | S5: =IF(ShowA,IF(ISERROR((S$2*Analyzer!$C$5)/(Analyzer!$I$5*336)),0,SpeedConv*(S$2*Analyzer!$C$5)/(Analyzer!$I$5*336)),0) -> 51.8915176 | T5: =IF(ShowA,IF(ISERROR((T$2*Analyzer!$C$5)/(Analyzer!$I$5*336)),0,SpeedConv*(T$2*Analyzer!$C$5)/(Analyzer!$I$5*336)),0) -> 54.48609348 | U5: =IF(ShowA,IF(ISERROR((U$2*Analyzer!$C$5)/(Analyzer!$I$5*336)),0,SpeedConv*(U$2*Analyzer!$C$5)/(Analyzer!$I$5*336)),0) -> 57.08066936 | V5: =IF(ShowA,IF(ISERROR((V$2*Analyzer!$C$5)/(Analyzer!$I$5*336)),0,SpeedConv*(V$2*Analyzer!$C$5)/(Analyzer!$I$5*336)),0) -> 59.67524524 | W5: =IF(ShowA,IF(ISERROR((W$2*Analyzer!$C$5)/(Analyzer!$I$5*336)),0,SpeedConv*(W$2*Analyzer!$C$5)/(Analyzer!$I$5*336)),0) -> 62.26982112 | X5: =IF(ShowA,IF(ISERROR((X$2*Analyzer!$C$5)/(Analyzer!$I$5*336)),0,SpeedConv*(X$2*Analyzer!$C$5)/(Analyzer!$I$5*336)),0) -> 64.864397 | Y5: =IF(ShowA,IF(ISERROR((Y$2*Analyzer!$C$5)/(Analyzer!$I$5*336)),0,SpeedConv*(Y$2*Analyzer!$C$5)/(Analyzer!$I$5*336)),0) -> 67.45897288 | Z5: =IF(ShowA,IF(ISERROR((Z$2*Analyzer!$C$5)/(Analyzer!$I$5*336)),0,SpeedConv*(Z$2*Analyzer!$C$5)/(Analyzer!$I$5*336)),0) -> 70.05354876 | AA5: =IF(ShowA,IF(ISERROR((AA$2*Analyzer!$C$5)/(Analyzer!$I$5*336)),0,SpeedConv*(AA$2*Analyzer!$C$5)/(Analyzer!$I$5*336)),0) -> 72.64812464 | AB5: =IF(ShowA,IF(ISERROR((AB$2*Analyzer!$C$5)/(Analyzer!$I$5*336)),0,SpeedConv*(AB$2*Analyzer!$C$5)/(Analyzer!$I$5*336)),0) -> 75.24270052 | AC5: =IF(ShowA,IF(ISERROR((AC$2*Analyzer!$C$5)/(Analyzer!$I$5*336)),0,SpeedConv*(AC$2*Analyzer!$C$5)/(Analyzer!$I$5*336)),0) -> 77.8372764 | AD5: =IF(ShowA,IF(ISERROR((AD$2*Analyzer!$C$5)/(Analyzer!$I$5*336)),0,SpeedConv*(AD$2*Analyzer!$C$5)/(Analyzer!$I$5*336)),0) -> 80.43185229 | AE5: =IF(ShowA,IF(ISERROR((AE$2*Analyzer!$C$5)/(Analyzer!$I$5*336)),0,SpeedConv*(AE$2*Analyzer!$C$5)/(Analyzer!$I$5*336)),0) -> 83.02642817 | AF5: =IF(ShowA,IF(ISERROR((AF$2*Analyzer!$C$5)/(Analyzer!$I$5*336)),0,SpeedConv*(AF$2*Analyzer!$C$5)/(Analyzer!$I$5*336)),0) -> 85.62100405 | AG5: =IF(ShowA,IF(ISERROR((AG$2*Analyzer!$C$5)/(Analyzer!$I$5*336)),0,SpeedConv*(AG$2*Analyzer!$C$5)/(Analyzer!$I$5*336)),0) -> 88.21557993 | AH5: =IF(ShowA,IF(ISERROR((AH$2*Analyzer!$C$5)/(Analyzer!$I$5*336)),0,SpeedConv*(AH$2*Analyzer!$C$5)/(Analyzer!$I$5*336)),0) -> 90.81015581 | AI5: =IF(ShowA,IF(ISERROR((AI$2*Analyzer!$C$5)/(Analyzer!$I$5*336)),0,SpeedConv*(AI$2*Analyzer!$C$5)/(Analyzer!$I$5*336)),0) -> 93.40473169 | AJ5: =IF(ShowA,IF(ISERROR((AJ$2*Analyzer!$C$5)/(Analyzer!$I$5*336)),0,SpeedConv*(AJ$2*Analyzer!$C$5)/(Analyzer!$I$5*336)),0) -> 95.99930757 | AK5: =IF(ShowA,IF(ISERROR((AK$2*Analyzer!$C$5)/(Analyzer!$I$5*336)),0,SpeedConv*(AK$2*Analyzer!$C$5)/(Analyzer!$I$5*336)),0) -> 98.59388345 | AL5: =IF(ShowA,IF(ISERROR((AL$2*Analyzer!$C$5)/(Analyzer!$I$5*336)),0,SpeedConv*(AL$2*Analyzer!$C$5)/(Analyzer!$I$5*336)),0) -> 101.1884593 | AM5: =IF(ShowA,IF(ISERROR((AM$2*Analyzer!$C$5)/(Analyzer!$I$5*336)),0,SpeedConv*(AM$2*Analyzer!$C$5)/(Analyzer!$I$5*336)),0) -> 103.7830352 | AN5: =IF(ShowA,IF(ISERROR((AN$2*Analyzer!$C$5)/(Analyzer!$I$5*336)),0,SpeedConv*(AN$2*Analyzer!$C$5)/(Analyzer!$I$5*336)),0) -> 106.3776111 | AO5: =IF(ShowA,IF(ISERROR((AO$2*Analyzer!$C$5)/(Analyzer!$I$5*336)),0,SpeedConv*(AO$2*Analyzer!$C$5)/(Analyzer!$I$5*336)),0) -> 108.972187 | AP5: =IF(ShowA,IF(ISERROR((AP$2*Analyzer!$C$5)/(Analyzer!$I$5*336)),0,SpeedConv*(AP$2*Analyzer!$C$5)/(Analyzer!$I$5*336)),0) -> 111.5667628 | AQ5: =IF(ShowA,IF(ISERROR((AQ$2*Analyzer!$C$5)/(Analyzer!$I$5*336)),0,SpeedConv*(AQ$2*Analyzer!$C$5)/(Analyzer!$I$5*336)),0) -> 114.1613387 | AR5: =IF(ShowA,IF(ISERROR((AR$2*Analyzer!$C$5)/(Analyzer!$I$5*336)),0,SpeedConv*(AR$2*Analyzer!$C$5)/(Analyzer!$I$5*336)),0) -> 116.7559146 | AS5: =IF(ShowA,IF(ISERROR((AS$2*Analyzer!$C$5)/(Analyzer!$I$5*336)),0,SpeedConv*(AS$2*Analyzer!$C$5)/(Analyzer!$I$5*336)),0) -> 119.3504905 | AT5: =IF(ShowA,IF(ISERROR((AT$2*Analyzer!$C$5)/(Analyzer!$I$5*336)),0,SpeedConv*(AT$2*Analyzer!$C$5)/(Analyzer!$I$5*336)),0) -> 121.9450664 | AU5: =IF(ShowA,IF(ISERROR((AU$2*Analyzer!$C$5)/(Analyzer!$I$5*336)),0,SpeedConv*(AU$2*Analyzer!$C$5)/(Analyzer!$I$5*336)),0) -> 124.5396422 | AV5: =IF(ShowA,IF(ISERROR((AV$2*Analyzer!$C$5)/(Analyzer!$I$5*336)),0,SpeedConv*(AV$2*Analyzer!$C$5)/(Analyzer!$I$5*336)),0) -> 127.1342181 | AW5: =IF(ShowA,IF(ISERROR((AW$2*Analyzer!$C$5)/(Analyzer!$I$5*336)),0,SpeedConv*(AW$2*Analyzer!$C$5)/(Analyzer!$I$5*336)),0) -> 129.728794 | AX5: =IF(ShowA,IF(ISERROR((AX$2*Analyzer!$C$5)/(Analyzer!$I$5*336)),0,SpeedConv*(AX$2*Analyzer!$C$5)/(Analyzer!$I$5*336)),0) -> 132.3233699 | AY5: =IF(ShowA,IF(ISERROR((AY$2*Analyzer!$C$5)/(Analyzer!$I$5*336)),0,SpeedConv*(AY$2*Analyzer!$C$5)/(Analyzer!$I$5*336)),0) -> 134.9179458 | AZ5: =IF(ShowA,IF(ISERROR((AZ$2*Analyzer!$C$5)/(Analyzer!$I$5*336)),0,SpeedConv*(AZ$2*Analyzer!$C$5)/(Analyzer!$I$5*336)),0) -> 137.5125216 | BA5: =IF(ShowA,IF(ISERROR((BA$2*Analyzer!$C$5)/(Analyzer!$I$5*336)),0,SpeedConv*(BA$2*Analyzer!$C$5)/(Analyzer!$I$5*336)),0) -> 140.1070975 | BB5: =IF(ShowA,IF(ISERROR((BB$2*Analyzer!$C$5)/(Analyzer!$I$5*336)),0,SpeedConv*(BB$2*Analyzer!$C$5)/(Analyzer!$I$5*336)),0) -> 142.7016734 | BC5: =IF(ShowA,IF(ISERROR((BC$2*Analyzer!$C$5)/(Analyzer!$I$5*336)),0,SpeedConv*(BC$2*Analyzer!$C$5)/(Analyzer!$I$5*336)),0) -> 145.2962493 | BD5: =IF(ShowA,IF(ISERROR((BD$2*Analyzer!$C$5)/(Analyzer!$I$5*336)),0,SpeedConv*(BD$2*Analyzer!$C$5)/(Analyzer!$I$5*336)),0) -> 147.8908252 | BE5: =IF(ShowA,IF(ISERROR((BE$2*Analyzer!$C$5)/(Analyzer!$I$5*336)),0,SpeedConv*(BE$2*Analyzer!$C$5)/(Analyzer!$I$5*336)),0) -> 150.485401 | BF5: =IF(ShowA,IF(ISERROR((BF$2*Analyzer!$C$5)/(Analyzer!$I$5*336)),0,SpeedConv*(BF$2*Analyzer!$C$5)/(Analyzer!$I$5*336)),0) -> 153.0799769 | BG5: =IF(ShowA,IF(ISERROR((BG$2*Analyzer!$C$5)/(Analyzer!$I$5*336)),0,SpeedConv*(BG$2*Analyzer!$C$5)/(Analyzer!$I$5*336)),0) -> 155.6745528 | BH5: =IF(ShowA,IF(ISERROR((BH$2*Analyzer!$C$5)/(Analyzer!$I$5*336)),0,SpeedConv*(BH$2*Analyzer!$C$5)/(Analyzer!$I$5*336)),0) -> 158.2691287 | BI5: =IF(ShowA,IF(ISERROR((BI$2*Analyzer!$C$5)/(Analyzer!$I$5*336)),0,SpeedConv*(BI$2*Analyzer!$C$5)/(Analyzer!$I$5*336)),0) -> 160.8637046 | BJ5: =IF(ShowA,IF(ISERROR((BJ$2*Analyzer!$C$5)/(Analyzer!$I$5*336)),0,SpeedConv*(BJ$2*Analyzer!$C$5)/(Analyzer!$I$5*336)),0) -> 163.4582805 | BK5: =IF(ShowA,IF(ISERROR((BK$2*Analyzer!$C$5)/(Analyzer!$I$5*336)),0,SpeedConv*(BK$2*Analyzer!$C$5)/(Analyzer!$I$5*336)),0) -> 166.0528563 | BL5: =IF(ShowA,IF(ISERROR((BL$2*Analyzer!$C$5)/(Analyzer!$I$5*336)),0,SpeedConv*(BL$2*Analyzer!$C$5)/(Analyzer!$I$5*336)),0) -> 168.6474322 | BM5: =IF(ShowA,IF(ISERROR((BM$2*Analyzer!$C$5)/(Analyzer!$I$5*336)),0,SpeedConv*(BM$2*Analyzer!$C$5)/(Analyzer!$I$5*336)),0) -> 171.2420081 | BN5: =IF(ShowA,IF(ISERROR((BN$2*Analyzer!$C$5)/(Analyzer!$I$5*336)),0,SpeedConv*(BN$2*Analyzer!$C$5)/(Analyzer!$I$5*336)),0) -> 173.836584 | BO5: =IF(ShowA,IF(ISERROR((BO$2*Analyzer!$C$5)/(Analyzer!$I$5*336)),0,SpeedConv*(BO$2*Analyzer!$C$5)/(Analyzer!$I$5*336)),0) -> 176.4311599 | BP5: =IF(ShowA,IF(ISERROR((BP$2*Analyzer!$C$5)/(Analyzer!$I$5*336)),0,SpeedConv*(BP$2*Analyzer!$C$5)/(Analyzer!$I$5*336)),0) -> 179.0257357 | BQ5: =IF(ShowA,IF(ISERROR((BQ$2*Analyzer!$C$5)/(Analyzer!$I$5*336)),0,SpeedConv*(BQ$2*Analyzer!$C$5)/(Analyzer!$I$5*336)),0) -> 181.6203116 | BR5: =IF(ShowA,IF(ISERROR((BR$2*Analyzer!$C$5)/(Analyzer!$I$5*336)),0,SpeedConv*(BR$2*Analyzer!$C$5)/(Analyzer!$I$5*336)),0) -> 184.2148875 | BS5: =IF(ShowA,IF(ISERROR((BS$2*Analyzer!$C$5)/(Analyzer!$I$5*336)),0,SpeedConv*(BS$2*Analyzer!$C$5)/(Analyzer!$I$5*336)),0) -> 186.8094634 | BT5: =IF(ShowA,IF(ISERROR((BT$2*Analyzer!$C$5)/(Analyzer!$I$5*336)),0,SpeedConv*(BT$2*Analyzer!$C$5)/(Analyzer!$I$5*336)),0) -> 189.4040393 | BU5: =IF(ShowA,IF(ISERROR((BU$2*Analyzer!$C$5)/(Analyzer!$I$5*336)),0,SpeedConv*(BU$2*Analyzer!$C$5)/(Analyzer!$I$5*336)),0) -> 191.9986151 | BV5: =IF(ShowA,IF(ISERROR((BV$2*Analyzer!$C$5)/(Analyzer!$I$5*336)),0,SpeedConv*(BV$2*Analyzer!$C$5)/(Analyzer!$I$5*336)),0) -> 194.593191 | BW5: =IF(ShowA,IF(ISERROR((BW$2*Analyzer!$C$5)/(Analyzer!$I$5*336)),0,SpeedConv*(BW$2*Analyzer!$C$5)/(Analyzer!$I$5*336)),0) -> 197.1877669 | BX5: =IF(ShowA,IF(ISERROR((BX$2*Analyzer!$C$5)/(Analyzer!$I$5*336)),0,SpeedConv*(BX$2*Analyzer!$C$5)/(Analyzer!$I$5*336)),0) -> 199.7823428 | BY5: =IF(ShowA,IF(ISERROR((BY$2*Analyzer!$C$5)/(Analyzer!$I$5*336)),0,SpeedConv*(BY$2*Analyzer!$C$5)/(Analyzer!$I$5*336)),0) -> 202.3769187 | BZ5: =IF(ShowA,IF(ISERROR((BZ$2*Analyzer!$C$5)/(Analyzer!$I$5*336)),0,SpeedConv*(BZ$2*Analyzer!$C$5)/(Analyzer!$I$5*336)),0) -> 204.9714945 | CA5: =IF(ShowA,IF(ISERROR((CA$2*Analyzer!$C$5)/(Analyzer!$I$5*336)),0,SpeedConv*(CA$2*Analyzer!$C$5)/(Analyzer!$I$5*336)),0) -> 207.5660704 | CB5: =IF(ShowA,IF(ISERROR((CB$2*Analyzer!$C$5)/(Analyzer!$I$5*336)),0,SpeedConv*(CB$2*Analyzer!$C$5)/(Analyzer!$I$5*336)),0) -> 210.1606463 | CC5: =IF(ShowA,IF(ISERROR((CC$2*Analyzer!$C$5)/(Analyzer!$I$5*336)),0,SpeedConv*(CC$2*Analyzer!$C$5)/(Analyzer!$I$5*336)),0) -> 212.7552222 | CD5: =IF(ShowA,IF(ISERROR((CD$2*Analyzer!$C$5)/(Analyzer!$I$5*336)),0,SpeedConv*(CD$2*Analyzer!$C$5)/(Analyzer!$I$5*336)),0) -> 215.3497981 | CE5: =IF(ShowA,IF(ISERROR((CE$2*Analyzer!$C$5)/(Analyzer!$I$5*336)),0,SpeedConv*(CE$2*Analyzer!$C$5)/(Analyzer!$I$5*336)),0) -> 217.9443739 | CF5: =IF(ShowA,IF(ISERROR((CF$2*Analyzer!$C$5)/(Analyzer!$I$5*336)),0,SpeedConv*(CF$2*Analyzer!$C$5)/(Analyzer!$I$5*336)),0) -> 220.5389498 | CG5: =IF(ShowA,IF(ISERROR((CG$2*Analyzer!$C$5)/(Analyzer!$I$5*336)),0,SpeedConv*(CG$2*Analyzer!$C$5)/(Analyzer!$I$5*336)),0) -> 223.1335257 | CH5: =IF(ShowA,IF(ISERROR((CH$2*Analyzer!$C$5)/(Analyzer!$I$5*336)),0,SpeedConv*(CH$2*Analyzer!$C$5)/(Analyzer!$I$5*336)),0) -> 225.7281016 | CI5: =IF(ShowA,IF(ISERROR((CI$2*Analyzer!$C$5)/(Analyzer!$I$5*336)),0,SpeedConv*(CI$2*Analyzer!$C$5)/(Analyzer!$I$5*336)),0) -> 228.3226775 | CJ5: =IF(ShowA,IF(ISERROR((CJ$2*Analyzer!$C$5)/(Analyzer!$I$5*336)),0,SpeedConv*(CJ$2*Analyzer!$C$5)/(Analyzer!$I$5*336)),0) -> 230.9172533 | CK5: =IF(ShowA,IF(ISERROR((CK$2*Analyzer!$C$5)/(Analyzer!$I$5*336)),0,SpeedConv*(CK$2*Analyzer!$C$5)/(Analyzer!$I$5*336)),0) -> 233.5118292 | CL5: =IF(ShowA,IF(ISERROR((CL$2*Analyzer!$C$5)/(Analyzer!$I$5*336)),0,SpeedConv*(CL$2*Analyzer!$C$5)/(Analyzer!$I$5*336)),0) -> 236.1064051 | CM5: =IF(ShowA,IF(ISERROR((CM$2*Analyzer!$C$5)/(Analyzer!$I$5*336)),0,SpeedConv*(CM$2*Analyzer!$C$5)/(Analyzer!$I$5*336)),0) -> 238.700981 | CN5: =IF(ShowA,IF(ISERROR((CN$2*Analyzer!$C$5)/(Analyzer!$I$5*336)),0,SpeedConv*(CN$2*Analyzer!$C$5)/(Analyzer!$I$5*336)),0) -> 241.2955569 | CO5: =IF(ShowA,IF(ISERROR((CO$2*Analyzer!$C$5)/(Analyzer!$I$5*336)),0,SpeedConv*(CO$2*Analyzer!$C$5)/(Analyzer!$I$5*336)),0) -> 243.8901327 | CP5: =IF(ShowA,IF(ISERROR((CP$2*Analyzer!$C$5)/(Analyzer!$I$5*336)),0,SpeedConv*(CP$2*Analyzer!$C$5)/(Analyzer!$I$5*336)),0) -> 246.4847086 | CQ5: =IF(ShowA,IF(ISERROR((CQ$2*Analyzer!$C$5)/(Analyzer!$I$5*336)),0,SpeedConv*(CQ$2*Analyzer!$C$5)/(Analyzer!$I$5*336)),0) -> 249.0792845 | CR5: =IF(ShowA,IF(ISERROR((CR$2*Analyzer!$C$5)/(Analyzer!$I$5*336)),0,SpeedConv*(CR$2*Analyzer!$C$5)/(Analyzer!$I$5*336)),0) -> 251.6738604 | CS5: =IF(ShowA,IF(ISERROR((CS$2*Analyzer!$C$5)/(Analyzer!$I$5*336)),0,SpeedConv*(CS$2*Analyzer!$C$5)/(Analyzer!$I$5*336)),0) -> 254.2684363 | CT5: =IF(ShowA,IF(ISERROR((CT$2*Analyzer!$C$5)/(Analyzer!$I$5*336)),0,SpeedConv*(CT$2*Analyzer!$C$5)/(Analyzer!$I$5*336)),0) -> 256.8630121 | CU5: =IF(ShowA,IF(ISERROR((CU$2*Analyzer!$C$5)/(Analyzer!$I$5*336)),0,SpeedConv*(CU$2*Analyzer!$C$5)/(Analyzer!$I$5*336)),0) -> 259.457588
A6: A-4th | B6: =IF(ShowA,IF(ISERROR((B$2*Analyzer!$C$5)/(Analyzer!$I$6*336)),0,SpeedConv*(B$2*Analyzer!$C$5)/(Analyzer!$I$6*336)),0) -> 10.33304929 | C6: =IF(ShowA,IF(ISERROR((C$2*Analyzer!$C$5)/(Analyzer!$I$6*336)),0,SpeedConv*(C$2*Analyzer!$C$5)/(Analyzer!$I$6*336)),0) -> 13.77739905 | D6: =IF(ShowA,IF(ISERROR((D$2*Analyzer!$C$5)/(Analyzer!$I$6*336)),0,SpeedConv*(D$2*Analyzer!$C$5)/(Analyzer!$I$6*336)),0) -> 17.22174882 | E6: =IF(ShowA,IF(ISERROR((E$2*Analyzer!$C$5)/(Analyzer!$I$6*336)),0,SpeedConv*(E$2*Analyzer!$C$5)/(Analyzer!$I$6*336)),0) -> 20.66609858 | F6: =IF(ShowA,IF(ISERROR((F$2*Analyzer!$C$5)/(Analyzer!$I$6*336)),0,SpeedConv*(F$2*Analyzer!$C$5)/(Analyzer!$I$6*336)),0) -> 24.11044834 | G6: =IF(ShowA,IF(ISERROR((G$2*Analyzer!$C$5)/(Analyzer!$I$6*336)),0,SpeedConv*(G$2*Analyzer!$C$5)/(Analyzer!$I$6*336)),0) -> 27.55479811 | H6: =IF(ShowA,IF(ISERROR((H$2*Analyzer!$C$5)/(Analyzer!$I$6*336)),0,SpeedConv*(H$2*Analyzer!$C$5)/(Analyzer!$I$6*336)),0) -> 30.99914787 | I6: =IF(ShowA,IF(ISERROR((I$2*Analyzer!$C$5)/(Analyzer!$I$6*336)),0,SpeedConv*(I$2*Analyzer!$C$5)/(Analyzer!$I$6*336)),0) -> 34.44349763 | J6: =IF(ShowA,IF(ISERROR((J$2*Analyzer!$C$5)/(Analyzer!$I$6*336)),0,SpeedConv*(J$2*Analyzer!$C$5)/(Analyzer!$I$6*336)),0) -> 37.8878474 | K6: =IF(ShowA,IF(ISERROR((K$2*Analyzer!$C$5)/(Analyzer!$I$6*336)),0,SpeedConv*(K$2*Analyzer!$C$5)/(Analyzer!$I$6*336)),0) -> 41.33219716 | L6: =IF(ShowA,IF(ISERROR((L$2*Analyzer!$C$5)/(Analyzer!$I$6*336)),0,SpeedConv*(L$2*Analyzer!$C$5)/(Analyzer!$I$6*336)),0) -> 44.77654692 | M6: =IF(ShowA,IF(ISERROR((M$2*Analyzer!$C$5)/(Analyzer!$I$6*336)),0,SpeedConv*(M$2*Analyzer!$C$5)/(Analyzer!$I$6*336)),0) -> 48.22089669 | N6: =IF(ShowA,IF(ISERROR((N$2*Analyzer!$C$5)/(Analyzer!$I$6*336)),0,SpeedConv*(N$2*Analyzer!$C$5)/(Analyzer!$I$6*336)),0) -> 51.66524645 | O6: =IF(ShowA,IF(ISERROR((O$2*Analyzer!$C$5)/(Analyzer!$I$6*336)),0,SpeedConv*(O$2*Analyzer!$C$5)/(Analyzer!$I$6*336)),0) -> 55.10959621 | P6: =IF(ShowA,IF(ISERROR((P$2*Analyzer!$C$5)/(Analyzer!$I$6*336)),0,SpeedConv*(P$2*Analyzer!$C$5)/(Analyzer!$I$6*336)),0) -> 58.55394598 | Q6: =IF(ShowA,IF(ISERROR((Q$2*Analyzer!$C$5)/(Analyzer!$I$6*336)),0,SpeedConv*(Q$2*Analyzer!$C$5)/(Analyzer!$I$6*336)),0) -> 61.99829574 | R6: =IF(ShowA,IF(ISERROR((R$2*Analyzer!$C$5)/(Analyzer!$I$6*336)),0,SpeedConv*(R$2*Analyzer!$C$5)/(Analyzer!$I$6*336)),0) -> 65.4426455 | S6: =IF(ShowA,IF(ISERROR((S$2*Analyzer!$C$5)/(Analyzer!$I$6*336)),0,SpeedConv*(S$2*Analyzer!$C$5)/(Analyzer!$I$6*336)),0) -> 68.88699527 | T6: =IF(ShowA,IF(ISERROR((T$2*Analyzer!$C$5)/(Analyzer!$I$6*336)),0,SpeedConv*(T$2*Analyzer!$C$5)/(Analyzer!$I$6*336)),0) -> 72.33134503 | U6: =IF(ShowA,IF(ISERROR((U$2*Analyzer!$C$5)/(Analyzer!$I$6*336)),0,SpeedConv*(U$2*Analyzer!$C$5)/(Analyzer!$I$6*336)),0) -> 75.77569479 | V6: =IF(ShowA,IF(ISERROR((V$2*Analyzer!$C$5)/(Analyzer!$I$6*336)),0,SpeedConv*(V$2*Analyzer!$C$5)/(Analyzer!$I$6*336)),0) -> 79.22004456 | W6: =IF(ShowA,IF(ISERROR((W$2*Analyzer!$C$5)/(Analyzer!$I$6*336)),0,SpeedConv*(W$2*Analyzer!$C$5)/(Analyzer!$I$6*336)),0) -> 82.66439432 | X6: =IF(ShowA,IF(ISERROR((X$2*Analyzer!$C$5)/(Analyzer!$I$6*336)),0,SpeedConv*(X$2*Analyzer!$C$5)/(Analyzer!$I$6*336)),0) -> 86.10874408 | Y6: =IF(ShowA,IF(ISERROR((Y$2*Analyzer!$C$5)/(Analyzer!$I$6*336)),0,SpeedConv*(Y$2*Analyzer!$C$5)/(Analyzer!$I$6*336)),0) -> 89.55309385 | Z6: =IF(ShowA,IF(ISERROR((Z$2*Analyzer!$C$5)/(Analyzer!$I$6*336)),0,SpeedConv*(Z$2*Analyzer!$C$5)/(Analyzer!$I$6*336)),0) -> 92.99744361 | AA6: =IF(ShowA,IF(ISERROR((AA$2*Analyzer!$C$5)/(Analyzer!$I$6*336)),0,SpeedConv*(AA$2*Analyzer!$C$5)/(Analyzer!$I$6*336)),0) -> 96.44179338 | AB6: =IF(ShowA,IF(ISERROR((AB$2*Analyzer!$C$5)/(Analyzer!$I$6*336)),0,SpeedConv*(AB$2*Analyzer!$C$5)/(Analyzer!$I$6*336)),0) -> 99.88614314 | AC6: =IF(ShowA,IF(ISERROR((AC$2*Analyzer!$C$5)/(Analyzer!$I$6*336)),0,SpeedConv*(AC$2*Analyzer!$C$5)/(Analyzer!$I$6*336)),0) -> 103.3304929 | AD6: =IF(ShowA,IF(ISERROR((AD$2*Analyzer!$C$5)/(Analyzer!$I$6*336)),0,SpeedConv*(AD$2*Analyzer!$C$5)/(Analyzer!$I$6*336)),0) -> 106.7748427 | AE6: =IF(ShowA,IF(ISERROR((AE$2*Analyzer!$C$5)/(Analyzer!$I$6*336)),0,SpeedConv*(AE$2*Analyzer!$C$5)/(Analyzer!$I$6*336)),0) -> 110.2191924 | AF6: =IF(ShowA,IF(ISERROR((AF$2*Analyzer!$C$5)/(Analyzer!$I$6*336)),0,SpeedConv*(AF$2*Analyzer!$C$5)/(Analyzer!$I$6*336)),0) -> 113.6635422 | AG6: =IF(ShowA,IF(ISERROR((AG$2*Analyzer!$C$5)/(Analyzer!$I$6*336)),0,SpeedConv*(AG$2*Analyzer!$C$5)/(Analyzer!$I$6*336)),0) -> 117.107892 | AH6: =IF(ShowA,IF(ISERROR((AH$2*Analyzer!$C$5)/(Analyzer!$I$6*336)),0,SpeedConv*(AH$2*Analyzer!$C$5)/(Analyzer!$I$6*336)),0) -> 120.5522417 | AI6: =IF(ShowA,IF(ISERROR((AI$2*Analyzer!$C$5)/(Analyzer!$I$6*336)),0,SpeedConv*(AI$2*Analyzer!$C$5)/(Analyzer!$I$6*336)),0) -> 123.9965915 | AJ6: =IF(ShowA,IF(ISERROR((AJ$2*Analyzer!$C$5)/(Analyzer!$I$6*336)),0,SpeedConv*(AJ$2*Analyzer!$C$5)/(Analyzer!$I$6*336)),0) -> 127.4409412 | AK6: =IF(ShowA,IF(ISERROR((AK$2*Analyzer!$C$5)/(Analyzer!$I$6*336)),0,SpeedConv*(AK$2*Analyzer!$C$5)/(Analyzer!$I$6*336)),0) -> 130.885291 | AL6: =IF(ShowA,IF(ISERROR((AL$2*Analyzer!$C$5)/(Analyzer!$I$6*336)),0,SpeedConv*(AL$2*Analyzer!$C$5)/(Analyzer!$I$6*336)),0) -> 134.3296408 | AM6: =IF(ShowA,IF(ISERROR((AM$2*Analyzer!$C$5)/(Analyzer!$I$6*336)),0,SpeedConv*(AM$2*Analyzer!$C$5)/(Analyzer!$I$6*336)),0) -> 137.7739905 | AN6: =IF(ShowA,IF(ISERROR((AN$2*Analyzer!$C$5)/(Analyzer!$I$6*336)),0,SpeedConv*(AN$2*Analyzer!$C$5)/(Analyzer!$I$6*336)),0) -> 141.2183403 | AO6: =IF(ShowA,IF(ISERROR((AO$2*Analyzer!$C$5)/(Analyzer!$I$6*336)),0,SpeedConv*(AO$2*Analyzer!$C$5)/(Analyzer!$I$6*336)),0) -> 144.6626901 | AP6: =IF(ShowA,IF(ISERROR((AP$2*Analyzer!$C$5)/(Analyzer!$I$6*336)),0,SpeedConv*(AP$2*Analyzer!$C$5)/(Analyzer!$I$6*336)),0) -> 148.1070398 | AQ6: =IF(ShowA,IF(ISERROR((AQ$2*Analyzer!$C$5)/(Analyzer!$I$6*336)),0,SpeedConv*(AQ$2*Analyzer!$C$5)/(Analyzer!$I$6*336)),0) -> 151.5513896 | AR6: =IF(ShowA,IF(ISERROR((AR$2*Analyzer!$C$5)/(Analyzer!$I$6*336)),0,SpeedConv*(AR$2*Analyzer!$C$5)/(Analyzer!$I$6*336)),0) -> 154.9957394 | AS6: =IF(ShowA,IF(ISERROR((AS$2*Analyzer!$C$5)/(Analyzer!$I$6*336)),0,SpeedConv*(AS$2*Analyzer!$C$5)/(Analyzer!$I$6*336)),0) -> 158.4400891 | AT6: =IF(ShowA,IF(ISERROR((AT$2*Analyzer!$C$5)/(Analyzer!$I$6*336)),0,SpeedConv*(AT$2*Analyzer!$C$5)/(Analyzer!$I$6*336)),0) -> 161.8844389 | AU6: =IF(ShowA,IF(ISERROR((AU$2*Analyzer!$C$5)/(Analyzer!$I$6*336)),0,SpeedConv*(AU$2*Analyzer!$C$5)/(Analyzer!$I$6*336)),0) -> 165.3287886 | AV6: =IF(ShowA,IF(ISERROR((AV$2*Analyzer!$C$5)/(Analyzer!$I$6*336)),0,SpeedConv*(AV$2*Analyzer!$C$5)/(Analyzer!$I$6*336)),0) -> 168.7731384 | AW6: =IF(ShowA,IF(ISERROR((AW$2*Analyzer!$C$5)/(Analyzer!$I$6*336)),0,SpeedConv*(AW$2*Analyzer!$C$5)/(Analyzer!$I$6*336)),0) -> 172.2174882 | AX6: =IF(ShowA,IF(ISERROR((AX$2*Analyzer!$C$5)/(Analyzer!$I$6*336)),0,SpeedConv*(AX$2*Analyzer!$C$5)/(Analyzer!$I$6*336)),0) -> 175.6618379 | AY6: =IF(ShowA,IF(ISERROR((AY$2*Analyzer!$C$5)/(Analyzer!$I$6*336)),0,SpeedConv*(AY$2*Analyzer!$C$5)/(Analyzer!$I$6*336)),0) -> 179.1061877 | AZ6: =IF(ShowA,IF(ISERROR((AZ$2*Analyzer!$C$5)/(Analyzer!$I$6*336)),0,SpeedConv*(AZ$2*Analyzer!$C$5)/(Analyzer!$I$6*336)),0) -> 182.5505375 | BA6: =IF(ShowA,IF(ISERROR((BA$2*Analyzer!$C$5)/(Analyzer!$I$6*336)),0,SpeedConv*(BA$2*Analyzer!$C$5)/(Analyzer!$I$6*336)),0) -> 185.9948872 | BB6: =IF(ShowA,IF(ISERROR((BB$2*Analyzer!$C$5)/(Analyzer!$I$6*336)),0,SpeedConv*(BB$2*Analyzer!$C$5)/(Analyzer!$I$6*336)),0) -> 189.439237 | BC6: =IF(ShowA,IF(ISERROR((BC$2*Analyzer!$C$5)/(Analyzer!$I$6*336)),0,SpeedConv*(BC$2*Analyzer!$C$5)/(Analyzer!$I$6*336)),0) -> 192.8835868 | BD6: =IF(ShowA,IF(ISERROR((BD$2*Analyzer!$C$5)/(Analyzer!$I$6*336)),0,SpeedConv*(BD$2*Analyzer!$C$5)/(Analyzer!$I$6*336)),0) -> 196.3279365 | BE6: =IF(ShowA,IF(ISERROR((BE$2*Analyzer!$C$5)/(Analyzer!$I$6*336)),0,SpeedConv*(BE$2*Analyzer!$C$5)/(Analyzer!$I$6*336)),0) -> 199.7722863 | BF6: =IF(ShowA,IF(ISERROR((BF$2*Analyzer!$C$5)/(Analyzer!$I$6*336)),0,SpeedConv*(BF$2*Analyzer!$C$5)/(Analyzer!$I$6*336)),0) -> 203.216636 | BG6: =IF(ShowA,IF(ISERROR((BG$2*Analyzer!$C$5)/(Analyzer!$I$6*336)),0,SpeedConv*(BG$2*Analyzer!$C$5)/(Analyzer!$I$6*336)),0) -> 206.6609858 | BH6: =IF(ShowA,IF(ISERROR((BH$2*Analyzer!$C$5)/(Analyzer!$I$6*336)),0,SpeedConv*(BH$2*Analyzer!$C$5)/(Analyzer!$I$6*336)),0) -> 210.1053356 | BI6: =IF(ShowA,IF(ISERROR((BI$2*Analyzer!$C$5)/(Analyzer!$I$6*336)),0,SpeedConv*(BI$2*Analyzer!$C$5)/(Analyzer!$I$6*336)),0) -> 213.5496853 | BJ6: =IF(ShowA,IF(ISERROR((BJ$2*Analyzer!$C$5)/(Analyzer!$I$6*336)),0,SpeedConv*(BJ$2*Analyzer!$C$5)/(Analyzer!$I$6*336)),0) -> 216.9940351 | BK6: =IF(ShowA,IF(ISERROR((BK$2*Analyzer!$C$5)/(Analyzer!$I$6*336)),0,SpeedConv*(BK$2*Analyzer!$C$5)/(Analyzer!$I$6*336)),0) -> 220.4383849 | BL6: =IF(ShowA,IF(ISERROR((BL$2*Analyzer!$C$5)/(Analyzer!$I$6*336)),0,SpeedConv*(BL$2*Analyzer!$C$5)/(Analyzer!$I$6*336)),0) -> 223.8827346 | BM6: =IF(ShowA,IF(ISERROR((BM$2*Analyzer!$C$5)/(Analyzer!$I$6*336)),0,SpeedConv*(BM$2*Analyzer!$C$5)/(Analyzer!$I$6*336)),0) -> 227.3270844 | BN6: =IF(ShowA,IF(ISERROR((BN$2*Analyzer!$C$5)/(Analyzer!$I$6*336)),0,SpeedConv*(BN$2*Analyzer!$C$5)/(Analyzer!$I$6*336)),0) -> 230.7714341 | BO6: =IF(ShowA,IF(ISERROR((BO$2*Analyzer!$C$5)/(Analyzer!$I$6*336)),0,SpeedConv*(BO$2*Analyzer!$C$5)/(Analyzer!$I$6*336)),0) -> 234.2157839 | BP6: =IF(ShowA,IF(ISERROR((BP$2*Analyzer!$C$5)/(Analyzer!$I$6*336)),0,SpeedConv*(BP$2*Analyzer!$C$5)/(Analyzer!$I$6*336)),0) -> 237.6601337 | BQ6: =IF(ShowA,IF(ISERROR((BQ$2*Analyzer!$C$5)/(Analyzer!$I$6*336)),0,SpeedConv*(BQ$2*Analyzer!$C$5)/(Analyzer!$I$6*336)),0) -> 241.1044834 | BR6: =IF(ShowA,IF(ISERROR((BR$2*Analyzer!$C$5)/(Analyzer!$I$6*336)),0,SpeedConv*(BR$2*Analyzer!$C$5)/(Analyzer!$I$6*336)),0) -> 244.5488332 | BS6: =IF(ShowA,IF(ISERROR((BS$2*Analyzer!$C$5)/(Analyzer!$I$6*336)),0,SpeedConv*(BS$2*Analyzer!$C$5)/(Analyzer!$I$6*336)),0) -> 247.993183 | BT6: =IF(ShowA,IF(ISERROR((BT$2*Analyzer!$C$5)/(Analyzer!$I$6*336)),0,SpeedConv*(BT$2*Analyzer!$C$5)/(Analyzer!$I$6*336)),0) -> 251.4375327 | BU6: =IF(ShowA,IF(ISERROR((BU$2*Analyzer!$C$5)/(Analyzer!$I$6*336)),0,SpeedConv*(BU$2*Analyzer!$C$5)/(Analyzer!$I$6*336)),0) -> 254.8818825 | BV6: =IF(ShowA,IF(ISERROR((BV$2*Analyzer!$C$5)/(Analyzer!$I$6*336)),0,SpeedConv*(BV$2*Analyzer!$C$5)/(Analyzer!$I$6*336)),0) -> 258.3262323 | BW6: =IF(ShowA,IF(ISERROR((BW$2*Analyzer!$C$5)/(Analyzer!$I$6*336)),0,SpeedConv*(BW$2*Analyzer!$C$5)/(Analyzer!$I$6*336)),0) -> 261.770582 | BX6: =IF(ShowA,IF(ISERROR((BX$2*Analyzer!$C$5)/(Analyzer!$I$6*336)),0,SpeedConv*(BX$2*Analyzer!$C$5)/(Analyzer!$I$6*336)),0) -> 265.2149318 | BY6: =IF(ShowA,IF(ISERROR((BY$2*Analyzer!$C$5)/(Analyzer!$I$6*336)),0,SpeedConv*(BY$2*Analyzer!$C$5)/(Analyzer!$I$6*336)),0) -> 268.6592815 | BZ6: =IF(ShowA,IF(ISERROR((BZ$2*Analyzer!$C$5)/(Analyzer!$I$6*336)),0,SpeedConv*(BZ$2*Analyzer!$C$5)/(Analyzer!$I$6*336)),0) -> 272.1036313 | CA6: =IF(ShowA,IF(ISERROR((CA$2*Analyzer!$C$5)/(Analyzer!$I$6*336)),0,SpeedConv*(CA$2*Analyzer!$C$5)/(Analyzer!$I$6*336)),0) -> 275.5479811 | CB6: =IF(ShowA,IF(ISERROR((CB$2*Analyzer!$C$5)/(Analyzer!$I$6*336)),0,SpeedConv*(CB$2*Analyzer!$C$5)/(Analyzer!$I$6*336)),0) -> 278.9923308 | CC6: =IF(ShowA,IF(ISERROR((CC$2*Analyzer!$C$5)/(Analyzer!$I$6*336)),0,SpeedConv*(CC$2*Analyzer!$C$5)/(Analyzer!$I$6*336)),0) -> 282.4366806 | CD6: =IF(ShowA,IF(ISERROR((CD$2*Analyzer!$C$5)/(Analyzer!$I$6*336)),0,SpeedConv*(CD$2*Analyzer!$C$5)/(Analyzer!$I$6*336)),0) -> 285.8810304 | CE6: =IF(ShowA,IF(ISERROR((CE$2*Analyzer!$C$5)/(Analyzer!$I$6*336)),0,SpeedConv*(CE$2*Analyzer!$C$5)/(Analyzer!$I$6*336)),0) -> 289.3253801 | CF6: =IF(ShowA,IF(ISERROR((CF$2*Analyzer!$C$5)/(Analyzer!$I$6*336)),0,SpeedConv*(CF$2*Analyzer!$C$5)/(Analyzer!$I$6*336)),0) -> 292.7697299 | CG6: =IF(ShowA,IF(ISERROR((CG$2*Analyzer!$C$5)/(Analyzer!$I$6*336)),0,SpeedConv*(CG$2*Analyzer!$C$5)/(Analyzer!$I$6*336)),0) -> 296.2140797 | CH6: =IF(ShowA,IF(ISERROR((CH$2*Analyzer!$C$5)/(Analyzer!$I$6*336)),0,SpeedConv*(CH$2*Analyzer!$C$5)/(Analyzer!$I$6*336)),0) -> 299.6584294 | CI6: =IF(ShowA,IF(ISERROR((CI$2*Analyzer!$C$5)/(Analyzer!$I$6*336)),0,SpeedConv*(CI$2*Analyzer!$C$5)/(Analyzer!$I$6*336)),0) -> 303.1027792 | CJ6: =IF(ShowA,IF(ISERROR((CJ$2*Analyzer!$C$5)/(Analyzer!$I$6*336)),0,SpeedConv*(CJ$2*Analyzer!$C$5)/(Analyzer!$I$6*336)),0) -> 306.5471289 | CK6: =IF(ShowA,IF(ISERROR((CK$2*Analyzer!$C$5)/(Analyzer!$I$6*336)),0,SpeedConv*(CK$2*Analyzer!$C$5)/(Analyzer!$I$6*336)),0) -> 309.9914787 | CL6: =IF(ShowA,IF(ISERROR((CL$2*Analyzer!$C$5)/(Analyzer!$I$6*336)),0,SpeedConv*(CL$2*Analyzer!$C$5)/(Analyzer!$I$6*336)),0) -> 313.4358285 | CM6: =IF(ShowA,IF(ISERROR((CM$2*Analyzer!$C$5)/(Analyzer!$I$6*336)),0,SpeedConv*(CM$2*Analyzer!$C$5)/(Analyzer!$I$6*336)),0) -> 316.8801782 | CN6: =IF(ShowA,IF(ISERROR((CN$2*Analyzer!$C$5)/(Analyzer!$I$6*336)),0,SpeedConv*(CN$2*Analyzer!$C$5)/(Analyzer!$I$6*336)),0) -> 320.324528 | CO6: =IF(ShowA,IF(ISERROR((CO$2*Analyzer!$C$5)/(Analyzer!$I$6*336)),0,SpeedConv*(CO$2*Analyzer!$C$5)/(Analyzer!$I$6*336)),0) -> 323.7688778 | CP6: =IF(ShowA,IF(ISERROR((CP$2*Analyzer!$C$5)/(Analyzer!$I$6*336)),0,SpeedConv*(CP$2*Analyzer!$C$5)/(Analyzer!$I$6*336)),0) -> 327.2132275 | CQ6: =IF(ShowA,IF(ISERROR((CQ$2*Analyzer!$C$5)/(Analyzer!$I$6*336)),0,SpeedConv*(CQ$2*Analyzer!$C$5)/(Analyzer!$I$6*336)),0) -> 330.6575773 | CR6: =IF(ShowA,IF(ISERROR((CR$2*Analyzer!$C$5)/(Analyzer!$I$6*336)),0,SpeedConv*(CR$2*Analyzer!$C$5)/(Analyzer!$I$6*336)),0) -> 334.101927 | CS6: =IF(ShowA,IF(ISERROR((CS$2*Analyzer!$C$5)/(Analyzer!$I$6*336)),0,SpeedConv*(CS$2*Analyzer!$C$5)/(Analyzer!$I$6*336)),0) -> 337.5462768 | CT6: =IF(ShowA,IF(ISERROR((CT$2*Analyzer!$C$5)/(Analyzer!$I$6*336)),0,SpeedConv*(CT$2*Analyzer!$C$5)/(Analyzer!$I$6*336)),0) -> 340.9906266 | CU6: =IF(ShowA,IF(ISERROR((CU$2*Analyzer!$C$5)/(Analyzer!$I$6*336)),0,SpeedConv*(CU$2*Analyzer!$C$5)/(Analyzer!$I$6*336)),0) -> 344.4349763
A7: A-5th | B7: =IF(ShowA,IF(ISERROR((B$2*Analyzer!$C$5)/(Analyzer!$I$7*336)),0,SpeedConv*(B$2*Analyzer!$C$5)/(Analyzer!$I$7*336)),0) -> 12.54553749 | C7: =IF(ShowA,IF(ISERROR((C$2*Analyzer!$C$5)/(Analyzer!$I$7*336)),0,SpeedConv*(C$2*Analyzer!$C$5)/(Analyzer!$I$7*336)),0) -> 16.72738332 | D7: =IF(ShowA,IF(ISERROR((D$2*Analyzer!$C$5)/(Analyzer!$I$7*336)),0,SpeedConv*(D$2*Analyzer!$C$5)/(Analyzer!$I$7*336)),0) -> 20.90922915 | E7: =IF(ShowA,IF(ISERROR((E$2*Analyzer!$C$5)/(Analyzer!$I$7*336)),0,SpeedConv*(E$2*Analyzer!$C$5)/(Analyzer!$I$7*336)),0) -> 25.09107498 | F7: =IF(ShowA,IF(ISERROR((F$2*Analyzer!$C$5)/(Analyzer!$I$7*336)),0,SpeedConv*(F$2*Analyzer!$C$5)/(Analyzer!$I$7*336)),0) -> 29.27292081 | G7: =IF(ShowA,IF(ISERROR((G$2*Analyzer!$C$5)/(Analyzer!$I$7*336)),0,SpeedConv*(G$2*Analyzer!$C$5)/(Analyzer!$I$7*336)),0) -> 33.45476664 | H7: =IF(ShowA,IF(ISERROR((H$2*Analyzer!$C$5)/(Analyzer!$I$7*336)),0,SpeedConv*(H$2*Analyzer!$C$5)/(Analyzer!$I$7*336)),0) -> 37.63661247 | I7: =IF(ShowA,IF(ISERROR((I$2*Analyzer!$C$5)/(Analyzer!$I$7*336)),0,SpeedConv*(I$2*Analyzer!$C$5)/(Analyzer!$I$7*336)),0) -> 41.8184583 | J7: =IF(ShowA,IF(ISERROR((J$2*Analyzer!$C$5)/(Analyzer!$I$7*336)),0,SpeedConv*(J$2*Analyzer!$C$5)/(Analyzer!$I$7*336)),0) -> 46.00030413 | K7: =IF(ShowA,IF(ISERROR((K$2*Analyzer!$C$5)/(Analyzer!$I$7*336)),0,SpeedConv*(K$2*Analyzer!$C$5)/(Analyzer!$I$7*336)),0) -> 50.18214996 | L7: =IF(ShowA,IF(ISERROR((L$2*Analyzer!$C$5)/(Analyzer!$I$7*336)),0,SpeedConv*(L$2*Analyzer!$C$5)/(Analyzer!$I$7*336)),0) -> 54.3639958 | M7: =IF(ShowA,IF(ISERROR((M$2*Analyzer!$C$5)/(Analyzer!$I$7*336)),0,SpeedConv*(M$2*Analyzer!$C$5)/(Analyzer!$I$7*336)),0) -> 58.54584163 | N7: =IF(ShowA,IF(ISERROR((N$2*Analyzer!$C$5)/(Analyzer!$I$7*336)),0,SpeedConv*(N$2*Analyzer!$C$5)/(Analyzer!$I$7*336)),0) -> 62.72768746 | O7: =IF(ShowA,IF(ISERROR((O$2*Analyzer!$C$5)/(Analyzer!$I$7*336)),0,SpeedConv*(O$2*Analyzer!$C$5)/(Analyzer!$I$7*336)),0) -> 66.90953329 | P7: =IF(ShowA,IF(ISERROR((P$2*Analyzer!$C$5)/(Analyzer!$I$7*336)),0,SpeedConv*(P$2*Analyzer!$C$5)/(Analyzer!$I$7*336)),0) -> 71.09137912 | Q7: =IF(ShowA,IF(ISERROR((Q$2*Analyzer!$C$5)/(Analyzer!$I$7*336)),0,SpeedConv*(Q$2*Analyzer!$C$5)/(Analyzer!$I$7*336)),0) -> 75.27322495 | R7: =IF(ShowA,IF(ISERROR((R$2*Analyzer!$C$5)/(Analyzer!$I$7*336)),0,SpeedConv*(R$2*Analyzer!$C$5)/(Analyzer!$I$7*336)),0) -> 79.45507078 | S7: =IF(ShowA,IF(ISERROR((S$2*Analyzer!$C$5)/(Analyzer!$I$7*336)),0,SpeedConv*(S$2*Analyzer!$C$5)/(Analyzer!$I$7*336)),0) -> 83.63691661 | T7: =IF(ShowA,IF(ISERROR((T$2*Analyzer!$C$5)/(Analyzer!$I$7*336)),0,SpeedConv*(T$2*Analyzer!$C$5)/(Analyzer!$I$7*336)),0) -> 87.81876244 | U7: =IF(ShowA,IF(ISERROR((U$2*Analyzer!$C$5)/(Analyzer!$I$7*336)),0,SpeedConv*(U$2*Analyzer!$C$5)/(Analyzer!$I$7*336)),0) -> 92.00060827 | V7: =IF(ShowA,IF(ISERROR((V$2*Analyzer!$C$5)/(Analyzer!$I$7*336)),0,SpeedConv*(V$2*Analyzer!$C$5)/(Analyzer!$I$7*336)),0) -> 96.1824541 | W7: =IF(ShowA,IF(ISERROR((W$2*Analyzer!$C$5)/(Analyzer!$I$7*336)),0,SpeedConv*(W$2*Analyzer!$C$5)/(Analyzer!$I$7*336)),0) -> 100.3642999 | X7: =IF(ShowA,IF(ISERROR((X$2*Analyzer!$C$5)/(Analyzer!$I$7*336)),0,SpeedConv*(X$2*Analyzer!$C$5)/(Analyzer!$I$7*336)),0) -> 104.5461458 | Y7: =IF(ShowA,IF(ISERROR((Y$2*Analyzer!$C$5)/(Analyzer!$I$7*336)),0,SpeedConv*(Y$2*Analyzer!$C$5)/(Analyzer!$I$7*336)),0) -> 108.7279916 | Z7: =IF(ShowA,IF(ISERROR((Z$2*Analyzer!$C$5)/(Analyzer!$I$7*336)),0,SpeedConv*(Z$2*Analyzer!$C$5)/(Analyzer!$I$7*336)),0) -> 112.9098374 | AA7: =IF(ShowA,IF(ISERROR((AA$2*Analyzer!$C$5)/(Analyzer!$I$7*336)),0,SpeedConv*(AA$2*Analyzer!$C$5)/(Analyzer!$I$7*336)),0) -> 117.0916833 | AB7: =IF(ShowA,IF(ISERROR((AB$2*Analyzer!$C$5)/(Analyzer!$I$7*336)),0,SpeedConv*(AB$2*Analyzer!$C$5)/(Analyzer!$I$7*336)),0) -> 121.2735291 | AC7: =IF(ShowA,IF(ISERROR((AC$2*Analyzer!$C$5)/(Analyzer!$I$7*336)),0,SpeedConv*(AC$2*Analyzer!$C$5)/(Analyzer!$I$7*336)),0) -> 125.4553749 | AD7: =IF(ShowA,IF(ISERROR((AD$2*Analyzer!$C$5)/(Analyzer!$I$7*336)),0,SpeedConv*(AD$2*Analyzer!$C$5)/(Analyzer!$I$7*336)),0) -> 129.6372207 | AE7: =IF(ShowA,IF(ISERROR((AE$2*Analyzer!$C$5)/(Analyzer!$I$7*336)),0,SpeedConv*(AE$2*Analyzer!$C$5)/(Analyzer!$I$7*336)),0) -> 133.8190666 | AF7: =IF(ShowA,IF(ISERROR((AF$2*Analyzer!$C$5)/(Analyzer!$I$7*336)),0,SpeedConv*(AF$2*Analyzer!$C$5)/(Analyzer!$I$7*336)),0) -> 138.0009124 | AG7: =IF(ShowA,IF(ISERROR((AG$2*Analyzer!$C$5)/(Analyzer!$I$7*336)),0,SpeedConv*(AG$2*Analyzer!$C$5)/(Analyzer!$I$7*336)),0) -> 142.1827582 | AH7: =IF(ShowA,IF(ISERROR((AH$2*Analyzer!$C$5)/(Analyzer!$I$7*336)),0,SpeedConv*(AH$2*Analyzer!$C$5)/(Analyzer!$I$7*336)),0) -> 146.3646041 | AI7: =IF(ShowA,IF(ISERROR((AI$2*Analyzer!$C$5)/(Analyzer!$I$7*336)),0,SpeedConv*(AI$2*Analyzer!$C$5)/(Analyzer!$I$7*336)),0) -> 150.5464499 | AJ7: =IF(ShowA,IF(ISERROR((AJ$2*Analyzer!$C$5)/(Analyzer!$I$7*336)),0,SpeedConv*(AJ$2*Analyzer!$C$5)/(Analyzer!$I$7*336)),0) -> 154.7282957 | AK7: =IF(ShowA,IF(ISERROR((AK$2*Analyzer!$C$5)/(Analyzer!$I$7*336)),0,SpeedConv*(AK$2*Analyzer!$C$5)/(Analyzer!$I$7*336)),0) -> 158.9101416 | AL7: =IF(ShowA,IF(ISERROR((AL$2*Analyzer!$C$5)/(Analyzer!$I$7*336)),0,SpeedConv*(AL$2*Analyzer!$C$5)/(Analyzer!$I$7*336)),0) -> 163.0919874 | AM7: =IF(ShowA,IF(ISERROR((AM$2*Analyzer!$C$5)/(Analyzer!$I$7*336)),0,SpeedConv*(AM$2*Analyzer!$C$5)/(Analyzer!$I$7*336)),0) -> 167.2738332 | AN7: =IF(ShowA,IF(ISERROR((AN$2*Analyzer!$C$5)/(Analyzer!$I$7*336)),0,SpeedConv*(AN$2*Analyzer!$C$5)/(Analyzer!$I$7*336)),0) -> 171.455679 | AO7: =IF(ShowA,IF(ISERROR((AO$2*Analyzer!$C$5)/(Analyzer!$I$7*336)),0,SpeedConv*(AO$2*Analyzer!$C$5)/(Analyzer!$I$7*336)),0) -> 175.6375249 | AP7: =IF(ShowA,IF(ISERROR((AP$2*Analyzer!$C$5)/(Analyzer!$I$7*336)),0,SpeedConv*(AP$2*Analyzer!$C$5)/(Analyzer!$I$7*336)),0) -> 179.8193707 | AQ7: =IF(ShowA,IF(ISERROR((AQ$2*Analyzer!$C$5)/(Analyzer!$I$7*336)),0,SpeedConv*(AQ$2*Analyzer!$C$5)/(Analyzer!$I$7*336)),0) -> 184.0012165 | AR7: =IF(ShowA,IF(ISERROR((AR$2*Analyzer!$C$5)/(Analyzer!$I$7*336)),0,SpeedConv*(AR$2*Analyzer!$C$5)/(Analyzer!$I$7*336)),0) -> 188.1830624 | AS7: =IF(ShowA,IF(ISERROR((AS$2*Analyzer!$C$5)/(Analyzer!$I$7*336)),0,SpeedConv*(AS$2*Analyzer!$C$5)/(Analyzer!$I$7*336)),0) -> 192.3649082 | AT7: =IF(ShowA,IF(ISERROR((AT$2*Analyzer!$C$5)/(Analyzer!$I$7*336)),0,SpeedConv*(AT$2*Analyzer!$C$5)/(Analyzer!$I$7*336)),0) -> 196.546754 | AU7: =IF(ShowA,IF(ISERROR((AU$2*Analyzer!$C$5)/(Analyzer!$I$7*336)),0,SpeedConv*(AU$2*Analyzer!$C$5)/(Analyzer!$I$7*336)),0) -> 200.7285999 | AV7: =IF(ShowA,IF(ISERROR((AV$2*Analyzer!$C$5)/(Analyzer!$I$7*336)),0,SpeedConv*(AV$2*Analyzer!$C$5)/(Analyzer!$I$7*336)),0) -> 204.9104457 | AW7: =IF(ShowA,IF(ISERROR((AW$2*Analyzer!$C$5)/(Analyzer!$I$7*336)),0,SpeedConv*(AW$2*Analyzer!$C$5)/(Analyzer!$I$7*336)),0) -> 209.0922915 | AX7: =IF(ShowA,IF(ISERROR((AX$2*Analyzer!$C$5)/(Analyzer!$I$7*336)),0,SpeedConv*(AX$2*Analyzer!$C$5)/(Analyzer!$I$7*336)),0) -> 213.2741373 | AY7: =IF(ShowA,IF(ISERROR((AY$2*Analyzer!$C$5)/(Analyzer!$I$7*336)),0,SpeedConv*(AY$2*Analyzer!$C$5)/(Analyzer!$I$7*336)),0) -> 217.4559832 | AZ7: =IF(ShowA,IF(ISERROR((AZ$2*Analyzer!$C$5)/(Analyzer!$I$7*336)),0,SpeedConv*(AZ$2*Analyzer!$C$5)/(Analyzer!$I$7*336)),0) -> 221.637829 | BA7: =IF(ShowA,IF(ISERROR((BA$2*Analyzer!$C$5)/(Analyzer!$I$7*336)),0,SpeedConv*(BA$2*Analyzer!$C$5)/(Analyzer!$I$7*336)),0) -> 225.8196748 | BB7: =IF(ShowA,IF(ISERROR((BB$2*Analyzer!$C$5)/(Analyzer!$I$7*336)),0,SpeedConv*(BB$2*Analyzer!$C$5)/(Analyzer!$I$7*336)),0) -> 230.0015207 | BC7: =IF(ShowA,IF(ISERROR((BC$2*Analyzer!$C$5)/(Analyzer!$I$7*336)),0,SpeedConv*(BC$2*Analyzer!$C$5)/(Analyzer!$I$7*336)),0) -> 234.1833665 | BD7: =IF(ShowA,IF(ISERROR((BD$2*Analyzer!$C$5)/(Analyzer!$I$7*336)),0,SpeedConv*(BD$2*Analyzer!$C$5)/(Analyzer!$I$7*336)),0) -> 238.3652123 | BE7: =IF(ShowA,IF(ISERROR((BE$2*Analyzer!$C$5)/(Analyzer!$I$7*336)),0,SpeedConv*(BE$2*Analyzer!$C$5)/(Analyzer!$I$7*336)),0) -> 242.5470582 | BF7: =IF(ShowA,IF(ISERROR((BF$2*Analyzer!$C$5)/(Analyzer!$I$7*336)),0,SpeedConv*(BF$2*Analyzer!$C$5)/(Analyzer!$I$7*336)),0) -> 246.728904 | BG7: =IF(ShowA,IF(ISERROR((BG$2*Analyzer!$C$5)/(Analyzer!$I$7*336)),0,SpeedConv*(BG$2*Analyzer!$C$5)/(Analyzer!$I$7*336)),0) -> 250.9107498 | BH7: =IF(ShowA,IF(ISERROR((BH$2*Analyzer!$C$5)/(Analyzer!$I$7*336)),0,SpeedConv*(BH$2*Analyzer!$C$5)/(Analyzer!$I$7*336)),0) -> 255.0925957 | BI7: =IF(ShowA,IF(ISERROR((BI$2*Analyzer!$C$5)/(Analyzer!$I$7*336)),0,SpeedConv*(BI$2*Analyzer!$C$5)/(Analyzer!$I$7*336)),0) -> 259.2744415 | BJ7: =IF(ShowA,IF(ISERROR((BJ$2*Analyzer!$C$5)/(Analyzer!$I$7*336)),0,SpeedConv*(BJ$2*Analyzer!$C$5)/(Analyzer!$I$7*336)),0) -> 263.4562873 | BK7: =IF(ShowA,IF(ISERROR((BK$2*Analyzer!$C$5)/(Analyzer!$I$7*336)),0,SpeedConv*(BK$2*Analyzer!$C$5)/(Analyzer!$I$7*336)),0) -> 267.6381331 | BL7: =IF(ShowA,IF(ISERROR((BL$2*Analyzer!$C$5)/(Analyzer!$I$7*336)),0,SpeedConv*(BL$2*Analyzer!$C$5)/(Analyzer!$I$7*336)),0) -> 271.819979 | BM7: =IF(ShowA,IF(ISERROR((BM$2*Analyzer!$C$5)/(Analyzer!$I$7*336)),0,SpeedConv*(BM$2*Analyzer!$C$5)/(Analyzer!$I$7*336)),0) -> 276.0018248 | BN7: =IF(ShowA,IF(ISERROR((BN$2*Analyzer!$C$5)/(Analyzer!$I$7*336)),0,SpeedConv*(BN$2*Analyzer!$C$5)/(Analyzer!$I$7*336)),0) -> 280.1836706 | BO7: =IF(ShowA,IF(ISERROR((BO$2*Analyzer!$C$5)/(Analyzer!$I$7*336)),0,SpeedConv*(BO$2*Analyzer!$C$5)/(Analyzer!$I$7*336)),0) -> 284.3655165 | BP7: =IF(ShowA,IF(ISERROR((BP$2*Analyzer!$C$5)/(Analyzer!$I$7*336)),0,SpeedConv*(BP$2*Analyzer!$C$5)/(Analyzer!$I$7*336)),0) -> 288.5473623 | BQ7: =IF(ShowA,IF(ISERROR((BQ$2*Analyzer!$C$5)/(Analyzer!$I$7*336)),0,SpeedConv*(BQ$2*Analyzer!$C$5)/(Analyzer!$I$7*336)),0) -> 292.7292081 | BR7: =IF(ShowA,IF(ISERROR((BR$2*Analyzer!$C$5)/(Analyzer!$I$7*336)),0,SpeedConv*(BR$2*Analyzer!$C$5)/(Analyzer!$I$7*336)),0) -> 296.911054 | BS7: =IF(ShowA,IF(ISERROR((BS$2*Analyzer!$C$5)/(Analyzer!$I$7*336)),0,SpeedConv*(BS$2*Analyzer!$C$5)/(Analyzer!$I$7*336)),0) -> 301.0928998 | BT7: =IF(ShowA,IF(ISERROR((BT$2*Analyzer!$C$5)/(Analyzer!$I$7*336)),0,SpeedConv*(BT$2*Analyzer!$C$5)/(Analyzer!$I$7*336)),0) -> 305.2747456 | BU7: =IF(ShowA,IF(ISERROR((BU$2*Analyzer!$C$5)/(Analyzer!$I$7*336)),0,SpeedConv*(BU$2*Analyzer!$C$5)/(Analyzer!$I$7*336)),0) -> 309.4565914 | BV7: =IF(ShowA,IF(ISERROR((BV$2*Analyzer!$C$5)/(Analyzer!$I$7*336)),0,SpeedConv*(BV$2*Analyzer!$C$5)/(Analyzer!$I$7*336)),0) -> 313.6384373 | BW7: =IF(ShowA,IF(ISERROR((BW$2*Analyzer!$C$5)/(Analyzer!$I$7*336)),0,SpeedConv*(BW$2*Analyzer!$C$5)/(Analyzer!$I$7*336)),0) -> 317.8202831 | BX7: =IF(ShowA,IF(ISERROR((BX$2*Analyzer!$C$5)/(Analyzer!$I$7*336)),0,SpeedConv*(BX$2*Analyzer!$C$5)/(Analyzer!$I$7*336)),0) -> 322.0021289 | BY7: =IF(ShowA,IF(ISERROR((BY$2*Analyzer!$C$5)/(Analyzer!$I$7*336)),0,SpeedConv*(BY$2*Analyzer!$C$5)/(Analyzer!$I$7*336)),0) -> 326.1839748 | BZ7: =IF(ShowA,IF(ISERROR((BZ$2*Analyzer!$C$5)/(Analyzer!$I$7*336)),0,SpeedConv*(BZ$2*Analyzer!$C$5)/(Analyzer!$I$7*336)),0) -> 330.3658206 | CA7: =IF(ShowA,IF(ISERROR((CA$2*Analyzer!$C$5)/(Analyzer!$I$7*336)),0,SpeedConv*(CA$2*Analyzer!$C$5)/(Analyzer!$I$7*336)),0) -> 334.5476664 | CB7: =IF(ShowA,IF(ISERROR((CB$2*Analyzer!$C$5)/(Analyzer!$I$7*336)),0,SpeedConv*(CB$2*Analyzer!$C$5)/(Analyzer!$I$7*336)),0) -> 338.7295123 | CC7: =IF(ShowA,IF(ISERROR((CC$2*Analyzer!$C$5)/(Analyzer!$I$7*336)),0,SpeedConv*(CC$2*Analyzer!$C$5)/(Analyzer!$I$7*336)),0) -> 342.9113581 | CD7: =IF(ShowA,IF(ISERROR((CD$2*Analyzer!$C$5)/(Analyzer!$I$7*336)),0,SpeedConv*(CD$2*Analyzer!$C$5)/(Analyzer!$I$7*336)),0) -> 347.0932039 | CE7: =IF(ShowA,IF(ISERROR((CE$2*Analyzer!$C$5)/(Analyzer!$I$7*336)),0,SpeedConv*(CE$2*Analyzer!$C$5)/(Analyzer!$I$7*336)),0) -> 351.2750498 | CF7: =IF(ShowA,IF(ISERROR((CF$2*Analyzer!$C$5)/(Analyzer!$I$7*336)),0,SpeedConv*(CF$2*Analyzer!$C$5)/(Analyzer!$I$7*336)),0) -> 355.4568956 | CG7: =IF(ShowA,IF(ISERROR((CG$2*Analyzer!$C$5)/(Analyzer!$I$7*336)),0,SpeedConv*(CG$2*Analyzer!$C$5)/(Analyzer!$I$7*336)),0) -> 359.6387414 | CH7: =IF(ShowA,IF(ISERROR((CH$2*Analyzer!$C$5)/(Analyzer!$I$7*336)),0,SpeedConv*(CH$2*Analyzer!$C$5)/(Analyzer!$I$7*336)),0) -> 363.8205872 | CI7: =IF(ShowA,IF(ISERROR((CI$2*Analyzer!$C$5)/(Analyzer!$I$7*336)),0,SpeedConv*(CI$2*Analyzer!$C$5)/(Analyzer!$I$7*336)),0) -> 368.0024331 | CJ7: =IF(ShowA,IF(ISERROR((CJ$2*Analyzer!$C$5)/(Analyzer!$I$7*336)),0,SpeedConv*(CJ$2*Analyzer!$C$5)/(Analyzer!$I$7*336)),0) -> 372.1842789 | CK7: =IF(ShowA,IF(ISERROR((CK$2*Analyzer!$C$5)/(Analyzer!$I$7*336)),0,SpeedConv*(CK$2*Analyzer!$C$5)/(Analyzer!$I$7*336)),0) -> 376.3661247 | CL7: =IF(ShowA,IF(ISERROR((CL$2*Analyzer!$C$5)/(Analyzer!$I$7*336)),0,SpeedConv*(CL$2*Analyzer!$C$5)/(Analyzer!$I$7*336)),0) -> 380.5479706 | CM7: =IF(ShowA,IF(ISERROR((CM$2*Analyzer!$C$5)/(Analyzer!$I$7*336)),0,SpeedConv*(CM$2*Analyzer!$C$5)/(Analyzer!$I$7*336)),0) -> 384.7298164 | CN7: =IF(ShowA,IF(ISERROR((CN$2*Analyzer!$C$5)/(Analyzer!$I$7*336)),0,SpeedConv*(CN$2*Analyzer!$C$5)/(Analyzer!$I$7*336)),0) -> 388.9116622 | CO7: =IF(ShowA,IF(ISERROR((CO$2*Analyzer!$C$5)/(Analyzer!$I$7*336)),0,SpeedConv*(CO$2*Analyzer!$C$5)/(Analyzer!$I$7*336)),0) -> 393.0935081 | CP7: =IF(ShowA,IF(ISERROR((CP$2*Analyzer!$C$5)/(Analyzer!$I$7*336)),0,SpeedConv*(CP$2*Analyzer!$C$5)/(Analyzer!$I$7*336)),0) -> 397.2753539 | CQ7: =IF(ShowA,IF(ISERROR((CQ$2*Analyzer!$C$5)/(Analyzer!$I$7*336)),0,SpeedConv*(CQ$2*Analyzer!$C$5)/(Analyzer!$I$7*336)),0) -> 401.4571997 | CR7: =IF(ShowA,IF(ISERROR((CR$2*Analyzer!$C$5)/(Analyzer!$I$7*336)),0,SpeedConv*(CR$2*Analyzer!$C$5)/(Analyzer!$I$7*336)),0) -> 405.6390455 | CS7: =IF(ShowA,IF(ISERROR((CS$2*Analyzer!$C$5)/(Analyzer!$I$7*336)),0,SpeedConv*(CS$2*Analyzer!$C$5)/(Analyzer!$I$7*336)),0) -> 409.8208914 | CT7: =IF(ShowA,IF(ISERROR((CT$2*Analyzer!$C$5)/(Analyzer!$I$7*336)),0,SpeedConv*(CT$2*Analyzer!$C$5)/(Analyzer!$I$7*336)),0) -> 414.0027372 | CU7: =IF(ShowA,IF(ISERROR((CU$2*Analyzer!$C$5)/(Analyzer!$I$7*336)),0,SpeedConv*(CU$2*Analyzer!$C$5)/(Analyzer!$I$7*336)),0) -> 418.184583
A8: A-6th | B8: =IF(ShowA,IF(ISERROR((B$2*Analyzer!$C$5)/(Analyzer!$I$8*336)),0,SpeedConv*(B$2*Analyzer!$C$5)/(Analyzer!$I$8*336)),0) -> 0 | C8: =IF(ShowA,IF(ISERROR((C$2*Analyzer!$C$5)/(Analyzer!$I$8*336)),0,SpeedConv*(C$2*Analyzer!$C$5)/(Analyzer!$I$8*336)),0) -> 0 | D8: =IF(ShowA,IF(ISERROR((D$2*Analyzer!$C$5)/(Analyzer!$I$8*336)),0,SpeedConv*(D$2*Analyzer!$C$5)/(Analyzer!$I$8*336)),0) -> 0 | E8: =IF(ShowA,IF(ISERROR((E$2*Analyzer!$C$5)/(Analyzer!$I$8*336)),0,SpeedConv*(E$2*Analyzer!$C$5)/(Analyzer!$I$8*336)),0) -> 0 | F8: =IF(ShowA,IF(ISERROR((F$2*Analyzer!$C$5)/(Analyzer!$I$8*336)),0,SpeedConv*(F$2*Analyzer!$C$5)/(Analyzer!$I$8*336)),0) -> 0 | G8: =IF(ShowA,IF(ISERROR((G$2*Analyzer!$C$5)/(Analyzer!$I$8*336)),0,SpeedConv*(G$2*Analyzer!$C$5)/(Analyzer!$I$8*336)),0) -> 0 | H8: =IF(ShowA,IF(ISERROR((H$2*Analyzer!$C$5)/(Analyzer!$I$8*336)),0,SpeedConv*(H$2*Analyzer!$C$5)/(Analyzer!$I$8*336)),0) -> 0 | I8: =IF(ShowA,IF(ISERROR((I$2*Analyzer!$C$5)/(Analyzer!$I$8*336)),0,SpeedConv*(I$2*Analyzer!$C$5)/(Analyzer!$I$8*336)),0) -> 0 | J8: =IF(ShowA,IF(ISERROR((J$2*Analyzer!$C$5)/(Analyzer!$I$8*336)),0,SpeedConv*(J$2*Analyzer!$C$5)/(Analyzer!$I$8*336)),0) -> 0 | K8: =IF(ShowA,IF(ISERROR((K$2*Analyzer!$C$5)/(Analyzer!$I$8*336)),0,SpeedConv*(K$2*Analyzer!$C$5)/(Analyzer!$I$8*336)),0) -> 0 | L8: =IF(ShowA,IF(ISERROR((L$2*Analyzer!$C$5)/(Analyzer!$I$8*336)),0,SpeedConv*(L$2*Analyzer!$C$5)/(Analyzer!$I$8*336)),0) -> 0 | M8: =IF(ShowA,IF(ISERROR((M$2*Analyzer!$C$5)/(Analyzer!$I$8*336)),0,SpeedConv*(M$2*Analyzer!$C$5)/(Analyzer!$I$8*336)),0) -> 0 | N8: =IF(ShowA,IF(ISERROR((N$2*Analyzer!$C$5)/(Analyzer!$I$8*336)),0,SpeedConv*(N$2*Analyzer!$C$5)/(Analyzer!$I$8*336)),0) -> 0 | O8: =IF(ShowA,IF(ISERROR((O$2*Analyzer!$C$5)/(Analyzer!$I$8*336)),0,SpeedConv*(O$2*Analyzer!$C$5)/(Analyzer!$I$8*336)),0) -> 0 | P8: =IF(ShowA,IF(ISERROR((P$2*Analyzer!$C$5)/(Analyzer!$I$8*336)),0,SpeedConv*(P$2*Analyzer!$C$5)/(Analyzer!$I$8*336)),0) -> 0 | Q8: =IF(ShowA,IF(ISERROR((Q$2*Analyzer!$C$5)/(Analyzer!$I$8*336)),0,SpeedConv*(Q$2*Analyzer!$C$5)/(Analyzer!$I$8*336)),0) -> 0 | R8: =IF(ShowA,IF(ISERROR((R$2*Analyzer!$C$5)/(Analyzer!$I$8*336)),0,SpeedConv*(R$2*Analyzer!$C$5)/(Analyzer!$I$8*336)),0) -> 0 | S8: =IF(ShowA,IF(ISERROR((S$2*Analyzer!$C$5)/(Analyzer!$I$8*336)),0,SpeedConv*(S$2*Analyzer!$C$5)/(Analyzer!$I$8*336)),0) -> 0 | T8: =IF(ShowA,IF(ISERROR((T$2*Analyzer!$C$5)/(Analyzer!$I$8*336)),0,SpeedConv*(T$2*Analyzer!$C$5)/(Analyzer!$I$8*336)),0) -> 0 | U8: =IF(ShowA,IF(ISERROR((U$2*Analyzer!$C$5)/(Analyzer!$I$8*336)),0,SpeedConv*(U$2*Analyzer!$C$5)/(Analyzer!$I$8*336)),0) -> 0 | V8: =IF(ShowA,IF(ISERROR((V$2*Analyzer!$C$5)/(Analyzer!$I$8*336)),0,SpeedConv*(V$2*Analyzer!$C$5)/(Analyzer!$I$8*336)),0) -> 0 | W8: =IF(ShowA,IF(ISERROR((W$2*Analyzer!$C$5)/(Analyzer!$I$8*336)),0,SpeedConv*(W$2*Analyzer!$C$5)/(Analyzer!$I$8*336)),0) -> 0 | X8: =IF(ShowA,IF(ISERROR((X$2*Analyzer!$C$5)/(Analyzer!$I$8*336)),0,SpeedConv*(X$2*Analyzer!$C$5)/(Analyzer!$I$8*336)),0) -> 0 | Y8: =IF(ShowA,IF(ISERROR((Y$2*Analyzer!$C$5)/(Analyzer!$I$8*336)),0,SpeedConv*(Y$2*Analyzer!$C$5)/(Analyzer!$I$8*336)),0) -> 0 | Z8: =IF(ShowA,IF(ISERROR((Z$2*Analyzer!$C$5)/(Analyzer!$I$8*336)),0,SpeedConv*(Z$2*Analyzer!$C$5)/(Analyzer!$I$8*336)),0) -> 0 | AA8: =IF(ShowA,IF(ISERROR((AA$2*Analyzer!$C$5)/(Analyzer!$I$8*336)),0,SpeedConv*(AA$2*Analyzer!$C$5)/(Analyzer!$I$8*336)),0) -> 0 | AB8: =IF(ShowA,IF(ISERROR((AB$2*Analyzer!$C$5)/(Analyzer!$I$8*336)),0,SpeedConv*(AB$2*Analyzer!$C$5)/(Analyzer!$I$8*336)),0) -> 0 | AC8: =IF(ShowA,IF(ISERROR((AC$2*Analyzer!$C$5)/(Analyzer!$I$8*336)),0,SpeedConv*(AC$2*Analyzer!$C$5)/(Analyzer!$I$8*336)),0) -> 0 | AD8: =IF(ShowA,IF(ISERROR((AD$2*Analyzer!$C$5)/(Analyzer!$I$8*336)),0,SpeedConv*(AD$2*Analyzer!$C$5)/(Analyzer!$I$8*336)),0) -> 0 | AE8: =IF(ShowA,IF(ISERROR((AE$2*Analyzer!$C$5)/(Analyzer!$I$8*336)),0,SpeedConv*(AE$2*Analyzer!$C$5)/(Analyzer!$I$8*336)),0) -> 0 | AF8: =IF(ShowA,IF(ISERROR((AF$2*Analyzer!$C$5)/(Analyzer!$I$8*336)),0,SpeedConv*(AF$2*Analyzer!$C$5)/(Analyzer!$I$8*336)),0) -> 0 | AG8: =IF(ShowA,IF(ISERROR((AG$2*Analyzer!$C$5)/(Analyzer!$I$8*336)),0,SpeedConv*(AG$2*Analyzer!$C$5)/(Analyzer!$I$8*336)),0) -> 0 | AH8: =IF(ShowA,IF(ISERROR((AH$2*Analyzer!$C$5)/(Analyzer!$I$8*336)),0,SpeedConv*(AH$2*Analyzer!$C$5)/(Analyzer!$I$8*336)),0) -> 0 | AI8: =IF(ShowA,IF(ISERROR((AI$2*Analyzer!$C$5)/(Analyzer!$I$8*336)),0,SpeedConv*(AI$2*Analyzer!$C$5)/(Analyzer!$I$8*336)),0) -> 0 | AJ8: =IF(ShowA,IF(ISERROR((AJ$2*Analyzer!$C$5)/(Analyzer!$I$8*336)),0,SpeedConv*(AJ$2*Analyzer!$C$5)/(Analyzer!$I$8*336)),0) -> 0 | AK8: =IF(ShowA,IF(ISERROR((AK$2*Analyzer!$C$5)/(Analyzer!$I$8*336)),0,SpeedConv*(AK$2*Analyzer!$C$5)/(Analyzer!$I$8*336)),0) -> 0 | AL8: =IF(ShowA,IF(ISERROR((AL$2*Analyzer!$C$5)/(Analyzer!$I$8*336)),0,SpeedConv*(AL$2*Analyzer!$C$5)/(Analyzer!$I$8*336)),0) -> 0 | AM8: =IF(ShowA,IF(ISERROR((AM$2*Analyzer!$C$5)/(Analyzer!$I$8*336)),0,SpeedConv*(AM$2*Analyzer!$C$5)/(Analyzer!$I$8*336)),0) -> 0 | AN8: =IF(ShowA,IF(ISERROR((AN$2*Analyzer!$C$5)/(Analyzer!$I$8*336)),0,SpeedConv*(AN$2*Analyzer!$C$5)/(Analyzer!$I$8*336)),0) -> 0 | AO8: =IF(ShowA,IF(ISERROR((AO$2*Analyzer!$C$5)/(Analyzer!$I$8*336)),0,SpeedConv*(AO$2*Analyzer!$C$5)/(Analyzer!$I$8*336)),0) -> 0 | AP8: =IF(ShowA,IF(ISERROR((AP$2*Analyzer!$C$5)/(Analyzer!$I$8*336)),0,SpeedConv*(AP$2*Analyzer!$C$5)/(Analyzer!$I$8*336)),0) -> 0 | AQ8: =IF(ShowA,IF(ISERROR((AQ$2*Analyzer!$C$5)/(Analyzer!$I$8*336)),0,SpeedConv*(AQ$2*Analyzer!$C$5)/(Analyzer!$I$8*336)),0) -> 0 | AR8: =IF(ShowA,IF(ISERROR((AR$2*Analyzer!$C$5)/(Analyzer!$I$8*336)),0,SpeedConv*(AR$2*Analyzer!$C$5)/(Analyzer!$I$8*336)),0) -> 0 | AS8: =IF(ShowA,IF(ISERROR((AS$2*Analyzer!$C$5)/(Analyzer!$I$8*336)),0,SpeedConv*(AS$2*Analyzer!$C$5)/(Analyzer!$I$8*336)),0) -> 0 | AT8: =IF(ShowA,IF(ISERROR((AT$2*Analyzer!$C$5)/(Analyzer!$I$8*336)),0,SpeedConv*(AT$2*Analyzer!$C$5)/(Analyzer!$I$8*336)),0) -> 0 | AU8: =IF(ShowA,IF(ISERROR((AU$2*Analyzer!$C$5)/(Analyzer!$I$8*336)),0,SpeedConv*(AU$2*Analyzer!$C$5)/(Analyzer!$I$8*336)),0) -> 0 | AV8: =IF(ShowA,IF(ISERROR((AV$2*Analyzer!$C$5)/(Analyzer!$I$8*336)),0,SpeedConv*(AV$2*Analyzer!$C$5)/(Analyzer!$I$8*336)),0) -> 0 | AW8: =IF(ShowA,IF(ISERROR((AW$2*Analyzer!$C$5)/(Analyzer!$I$8*336)),0,SpeedConv*(AW$2*Analyzer!$C$5)/(Analyzer!$I$8*336)),0) -> 0 | AX8: =IF(ShowA,IF(ISERROR((AX$2*Analyzer!$C$5)/(Analyzer!$I$8*336)),0,SpeedConv*(AX$2*Analyzer!$C$5)/(Analyzer!$I$8*336)),0) -> 0 | AY8: =IF(ShowA,IF(ISERROR((AY$2*Analyzer!$C$5)/(Analyzer!$I$8*336)),0,SpeedConv*(AY$2*Analyzer!$C$5)/(Analyzer!$I$8*336)),0) -> 0 | AZ8: =IF(ShowA,IF(ISERROR((AZ$2*Analyzer!$C$5)/(Analyzer!$I$8*336)),0,SpeedConv*(AZ$2*Analyzer!$C$5)/(Analyzer!$I$8*336)),0) -> 0 | BA8: =IF(ShowA,IF(ISERROR((BA$2*Analyzer!$C$5)/(Analyzer!$I$8*336)),0,SpeedConv*(BA$2*Analyzer!$C$5)/(Analyzer!$I$8*336)),0) -> 0 | BB8: =IF(ShowA,IF(ISERROR((BB$2*Analyzer!$C$5)/(Analyzer!$I$8*336)),0,SpeedConv*(BB$2*Analyzer!$C$5)/(Analyzer!$I$8*336)),0) -> 0 | BC8: =IF(ShowA,IF(ISERROR((BC$2*Analyzer!$C$5)/(Analyzer!$I$8*336)),0,SpeedConv*(BC$2*Analyzer!$C$5)/(Analyzer!$I$8*336)),0) -> 0 | BD8: =IF(ShowA,IF(ISERROR((BD$2*Analyzer!$C$5)/(Analyzer!$I$8*336)),0,SpeedConv*(BD$2*Analyzer!$C$5)/(Analyzer!$I$8*336)),0) -> 0 | BE8: =IF(ShowA,IF(ISERROR((BE$2*Analyzer!$C$5)/(Analyzer!$I$8*336)),0,SpeedConv*(BE$2*Analyzer!$C$5)/(Analyzer!$I$8*336)),0) -> 0 | BF8: =IF(ShowA,IF(ISERROR((BF$2*Analyzer!$C$5)/(Analyzer!$I$8*336)),0,SpeedConv*(BF$2*Analyzer!$C$5)/(Analyzer!$I$8*336)),0) -> 0 | BG8: =IF(ShowA,IF(ISERROR((BG$2*Analyzer!$C$5)/(Analyzer!$I$8*336)),0,SpeedConv*(BG$2*Analyzer!$C$5)/(Analyzer!$I$8*336)),0) -> 0 | BH8: =IF(ShowA,IF(ISERROR((BH$2*Analyzer!$C$5)/(Analyzer!$I$8*336)),0,SpeedConv*(BH$2*Analyzer!$C$5)/(Analyzer!$I$8*336)),0) -> 0 | BI8: =IF(ShowA,IF(ISERROR((BI$2*Analyzer!$C$5)/(Analyzer!$I$8*336)),0,SpeedConv*(BI$2*Analyzer!$C$5)/(Analyzer!$I$8*336)),0) -> 0 | BJ8: =IF(ShowA,IF(ISERROR((BJ$2*Analyzer!$C$5)/(Analyzer!$I$8*336)),0,SpeedConv*(BJ$2*Analyzer!$C$5)/(Analyzer!$I$8*336)),0) -> 0 | BK8: =IF(ShowA,IF(ISERROR((BK$2*Analyzer!$C$5)/(Analyzer!$I$8*336)),0,SpeedConv*(BK$2*Analyzer!$C$5)/(Analyzer!$I$8*336)),0) -> 0 | BL8: =IF(ShowA,IF(ISERROR((BL$2*Analyzer!$C$5)/(Analyzer!$I$8*336)),0,SpeedConv*(BL$2*Analyzer!$C$5)/(Analyzer!$I$8*336)),0) -> 0 | BM8: =IF(ShowA,IF(ISERROR((BM$2*Analyzer!$C$5)/(Analyzer!$I$8*336)),0,SpeedConv*(BM$2*Analyzer!$C$5)/(Analyzer!$I$8*336)),0) -> 0 | BN8: =IF(ShowA,IF(ISERROR((BN$2*Analyzer!$C$5)/(Analyzer!$I$8*336)),0,SpeedConv*(BN$2*Analyzer!$C$5)/(Analyzer!$I$8*336)),0) -> 0 | BO8: =IF(ShowA,IF(ISERROR((BO$2*Analyzer!$C$5)/(Analyzer!$I$8*336)),0,SpeedConv*(BO$2*Analyzer!$C$5)/(Analyzer!$I$8*336)),0) -> 0 | BP8: =IF(ShowA,IF(ISERROR((BP$2*Analyzer!$C$5)/(Analyzer!$I$8*336)),0,SpeedConv*(BP$2*Analyzer!$C$5)/(Analyzer!$I$8*336)),0) -> 0 | BQ8: =IF(ShowA,IF(ISERROR((BQ$2*Analyzer!$C$5)/(Analyzer!$I$8*336)),0,SpeedConv*(BQ$2*Analyzer!$C$5)/(Analyzer!$I$8*336)),0) -> 0 | BR8: =IF(ShowA,IF(ISERROR((BR$2*Analyzer!$C$5)/(Analyzer!$I$8*336)),0,SpeedConv*(BR$2*Analyzer!$C$5)/(Analyzer!$I$8*336)),0) -> 0 | BS8: =IF(ShowA,IF(ISERROR((BS$2*Analyzer!$C$5)/(Analyzer!$I$8*336)),0,SpeedConv*(BS$2*Analyzer!$C$5)/(Analyzer!$I$8*336)),0) -> 0 | BT8: =IF(ShowA,IF(ISERROR((BT$2*Analyzer!$C$5)/(Analyzer!$I$8*336)),0,SpeedConv*(BT$2*Analyzer!$C$5)/(Analyzer!$I$8*336)),0) -> 0 | BU8: =IF(ShowA,IF(ISERROR((BU$2*Analyzer!$C$5)/(Analyzer!$I$8*336)),0,SpeedConv*(BU$2*Analyzer!$C$5)/(Analyzer!$I$8*336)),0) -> 0 | BV8: =IF(ShowA,IF(ISERROR((BV$2*Analyzer!$C$5)/(Analyzer!$I$8*336)),0,SpeedConv*(BV$2*Analyzer!$C$5)/(Analyzer!$I$8*336)),0) -> 0 | BW8: =IF(ShowA,IF(ISERROR((BW$2*Analyzer!$C$5)/(Analyzer!$I$8*336)),0,SpeedConv*(BW$2*Analyzer!$C$5)/(Analyzer!$I$8*336)),0) -> 0 | BX8: =IF(ShowA,IF(ISERROR((BX$2*Analyzer!$C$5)/(Analyzer!$I$8*336)),0,SpeedConv*(BX$2*Analyzer!$C$5)/(Analyzer!$I$8*336)),0) -> 0 | BY8: =IF(ShowA,IF(ISERROR((BY$2*Analyzer!$C$5)/(Analyzer!$I$8*336)),0,SpeedConv*(BY$2*Analyzer!$C$5)/(Analyzer!$I$8*336)),0) -> 0 | BZ8: =IF(ShowA,IF(ISERROR((BZ$2*Analyzer!$C$5)/(Analyzer!$I$8*336)),0,SpeedConv*(BZ$2*Analyzer!$C$5)/(Analyzer!$I$8*336)),0) -> 0 | CA8: =IF(ShowA,IF(ISERROR((CA$2*Analyzer!$C$5)/(Analyzer!$I$8*336)),0,SpeedConv*(CA$2*Analyzer!$C$5)/(Analyzer!$I$8*336)),0) -> 0 | CB8: =IF(ShowA,IF(ISERROR((CB$2*Analyzer!$C$5)/(Analyzer!$I$8*336)),0,SpeedConv*(CB$2*Analyzer!$C$5)/(Analyzer!$I$8*336)),0) -> 0 | CC8: =IF(ShowA,IF(ISERROR((CC$2*Analyzer!$C$5)/(Analyzer!$I$8*336)),0,SpeedConv*(CC$2*Analyzer!$C$5)/(Analyzer!$I$8*336)),0) -> 0 | CD8: =IF(ShowA,IF(ISERROR((CD$2*Analyzer!$C$5)/(Analyzer!$I$8*336)),0,SpeedConv*(CD$2*Analyzer!$C$5)/(Analyzer!$I$8*336)),0) -> 0 | CE8: =IF(ShowA,IF(ISERROR((CE$2*Analyzer!$C$5)/(Analyzer!$I$8*336)),0,SpeedConv*(CE$2*Analyzer!$C$5)/(Analyzer!$I$8*336)),0) -> 0 | CF8: =IF(ShowA,IF(ISERROR((CF$2*Analyzer!$C$5)/(Analyzer!$I$8*336)),0,SpeedConv*(CF$2*Analyzer!$C$5)/(Analyzer!$I$8*336)),0) -> 0 | CG8: =IF(ShowA,IF(ISERROR((CG$2*Analyzer!$C$5)/(Analyzer!$I$8*336)),0,SpeedConv*(CG$2*Analyzer!$C$5)/(Analyzer!$I$8*336)),0) -> 0 | CH8: =IF(ShowA,IF(ISERROR((CH$2*Analyzer!$C$5)/(Analyzer!$I$8*336)),0,SpeedConv*(CH$2*Analyzer!$C$5)/(Analyzer!$I$8*336)),0) -> 0 | CI8: =IF(ShowA,IF(ISERROR((CI$2*Analyzer!$C$5)/(Analyzer!$I$8*336)),0,SpeedConv*(CI$2*Analyzer!$C$5)/(Analyzer!$I$8*336)),0) -> 0 | CJ8: =IF(ShowA,IF(ISERROR((CJ$2*Analyzer!$C$5)/(Analyzer!$I$8*336)),0,SpeedConv*(CJ$2*Analyzer!$C$5)/(Analyzer!$I$8*336)),0) -> 0 | CK8: =IF(ShowA,IF(ISERROR((CK$2*Analyzer!$C$5)/(Analyzer!$I$8*336)),0,SpeedConv*(CK$2*Analyzer!$C$5)/(Analyzer!$I$8*336)),0) -> 0 | CL8: =IF(ShowA,IF(ISERROR((CL$2*Analyzer!$C$5)/(Analyzer!$I$8*336)),0,SpeedConv*(CL$2*Analyzer!$C$5)/(Analyzer!$I$8*336)),0) -> 0 | CM8: =IF(ShowA,IF(ISERROR((CM$2*Analyzer!$C$5)/(Analyzer!$I$8*336)),0,SpeedConv*(CM$2*Analyzer!$C$5)/(Analyzer!$I$8*336)),0) -> 0 | CN8: =IF(ShowA,IF(ISERROR((CN$2*Analyzer!$C$5)/(Analyzer!$I$8*336)),0,SpeedConv*(CN$2*Analyzer!$C$5)/(Analyzer!$I$8*336)),0) -> 0 | CO8: =IF(ShowA,IF(ISERROR((CO$2*Analyzer!$C$5)/(Analyzer!$I$8*336)),0,SpeedConv*(CO$2*Analyzer!$C$5)/(Analyzer!$I$8*336)),0) -> 0 | CP8: =IF(ShowA,IF(ISERROR((CP$2*Analyzer!$C$5)/(Analyzer!$I$8*336)),0,SpeedConv*(CP$2*Analyzer!$C$5)/(Analyzer!$I$8*336)),0) -> 0 | CQ8: =IF(ShowA,IF(ISERROR((CQ$2*Analyzer!$C$5)/(Analyzer!$I$8*336)),0,SpeedConv*(CQ$2*Analyzer!$C$5)/(Analyzer!$I$8*336)),0) -> 0 | CR8: =IF(ShowA,IF(ISERROR((CR$2*Analyzer!$C$5)/(Analyzer!$I$8*336)),0,SpeedConv*(CR$2*Analyzer!$C$5)/(Analyzer!$I$8*336)),0) -> 0 | CS8: =IF(ShowA,IF(ISERROR((CS$2*Analyzer!$C$5)/(Analyzer!$I$8*336)),0,SpeedConv*(CS$2*Analyzer!$C$5)/(Analyzer!$I$8*336)),0) -> 0 | CT8: =IF(ShowA,IF(ISERROR((CT$2*Analyzer!$C$5)/(Analyzer!$I$8*336)),0,SpeedConv*(CT$2*Analyzer!$C$5)/(Analyzer!$I$8*336)),0) -> 0 | CU8: =IF(ShowA,IF(ISERROR((CU$2*Analyzer!$C$5)/(Analyzer!$I$8*336)),0,SpeedConv*(CU$2*Analyzer!$C$5)/(Analyzer!$I$8*336)),0) -> 0
A9: Gearing B | B9: TRUE
B10: 600 | C10: 800 | D10: 1000 | E10: 1200 | F10: 1400 | G10: 1600 | H10: 1800 | I10: 2000 | J10: 2200 | K10: 2400 | L10: 2600 | M10: 2800 | N10: 3000 | O10: 3200 | P10: 3400 | Q10: 3600 | R10: 3800 | S10: 4000 | T10: 4200 | U10: 4400 | V10: 4600 | W10: 4800 | X10: 5000 | Y10: 5200 | Z10: 5400 | AA10: 5600 | AB10: 5800 | AC10: 6000 | AD10: 6200 | AE10: 6400 | AF10: 6600 | AG10: 6800 | AH10: 7000 | AI10: 7200 | AJ10: 7400 | AK10: 7600 | AL10: 7800 | AM10: 8000 | AN10: 8200 | AO10: 8400 | AP10: 8600 | AQ10: 8800 | AR10: 9000 | AS10: 9200 | AT10: 9400 | AU10: 9600 | AV10: 9800 | AW10: 10000 | AX10: 10200 | AY10: 10400 | AZ10: 10600 | BA10: 10800 | BB10: 11000 | BC10: 11200 | BD10: 11400 | BE10: 11600 | BF10: 11800 | BG10: 12000 | BH10: 12200 | BI10: 12400 | BJ10: 12600 | BK10: 12800 | BL10: 13000 | BM10: 13200 | BN10: 13400 | BO10: 13600 | BP10: 13800 | BQ10: 14000 | BR10: 14200 | BS10: 14400 | BT10: 14600 | BU10: 14800 | BV10: 15000 | BW10: 15200 | BX10: 15400 | BY10: 15600 | BZ10: 15800 | CA10: 16000 | CB10: 16200 | CC10: 16400 | CD10: 16600 | CE10: 16800 | CF10: 17000 | CG10: 17200 | CH10: 17400 | CI10: 17600 | CJ10: 17800 | CK10: 18000 | CL10: 18200 | CM10: 18400 | CN10: 18600 | CO10: 18800 | CP10: 19000 | CQ10: 19200 | CR10: 19400 | CS10: 19600 | CT10: 19800 | CU10: 20000
A11: B-1st | B11: =IF(ShowB,IF(ISERROR((B$10*Analyzer!$E$5)/(Analyzer!$J$3*336)),0,SpeedConv*(B$10*Analyzer!$E$5)/(Analyzer!$J$3*336)),0) -> 3.209342312 | C11: =IF(ShowB,IF(ISERROR((C$10*Analyzer!$E$5)/(Analyzer!$J$3*336)),0,SpeedConv*(C$10*Analyzer!$E$5)/(Analyzer!$J$3*336)),0) -> 4.279123083 | D11: =IF(ShowB,IF(ISERROR((D$10*Analyzer!$E$5)/(Analyzer!$J$3*336)),0,SpeedConv*(D$10*Analyzer!$E$5)/(Analyzer!$J$3*336)),0) -> 5.348903854 | E11: =IF(ShowB,IF(ISERROR((E$10*Analyzer!$E$5)/(Analyzer!$J$3*336)),0,SpeedConv*(E$10*Analyzer!$E$5)/(Analyzer!$J$3*336)),0) -> 6.418684625 | F11: =IF(ShowB,IF(ISERROR((F$10*Analyzer!$E$5)/(Analyzer!$J$3*336)),0,SpeedConv*(F$10*Analyzer!$E$5)/(Analyzer!$J$3*336)),0) -> 7.488465395 | G11: =IF(ShowB,IF(ISERROR((G$10*Analyzer!$E$5)/(Analyzer!$J$3*336)),0,SpeedConv*(G$10*Analyzer!$E$5)/(Analyzer!$J$3*336)),0) -> 8.558246166 | H11: =IF(ShowB,IF(ISERROR((H$10*Analyzer!$E$5)/(Analyzer!$J$3*336)),0,SpeedConv*(H$10*Analyzer!$E$5)/(Analyzer!$J$3*336)),0) -> 9.628026937 | I11: =IF(ShowB,IF(ISERROR((I$10*Analyzer!$E$5)/(Analyzer!$J$3*336)),0,SpeedConv*(I$10*Analyzer!$E$5)/(Analyzer!$J$3*336)),0) -> 10.69780771 | J11: =IF(ShowB,IF(ISERROR((J$10*Analyzer!$E$5)/(Analyzer!$J$3*336)),0,SpeedConv*(J$10*Analyzer!$E$5)/(Analyzer!$J$3*336)),0) -> 11.76758848 | K11: =IF(ShowB,IF(ISERROR((K$10*Analyzer!$E$5)/(Analyzer!$J$3*336)),0,SpeedConv*(K$10*Analyzer!$E$5)/(Analyzer!$J$3*336)),0) -> 12.83736925 | L11: =IF(ShowB,IF(ISERROR((L$10*Analyzer!$E$5)/(Analyzer!$J$3*336)),0,SpeedConv*(L$10*Analyzer!$E$5)/(Analyzer!$J$3*336)),0) -> 13.90715002 | M11: =IF(ShowB,IF(ISERROR((M$10*Analyzer!$E$5)/(Analyzer!$J$3*336)),0,SpeedConv*(M$10*Analyzer!$E$5)/(Analyzer!$J$3*336)),0) -> 14.97693079 | N11: =IF(ShowB,IF(ISERROR((N$10*Analyzer!$E$5)/(Analyzer!$J$3*336)),0,SpeedConv*(N$10*Analyzer!$E$5)/(Analyzer!$J$3*336)),0) -> 16.04671156 | O11: =IF(ShowB,IF(ISERROR((O$10*Analyzer!$E$5)/(Analyzer!$J$3*336)),0,SpeedConv*(O$10*Analyzer!$E$5)/(Analyzer!$J$3*336)),0) -> 17.11649233 | P11: =IF(ShowB,IF(ISERROR((P$10*Analyzer!$E$5)/(Analyzer!$J$3*336)),0,SpeedConv*(P$10*Analyzer!$E$5)/(Analyzer!$J$3*336)),0) -> 18.1862731 | Q11: =IF(ShowB,IF(ISERROR((Q$10*Analyzer!$E$5)/(Analyzer!$J$3*336)),0,SpeedConv*(Q$10*Analyzer!$E$5)/(Analyzer!$J$3*336)),0) -> 19.25605387 | R11: =IF(ShowB,IF(ISERROR((R$10*Analyzer!$E$5)/(Analyzer!$J$3*336)),0,SpeedConv*(R$10*Analyzer!$E$5)/(Analyzer!$J$3*336)),0) -> 20.32583464 | S11: =IF(ShowB,IF(ISERROR((S$10*Analyzer!$E$5)/(Analyzer!$J$3*336)),0,SpeedConv*(S$10*Analyzer!$E$5)/(Analyzer!$J$3*336)),0) -> 21.39561542 | T11: =IF(ShowB,IF(ISERROR((T$10*Analyzer!$E$5)/(Analyzer!$J$3*336)),0,SpeedConv*(T$10*Analyzer!$E$5)/(Analyzer!$J$3*336)),0) -> 22.46539619 | U11: =IF(ShowB,IF(ISERROR((U$10*Analyzer!$E$5)/(Analyzer!$J$3*336)),0,SpeedConv*(U$10*Analyzer!$E$5)/(Analyzer!$J$3*336)),0) -> 23.53517696 | V11: =IF(ShowB,IF(ISERROR((V$10*Analyzer!$E$5)/(Analyzer!$J$3*336)),0,SpeedConv*(V$10*Analyzer!$E$5)/(Analyzer!$J$3*336)),0) -> 24.60495773 | W11: =IF(ShowB,IF(ISERROR((W$10*Analyzer!$E$5)/(Analyzer!$J$3*336)),0,SpeedConv*(W$10*Analyzer!$E$5)/(Analyzer!$J$3*336)),0) -> 25.6747385 | X11: =IF(ShowB,IF(ISERROR((X$10*Analyzer!$E$5)/(Analyzer!$J$3*336)),0,SpeedConv*(X$10*Analyzer!$E$5)/(Analyzer!$J$3*336)),0) -> 26.74451927 | Y11: =IF(ShowB,IF(ISERROR((Y$10*Analyzer!$E$5)/(Analyzer!$J$3*336)),0,SpeedConv*(Y$10*Analyzer!$E$5)/(Analyzer!$J$3*336)),0) -> 27.81430004 | Z11: =IF(ShowB,IF(ISERROR((Z$10*Analyzer!$E$5)/(Analyzer!$J$3*336)),0,SpeedConv*(Z$10*Analyzer!$E$5)/(Analyzer!$J$3*336)),0) -> 28.88408081 | AA11: =IF(ShowB,IF(ISERROR((AA$10*Analyzer!$E$5)/(Analyzer!$J$3*336)),0,SpeedConv*(AA$10*Analyzer!$E$5)/(Analyzer!$J$3*336)),0) -> 29.95386158 | AB11: =IF(ShowB,IF(ISERROR((AB$10*Analyzer!$E$5)/(Analyzer!$J$3*336)),0,SpeedConv*(AB$10*Analyzer!$E$5)/(Analyzer!$J$3*336)),0) -> 31.02364235 | AC11: =IF(ShowB,IF(ISERROR((AC$10*Analyzer!$E$5)/(Analyzer!$J$3*336)),0,SpeedConv*(AC$10*Analyzer!$E$5)/(Analyzer!$J$3*336)),0) -> 32.09342312 | AD11: =IF(ShowB,IF(ISERROR((AD$10*Analyzer!$E$5)/(Analyzer!$J$3*336)),0,SpeedConv*(AD$10*Analyzer!$E$5)/(Analyzer!$J$3*336)),0) -> 33.16320389 | AE11: =IF(ShowB,IF(ISERROR((AE$10*Analyzer!$E$5)/(Analyzer!$J$3*336)),0,SpeedConv*(AE$10*Analyzer!$E$5)/(Analyzer!$J$3*336)),0) -> 34.23298466 | AF11: =IF(ShowB,IF(ISERROR((AF$10*Analyzer!$E$5)/(Analyzer!$J$3*336)),0,SpeedConv*(AF$10*Analyzer!$E$5)/(Analyzer!$J$3*336)),0) -> 35.30276544 | AG11: =IF(ShowB,IF(ISERROR((AG$10*Analyzer!$E$5)/(Analyzer!$J$3*336)),0,SpeedConv*(AG$10*Analyzer!$E$5)/(Analyzer!$J$3*336)),0) -> 36.37254621 | AH11: =IF(ShowB,IF(ISERROR((AH$10*Analyzer!$E$5)/(Analyzer!$J$3*336)),0,SpeedConv*(AH$10*Analyzer!$E$5)/(Analyzer!$J$3*336)),0) -> 37.44232698 | AI11: =IF(ShowB,IF(ISERROR((AI$10*Analyzer!$E$5)/(Analyzer!$J$3*336)),0,SpeedConv*(AI$10*Analyzer!$E$5)/(Analyzer!$J$3*336)),0) -> 38.51210775 | AJ11: =IF(ShowB,IF(ISERROR((AJ$10*Analyzer!$E$5)/(Analyzer!$J$3*336)),0,SpeedConv*(AJ$10*Analyzer!$E$5)/(Analyzer!$J$3*336)),0) -> 39.58188852 | AK11: =IF(ShowB,IF(ISERROR((AK$10*Analyzer!$E$5)/(Analyzer!$J$3*336)),0,SpeedConv*(AK$10*Analyzer!$E$5)/(Analyzer!$J$3*336)),0) -> 40.65166929 | AL11: =IF(ShowB,IF(ISERROR((AL$10*Analyzer!$E$5)/(Analyzer!$J$3*336)),0,SpeedConv*(AL$10*Analyzer!$E$5)/(Analyzer!$J$3*336)),0) -> 41.72145006 | AM11: =IF(ShowB,IF(ISERROR((AM$10*Analyzer!$E$5)/(Analyzer!$J$3*336)),0,SpeedConv*(AM$10*Analyzer!$E$5)/(Analyzer!$J$3*336)),0) -> 42.79123083 | AN11: =IF(ShowB,IF(ISERROR((AN$10*Analyzer!$E$5)/(Analyzer!$J$3*336)),0,SpeedConv*(AN$10*Analyzer!$E$5)/(Analyzer!$J$3*336)),0) -> 43.8610116 | AO11: =IF(ShowB,IF(ISERROR((AO$10*Analyzer!$E$5)/(Analyzer!$J$3*336)),0,SpeedConv*(AO$10*Analyzer!$E$5)/(Analyzer!$J$3*336)),0) -> 44.93079237 | AP11: =IF(ShowB,IF(ISERROR((AP$10*Analyzer!$E$5)/(Analyzer!$J$3*336)),0,SpeedConv*(AP$10*Analyzer!$E$5)/(Analyzer!$J$3*336)),0) -> 46.00057314 | AQ11: =IF(ShowB,IF(ISERROR((AQ$10*Analyzer!$E$5)/(Analyzer!$J$3*336)),0,SpeedConv*(AQ$10*Analyzer!$E$5)/(Analyzer!$J$3*336)),0) -> 47.07035391 | AR11: =IF(ShowB,IF(ISERROR((AR$10*Analyzer!$E$5)/(Analyzer!$J$3*336)),0,SpeedConv*(AR$10*Analyzer!$E$5)/(Analyzer!$J$3*336)),0) -> 48.14013468 | AS11: =IF(ShowB,IF(ISERROR((AS$10*Analyzer!$E$5)/(Analyzer!$J$3*336)),0,SpeedConv*(AS$10*Analyzer!$E$5)/(Analyzer!$J$3*336)),0) -> 49.20991546 | AT11: =IF(ShowB,IF(ISERROR((AT$10*Analyzer!$E$5)/(Analyzer!$J$3*336)),0,SpeedConv*(AT$10*Analyzer!$E$5)/(Analyzer!$J$3*336)),0) -> 50.27969623 | AU11: =IF(ShowB,IF(ISERROR((AU$10*Analyzer!$E$5)/(Analyzer!$J$3*336)),0,SpeedConv*(AU$10*Analyzer!$E$5)/(Analyzer!$J$3*336)),0) -> 51.349477 | AV11: =IF(ShowB,IF(ISERROR((AV$10*Analyzer!$E$5)/(Analyzer!$J$3*336)),0,SpeedConv*(AV$10*Analyzer!$E$5)/(Analyzer!$J$3*336)),0) -> 52.41925777 | AW11: =IF(ShowB,IF(ISERROR((AW$10*Analyzer!$E$5)/(Analyzer!$J$3*336)),0,SpeedConv*(AW$10*Analyzer!$E$5)/(Analyzer!$J$3*336)),0) -> 53.48903854 | AX11: =IF(ShowB,IF(ISERROR((AX$10*Analyzer!$E$5)/(Analyzer!$J$3*336)),0,SpeedConv*(AX$10*Analyzer!$E$5)/(Analyzer!$J$3*336)),0) -> 54.55881931 | AY11: =IF(ShowB,IF(ISERROR((AY$10*Analyzer!$E$5)/(Analyzer!$J$3*336)),0,SpeedConv*(AY$10*Analyzer!$E$5)/(Analyzer!$J$3*336)),0) -> 55.62860008 | AZ11: =IF(ShowB,IF(ISERROR((AZ$10*Analyzer!$E$5)/(Analyzer!$J$3*336)),0,SpeedConv*(AZ$10*Analyzer!$E$5)/(Analyzer!$J$3*336)),0) -> 56.69838085 | BA11: =IF(ShowB,IF(ISERROR((BA$10*Analyzer!$E$5)/(Analyzer!$J$3*336)),0,SpeedConv*(BA$10*Analyzer!$E$5)/(Analyzer!$J$3*336)),0) -> 57.76816162 | BB11: =IF(ShowB,IF(ISERROR((BB$10*Analyzer!$E$5)/(Analyzer!$J$3*336)),0,SpeedConv*(BB$10*Analyzer!$E$5)/(Analyzer!$J$3*336)),0) -> 58.83794239 | BC11: =IF(ShowB,IF(ISERROR((BC$10*Analyzer!$E$5)/(Analyzer!$J$3*336)),0,SpeedConv*(BC$10*Analyzer!$E$5)/(Analyzer!$J$3*336)),0) -> 59.90772316 | BD11: =IF(ShowB,IF(ISERROR((BD$10*Analyzer!$E$5)/(Analyzer!$J$3*336)),0,SpeedConv*(BD$10*Analyzer!$E$5)/(Analyzer!$J$3*336)),0) -> 60.97750393 | BE11: =IF(ShowB,IF(ISERROR((BE$10*Analyzer!$E$5)/(Analyzer!$J$3*336)),0,SpeedConv*(BE$10*Analyzer!$E$5)/(Analyzer!$J$3*336)),0) -> 62.0472847 | BF11: =IF(ShowB,IF(ISERROR((BF$10*Analyzer!$E$5)/(Analyzer!$J$3*336)),0,SpeedConv*(BF$10*Analyzer!$E$5)/(Analyzer!$J$3*336)),0) -> 63.11706548 | BG11: =IF(ShowB,IF(ISERROR((BG$10*Analyzer!$E$5)/(Analyzer!$J$3*336)),0,SpeedConv*(BG$10*Analyzer!$E$5)/(Analyzer!$J$3*336)),0) -> 64.18684625 | BH11: =IF(ShowB,IF(ISERROR((BH$10*Analyzer!$E$5)/(Analyzer!$J$3*336)),0,SpeedConv*(BH$10*Analyzer!$E$5)/(Analyzer!$J$3*336)),0) -> 65.25662702 | BI11: =IF(ShowB,IF(ISERROR((BI$10*Analyzer!$E$5)/(Analyzer!$J$3*336)),0,SpeedConv*(BI$10*Analyzer!$E$5)/(Analyzer!$J$3*336)),0) -> 66.32640779 | BJ11: =IF(ShowB,IF(ISERROR((BJ$10*Analyzer!$E$5)/(Analyzer!$J$3*336)),0,SpeedConv*(BJ$10*Analyzer!$E$5)/(Analyzer!$J$3*336)),0) -> 67.39618856 | BK11: =IF(ShowB,IF(ISERROR((BK$10*Analyzer!$E$5)/(Analyzer!$J$3*336)),0,SpeedConv*(BK$10*Analyzer!$E$5)/(Analyzer!$J$3*336)),0) -> 68.46596933 | BL11: =IF(ShowB,IF(ISERROR((BL$10*Analyzer!$E$5)/(Analyzer!$J$3*336)),0,SpeedConv*(BL$10*Analyzer!$E$5)/(Analyzer!$J$3*336)),0) -> 69.5357501 | BM11: =IF(ShowB,IF(ISERROR((BM$10*Analyzer!$E$5)/(Analyzer!$J$3*336)),0,SpeedConv*(BM$10*Analyzer!$E$5)/(Analyzer!$J$3*336)),0) -> 70.60553087 | BN11: =IF(ShowB,IF(ISERROR((BN$10*Analyzer!$E$5)/(Analyzer!$J$3*336)),0,SpeedConv*(BN$10*Analyzer!$E$5)/(Analyzer!$J$3*336)),0) -> 71.67531164 | BO11: =IF(ShowB,IF(ISERROR((BO$10*Analyzer!$E$5)/(Analyzer!$J$3*336)),0,SpeedConv*(BO$10*Analyzer!$E$5)/(Analyzer!$J$3*336)),0) -> 72.74509241 | BP11: =IF(ShowB,IF(ISERROR((BP$10*Analyzer!$E$5)/(Analyzer!$J$3*336)),0,SpeedConv*(BP$10*Analyzer!$E$5)/(Analyzer!$J$3*336)),0) -> 73.81487318 | BQ11: =IF(ShowB,IF(ISERROR((BQ$10*Analyzer!$E$5)/(Analyzer!$J$3*336)),0,SpeedConv*(BQ$10*Analyzer!$E$5)/(Analyzer!$J$3*336)),0) -> 74.88465395 | BR11: =IF(ShowB,IF(ISERROR((BR$10*Analyzer!$E$5)/(Analyzer!$J$3*336)),0,SpeedConv*(BR$10*Analyzer!$E$5)/(Analyzer!$J$3*336)),0) -> 75.95443472 | BS11: =IF(ShowB,IF(ISERROR((BS$10*Analyzer!$E$5)/(Analyzer!$J$3*336)),0,SpeedConv*(BS$10*Analyzer!$E$5)/(Analyzer!$J$3*336)),0) -> 77.0242155 | BT11: =IF(ShowB,IF(ISERROR((BT$10*Analyzer!$E$5)/(Analyzer!$J$3*336)),0,SpeedConv*(BT$10*Analyzer!$E$5)/(Analyzer!$J$3*336)),0) -> 78.09399627 | BU11: =IF(ShowB,IF(ISERROR((BU$10*Analyzer!$E$5)/(Analyzer!$J$3*336)),0,SpeedConv*(BU$10*Analyzer!$E$5)/(Analyzer!$J$3*336)),0) -> 79.16377704 | BV11: =IF(ShowB,IF(ISERROR((BV$10*Analyzer!$E$5)/(Analyzer!$J$3*336)),0,SpeedConv*(BV$10*Analyzer!$E$5)/(Analyzer!$J$3*336)),0) -> 80.23355781 | BW11: =IF(ShowB,IF(ISERROR((BW$10*Analyzer!$E$5)/(Analyzer!$J$3*336)),0,SpeedConv*(BW$10*Analyzer!$E$5)/(Analyzer!$J$3*336)),0) -> 81.30333858 | BX11: =IF(ShowB,IF(ISERROR((BX$10*Analyzer!$E$5)/(Analyzer!$J$3*336)),0,SpeedConv*(BX$10*Analyzer!$E$5)/(Analyzer!$J$3*336)),0) -> 82.37311935 | BY11: =IF(ShowB,IF(ISERROR((BY$10*Analyzer!$E$5)/(Analyzer!$J$3*336)),0,SpeedConv*(BY$10*Analyzer!$E$5)/(Analyzer!$J$3*336)),0) -> 83.44290012 | BZ11: =IF(ShowB,IF(ISERROR((BZ$10*Analyzer!$E$5)/(Analyzer!$J$3*336)),0,SpeedConv*(BZ$10*Analyzer!$E$5)/(Analyzer!$J$3*336)),0) -> 84.51268089 | CA11: =IF(ShowB,IF(ISERROR((CA$10*Analyzer!$E$5)/(Analyzer!$J$3*336)),0,SpeedConv*(CA$10*Analyzer!$E$5)/(Analyzer!$J$3*336)),0) -> 85.58246166 | CB11: =IF(ShowB,IF(ISERROR((CB$10*Analyzer!$E$5)/(Analyzer!$J$3*336)),0,SpeedConv*(CB$10*Analyzer!$E$5)/(Analyzer!$J$3*336)),0) -> 86.65224243 | CC11: =IF(ShowB,IF(ISERROR((CC$10*Analyzer!$E$5)/(Analyzer!$J$3*336)),0,SpeedConv*(CC$10*Analyzer!$E$5)/(Analyzer!$J$3*336)),0) -> 87.7220232 | CD11: =IF(ShowB,IF(ISERROR((CD$10*Analyzer!$E$5)/(Analyzer!$J$3*336)),0,SpeedConv*(CD$10*Analyzer!$E$5)/(Analyzer!$J$3*336)),0) -> 88.79180397 | CE11: =IF(ShowB,IF(ISERROR((CE$10*Analyzer!$E$5)/(Analyzer!$J$3*336)),0,SpeedConv*(CE$10*Analyzer!$E$5)/(Analyzer!$J$3*336)),0) -> 89.86158474 | CF11: =IF(ShowB,IF(ISERROR((CF$10*Analyzer!$E$5)/(Analyzer!$J$3*336)),0,SpeedConv*(CF$10*Analyzer!$E$5)/(Analyzer!$J$3*336)),0) -> 90.93136552 | CG11: =IF(ShowB,IF(ISERROR((CG$10*Analyzer!$E$5)/(Analyzer!$J$3*336)),0,SpeedConv*(CG$10*Analyzer!$E$5)/(Analyzer!$J$3*336)),0) -> 92.00114629 | CH11: =IF(ShowB,IF(ISERROR((CH$10*Analyzer!$E$5)/(Analyzer!$J$3*336)),0,SpeedConv*(CH$10*Analyzer!$E$5)/(Analyzer!$J$3*336)),0) -> 93.07092706 | CI11: =IF(ShowB,IF(ISERROR((CI$10*Analyzer!$E$5)/(Analyzer!$J$3*336)),0,SpeedConv*(CI$10*Analyzer!$E$5)/(Analyzer!$J$3*336)),0) -> 94.14070783 | CJ11: =IF(ShowB,IF(ISERROR((CJ$10*Analyzer!$E$5)/(Analyzer!$J$3*336)),0,SpeedConv*(CJ$10*Analyzer!$E$5)/(Analyzer!$J$3*336)),0) -> 95.2104886 | CK11: =IF(ShowB,IF(ISERROR((CK$10*Analyzer!$E$5)/(Analyzer!$J$3*336)),0,SpeedConv*(CK$10*Analyzer!$E$5)/(Analyzer!$J$3*336)),0) -> 96.28026937 | CL11: =IF(ShowB,IF(ISERROR((CL$10*Analyzer!$E$5)/(Analyzer!$J$3*336)),0,SpeedConv*(CL$10*Analyzer!$E$5)/(Analyzer!$J$3*336)),0) -> 97.35005014 | CM11: =IF(ShowB,IF(ISERROR((CM$10*Analyzer!$E$5)/(Analyzer!$J$3*336)),0,SpeedConv*(CM$10*Analyzer!$E$5)/(Analyzer!$J$3*336)),0) -> 98.41983091 | CN11: =IF(ShowB,IF(ISERROR((CN$10*Analyzer!$E$5)/(Analyzer!$J$3*336)),0,SpeedConv*(CN$10*Analyzer!$E$5)/(Analyzer!$J$3*336)),0) -> 99.48961168 | CO11: =IF(ShowB,IF(ISERROR((CO$10*Analyzer!$E$5)/(Analyzer!$J$3*336)),0,SpeedConv*(CO$10*Analyzer!$E$5)/(Analyzer!$J$3*336)),0) -> 100.5593925 | CP11: =IF(ShowB,IF(ISERROR((CP$10*Analyzer!$E$5)/(Analyzer!$J$3*336)),0,SpeedConv*(CP$10*Analyzer!$E$5)/(Analyzer!$J$3*336)),0) -> 101.6291732 | CQ11: =IF(ShowB,IF(ISERROR((CQ$10*Analyzer!$E$5)/(Analyzer!$J$3*336)),0,SpeedConv*(CQ$10*Analyzer!$E$5)/(Analyzer!$J$3*336)),0) -> 102.698954 | CR11: =IF(ShowB,IF(ISERROR((CR$10*Analyzer!$E$5)/(Analyzer!$J$3*336)),0,SpeedConv*(CR$10*Analyzer!$E$5)/(Analyzer!$J$3*336)),0) -> 103.7687348 | CS11: =IF(ShowB,IF(ISERROR((CS$10*Analyzer!$E$5)/(Analyzer!$J$3*336)),0,SpeedConv*(CS$10*Analyzer!$E$5)/(Analyzer!$J$3*336)),0) -> 104.8385155 | CT11: =IF(ShowB,IF(ISERROR((CT$10*Analyzer!$E$5)/(Analyzer!$J$3*336)),0,SpeedConv*(CT$10*Analyzer!$E$5)/(Analyzer!$J$3*336)),0) -> 105.9082963 | CU11: =IF(ShowB,IF(ISERROR((CU$10*Analyzer!$E$5)/(Analyzer!$J$3*336)),0,SpeedConv*(CU$10*Analyzer!$E$5)/(Analyzer!$J$3*336)),0) -> 106.9780771
A12: B-2nd | B12: =IF(ShowB,IF(ISERROR((B$10*Analyzer!$E$5)/(Analyzer!$J$4*336)),0,SpeedConv*(B$10*Analyzer!$E$5)/(Analyzer!$J$4*336)),0) -> 5.235258588 | C12: =IF(ShowB,IF(ISERROR((C$10*Analyzer!$E$5)/(Analyzer!$J$4*336)),0,SpeedConv*(C$10*Analyzer!$E$5)/(Analyzer!$J$4*336)),0) -> 6.980344784 | D12: =IF(ShowB,IF(ISERROR((D$10*Analyzer!$E$5)/(Analyzer!$J$4*336)),0,SpeedConv*(D$10*Analyzer!$E$5)/(Analyzer!$J$4*336)),0) -> 8.72543098 | E12: =IF(ShowB,IF(ISERROR((E$10*Analyzer!$E$5)/(Analyzer!$J$4*336)),0,SpeedConv*(E$10*Analyzer!$E$5)/(Analyzer!$J$4*336)),0) -> 10.47051718 | F12: =IF(ShowB,IF(ISERROR((F$10*Analyzer!$E$5)/(Analyzer!$J$4*336)),0,SpeedConv*(F$10*Analyzer!$E$5)/(Analyzer!$J$4*336)),0) -> 12.21560337 | G12: =IF(ShowB,IF(ISERROR((G$10*Analyzer!$E$5)/(Analyzer!$J$4*336)),0,SpeedConv*(G$10*Analyzer!$E$5)/(Analyzer!$J$4*336)),0) -> 13.96068957 | H12: =IF(ShowB,IF(ISERROR((H$10*Analyzer!$E$5)/(Analyzer!$J$4*336)),0,SpeedConv*(H$10*Analyzer!$E$5)/(Analyzer!$J$4*336)),0) -> 15.70577576 | I12: =IF(ShowB,IF(ISERROR((I$10*Analyzer!$E$5)/(Analyzer!$J$4*336)),0,SpeedConv*(I$10*Analyzer!$E$5)/(Analyzer!$J$4*336)),0) -> 17.45086196 | J12: =IF(ShowB,IF(ISERROR((J$10*Analyzer!$E$5)/(Analyzer!$J$4*336)),0,SpeedConv*(J$10*Analyzer!$E$5)/(Analyzer!$J$4*336)),0) -> 19.19594816 | K12: =IF(ShowB,IF(ISERROR((K$10*Analyzer!$E$5)/(Analyzer!$J$4*336)),0,SpeedConv*(K$10*Analyzer!$E$5)/(Analyzer!$J$4*336)),0) -> 20.94103435 | L12: =IF(ShowB,IF(ISERROR((L$10*Analyzer!$E$5)/(Analyzer!$J$4*336)),0,SpeedConv*(L$10*Analyzer!$E$5)/(Analyzer!$J$4*336)),0) -> 22.68612055 | M12: =IF(ShowB,IF(ISERROR((M$10*Analyzer!$E$5)/(Analyzer!$J$4*336)),0,SpeedConv*(M$10*Analyzer!$E$5)/(Analyzer!$J$4*336)),0) -> 24.43120674 | N12: =IF(ShowB,IF(ISERROR((N$10*Analyzer!$E$5)/(Analyzer!$J$4*336)),0,SpeedConv*(N$10*Analyzer!$E$5)/(Analyzer!$J$4*336)),0) -> 26.17629294 | O12: =IF(ShowB,IF(ISERROR((O$10*Analyzer!$E$5)/(Analyzer!$J$4*336)),0,SpeedConv*(O$10*Analyzer!$E$5)/(Analyzer!$J$4*336)),0) -> 27.92137914 | P12: =IF(ShowB,IF(ISERROR((P$10*Analyzer!$E$5)/(Analyzer!$J$4*336)),0,SpeedConv*(P$10*Analyzer!$E$5)/(Analyzer!$J$4*336)),0) -> 29.66646533 | Q12: =IF(ShowB,IF(ISERROR((Q$10*Analyzer!$E$5)/(Analyzer!$J$4*336)),0,SpeedConv*(Q$10*Analyzer!$E$5)/(Analyzer!$J$4*336)),0) -> 31.41155153 | R12: =IF(ShowB,IF(ISERROR((R$10*Analyzer!$E$5)/(Analyzer!$J$4*336)),0,SpeedConv*(R$10*Analyzer!$E$5)/(Analyzer!$J$4*336)),0) -> 33.15663772 | S12: =IF(ShowB,IF(ISERROR((S$10*Analyzer!$E$5)/(Analyzer!$J$4*336)),0,SpeedConv*(S$10*Analyzer!$E$5)/(Analyzer!$J$4*336)),0) -> 34.90172392 | T12: =IF(ShowB,IF(ISERROR((T$10*Analyzer!$E$5)/(Analyzer!$J$4*336)),0,SpeedConv*(T$10*Analyzer!$E$5)/(Analyzer!$J$4*336)),0) -> 36.64681011 | U12: =IF(ShowB,IF(ISERROR((U$10*Analyzer!$E$5)/(Analyzer!$J$4*336)),0,SpeedConv*(U$10*Analyzer!$E$5)/(Analyzer!$J$4*336)),0) -> 38.39189631 | V12: =IF(ShowB,IF(ISERROR((V$10*Analyzer!$E$5)/(Analyzer!$J$4*336)),0,SpeedConv*(V$10*Analyzer!$E$5)/(Analyzer!$J$4*336)),0) -> 40.13698251 | W12: =IF(ShowB,IF(ISERROR((W$10*Analyzer!$E$5)/(Analyzer!$J$4*336)),0,SpeedConv*(W$10*Analyzer!$E$5)/(Analyzer!$J$4*336)),0) -> 41.8820687 | X12: =IF(ShowB,IF(ISERROR((X$10*Analyzer!$E$5)/(Analyzer!$J$4*336)),0,SpeedConv*(X$10*Analyzer!$E$5)/(Analyzer!$J$4*336)),0) -> 43.6271549 | Y12: =IF(ShowB,IF(ISERROR((Y$10*Analyzer!$E$5)/(Analyzer!$J$4*336)),0,SpeedConv*(Y$10*Analyzer!$E$5)/(Analyzer!$J$4*336)),0) -> 45.37224109 | Z12: =IF(ShowB,IF(ISERROR((Z$10*Analyzer!$E$5)/(Analyzer!$J$4*336)),0,SpeedConv*(Z$10*Analyzer!$E$5)/(Analyzer!$J$4*336)),0) -> 47.11732729 | AA12: =IF(ShowB,IF(ISERROR((AA$10*Analyzer!$E$5)/(Analyzer!$J$4*336)),0,SpeedConv*(AA$10*Analyzer!$E$5)/(Analyzer!$J$4*336)),0) -> 48.86241349 | AB12: =IF(ShowB,IF(ISERROR((AB$10*Analyzer!$E$5)/(Analyzer!$J$4*336)),0,SpeedConv*(AB$10*Analyzer!$E$5)/(Analyzer!$J$4*336)),0) -> 50.60749968 | AC12: =IF(ShowB,IF(ISERROR((AC$10*Analyzer!$E$5)/(Analyzer!$J$4*336)),0,SpeedConv*(AC$10*Analyzer!$E$5)/(Analyzer!$J$4*336)),0) -> 52.35258588 | AD12: =IF(ShowB,IF(ISERROR((AD$10*Analyzer!$E$5)/(Analyzer!$J$4*336)),0,SpeedConv*(AD$10*Analyzer!$E$5)/(Analyzer!$J$4*336)),0) -> 54.09767207 | AE12: =IF(ShowB,IF(ISERROR((AE$10*Analyzer!$E$5)/(Analyzer!$J$4*336)),0,SpeedConv*(AE$10*Analyzer!$E$5)/(Analyzer!$J$4*336)),0) -> 55.84275827 | AF12: =IF(ShowB,IF(ISERROR((AF$10*Analyzer!$E$5)/(Analyzer!$J$4*336)),0,SpeedConv*(AF$10*Analyzer!$E$5)/(Analyzer!$J$4*336)),0) -> 57.58784447 | AG12: =IF(ShowB,IF(ISERROR((AG$10*Analyzer!$E$5)/(Analyzer!$J$4*336)),0,SpeedConv*(AG$10*Analyzer!$E$5)/(Analyzer!$J$4*336)),0) -> 59.33293066 | AH12: =IF(ShowB,IF(ISERROR((AH$10*Analyzer!$E$5)/(Analyzer!$J$4*336)),0,SpeedConv*(AH$10*Analyzer!$E$5)/(Analyzer!$J$4*336)),0) -> 61.07801686 | AI12: =IF(ShowB,IF(ISERROR((AI$10*Analyzer!$E$5)/(Analyzer!$J$4*336)),0,SpeedConv*(AI$10*Analyzer!$E$5)/(Analyzer!$J$4*336)),0) -> 62.82310305 | AJ12: =IF(ShowB,IF(ISERROR((AJ$10*Analyzer!$E$5)/(Analyzer!$J$4*336)),0,SpeedConv*(AJ$10*Analyzer!$E$5)/(Analyzer!$J$4*336)),0) -> 64.56818925 | AK12: =IF(ShowB,IF(ISERROR((AK$10*Analyzer!$E$5)/(Analyzer!$J$4*336)),0,SpeedConv*(AK$10*Analyzer!$E$5)/(Analyzer!$J$4*336)),0) -> 66.31327545 | AL12: =IF(ShowB,IF(ISERROR((AL$10*Analyzer!$E$5)/(Analyzer!$J$4*336)),0,SpeedConv*(AL$10*Analyzer!$E$5)/(Analyzer!$J$4*336)),0) -> 68.05836164 | AM12: =IF(ShowB,IF(ISERROR((AM$10*Analyzer!$E$5)/(Analyzer!$J$4*336)),0,SpeedConv*(AM$10*Analyzer!$E$5)/(Analyzer!$J$4*336)),0) -> 69.80344784 | AN12: =IF(ShowB,IF(ISERROR((AN$10*Analyzer!$E$5)/(Analyzer!$J$4*336)),0,SpeedConv*(AN$10*Analyzer!$E$5)/(Analyzer!$J$4*336)),0) -> 71.54853403 | AO12: =IF(ShowB,IF(ISERROR((AO$10*Analyzer!$E$5)/(Analyzer!$J$4*336)),0,SpeedConv*(AO$10*Analyzer!$E$5)/(Analyzer!$J$4*336)),0) -> 73.29362023 | AP12: =IF(ShowB,IF(ISERROR((AP$10*Analyzer!$E$5)/(Analyzer!$J$4*336)),0,SpeedConv*(AP$10*Analyzer!$E$5)/(Analyzer!$J$4*336)),0) -> 75.03870643 | AQ12: =IF(ShowB,IF(ISERROR((AQ$10*Analyzer!$E$5)/(Analyzer!$J$4*336)),0,SpeedConv*(AQ$10*Analyzer!$E$5)/(Analyzer!$J$4*336)),0) -> 76.78379262 | AR12: =IF(ShowB,IF(ISERROR((AR$10*Analyzer!$E$5)/(Analyzer!$J$4*336)),0,SpeedConv*(AR$10*Analyzer!$E$5)/(Analyzer!$J$4*336)),0) -> 78.52887882 | AS12: =IF(ShowB,IF(ISERROR((AS$10*Analyzer!$E$5)/(Analyzer!$J$4*336)),0,SpeedConv*(AS$10*Analyzer!$E$5)/(Analyzer!$J$4*336)),0) -> 80.27396501 | AT12: =IF(ShowB,IF(ISERROR((AT$10*Analyzer!$E$5)/(Analyzer!$J$4*336)),0,SpeedConv*(AT$10*Analyzer!$E$5)/(Analyzer!$J$4*336)),0) -> 82.01905121 | AU12: =IF(ShowB,IF(ISERROR((AU$10*Analyzer!$E$5)/(Analyzer!$J$4*336)),0,SpeedConv*(AU$10*Analyzer!$E$5)/(Analyzer!$J$4*336)),0) -> 83.76413741 | AV12: =IF(ShowB,IF(ISERROR((AV$10*Analyzer!$E$5)/(Analyzer!$J$4*336)),0,SpeedConv*(AV$10*Analyzer!$E$5)/(Analyzer!$J$4*336)),0) -> 85.5092236 | AW12: =IF(ShowB,IF(ISERROR((AW$10*Analyzer!$E$5)/(Analyzer!$J$4*336)),0,SpeedConv*(AW$10*Analyzer!$E$5)/(Analyzer!$J$4*336)),0) -> 87.2543098 | AX12: =IF(ShowB,IF(ISERROR((AX$10*Analyzer!$E$5)/(Analyzer!$J$4*336)),0,SpeedConv*(AX$10*Analyzer!$E$5)/(Analyzer!$J$4*336)),0) -> 88.99939599 | AY12: =IF(ShowB,IF(ISERROR((AY$10*Analyzer!$E$5)/(Analyzer!$J$4*336)),0,SpeedConv*(AY$10*Analyzer!$E$5)/(Analyzer!$J$4*336)),0) -> 90.74448219 | AZ12: =IF(ShowB,IF(ISERROR((AZ$10*Analyzer!$E$5)/(Analyzer!$J$4*336)),0,SpeedConv*(AZ$10*Analyzer!$E$5)/(Analyzer!$J$4*336)),0) -> 92.48956839 | BA12: =IF(ShowB,IF(ISERROR((BA$10*Analyzer!$E$5)/(Analyzer!$J$4*336)),0,SpeedConv*(BA$10*Analyzer!$E$5)/(Analyzer!$J$4*336)),0) -> 94.23465458 | BB12: =IF(ShowB,IF(ISERROR((BB$10*Analyzer!$E$5)/(Analyzer!$J$4*336)),0,SpeedConv*(BB$10*Analyzer!$E$5)/(Analyzer!$J$4*336)),0) -> 95.97974078 | BC12: =IF(ShowB,IF(ISERROR((BC$10*Analyzer!$E$5)/(Analyzer!$J$4*336)),0,SpeedConv*(BC$10*Analyzer!$E$5)/(Analyzer!$J$4*336)),0) -> 97.72482697 | BD12: =IF(ShowB,IF(ISERROR((BD$10*Analyzer!$E$5)/(Analyzer!$J$4*336)),0,SpeedConv*(BD$10*Analyzer!$E$5)/(Analyzer!$J$4*336)),0) -> 99.46991317 | BE12: =IF(ShowB,IF(ISERROR((BE$10*Analyzer!$E$5)/(Analyzer!$J$4*336)),0,SpeedConv*(BE$10*Analyzer!$E$5)/(Analyzer!$J$4*336)),0) -> 101.2149994 | BF12: =IF(ShowB,IF(ISERROR((BF$10*Analyzer!$E$5)/(Analyzer!$J$4*336)),0,SpeedConv*(BF$10*Analyzer!$E$5)/(Analyzer!$J$4*336)),0) -> 102.9600856 | BG12: =IF(ShowB,IF(ISERROR((BG$10*Analyzer!$E$5)/(Analyzer!$J$4*336)),0,SpeedConv*(BG$10*Analyzer!$E$5)/(Analyzer!$J$4*336)),0) -> 104.7051718 | BH12: =IF(ShowB,IF(ISERROR((BH$10*Analyzer!$E$5)/(Analyzer!$J$4*336)),0,SpeedConv*(BH$10*Analyzer!$E$5)/(Analyzer!$J$4*336)),0) -> 106.450258 | BI12: =IF(ShowB,IF(ISERROR((BI$10*Analyzer!$E$5)/(Analyzer!$J$4*336)),0,SpeedConv*(BI$10*Analyzer!$E$5)/(Analyzer!$J$4*336)),0) -> 108.1953441 | BJ12: =IF(ShowB,IF(ISERROR((BJ$10*Analyzer!$E$5)/(Analyzer!$J$4*336)),0,SpeedConv*(BJ$10*Analyzer!$E$5)/(Analyzer!$J$4*336)),0) -> 109.9404303 | BK12: =IF(ShowB,IF(ISERROR((BK$10*Analyzer!$E$5)/(Analyzer!$J$4*336)),0,SpeedConv*(BK$10*Analyzer!$E$5)/(Analyzer!$J$4*336)),0) -> 111.6855165 | BL12: =IF(ShowB,IF(ISERROR((BL$10*Analyzer!$E$5)/(Analyzer!$J$4*336)),0,SpeedConv*(BL$10*Analyzer!$E$5)/(Analyzer!$J$4*336)),0) -> 113.4306027 | BM12: =IF(ShowB,IF(ISERROR((BM$10*Analyzer!$E$5)/(Analyzer!$J$4*336)),0,SpeedConv*(BM$10*Analyzer!$E$5)/(Analyzer!$J$4*336)),0) -> 115.1756889 | BN12: =IF(ShowB,IF(ISERROR((BN$10*Analyzer!$E$5)/(Analyzer!$J$4*336)),0,SpeedConv*(BN$10*Analyzer!$E$5)/(Analyzer!$J$4*336)),0) -> 116.9207751 | BO12: =IF(ShowB,IF(ISERROR((BO$10*Analyzer!$E$5)/(Analyzer!$J$4*336)),0,SpeedConv*(BO$10*Analyzer!$E$5)/(Analyzer!$J$4*336)),0) -> 118.6658613 | BP12: =IF(ShowB,IF(ISERROR((BP$10*Analyzer!$E$5)/(Analyzer!$J$4*336)),0,SpeedConv*(BP$10*Analyzer!$E$5)/(Analyzer!$J$4*336)),0) -> 120.4109475 | BQ12: =IF(ShowB,IF(ISERROR((BQ$10*Analyzer!$E$5)/(Analyzer!$J$4*336)),0,SpeedConv*(BQ$10*Analyzer!$E$5)/(Analyzer!$J$4*336)),0) -> 122.1560337 | BR12: =IF(ShowB,IF(ISERROR((BR$10*Analyzer!$E$5)/(Analyzer!$J$4*336)),0,SpeedConv*(BR$10*Analyzer!$E$5)/(Analyzer!$J$4*336)),0) -> 123.9011199 | BS12: =IF(ShowB,IF(ISERROR((BS$10*Analyzer!$E$5)/(Analyzer!$J$4*336)),0,SpeedConv*(BS$10*Analyzer!$E$5)/(Analyzer!$J$4*336)),0) -> 125.6462061 | BT12: =IF(ShowB,IF(ISERROR((BT$10*Analyzer!$E$5)/(Analyzer!$J$4*336)),0,SpeedConv*(BT$10*Analyzer!$E$5)/(Analyzer!$J$4*336)),0) -> 127.3912923 | BU12: =IF(ShowB,IF(ISERROR((BU$10*Analyzer!$E$5)/(Analyzer!$J$4*336)),0,SpeedConv*(BU$10*Analyzer!$E$5)/(Analyzer!$J$4*336)),0) -> 129.1363785 | BV12: =IF(ShowB,IF(ISERROR((BV$10*Analyzer!$E$5)/(Analyzer!$J$4*336)),0,SpeedConv*(BV$10*Analyzer!$E$5)/(Analyzer!$J$4*336)),0) -> 130.8814647 | BW12: =IF(ShowB,IF(ISERROR((BW$10*Analyzer!$E$5)/(Analyzer!$J$4*336)),0,SpeedConv*(BW$10*Analyzer!$E$5)/(Analyzer!$J$4*336)),0) -> 132.6265509 | BX12: =IF(ShowB,IF(ISERROR((BX$10*Analyzer!$E$5)/(Analyzer!$J$4*336)),0,SpeedConv*(BX$10*Analyzer!$E$5)/(Analyzer!$J$4*336)),0) -> 134.3716371 | BY12: =IF(ShowB,IF(ISERROR((BY$10*Analyzer!$E$5)/(Analyzer!$J$4*336)),0,SpeedConv*(BY$10*Analyzer!$E$5)/(Analyzer!$J$4*336)),0) -> 136.1167233 | BZ12: =IF(ShowB,IF(ISERROR((BZ$10*Analyzer!$E$5)/(Analyzer!$J$4*336)),0,SpeedConv*(BZ$10*Analyzer!$E$5)/(Analyzer!$J$4*336)),0) -> 137.8618095 | CA12: =IF(ShowB,IF(ISERROR((CA$10*Analyzer!$E$5)/(Analyzer!$J$4*336)),0,SpeedConv*(CA$10*Analyzer!$E$5)/(Analyzer!$J$4*336)),0) -> 139.6068957 | CB12: =IF(ShowB,IF(ISERROR((CB$10*Analyzer!$E$5)/(Analyzer!$J$4*336)),0,SpeedConv*(CB$10*Analyzer!$E$5)/(Analyzer!$J$4*336)),0) -> 141.3519819 | CC12: =IF(ShowB,IF(ISERROR((CC$10*Analyzer!$E$5)/(Analyzer!$J$4*336)),0,SpeedConv*(CC$10*Analyzer!$E$5)/(Analyzer!$J$4*336)),0) -> 143.0970681 | CD12: =IF(ShowB,IF(ISERROR((CD$10*Analyzer!$E$5)/(Analyzer!$J$4*336)),0,SpeedConv*(CD$10*Analyzer!$E$5)/(Analyzer!$J$4*336)),0) -> 144.8421543 | CE12: =IF(ShowB,IF(ISERROR((CE$10*Analyzer!$E$5)/(Analyzer!$J$4*336)),0,SpeedConv*(CE$10*Analyzer!$E$5)/(Analyzer!$J$4*336)),0) -> 146.5872405 | CF12: =IF(ShowB,IF(ISERROR((CF$10*Analyzer!$E$5)/(Analyzer!$J$4*336)),0,SpeedConv*(CF$10*Analyzer!$E$5)/(Analyzer!$J$4*336)),0) -> 148.3323267 | CG12: =IF(ShowB,IF(ISERROR((CG$10*Analyzer!$E$5)/(Analyzer!$J$4*336)),0,SpeedConv*(CG$10*Analyzer!$E$5)/(Analyzer!$J$4*336)),0) -> 150.0774129 | CH12: =IF(ShowB,IF(ISERROR((CH$10*Analyzer!$E$5)/(Analyzer!$J$4*336)),0,SpeedConv*(CH$10*Analyzer!$E$5)/(Analyzer!$J$4*336)),0) -> 151.822499 | CI12: =IF(ShowB,IF(ISERROR((CI$10*Analyzer!$E$5)/(Analyzer!$J$4*336)),0,SpeedConv*(CI$10*Analyzer!$E$5)/(Analyzer!$J$4*336)),0) -> 153.5675852 | CJ12: =IF(ShowB,IF(ISERROR((CJ$10*Analyzer!$E$5)/(Analyzer!$J$4*336)),0,SpeedConv*(CJ$10*Analyzer!$E$5)/(Analyzer!$J$4*336)),0) -> 155.3126714 | CK12: =IF(ShowB,IF(ISERROR((CK$10*Analyzer!$E$5)/(Analyzer!$J$4*336)),0,SpeedConv*(CK$10*Analyzer!$E$5)/(Analyzer!$J$4*336)),0) -> 157.0577576 | CL12: =IF(ShowB,IF(ISERROR((CL$10*Analyzer!$E$5)/(Analyzer!$J$4*336)),0,SpeedConv*(CL$10*Analyzer!$E$5)/(Analyzer!$J$4*336)),0) -> 158.8028438 | CM12: =IF(ShowB,IF(ISERROR((CM$10*Analyzer!$E$5)/(Analyzer!$J$4*336)),0,SpeedConv*(CM$10*Analyzer!$E$5)/(Analyzer!$J$4*336)),0) -> 160.54793 | CN12: =IF(ShowB,IF(ISERROR((CN$10*Analyzer!$E$5)/(Analyzer!$J$4*336)),0,SpeedConv*(CN$10*Analyzer!$E$5)/(Analyzer!$J$4*336)),0) -> 162.2930162 | CO12: =IF(ShowB,IF(ISERROR((CO$10*Analyzer!$E$5)/(Analyzer!$J$4*336)),0,SpeedConv*(CO$10*Analyzer!$E$5)/(Analyzer!$J$4*336)),0) -> 164.0381024 | CP12: =IF(ShowB,IF(ISERROR((CP$10*Analyzer!$E$5)/(Analyzer!$J$4*336)),0,SpeedConv*(CP$10*Analyzer!$E$5)/(Analyzer!$J$4*336)),0) -> 165.7831886 | CQ12: =IF(ShowB,IF(ISERROR((CQ$10*Analyzer!$E$5)/(Analyzer!$J$4*336)),0,SpeedConv*(CQ$10*Analyzer!$E$5)/(Analyzer!$J$4*336)),0) -> 167.5282748 | CR12: =IF(ShowB,IF(ISERROR((CR$10*Analyzer!$E$5)/(Analyzer!$J$4*336)),0,SpeedConv*(CR$10*Analyzer!$E$5)/(Analyzer!$J$4*336)),0) -> 169.273361 | CS12: =IF(ShowB,IF(ISERROR((CS$10*Analyzer!$E$5)/(Analyzer!$J$4*336)),0,SpeedConv*(CS$10*Analyzer!$E$5)/(Analyzer!$J$4*336)),0) -> 171.0184472 | CT12: =IF(ShowB,IF(ISERROR((CT$10*Analyzer!$E$5)/(Analyzer!$J$4*336)),0,SpeedConv*(CT$10*Analyzer!$E$5)/(Analyzer!$J$4*336)),0) -> 172.7635334 | CU12: =IF(ShowB,IF(ISERROR((CU$10*Analyzer!$E$5)/(Analyzer!$J$4*336)),0,SpeedConv*(CU$10*Analyzer!$E$5)/(Analyzer!$J$4*336)),0) -> 174.5086196
A13: B-3rd | B13: =IF(ShowB,IF(ISERROR((B$10*Analyzer!$E$5)/(Analyzer!$J$5*336)),0,SpeedConv*(B$10*Analyzer!$E$5)/(Analyzer!$J$5*336)),0) -> 7.678862666 | C13: =IF(ShowB,IF(ISERROR((C$10*Analyzer!$E$5)/(Analyzer!$J$5*336)),0,SpeedConv*(C$10*Analyzer!$E$5)/(Analyzer!$J$5*336)),0) -> 10.23848355 | D13: =IF(ShowB,IF(ISERROR((D$10*Analyzer!$E$5)/(Analyzer!$J$5*336)),0,SpeedConv*(D$10*Analyzer!$E$5)/(Analyzer!$J$5*336)),0) -> 12.79810444 | E13: =IF(ShowB,IF(ISERROR((E$10*Analyzer!$E$5)/(Analyzer!$J$5*336)),0,SpeedConv*(E$10*Analyzer!$E$5)/(Analyzer!$J$5*336)),0) -> 15.35772533 | F13: =IF(ShowB,IF(ISERROR((F$10*Analyzer!$E$5)/(Analyzer!$J$5*336)),0,SpeedConv*(F$10*Analyzer!$E$5)/(Analyzer!$J$5*336)),0) -> 17.91734622 | G13: =IF(ShowB,IF(ISERROR((G$10*Analyzer!$E$5)/(Analyzer!$J$5*336)),0,SpeedConv*(G$10*Analyzer!$E$5)/(Analyzer!$J$5*336)),0) -> 20.47696711 | H13: =IF(ShowB,IF(ISERROR((H$10*Analyzer!$E$5)/(Analyzer!$J$5*336)),0,SpeedConv*(H$10*Analyzer!$E$5)/(Analyzer!$J$5*336)),0) -> 23.036588 | I13: =IF(ShowB,IF(ISERROR((I$10*Analyzer!$E$5)/(Analyzer!$J$5*336)),0,SpeedConv*(I$10*Analyzer!$E$5)/(Analyzer!$J$5*336)),0) -> 25.59620889 | J13: =IF(ShowB,IF(ISERROR((J$10*Analyzer!$E$5)/(Analyzer!$J$5*336)),0,SpeedConv*(J$10*Analyzer!$E$5)/(Analyzer!$J$5*336)),0) -> 28.15582977 | K13: =IF(ShowB,IF(ISERROR((K$10*Analyzer!$E$5)/(Analyzer!$J$5*336)),0,SpeedConv*(K$10*Analyzer!$E$5)/(Analyzer!$J$5*336)),0) -> 30.71545066 | L13: =IF(ShowB,IF(ISERROR((L$10*Analyzer!$E$5)/(Analyzer!$J$5*336)),0,SpeedConv*(L$10*Analyzer!$E$5)/(Analyzer!$J$5*336)),0) -> 33.27507155 | M13: =IF(ShowB,IF(ISERROR((M$10*Analyzer!$E$5)/(Analyzer!$J$5*336)),0,SpeedConv*(M$10*Analyzer!$E$5)/(Analyzer!$J$5*336)),0) -> 35.83469244 | N13: =IF(ShowB,IF(ISERROR((N$10*Analyzer!$E$5)/(Analyzer!$J$5*336)),0,SpeedConv*(N$10*Analyzer!$E$5)/(Analyzer!$J$5*336)),0) -> 38.39431333 | O13: =IF(ShowB,IF(ISERROR((O$10*Analyzer!$E$5)/(Analyzer!$J$5*336)),0,SpeedConv*(O$10*Analyzer!$E$5)/(Analyzer!$J$5*336)),0) -> 40.95393422 | P13: =IF(ShowB,IF(ISERROR((P$10*Analyzer!$E$5)/(Analyzer!$J$5*336)),0,SpeedConv*(P$10*Analyzer!$E$5)/(Analyzer!$J$5*336)),0) -> 43.5135551 | Q13: =IF(ShowB,IF(ISERROR((Q$10*Analyzer!$E$5)/(Analyzer!$J$5*336)),0,SpeedConv*(Q$10*Analyzer!$E$5)/(Analyzer!$J$5*336)),0) -> 46.07317599 | R13: =IF(ShowB,IF(ISERROR((R$10*Analyzer!$E$5)/(Analyzer!$J$5*336)),0,SpeedConv*(R$10*Analyzer!$E$5)/(Analyzer!$J$5*336)),0) -> 48.63279688 | S13: =IF(ShowB,IF(ISERROR((S$10*Analyzer!$E$5)/(Analyzer!$J$5*336)),0,SpeedConv*(S$10*Analyzer!$E$5)/(Analyzer!$J$5*336)),0) -> 51.19241777 | T13: =IF(ShowB,IF(ISERROR((T$10*Analyzer!$E$5)/(Analyzer!$J$5*336)),0,SpeedConv*(T$10*Analyzer!$E$5)/(Analyzer!$J$5*336)),0) -> 53.75203866 | U13: =IF(ShowB,IF(ISERROR((U$10*Analyzer!$E$5)/(Analyzer!$J$5*336)),0,SpeedConv*(U$10*Analyzer!$E$5)/(Analyzer!$J$5*336)),0) -> 56.31165955 | V13: =IF(ShowB,IF(ISERROR((V$10*Analyzer!$E$5)/(Analyzer!$J$5*336)),0,SpeedConv*(V$10*Analyzer!$E$5)/(Analyzer!$J$5*336)),0) -> 58.87128044 | W13: =IF(ShowB,IF(ISERROR((W$10*Analyzer!$E$5)/(Analyzer!$J$5*336)),0,SpeedConv*(W$10*Analyzer!$E$5)/(Analyzer!$J$5*336)),0) -> 61.43090132 | X13: =IF(ShowB,IF(ISERROR((X$10*Analyzer!$E$5)/(Analyzer!$J$5*336)),0,SpeedConv*(X$10*Analyzer!$E$5)/(Analyzer!$J$5*336)),0) -> 63.99052221 | Y13: =IF(ShowB,IF(ISERROR((Y$10*Analyzer!$E$5)/(Analyzer!$J$5*336)),0,SpeedConv*(Y$10*Analyzer!$E$5)/(Analyzer!$J$5*336)),0) -> 66.5501431 | Z13: =IF(ShowB,IF(ISERROR((Z$10*Analyzer!$E$5)/(Analyzer!$J$5*336)),0,SpeedConv*(Z$10*Analyzer!$E$5)/(Analyzer!$J$5*336)),0) -> 69.10976399 | AA13: =IF(ShowB,IF(ISERROR((AA$10*Analyzer!$E$5)/(Analyzer!$J$5*336)),0,SpeedConv*(AA$10*Analyzer!$E$5)/(Analyzer!$J$5*336)),0) -> 71.66938488 | AB13: =IF(ShowB,IF(ISERROR((AB$10*Analyzer!$E$5)/(Analyzer!$J$5*336)),0,SpeedConv*(AB$10*Analyzer!$E$5)/(Analyzer!$J$5*336)),0) -> 74.22900577 | AC13: =IF(ShowB,IF(ISERROR((AC$10*Analyzer!$E$5)/(Analyzer!$J$5*336)),0,SpeedConv*(AC$10*Analyzer!$E$5)/(Analyzer!$J$5*336)),0) -> 76.78862666 | AD13: =IF(ShowB,IF(ISERROR((AD$10*Analyzer!$E$5)/(Analyzer!$J$5*336)),0,SpeedConv*(AD$10*Analyzer!$E$5)/(Analyzer!$J$5*336)),0) -> 79.34824754 | AE13: =IF(ShowB,IF(ISERROR((AE$10*Analyzer!$E$5)/(Analyzer!$J$5*336)),0,SpeedConv*(AE$10*Analyzer!$E$5)/(Analyzer!$J$5*336)),0) -> 81.90786843 | AF13: =IF(ShowB,IF(ISERROR((AF$10*Analyzer!$E$5)/(Analyzer!$J$5*336)),0,SpeedConv*(AF$10*Analyzer!$E$5)/(Analyzer!$J$5*336)),0) -> 84.46748932 | AG13: =IF(ShowB,IF(ISERROR((AG$10*Analyzer!$E$5)/(Analyzer!$J$5*336)),0,SpeedConv*(AG$10*Analyzer!$E$5)/(Analyzer!$J$5*336)),0) -> 87.02711021 | AH13: =IF(ShowB,IF(ISERROR((AH$10*Analyzer!$E$5)/(Analyzer!$J$5*336)),0,SpeedConv*(AH$10*Analyzer!$E$5)/(Analyzer!$J$5*336)),0) -> 89.5867311 | AI13: =IF(ShowB,IF(ISERROR((AI$10*Analyzer!$E$5)/(Analyzer!$J$5*336)),0,SpeedConv*(AI$10*Analyzer!$E$5)/(Analyzer!$J$5*336)),0) -> 92.14635199 | AJ13: =IF(ShowB,IF(ISERROR((AJ$10*Analyzer!$E$5)/(Analyzer!$J$5*336)),0,SpeedConv*(AJ$10*Analyzer!$E$5)/(Analyzer!$J$5*336)),0) -> 94.70597288 | AK13: =IF(ShowB,IF(ISERROR((AK$10*Analyzer!$E$5)/(Analyzer!$J$5*336)),0,SpeedConv*(AK$10*Analyzer!$E$5)/(Analyzer!$J$5*336)),0) -> 97.26559376 | AL13: =IF(ShowB,IF(ISERROR((AL$10*Analyzer!$E$5)/(Analyzer!$J$5*336)),0,SpeedConv*(AL$10*Analyzer!$E$5)/(Analyzer!$J$5*336)),0) -> 99.82521465 | AM13: =IF(ShowB,IF(ISERROR((AM$10*Analyzer!$E$5)/(Analyzer!$J$5*336)),0,SpeedConv*(AM$10*Analyzer!$E$5)/(Analyzer!$J$5*336)),0) -> 102.3848355 | AN13: =IF(ShowB,IF(ISERROR((AN$10*Analyzer!$E$5)/(Analyzer!$J$5*336)),0,SpeedConv*(AN$10*Analyzer!$E$5)/(Analyzer!$J$5*336)),0) -> 104.9444564 | AO13: =IF(ShowB,IF(ISERROR((AO$10*Analyzer!$E$5)/(Analyzer!$J$5*336)),0,SpeedConv*(AO$10*Analyzer!$E$5)/(Analyzer!$J$5*336)),0) -> 107.5040773 | AP13: =IF(ShowB,IF(ISERROR((AP$10*Analyzer!$E$5)/(Analyzer!$J$5*336)),0,SpeedConv*(AP$10*Analyzer!$E$5)/(Analyzer!$J$5*336)),0) -> 110.0636982 | AQ13: =IF(ShowB,IF(ISERROR((AQ$10*Analyzer!$E$5)/(Analyzer!$J$5*336)),0,SpeedConv*(AQ$10*Analyzer!$E$5)/(Analyzer!$J$5*336)),0) -> 112.6233191 | AR13: =IF(ShowB,IF(ISERROR((AR$10*Analyzer!$E$5)/(Analyzer!$J$5*336)),0,SpeedConv*(AR$10*Analyzer!$E$5)/(Analyzer!$J$5*336)),0) -> 115.18294 | AS13: =IF(ShowB,IF(ISERROR((AS$10*Analyzer!$E$5)/(Analyzer!$J$5*336)),0,SpeedConv*(AS$10*Analyzer!$E$5)/(Analyzer!$J$5*336)),0) -> 117.7425609 | AT13: =IF(ShowB,IF(ISERROR((AT$10*Analyzer!$E$5)/(Analyzer!$J$5*336)),0,SpeedConv*(AT$10*Analyzer!$E$5)/(Analyzer!$J$5*336)),0) -> 120.3021818 | AU13: =IF(ShowB,IF(ISERROR((AU$10*Analyzer!$E$5)/(Analyzer!$J$5*336)),0,SpeedConv*(AU$10*Analyzer!$E$5)/(Analyzer!$J$5*336)),0) -> 122.8618026 | AV13: =IF(ShowB,IF(ISERROR((AV$10*Analyzer!$E$5)/(Analyzer!$J$5*336)),0,SpeedConv*(AV$10*Analyzer!$E$5)/(Analyzer!$J$5*336)),0) -> 125.4214235 | AW13: =IF(ShowB,IF(ISERROR((AW$10*Analyzer!$E$5)/(Analyzer!$J$5*336)),0,SpeedConv*(AW$10*Analyzer!$E$5)/(Analyzer!$J$5*336)),0) -> 127.9810444 | AX13: =IF(ShowB,IF(ISERROR((AX$10*Analyzer!$E$5)/(Analyzer!$J$5*336)),0,SpeedConv*(AX$10*Analyzer!$E$5)/(Analyzer!$J$5*336)),0) -> 130.5406653 | AY13: =IF(ShowB,IF(ISERROR((AY$10*Analyzer!$E$5)/(Analyzer!$J$5*336)),0,SpeedConv*(AY$10*Analyzer!$E$5)/(Analyzer!$J$5*336)),0) -> 133.1002862 | AZ13: =IF(ShowB,IF(ISERROR((AZ$10*Analyzer!$E$5)/(Analyzer!$J$5*336)),0,SpeedConv*(AZ$10*Analyzer!$E$5)/(Analyzer!$J$5*336)),0) -> 135.6599071 | BA13: =IF(ShowB,IF(ISERROR((BA$10*Analyzer!$E$5)/(Analyzer!$J$5*336)),0,SpeedConv*(BA$10*Analyzer!$E$5)/(Analyzer!$J$5*336)),0) -> 138.219528 | BB13: =IF(ShowB,IF(ISERROR((BB$10*Analyzer!$E$5)/(Analyzer!$J$5*336)),0,SpeedConv*(BB$10*Analyzer!$E$5)/(Analyzer!$J$5*336)),0) -> 140.7791489 | BC13: =IF(ShowB,IF(ISERROR((BC$10*Analyzer!$E$5)/(Analyzer!$J$5*336)),0,SpeedConv*(BC$10*Analyzer!$E$5)/(Analyzer!$J$5*336)),0) -> 143.3387698 | BD13: =IF(ShowB,IF(ISERROR((BD$10*Analyzer!$E$5)/(Analyzer!$J$5*336)),0,SpeedConv*(BD$10*Analyzer!$E$5)/(Analyzer!$J$5*336)),0) -> 145.8983906 | BE13: =IF(ShowB,IF(ISERROR((BE$10*Analyzer!$E$5)/(Analyzer!$J$5*336)),0,SpeedConv*(BE$10*Analyzer!$E$5)/(Analyzer!$J$5*336)),0) -> 148.4580115 | BF13: =IF(ShowB,IF(ISERROR((BF$10*Analyzer!$E$5)/(Analyzer!$J$5*336)),0,SpeedConv*(BF$10*Analyzer!$E$5)/(Analyzer!$J$5*336)),0) -> 151.0176324 | BG13: =IF(ShowB,IF(ISERROR((BG$10*Analyzer!$E$5)/(Analyzer!$J$5*336)),0,SpeedConv*(BG$10*Analyzer!$E$5)/(Analyzer!$J$5*336)),0) -> 153.5772533 | BH13: =IF(ShowB,IF(ISERROR((BH$10*Analyzer!$E$5)/(Analyzer!$J$5*336)),0,SpeedConv*(BH$10*Analyzer!$E$5)/(Analyzer!$J$5*336)),0) -> 156.1368742 | BI13: =IF(ShowB,IF(ISERROR((BI$10*Analyzer!$E$5)/(Analyzer!$J$5*336)),0,SpeedConv*(BI$10*Analyzer!$E$5)/(Analyzer!$J$5*336)),0) -> 158.6964951 | BJ13: =IF(ShowB,IF(ISERROR((BJ$10*Analyzer!$E$5)/(Analyzer!$J$5*336)),0,SpeedConv*(BJ$10*Analyzer!$E$5)/(Analyzer!$J$5*336)),0) -> 161.256116 | BK13: =IF(ShowB,IF(ISERROR((BK$10*Analyzer!$E$5)/(Analyzer!$J$5*336)),0,SpeedConv*(BK$10*Analyzer!$E$5)/(Analyzer!$J$5*336)),0) -> 163.8157369 | BL13: =IF(ShowB,IF(ISERROR((BL$10*Analyzer!$E$5)/(Analyzer!$J$5*336)),0,SpeedConv*(BL$10*Analyzer!$E$5)/(Analyzer!$J$5*336)),0) -> 166.3753578 | BM13: =IF(ShowB,IF(ISERROR((BM$10*Analyzer!$E$5)/(Analyzer!$J$5*336)),0,SpeedConv*(BM$10*Analyzer!$E$5)/(Analyzer!$J$5*336)),0) -> 168.9349786 | BN13: =IF(ShowB,IF(ISERROR((BN$10*Analyzer!$E$5)/(Analyzer!$J$5*336)),0,SpeedConv*(BN$10*Analyzer!$E$5)/(Analyzer!$J$5*336)),0) -> 171.4945995 | BO13: =IF(ShowB,IF(ISERROR((BO$10*Analyzer!$E$5)/(Analyzer!$J$5*336)),0,SpeedConv*(BO$10*Analyzer!$E$5)/(Analyzer!$J$5*336)),0) -> 174.0542204 | BP13: =IF(ShowB,IF(ISERROR((BP$10*Analyzer!$E$5)/(Analyzer!$J$5*336)),0,SpeedConv*(BP$10*Analyzer!$E$5)/(Analyzer!$J$5*336)),0) -> 176.6138413 | BQ13: =IF(ShowB,IF(ISERROR((BQ$10*Analyzer!$E$5)/(Analyzer!$J$5*336)),0,SpeedConv*(BQ$10*Analyzer!$E$5)/(Analyzer!$J$5*336)),0) -> 179.1734622 | BR13: =IF(ShowB,IF(ISERROR((BR$10*Analyzer!$E$5)/(Analyzer!$J$5*336)),0,SpeedConv*(BR$10*Analyzer!$E$5)/(Analyzer!$J$5*336)),0) -> 181.7330831 | BS13: =IF(ShowB,IF(ISERROR((BS$10*Analyzer!$E$5)/(Analyzer!$J$5*336)),0,SpeedConv*(BS$10*Analyzer!$E$5)/(Analyzer!$J$5*336)),0) -> 184.292704 | BT13: =IF(ShowB,IF(ISERROR((BT$10*Analyzer!$E$5)/(Analyzer!$J$5*336)),0,SpeedConv*(BT$10*Analyzer!$E$5)/(Analyzer!$J$5*336)),0) -> 186.8523249 | BU13: =IF(ShowB,IF(ISERROR((BU$10*Analyzer!$E$5)/(Analyzer!$J$5*336)),0,SpeedConv*(BU$10*Analyzer!$E$5)/(Analyzer!$J$5*336)),0) -> 189.4119458 | BV13: =IF(ShowB,IF(ISERROR((BV$10*Analyzer!$E$5)/(Analyzer!$J$5*336)),0,SpeedConv*(BV$10*Analyzer!$E$5)/(Analyzer!$J$5*336)),0) -> 191.9715666 | BW13: =IF(ShowB,IF(ISERROR((BW$10*Analyzer!$E$5)/(Analyzer!$J$5*336)),0,SpeedConv*(BW$10*Analyzer!$E$5)/(Analyzer!$J$5*336)),0) -> 194.5311875 | BX13: =IF(ShowB,IF(ISERROR((BX$10*Analyzer!$E$5)/(Analyzer!$J$5*336)),0,SpeedConv*(BX$10*Analyzer!$E$5)/(Analyzer!$J$5*336)),0) -> 197.0908084 | BY13: =IF(ShowB,IF(ISERROR((BY$10*Analyzer!$E$5)/(Analyzer!$J$5*336)),0,SpeedConv*(BY$10*Analyzer!$E$5)/(Analyzer!$J$5*336)),0) -> 199.6504293 | BZ13: =IF(ShowB,IF(ISERROR((BZ$10*Analyzer!$E$5)/(Analyzer!$J$5*336)),0,SpeedConv*(BZ$10*Analyzer!$E$5)/(Analyzer!$J$5*336)),0) -> 202.2100502 | CA13: =IF(ShowB,IF(ISERROR((CA$10*Analyzer!$E$5)/(Analyzer!$J$5*336)),0,SpeedConv*(CA$10*Analyzer!$E$5)/(Analyzer!$J$5*336)),0) -> 204.7696711 | CB13: =IF(ShowB,IF(ISERROR((CB$10*Analyzer!$E$5)/(Analyzer!$J$5*336)),0,SpeedConv*(CB$10*Analyzer!$E$5)/(Analyzer!$J$5*336)),0) -> 207.329292 | CC13: =IF(ShowB,IF(ISERROR((CC$10*Analyzer!$E$5)/(Analyzer!$J$5*336)),0,SpeedConv*(CC$10*Analyzer!$E$5)/(Analyzer!$J$5*336)),0) -> 209.8889129 | CD13: =IF(ShowB,IF(ISERROR((CD$10*Analyzer!$E$5)/(Analyzer!$J$5*336)),0,SpeedConv*(CD$10*Analyzer!$E$5)/(Analyzer!$J$5*336)),0) -> 212.4485337 | CE13: =IF(ShowB,IF(ISERROR((CE$10*Analyzer!$E$5)/(Analyzer!$J$5*336)),0,SpeedConv*(CE$10*Analyzer!$E$5)/(Analyzer!$J$5*336)),0) -> 215.0081546 | CF13: =IF(ShowB,IF(ISERROR((CF$10*Analyzer!$E$5)/(Analyzer!$J$5*336)),0,SpeedConv*(CF$10*Analyzer!$E$5)/(Analyzer!$J$5*336)),0) -> 217.5677755 | CG13: =IF(ShowB,IF(ISERROR((CG$10*Analyzer!$E$5)/(Analyzer!$J$5*336)),0,SpeedConv*(CG$10*Analyzer!$E$5)/(Analyzer!$J$5*336)),0) -> 220.1273964 | CH13: =IF(ShowB,IF(ISERROR((CH$10*Analyzer!$E$5)/(Analyzer!$J$5*336)),0,SpeedConv*(CH$10*Analyzer!$E$5)/(Analyzer!$J$5*336)),0) -> 222.6870173 | CI13: =IF(ShowB,IF(ISERROR((CI$10*Analyzer!$E$5)/(Analyzer!$J$5*336)),0,SpeedConv*(CI$10*Analyzer!$E$5)/(Analyzer!$J$5*336)),0) -> 225.2466382 | CJ13: =IF(ShowB,IF(ISERROR((CJ$10*Analyzer!$E$5)/(Analyzer!$J$5*336)),0,SpeedConv*(CJ$10*Analyzer!$E$5)/(Analyzer!$J$5*336)),0) -> 227.8062591 | CK13: =IF(ShowB,IF(ISERROR((CK$10*Analyzer!$E$5)/(Analyzer!$J$5*336)),0,SpeedConv*(CK$10*Analyzer!$E$5)/(Analyzer!$J$5*336)),0) -> 230.36588 | CL13: =IF(ShowB,IF(ISERROR((CL$10*Analyzer!$E$5)/(Analyzer!$J$5*336)),0,SpeedConv*(CL$10*Analyzer!$E$5)/(Analyzer!$J$5*336)),0) -> 232.9255009 | CM13: =IF(ShowB,IF(ISERROR((CM$10*Analyzer!$E$5)/(Analyzer!$J$5*336)),0,SpeedConv*(CM$10*Analyzer!$E$5)/(Analyzer!$J$5*336)),0) -> 235.4851217 | CN13: =IF(ShowB,IF(ISERROR((CN$10*Analyzer!$E$5)/(Analyzer!$J$5*336)),0,SpeedConv*(CN$10*Analyzer!$E$5)/(Analyzer!$J$5*336)),0) -> 238.0447426 | CO13: =IF(ShowB,IF(ISERROR((CO$10*Analyzer!$E$5)/(Analyzer!$J$5*336)),0,SpeedConv*(CO$10*Analyzer!$E$5)/(Analyzer!$J$5*336)),0) -> 240.6043635 | CP13: =IF(ShowB,IF(ISERROR((CP$10*Analyzer!$E$5)/(Analyzer!$J$5*336)),0,SpeedConv*(CP$10*Analyzer!$E$5)/(Analyzer!$J$5*336)),0) -> 243.1639844 | CQ13: =IF(ShowB,IF(ISERROR((CQ$10*Analyzer!$E$5)/(Analyzer!$J$5*336)),0,SpeedConv*(CQ$10*Analyzer!$E$5)/(Analyzer!$J$5*336)),0) -> 245.7236053 | CR13: =IF(ShowB,IF(ISERROR((CR$10*Analyzer!$E$5)/(Analyzer!$J$5*336)),0,SpeedConv*(CR$10*Analyzer!$E$5)/(Analyzer!$J$5*336)),0) -> 248.2832262 | CS13: =IF(ShowB,IF(ISERROR((CS$10*Analyzer!$E$5)/(Analyzer!$J$5*336)),0,SpeedConv*(CS$10*Analyzer!$E$5)/(Analyzer!$J$5*336)),0) -> 250.8428471 | CT13: =IF(ShowB,IF(ISERROR((CT$10*Analyzer!$E$5)/(Analyzer!$J$5*336)),0,SpeedConv*(CT$10*Analyzer!$E$5)/(Analyzer!$J$5*336)),0) -> 253.402468 | CU13: =IF(ShowB,IF(ISERROR((CU$10*Analyzer!$E$5)/(Analyzer!$J$5*336)),0,SpeedConv*(CU$10*Analyzer!$E$5)/(Analyzer!$J$5*336)),0) -> 255.9620889
A14: B-4th | B14: =IF(ShowB,IF(ISERROR((B$10*Analyzer!$E$5)/(Analyzer!$J$6*336)),0,SpeedConv*(B$10*Analyzer!$E$5)/(Analyzer!$J$6*336)),0) -> 9.821326562 | C14: =IF(ShowB,IF(ISERROR((C$10*Analyzer!$E$5)/(Analyzer!$J$6*336)),0,SpeedConv*(C$10*Analyzer!$E$5)/(Analyzer!$J$6*336)),0) -> 13.09510208 | D14: =IF(ShowB,IF(ISERROR((D$10*Analyzer!$E$5)/(Analyzer!$J$6*336)),0,SpeedConv*(D$10*Analyzer!$E$5)/(Analyzer!$J$6*336)),0) -> 16.3688776 | E14: =IF(ShowB,IF(ISERROR((E$10*Analyzer!$E$5)/(Analyzer!$J$6*336)),0,SpeedConv*(E$10*Analyzer!$E$5)/(Analyzer!$J$6*336)),0) -> 19.64265312 | F14: =IF(ShowB,IF(ISERROR((F$10*Analyzer!$E$5)/(Analyzer!$J$6*336)),0,SpeedConv*(F$10*Analyzer!$E$5)/(Analyzer!$J$6*336)),0) -> 22.91642865 | G14: =IF(ShowB,IF(ISERROR((G$10*Analyzer!$E$5)/(Analyzer!$J$6*336)),0,SpeedConv*(G$10*Analyzer!$E$5)/(Analyzer!$J$6*336)),0) -> 26.19020417 | H14: =IF(ShowB,IF(ISERROR((H$10*Analyzer!$E$5)/(Analyzer!$J$6*336)),0,SpeedConv*(H$10*Analyzer!$E$5)/(Analyzer!$J$6*336)),0) -> 29.46397969 | I14: =IF(ShowB,IF(ISERROR((I$10*Analyzer!$E$5)/(Analyzer!$J$6*336)),0,SpeedConv*(I$10*Analyzer!$E$5)/(Analyzer!$J$6*336)),0) -> 32.73775521 | J14: =IF(ShowB,IF(ISERROR((J$10*Analyzer!$E$5)/(Analyzer!$J$6*336)),0,SpeedConv*(J$10*Analyzer!$E$5)/(Analyzer!$J$6*336)),0) -> 36.01153073 | K14: =IF(ShowB,IF(ISERROR((K$10*Analyzer!$E$5)/(Analyzer!$J$6*336)),0,SpeedConv*(K$10*Analyzer!$E$5)/(Analyzer!$J$6*336)),0) -> 39.28530625 | L14: =IF(ShowB,IF(ISERROR((L$10*Analyzer!$E$5)/(Analyzer!$J$6*336)),0,SpeedConv*(L$10*Analyzer!$E$5)/(Analyzer!$J$6*336)),0) -> 42.55908177 | M14: =IF(ShowB,IF(ISERROR((M$10*Analyzer!$E$5)/(Analyzer!$J$6*336)),0,SpeedConv*(M$10*Analyzer!$E$5)/(Analyzer!$J$6*336)),0) -> 45.83285729 | N14: =IF(ShowB,IF(ISERROR((N$10*Analyzer!$E$5)/(Analyzer!$J$6*336)),0,SpeedConv*(N$10*Analyzer!$E$5)/(Analyzer!$J$6*336)),0) -> 49.10663281 | O14: =IF(ShowB,IF(ISERROR((O$10*Analyzer!$E$5)/(Analyzer!$J$6*336)),0,SpeedConv*(O$10*Analyzer!$E$5)/(Analyzer!$J$6*336)),0) -> 52.38040833 | P14: =IF(ShowB,IF(ISERROR((P$10*Analyzer!$E$5)/(Analyzer!$J$6*336)),0,SpeedConv*(P$10*Analyzer!$E$5)/(Analyzer!$J$6*336)),0) -> 55.65418385 | Q14: =IF(ShowB,IF(ISERROR((Q$10*Analyzer!$E$5)/(Analyzer!$J$6*336)),0,SpeedConv*(Q$10*Analyzer!$E$5)/(Analyzer!$J$6*336)),0) -> 58.92795937 | R14: =IF(ShowB,IF(ISERROR((R$10*Analyzer!$E$5)/(Analyzer!$J$6*336)),0,SpeedConv*(R$10*Analyzer!$E$5)/(Analyzer!$J$6*336)),0) -> 62.2017349 | S14: =IF(ShowB,IF(ISERROR((S$10*Analyzer!$E$5)/(Analyzer!$J$6*336)),0,SpeedConv*(S$10*Analyzer!$E$5)/(Analyzer!$J$6*336)),0) -> 65.47551042 | T14: =IF(ShowB,IF(ISERROR((T$10*Analyzer!$E$5)/(Analyzer!$J$6*336)),0,SpeedConv*(T$10*Analyzer!$E$5)/(Analyzer!$J$6*336)),0) -> 68.74928594 | U14: =IF(ShowB,IF(ISERROR((U$10*Analyzer!$E$5)/(Analyzer!$J$6*336)),0,SpeedConv*(U$10*Analyzer!$E$5)/(Analyzer!$J$6*336)),0) -> 72.02306146 | V14: =IF(ShowB,IF(ISERROR((V$10*Analyzer!$E$5)/(Analyzer!$J$6*336)),0,SpeedConv*(V$10*Analyzer!$E$5)/(Analyzer!$J$6*336)),0) -> 75.29683698 | W14: =IF(ShowB,IF(ISERROR((W$10*Analyzer!$E$5)/(Analyzer!$J$6*336)),0,SpeedConv*(W$10*Analyzer!$E$5)/(Analyzer!$J$6*336)),0) -> 78.5706125 | X14: =IF(ShowB,IF(ISERROR((X$10*Analyzer!$E$5)/(Analyzer!$J$6*336)),0,SpeedConv*(X$10*Analyzer!$E$5)/(Analyzer!$J$6*336)),0) -> 81.84438802 | Y14: =IF(ShowB,IF(ISERROR((Y$10*Analyzer!$E$5)/(Analyzer!$J$6*336)),0,SpeedConv*(Y$10*Analyzer!$E$5)/(Analyzer!$J$6*336)),0) -> 85.11816354 | Z14: =IF(ShowB,IF(ISERROR((Z$10*Analyzer!$E$5)/(Analyzer!$J$6*336)),0,SpeedConv*(Z$10*Analyzer!$E$5)/(Analyzer!$J$6*336)),0) -> 88.39193906 | AA14: =IF(ShowB,IF(ISERROR((AA$10*Analyzer!$E$5)/(Analyzer!$J$6*336)),0,SpeedConv*(AA$10*Analyzer!$E$5)/(Analyzer!$J$6*336)),0) -> 91.66571458 | AB14: =IF(ShowB,IF(ISERROR((AB$10*Analyzer!$E$5)/(Analyzer!$J$6*336)),0,SpeedConv*(AB$10*Analyzer!$E$5)/(Analyzer!$J$6*336)),0) -> 94.9394901 | AC14: =IF(ShowB,IF(ISERROR((AC$10*Analyzer!$E$5)/(Analyzer!$J$6*336)),0,SpeedConv*(AC$10*Analyzer!$E$5)/(Analyzer!$J$6*336)),0) -> 98.21326562 | AD14: =IF(ShowB,IF(ISERROR((AD$10*Analyzer!$E$5)/(Analyzer!$J$6*336)),0,SpeedConv*(AD$10*Analyzer!$E$5)/(Analyzer!$J$6*336)),0) -> 101.4870411 | AE14: =IF(ShowB,IF(ISERROR((AE$10*Analyzer!$E$5)/(Analyzer!$J$6*336)),0,SpeedConv*(AE$10*Analyzer!$E$5)/(Analyzer!$J$6*336)),0) -> 104.7608167 | AF14: =IF(ShowB,IF(ISERROR((AF$10*Analyzer!$E$5)/(Analyzer!$J$6*336)),0,SpeedConv*(AF$10*Analyzer!$E$5)/(Analyzer!$J$6*336)),0) -> 108.0345922 | AG14: =IF(ShowB,IF(ISERROR((AG$10*Analyzer!$E$5)/(Analyzer!$J$6*336)),0,SpeedConv*(AG$10*Analyzer!$E$5)/(Analyzer!$J$6*336)),0) -> 111.3083677 | AH14: =IF(ShowB,IF(ISERROR((AH$10*Analyzer!$E$5)/(Analyzer!$J$6*336)),0,SpeedConv*(AH$10*Analyzer!$E$5)/(Analyzer!$J$6*336)),0) -> 114.5821432 | AI14: =IF(ShowB,IF(ISERROR((AI$10*Analyzer!$E$5)/(Analyzer!$J$6*336)),0,SpeedConv*(AI$10*Analyzer!$E$5)/(Analyzer!$J$6*336)),0) -> 117.8559187 | AJ14: =IF(ShowB,IF(ISERROR((AJ$10*Analyzer!$E$5)/(Analyzer!$J$6*336)),0,SpeedConv*(AJ$10*Analyzer!$E$5)/(Analyzer!$J$6*336)),0) -> 121.1296943 | AK14: =IF(ShowB,IF(ISERROR((AK$10*Analyzer!$E$5)/(Analyzer!$J$6*336)),0,SpeedConv*(AK$10*Analyzer!$E$5)/(Analyzer!$J$6*336)),0) -> 124.4034698 | AL14: =IF(ShowB,IF(ISERROR((AL$10*Analyzer!$E$5)/(Analyzer!$J$6*336)),0,SpeedConv*(AL$10*Analyzer!$E$5)/(Analyzer!$J$6*336)),0) -> 127.6772453 | AM14: =IF(ShowB,IF(ISERROR((AM$10*Analyzer!$E$5)/(Analyzer!$J$6*336)),0,SpeedConv*(AM$10*Analyzer!$E$5)/(Analyzer!$J$6*336)),0) -> 130.9510208 | AN14: =IF(ShowB,IF(ISERROR((AN$10*Analyzer!$E$5)/(Analyzer!$J$6*336)),0,SpeedConv*(AN$10*Analyzer!$E$5)/(Analyzer!$J$6*336)),0) -> 134.2247964 | AO14: =IF(ShowB,IF(ISERROR((AO$10*Analyzer!$E$5)/(Analyzer!$J$6*336)),0,SpeedConv*(AO$10*Analyzer!$E$5)/(Analyzer!$J$6*336)),0) -> 137.4985719 | AP14: =IF(ShowB,IF(ISERROR((AP$10*Analyzer!$E$5)/(Analyzer!$J$6*336)),0,SpeedConv*(AP$10*Analyzer!$E$5)/(Analyzer!$J$6*336)),0) -> 140.7723474 | AQ14: =IF(ShowB,IF(ISERROR((AQ$10*Analyzer!$E$5)/(Analyzer!$J$6*336)),0,SpeedConv*(AQ$10*Analyzer!$E$5)/(Analyzer!$J$6*336)),0) -> 144.0461229 | AR14: =IF(ShowB,IF(ISERROR((AR$10*Analyzer!$E$5)/(Analyzer!$J$6*336)),0,SpeedConv*(AR$10*Analyzer!$E$5)/(Analyzer!$J$6*336)),0) -> 147.3198984 | AS14: =IF(ShowB,IF(ISERROR((AS$10*Analyzer!$E$5)/(Analyzer!$J$6*336)),0,SpeedConv*(AS$10*Analyzer!$E$5)/(Analyzer!$J$6*336)),0) -> 150.593674 | AT14: =IF(ShowB,IF(ISERROR((AT$10*Analyzer!$E$5)/(Analyzer!$J$6*336)),0,SpeedConv*(AT$10*Analyzer!$E$5)/(Analyzer!$J$6*336)),0) -> 153.8674495 | AU14: =IF(ShowB,IF(ISERROR((AU$10*Analyzer!$E$5)/(Analyzer!$J$6*336)),0,SpeedConv*(AU$10*Analyzer!$E$5)/(Analyzer!$J$6*336)),0) -> 157.141225 | AV14: =IF(ShowB,IF(ISERROR((AV$10*Analyzer!$E$5)/(Analyzer!$J$6*336)),0,SpeedConv*(AV$10*Analyzer!$E$5)/(Analyzer!$J$6*336)),0) -> 160.4150005 | AW14: =IF(ShowB,IF(ISERROR((AW$10*Analyzer!$E$5)/(Analyzer!$J$6*336)),0,SpeedConv*(AW$10*Analyzer!$E$5)/(Analyzer!$J$6*336)),0) -> 163.688776 | AX14: =IF(ShowB,IF(ISERROR((AX$10*Analyzer!$E$5)/(Analyzer!$J$6*336)),0,SpeedConv*(AX$10*Analyzer!$E$5)/(Analyzer!$J$6*336)),0) -> 166.9625516 | AY14: =IF(ShowB,IF(ISERROR((AY$10*Analyzer!$E$5)/(Analyzer!$J$6*336)),0,SpeedConv*(AY$10*Analyzer!$E$5)/(Analyzer!$J$6*336)),0) -> 170.2363271 | AZ14: =IF(ShowB,IF(ISERROR((AZ$10*Analyzer!$E$5)/(Analyzer!$J$6*336)),0,SpeedConv*(AZ$10*Analyzer!$E$5)/(Analyzer!$J$6*336)),0) -> 173.5101026 | BA14: =IF(ShowB,IF(ISERROR((BA$10*Analyzer!$E$5)/(Analyzer!$J$6*336)),0,SpeedConv*(BA$10*Analyzer!$E$5)/(Analyzer!$J$6*336)),0) -> 176.7838781 | BB14: =IF(ShowB,IF(ISERROR((BB$10*Analyzer!$E$5)/(Analyzer!$J$6*336)),0,SpeedConv*(BB$10*Analyzer!$E$5)/(Analyzer!$J$6*336)),0) -> 180.0576536 | BC14: =IF(ShowB,IF(ISERROR((BC$10*Analyzer!$E$5)/(Analyzer!$J$6*336)),0,SpeedConv*(BC$10*Analyzer!$E$5)/(Analyzer!$J$6*336)),0) -> 183.3314292 | BD14: =IF(ShowB,IF(ISERROR((BD$10*Analyzer!$E$5)/(Analyzer!$J$6*336)),0,SpeedConv*(BD$10*Analyzer!$E$5)/(Analyzer!$J$6*336)),0) -> 186.6052047 | BE14: =IF(ShowB,IF(ISERROR((BE$10*Analyzer!$E$5)/(Analyzer!$J$6*336)),0,SpeedConv*(BE$10*Analyzer!$E$5)/(Analyzer!$J$6*336)),0) -> 189.8789802 | BF14: =IF(ShowB,IF(ISERROR((BF$10*Analyzer!$E$5)/(Analyzer!$J$6*336)),0,SpeedConv*(BF$10*Analyzer!$E$5)/(Analyzer!$J$6*336)),0) -> 193.1527557 | BG14: =IF(ShowB,IF(ISERROR((BG$10*Analyzer!$E$5)/(Analyzer!$J$6*336)),0,SpeedConv*(BG$10*Analyzer!$E$5)/(Analyzer!$J$6*336)),0) -> 196.4265312 | BH14: =IF(ShowB,IF(ISERROR((BH$10*Analyzer!$E$5)/(Analyzer!$J$6*336)),0,SpeedConv*(BH$10*Analyzer!$E$5)/(Analyzer!$J$6*336)),0) -> 199.7003068 | BI14: =IF(ShowB,IF(ISERROR((BI$10*Analyzer!$E$5)/(Analyzer!$J$6*336)),0,SpeedConv*(BI$10*Analyzer!$E$5)/(Analyzer!$J$6*336)),0) -> 202.9740823 | BJ14: =IF(ShowB,IF(ISERROR((BJ$10*Analyzer!$E$5)/(Analyzer!$J$6*336)),0,SpeedConv*(BJ$10*Analyzer!$E$5)/(Analyzer!$J$6*336)),0) -> 206.2478578 | BK14: =IF(ShowB,IF(ISERROR((BK$10*Analyzer!$E$5)/(Analyzer!$J$6*336)),0,SpeedConv*(BK$10*Analyzer!$E$5)/(Analyzer!$J$6*336)),0) -> 209.5216333 | BL14: =IF(ShowB,IF(ISERROR((BL$10*Analyzer!$E$5)/(Analyzer!$J$6*336)),0,SpeedConv*(BL$10*Analyzer!$E$5)/(Analyzer!$J$6*336)),0) -> 212.7954089 | BM14: =IF(ShowB,IF(ISERROR((BM$10*Analyzer!$E$5)/(Analyzer!$J$6*336)),0,SpeedConv*(BM$10*Analyzer!$E$5)/(Analyzer!$J$6*336)),0) -> 216.0691844 | BN14: =IF(ShowB,IF(ISERROR((BN$10*Analyzer!$E$5)/(Analyzer!$J$6*336)),0,SpeedConv*(BN$10*Analyzer!$E$5)/(Analyzer!$J$6*336)),0) -> 219.3429599 | BO14: =IF(ShowB,IF(ISERROR((BO$10*Analyzer!$E$5)/(Analyzer!$J$6*336)),0,SpeedConv*(BO$10*Analyzer!$E$5)/(Analyzer!$J$6*336)),0) -> 222.6167354 | BP14: =IF(ShowB,IF(ISERROR((BP$10*Analyzer!$E$5)/(Analyzer!$J$6*336)),0,SpeedConv*(BP$10*Analyzer!$E$5)/(Analyzer!$J$6*336)),0) -> 225.8905109 | BQ14: =IF(ShowB,IF(ISERROR((BQ$10*Analyzer!$E$5)/(Analyzer!$J$6*336)),0,SpeedConv*(BQ$10*Analyzer!$E$5)/(Analyzer!$J$6*336)),0) -> 229.1642865 | BR14: =IF(ShowB,IF(ISERROR((BR$10*Analyzer!$E$5)/(Analyzer!$J$6*336)),0,SpeedConv*(BR$10*Analyzer!$E$5)/(Analyzer!$J$6*336)),0) -> 232.438062 | BS14: =IF(ShowB,IF(ISERROR((BS$10*Analyzer!$E$5)/(Analyzer!$J$6*336)),0,SpeedConv*(BS$10*Analyzer!$E$5)/(Analyzer!$J$6*336)),0) -> 235.7118375 | BT14: =IF(ShowB,IF(ISERROR((BT$10*Analyzer!$E$5)/(Analyzer!$J$6*336)),0,SpeedConv*(BT$10*Analyzer!$E$5)/(Analyzer!$J$6*336)),0) -> 238.985613 | BU14: =IF(ShowB,IF(ISERROR((BU$10*Analyzer!$E$5)/(Analyzer!$J$6*336)),0,SpeedConv*(BU$10*Analyzer!$E$5)/(Analyzer!$J$6*336)),0) -> 242.2593885 | BV14: =IF(ShowB,IF(ISERROR((BV$10*Analyzer!$E$5)/(Analyzer!$J$6*336)),0,SpeedConv*(BV$10*Analyzer!$E$5)/(Analyzer!$J$6*336)),0) -> 245.5331641 | BW14: =IF(ShowB,IF(ISERROR((BW$10*Analyzer!$E$5)/(Analyzer!$J$6*336)),0,SpeedConv*(BW$10*Analyzer!$E$5)/(Analyzer!$J$6*336)),0) -> 248.8069396 | BX14: =IF(ShowB,IF(ISERROR((BX$10*Analyzer!$E$5)/(Analyzer!$J$6*336)),0,SpeedConv*(BX$10*Analyzer!$E$5)/(Analyzer!$J$6*336)),0) -> 252.0807151 | BY14: =IF(ShowB,IF(ISERROR((BY$10*Analyzer!$E$5)/(Analyzer!$J$6*336)),0,SpeedConv*(BY$10*Analyzer!$E$5)/(Analyzer!$J$6*336)),0) -> 255.3544906 | BZ14: =IF(ShowB,IF(ISERROR((BZ$10*Analyzer!$E$5)/(Analyzer!$J$6*336)),0,SpeedConv*(BZ$10*Analyzer!$E$5)/(Analyzer!$J$6*336)),0) -> 258.6282661 | CA14: =IF(ShowB,IF(ISERROR((CA$10*Analyzer!$E$5)/(Analyzer!$J$6*336)),0,SpeedConv*(CA$10*Analyzer!$E$5)/(Analyzer!$J$6*336)),0) -> 261.9020417 | CB14: =IF(ShowB,IF(ISERROR((CB$10*Analyzer!$E$5)/(Analyzer!$J$6*336)),0,SpeedConv*(CB$10*Analyzer!$E$5)/(Analyzer!$J$6*336)),0) -> 265.1758172 | CC14: =IF(ShowB,IF(ISERROR((CC$10*Analyzer!$E$5)/(Analyzer!$J$6*336)),0,SpeedConv*(CC$10*Analyzer!$E$5)/(Analyzer!$J$6*336)),0) -> 268.4495927 | CD14: =IF(ShowB,IF(ISERROR((CD$10*Analyzer!$E$5)/(Analyzer!$J$6*336)),0,SpeedConv*(CD$10*Analyzer!$E$5)/(Analyzer!$J$6*336)),0) -> 271.7233682 | CE14: =IF(ShowB,IF(ISERROR((CE$10*Analyzer!$E$5)/(Analyzer!$J$6*336)),0,SpeedConv*(CE$10*Analyzer!$E$5)/(Analyzer!$J$6*336)),0) -> 274.9971437 | CF14: =IF(ShowB,IF(ISERROR((CF$10*Analyzer!$E$5)/(Analyzer!$J$6*336)),0,SpeedConv*(CF$10*Analyzer!$E$5)/(Analyzer!$J$6*336)),0) -> 278.2709193 | CG14: =IF(ShowB,IF(ISERROR((CG$10*Analyzer!$E$5)/(Analyzer!$J$6*336)),0,SpeedConv*(CG$10*Analyzer!$E$5)/(Analyzer!$J$6*336)),0) -> 281.5446948 | CH14: =IF(ShowB,IF(ISERROR((CH$10*Analyzer!$E$5)/(Analyzer!$J$6*336)),0,SpeedConv*(CH$10*Analyzer!$E$5)/(Analyzer!$J$6*336)),0) -> 284.8184703 | CI14: =IF(ShowB,IF(ISERROR((CI$10*Analyzer!$E$5)/(Analyzer!$J$6*336)),0,SpeedConv*(CI$10*Analyzer!$E$5)/(Analyzer!$J$6*336)),0) -> 288.0922458 | CJ14: =IF(ShowB,IF(ISERROR((CJ$10*Analyzer!$E$5)/(Analyzer!$J$6*336)),0,SpeedConv*(CJ$10*Analyzer!$E$5)/(Analyzer!$J$6*336)),0) -> 291.3660214 | CK14: =IF(ShowB,IF(ISERROR((CK$10*Analyzer!$E$5)/(Analyzer!$J$6*336)),0,SpeedConv*(CK$10*Analyzer!$E$5)/(Analyzer!$J$6*336)),0) -> 294.6397969 | CL14: =IF(ShowB,IF(ISERROR((CL$10*Analyzer!$E$5)/(Analyzer!$J$6*336)),0,SpeedConv*(CL$10*Analyzer!$E$5)/(Analyzer!$J$6*336)),0) -> 297.9135724 | CM14: =IF(ShowB,IF(ISERROR((CM$10*Analyzer!$E$5)/(Analyzer!$J$6*336)),0,SpeedConv*(CM$10*Analyzer!$E$5)/(Analyzer!$J$6*336)),0) -> 301.1873479 | CN14: =IF(ShowB,IF(ISERROR((CN$10*Analyzer!$E$5)/(Analyzer!$J$6*336)),0,SpeedConv*(CN$10*Analyzer!$E$5)/(Analyzer!$J$6*336)),0) -> 304.4611234 | CO14: =IF(ShowB,IF(ISERROR((CO$10*Analyzer!$E$5)/(Analyzer!$J$6*336)),0,SpeedConv*(CO$10*Analyzer!$E$5)/(Analyzer!$J$6*336)),0) -> 307.734899 | CP14: =IF(ShowB,IF(ISERROR((CP$10*Analyzer!$E$5)/(Analyzer!$J$6*336)),0,SpeedConv*(CP$10*Analyzer!$E$5)/(Analyzer!$J$6*336)),0) -> 311.0086745 | CQ14: =IF(ShowB,IF(ISERROR((CQ$10*Analyzer!$E$5)/(Analyzer!$J$6*336)),0,SpeedConv*(CQ$10*Analyzer!$E$5)/(Analyzer!$J$6*336)),0) -> 314.28245 | CR14: =IF(ShowB,IF(ISERROR((CR$10*Analyzer!$E$5)/(Analyzer!$J$6*336)),0,SpeedConv*(CR$10*Analyzer!$E$5)/(Analyzer!$J$6*336)),0) -> 317.5562255 | CS14: =IF(ShowB,IF(ISERROR((CS$10*Analyzer!$E$5)/(Analyzer!$J$6*336)),0,SpeedConv*(CS$10*Analyzer!$E$5)/(Analyzer!$J$6*336)),0) -> 320.830001 | CT14: =IF(ShowB,IF(ISERROR((CT$10*Analyzer!$E$5)/(Analyzer!$J$6*336)),0,SpeedConv*(CT$10*Analyzer!$E$5)/(Analyzer!$J$6*336)),0) -> 324.1037766 | CU14: =IF(ShowB,IF(ISERROR((CU$10*Analyzer!$E$5)/(Analyzer!$J$6*336)),0,SpeedConv*(CU$10*Analyzer!$E$5)/(Analyzer!$J$6*336)),0) -> 327.3775521
A15: B-5th | B15: =IF(ShowB,IF(ISERROR((B$10*Analyzer!$E$5)/(Analyzer!$J$7*336)),0,SpeedConv*(B$10*Analyzer!$E$5)/(Analyzer!$J$7*336)),0) -> 12.40299518 | C15: =IF(ShowB,IF(ISERROR((C$10*Analyzer!$E$5)/(Analyzer!$J$7*336)),0,SpeedConv*(C$10*Analyzer!$E$5)/(Analyzer!$J$7*336)),0) -> 16.5373269 | D15: =IF(ShowB,IF(ISERROR((D$10*Analyzer!$E$5)/(Analyzer!$J$7*336)),0,SpeedConv*(D$10*Analyzer!$E$5)/(Analyzer!$J$7*336)),0) -> 20.67165863 | E15: =IF(ShowB,IF(ISERROR((E$10*Analyzer!$E$5)/(Analyzer!$J$7*336)),0,SpeedConv*(E$10*Analyzer!$E$5)/(Analyzer!$J$7*336)),0) -> 24.80599036 | F15: =IF(ShowB,IF(ISERROR((F$10*Analyzer!$E$5)/(Analyzer!$J$7*336)),0,SpeedConv*(F$10*Analyzer!$E$5)/(Analyzer!$J$7*336)),0) -> 28.94032208 | G15: =IF(ShowB,IF(ISERROR((G$10*Analyzer!$E$5)/(Analyzer!$J$7*336)),0,SpeedConv*(G$10*Analyzer!$E$5)/(Analyzer!$J$7*336)),0) -> 33.07465381 | H15: =IF(ShowB,IF(ISERROR((H$10*Analyzer!$E$5)/(Analyzer!$J$7*336)),0,SpeedConv*(H$10*Analyzer!$E$5)/(Analyzer!$J$7*336)),0) -> 37.20898553 | I15: =IF(ShowB,IF(ISERROR((I$10*Analyzer!$E$5)/(Analyzer!$J$7*336)),0,SpeedConv*(I$10*Analyzer!$E$5)/(Analyzer!$J$7*336)),0) -> 41.34331726 | J15: =IF(ShowB,IF(ISERROR((J$10*Analyzer!$E$5)/(Analyzer!$J$7*336)),0,SpeedConv*(J$10*Analyzer!$E$5)/(Analyzer!$J$7*336)),0) -> 45.47764899 | K15: =IF(ShowB,IF(ISERROR((K$10*Analyzer!$E$5)/(Analyzer!$J$7*336)),0,SpeedConv*(K$10*Analyzer!$E$5)/(Analyzer!$J$7*336)),0) -> 49.61198071 | L15: =IF(ShowB,IF(ISERROR((L$10*Analyzer!$E$5)/(Analyzer!$J$7*336)),0,SpeedConv*(L$10*Analyzer!$E$5)/(Analyzer!$J$7*336)),0) -> 53.74631244 | M15: =IF(ShowB,IF(ISERROR((M$10*Analyzer!$E$5)/(Analyzer!$J$7*336)),0,SpeedConv*(M$10*Analyzer!$E$5)/(Analyzer!$J$7*336)),0) -> 57.88064416 | N15: =IF(ShowB,IF(ISERROR((N$10*Analyzer!$E$5)/(Analyzer!$J$7*336)),0,SpeedConv*(N$10*Analyzer!$E$5)/(Analyzer!$J$7*336)),0) -> 62.01497589 | O15: =IF(ShowB,IF(ISERROR((O$10*Analyzer!$E$5)/(Analyzer!$J$7*336)),0,SpeedConv*(O$10*Analyzer!$E$5)/(Analyzer!$J$7*336)),0) -> 66.14930762 | P15: =IF(ShowB,IF(ISERROR((P$10*Analyzer!$E$5)/(Analyzer!$J$7*336)),0,SpeedConv*(P$10*Analyzer!$E$5)/(Analyzer!$J$7*336)),0) -> 70.28363934 | Q15: =IF(ShowB,IF(ISERROR((Q$10*Analyzer!$E$5)/(Analyzer!$J$7*336)),0,SpeedConv*(Q$10*Analyzer!$E$5)/(Analyzer!$J$7*336)),0) -> 74.41797107 | R15: =IF(ShowB,IF(ISERROR((R$10*Analyzer!$E$5)/(Analyzer!$J$7*336)),0,SpeedConv*(R$10*Analyzer!$E$5)/(Analyzer!$J$7*336)),0) -> 78.55230279 | S15: =IF(ShowB,IF(ISERROR((S$10*Analyzer!$E$5)/(Analyzer!$J$7*336)),0,SpeedConv*(S$10*Analyzer!$E$5)/(Analyzer!$J$7*336)),0) -> 82.68663452 | T15: =IF(ShowB,IF(ISERROR((T$10*Analyzer!$E$5)/(Analyzer!$J$7*336)),0,SpeedConv*(T$10*Analyzer!$E$5)/(Analyzer!$J$7*336)),0) -> 86.82096625 | U15: =IF(ShowB,IF(ISERROR((U$10*Analyzer!$E$5)/(Analyzer!$J$7*336)),0,SpeedConv*(U$10*Analyzer!$E$5)/(Analyzer!$J$7*336)),0) -> 90.95529797 | V15: =IF(ShowB,IF(ISERROR((V$10*Analyzer!$E$5)/(Analyzer!$J$7*336)),0,SpeedConv*(V$10*Analyzer!$E$5)/(Analyzer!$J$7*336)),0) -> 95.0896297 | W15: =IF(ShowB,IF(ISERROR((W$10*Analyzer!$E$5)/(Analyzer!$J$7*336)),0,SpeedConv*(W$10*Analyzer!$E$5)/(Analyzer!$J$7*336)),0) -> 99.22396142 | X15: =IF(ShowB,IF(ISERROR((X$10*Analyzer!$E$5)/(Analyzer!$J$7*336)),0,SpeedConv*(X$10*Analyzer!$E$5)/(Analyzer!$J$7*336)),0) -> 103.3582931 | Y15: =IF(ShowB,IF(ISERROR((Y$10*Analyzer!$E$5)/(Analyzer!$J$7*336)),0,SpeedConv*(Y$10*Analyzer!$E$5)/(Analyzer!$J$7*336)),0) -> 107.4926249 | Z15: =IF(ShowB,IF(ISERROR((Z$10*Analyzer!$E$5)/(Analyzer!$J$7*336)),0,SpeedConv*(Z$10*Analyzer!$E$5)/(Analyzer!$J$7*336)),0) -> 111.6269566 | AA15: =IF(ShowB,IF(ISERROR((AA$10*Analyzer!$E$5)/(Analyzer!$J$7*336)),0,SpeedConv*(AA$10*Analyzer!$E$5)/(Analyzer!$J$7*336)),0) -> 115.7612883 | AB15: =IF(ShowB,IF(ISERROR((AB$10*Analyzer!$E$5)/(Analyzer!$J$7*336)),0,SpeedConv*(AB$10*Analyzer!$E$5)/(Analyzer!$J$7*336)),0) -> 119.8956201 | AC15: =IF(ShowB,IF(ISERROR((AC$10*Analyzer!$E$5)/(Analyzer!$J$7*336)),0,SpeedConv*(AC$10*Analyzer!$E$5)/(Analyzer!$J$7*336)),0) -> 124.0299518 | AD15: =IF(ShowB,IF(ISERROR((AD$10*Analyzer!$E$5)/(Analyzer!$J$7*336)),0,SpeedConv*(AD$10*Analyzer!$E$5)/(Analyzer!$J$7*336)),0) -> 128.1642835 | AE15: =IF(ShowB,IF(ISERROR((AE$10*Analyzer!$E$5)/(Analyzer!$J$7*336)),0,SpeedConv*(AE$10*Analyzer!$E$5)/(Analyzer!$J$7*336)),0) -> 132.2986152 | AF15: =IF(ShowB,IF(ISERROR((AF$10*Analyzer!$E$5)/(Analyzer!$J$7*336)),0,SpeedConv*(AF$10*Analyzer!$E$5)/(Analyzer!$J$7*336)),0) -> 136.432947 | AG15: =IF(ShowB,IF(ISERROR((AG$10*Analyzer!$E$5)/(Analyzer!$J$7*336)),0,SpeedConv*(AG$10*Analyzer!$E$5)/(Analyzer!$J$7*336)),0) -> 140.5672787 | AH15: =IF(ShowB,IF(ISERROR((AH$10*Analyzer!$E$5)/(Analyzer!$J$7*336)),0,SpeedConv*(AH$10*Analyzer!$E$5)/(Analyzer!$J$7*336)),0) -> 144.7016104 | AI15: =IF(ShowB,IF(ISERROR((AI$10*Analyzer!$E$5)/(Analyzer!$J$7*336)),0,SpeedConv*(AI$10*Analyzer!$E$5)/(Analyzer!$J$7*336)),0) -> 148.8359421 | AJ15: =IF(ShowB,IF(ISERROR((AJ$10*Analyzer!$E$5)/(Analyzer!$J$7*336)),0,SpeedConv*(AJ$10*Analyzer!$E$5)/(Analyzer!$J$7*336)),0) -> 152.9702739 | AK15: =IF(ShowB,IF(ISERROR((AK$10*Analyzer!$E$5)/(Analyzer!$J$7*336)),0,SpeedConv*(AK$10*Analyzer!$E$5)/(Analyzer!$J$7*336)),0) -> 157.1046056 | AL15: =IF(ShowB,IF(ISERROR((AL$10*Analyzer!$E$5)/(Analyzer!$J$7*336)),0,SpeedConv*(AL$10*Analyzer!$E$5)/(Analyzer!$J$7*336)),0) -> 161.2389373 | AM15: =IF(ShowB,IF(ISERROR((AM$10*Analyzer!$E$5)/(Analyzer!$J$7*336)),0,SpeedConv*(AM$10*Analyzer!$E$5)/(Analyzer!$J$7*336)),0) -> 165.373269 | AN15: =IF(ShowB,IF(ISERROR((AN$10*Analyzer!$E$5)/(Analyzer!$J$7*336)),0,SpeedConv*(AN$10*Analyzer!$E$5)/(Analyzer!$J$7*336)),0) -> 169.5076008 | AO15: =IF(ShowB,IF(ISERROR((AO$10*Analyzer!$E$5)/(Analyzer!$J$7*336)),0,SpeedConv*(AO$10*Analyzer!$E$5)/(Analyzer!$J$7*336)),0) -> 173.6419325 | AP15: =IF(ShowB,IF(ISERROR((AP$10*Analyzer!$E$5)/(Analyzer!$J$7*336)),0,SpeedConv*(AP$10*Analyzer!$E$5)/(Analyzer!$J$7*336)),0) -> 177.7762642 | AQ15: =IF(ShowB,IF(ISERROR((AQ$10*Analyzer!$E$5)/(Analyzer!$J$7*336)),0,SpeedConv*(AQ$10*Analyzer!$E$5)/(Analyzer!$J$7*336)),0) -> 181.9105959 | AR15: =IF(ShowB,IF(ISERROR((AR$10*Analyzer!$E$5)/(Analyzer!$J$7*336)),0,SpeedConv*(AR$10*Analyzer!$E$5)/(Analyzer!$J$7*336)),0) -> 186.0449277 | AS15: =IF(ShowB,IF(ISERROR((AS$10*Analyzer!$E$5)/(Analyzer!$J$7*336)),0,SpeedConv*(AS$10*Analyzer!$E$5)/(Analyzer!$J$7*336)),0) -> 190.1792594 | AT15: =IF(ShowB,IF(ISERROR((AT$10*Analyzer!$E$5)/(Analyzer!$J$7*336)),0,SpeedConv*(AT$10*Analyzer!$E$5)/(Analyzer!$J$7*336)),0) -> 194.3135911 | AU15: =IF(ShowB,IF(ISERROR((AU$10*Analyzer!$E$5)/(Analyzer!$J$7*336)),0,SpeedConv*(AU$10*Analyzer!$E$5)/(Analyzer!$J$7*336)),0) -> 198.4479228 | AV15: =IF(ShowB,IF(ISERROR((AV$10*Analyzer!$E$5)/(Analyzer!$J$7*336)),0,SpeedConv*(AV$10*Analyzer!$E$5)/(Analyzer!$J$7*336)),0) -> 202.5822546 | AW15: =IF(ShowB,IF(ISERROR((AW$10*Analyzer!$E$5)/(Analyzer!$J$7*336)),0,SpeedConv*(AW$10*Analyzer!$E$5)/(Analyzer!$J$7*336)),0) -> 206.7165863 | AX15: =IF(ShowB,IF(ISERROR((AX$10*Analyzer!$E$5)/(Analyzer!$J$7*336)),0,SpeedConv*(AX$10*Analyzer!$E$5)/(Analyzer!$J$7*336)),0) -> 210.850918 | AY15: =IF(ShowB,IF(ISERROR((AY$10*Analyzer!$E$5)/(Analyzer!$J$7*336)),0,SpeedConv*(AY$10*Analyzer!$E$5)/(Analyzer!$J$7*336)),0) -> 214.9852498 | AZ15: =IF(ShowB,IF(ISERROR((AZ$10*Analyzer!$E$5)/(Analyzer!$J$7*336)),0,SpeedConv*(AZ$10*Analyzer!$E$5)/(Analyzer!$J$7*336)),0) -> 219.1195815 | BA15: =IF(ShowB,IF(ISERROR((BA$10*Analyzer!$E$5)/(Analyzer!$J$7*336)),0,SpeedConv*(BA$10*Analyzer!$E$5)/(Analyzer!$J$7*336)),0) -> 223.2539132 | BB15: =IF(ShowB,IF(ISERROR((BB$10*Analyzer!$E$5)/(Analyzer!$J$7*336)),0,SpeedConv*(BB$10*Analyzer!$E$5)/(Analyzer!$J$7*336)),0) -> 227.3882449 | BC15: =IF(ShowB,IF(ISERROR((BC$10*Analyzer!$E$5)/(Analyzer!$J$7*336)),0,SpeedConv*(BC$10*Analyzer!$E$5)/(Analyzer!$J$7*336)),0) -> 231.5225767 | BD15: =IF(ShowB,IF(ISERROR((BD$10*Analyzer!$E$5)/(Analyzer!$J$7*336)),0,SpeedConv*(BD$10*Analyzer!$E$5)/(Analyzer!$J$7*336)),0) -> 235.6569084 | BE15: =IF(ShowB,IF(ISERROR((BE$10*Analyzer!$E$5)/(Analyzer!$J$7*336)),0,SpeedConv*(BE$10*Analyzer!$E$5)/(Analyzer!$J$7*336)),0) -> 239.7912401 | BF15: =IF(ShowB,IF(ISERROR((BF$10*Analyzer!$E$5)/(Analyzer!$J$7*336)),0,SpeedConv*(BF$10*Analyzer!$E$5)/(Analyzer!$J$7*336)),0) -> 243.9255718 | BG15: =IF(ShowB,IF(ISERROR((BG$10*Analyzer!$E$5)/(Analyzer!$J$7*336)),0,SpeedConv*(BG$10*Analyzer!$E$5)/(Analyzer!$J$7*336)),0) -> 248.0599036 | BH15: =IF(ShowB,IF(ISERROR((BH$10*Analyzer!$E$5)/(Analyzer!$J$7*336)),0,SpeedConv*(BH$10*Analyzer!$E$5)/(Analyzer!$J$7*336)),0) -> 252.1942353 | BI15: =IF(ShowB,IF(ISERROR((BI$10*Analyzer!$E$5)/(Analyzer!$J$7*336)),0,SpeedConv*(BI$10*Analyzer!$E$5)/(Analyzer!$J$7*336)),0) -> 256.328567 | BJ15: =IF(ShowB,IF(ISERROR((BJ$10*Analyzer!$E$5)/(Analyzer!$J$7*336)),0,SpeedConv*(BJ$10*Analyzer!$E$5)/(Analyzer!$J$7*336)),0) -> 260.4628987 | BK15: =IF(ShowB,IF(ISERROR((BK$10*Analyzer!$E$5)/(Analyzer!$J$7*336)),0,SpeedConv*(BK$10*Analyzer!$E$5)/(Analyzer!$J$7*336)),0) -> 264.5972305 | BL15: =IF(ShowB,IF(ISERROR((BL$10*Analyzer!$E$5)/(Analyzer!$J$7*336)),0,SpeedConv*(BL$10*Analyzer!$E$5)/(Analyzer!$J$7*336)),0) -> 268.7315622 | BM15: =IF(ShowB,IF(ISERROR((BM$10*Analyzer!$E$5)/(Analyzer!$J$7*336)),0,SpeedConv*(BM$10*Analyzer!$E$5)/(Analyzer!$J$7*336)),0) -> 272.8658939 | BN15: =IF(ShowB,IF(ISERROR((BN$10*Analyzer!$E$5)/(Analyzer!$J$7*336)),0,SpeedConv*(BN$10*Analyzer!$E$5)/(Analyzer!$J$7*336)),0) -> 277.0002256 | BO15: =IF(ShowB,IF(ISERROR((BO$10*Analyzer!$E$5)/(Analyzer!$J$7*336)),0,SpeedConv*(BO$10*Analyzer!$E$5)/(Analyzer!$J$7*336)),0) -> 281.1345574 | BP15: =IF(ShowB,IF(ISERROR((BP$10*Analyzer!$E$5)/(Analyzer!$J$7*336)),0,SpeedConv*(BP$10*Analyzer!$E$5)/(Analyzer!$J$7*336)),0) -> 285.2688891 | BQ15: =IF(ShowB,IF(ISERROR((BQ$10*Analyzer!$E$5)/(Analyzer!$J$7*336)),0,SpeedConv*(BQ$10*Analyzer!$E$5)/(Analyzer!$J$7*336)),0) -> 289.4032208 | BR15: =IF(ShowB,IF(ISERROR((BR$10*Analyzer!$E$5)/(Analyzer!$J$7*336)),0,SpeedConv*(BR$10*Analyzer!$E$5)/(Analyzer!$J$7*336)),0) -> 293.5375525 | BS15: =IF(ShowB,IF(ISERROR((BS$10*Analyzer!$E$5)/(Analyzer!$J$7*336)),0,SpeedConv*(BS$10*Analyzer!$E$5)/(Analyzer!$J$7*336)),0) -> 297.6718843 | BT15: =IF(ShowB,IF(ISERROR((BT$10*Analyzer!$E$5)/(Analyzer!$J$7*336)),0,SpeedConv*(BT$10*Analyzer!$E$5)/(Analyzer!$J$7*336)),0) -> 301.806216 | BU15: =IF(ShowB,IF(ISERROR((BU$10*Analyzer!$E$5)/(Analyzer!$J$7*336)),0,SpeedConv*(BU$10*Analyzer!$E$5)/(Analyzer!$J$7*336)),0) -> 305.9405477 | BV15: =IF(ShowB,IF(ISERROR((BV$10*Analyzer!$E$5)/(Analyzer!$J$7*336)),0,SpeedConv*(BV$10*Analyzer!$E$5)/(Analyzer!$J$7*336)),0) -> 310.0748794 | BW15: =IF(ShowB,IF(ISERROR((BW$10*Analyzer!$E$5)/(Analyzer!$J$7*336)),0,SpeedConv*(BW$10*Analyzer!$E$5)/(Analyzer!$J$7*336)),0) -> 314.2092112 | BX15: =IF(ShowB,IF(ISERROR((BX$10*Analyzer!$E$5)/(Analyzer!$J$7*336)),0,SpeedConv*(BX$10*Analyzer!$E$5)/(Analyzer!$J$7*336)),0) -> 318.3435429 | BY15: =IF(ShowB,IF(ISERROR((BY$10*Analyzer!$E$5)/(Analyzer!$J$7*336)),0,SpeedConv*(BY$10*Analyzer!$E$5)/(Analyzer!$J$7*336)),0) -> 322.4778746 | BZ15: =IF(ShowB,IF(ISERROR((BZ$10*Analyzer!$E$5)/(Analyzer!$J$7*336)),0,SpeedConv*(BZ$10*Analyzer!$E$5)/(Analyzer!$J$7*336)),0) -> 326.6122064 | CA15: =IF(ShowB,IF(ISERROR((CA$10*Analyzer!$E$5)/(Analyzer!$J$7*336)),0,SpeedConv*(CA$10*Analyzer!$E$5)/(Analyzer!$J$7*336)),0) -> 330.7465381 | CB15: =IF(ShowB,IF(ISERROR((CB$10*Analyzer!$E$5)/(Analyzer!$J$7*336)),0,SpeedConv*(CB$10*Analyzer!$E$5)/(Analyzer!$J$7*336)),0) -> 334.8808698 | CC15: =IF(ShowB,IF(ISERROR((CC$10*Analyzer!$E$5)/(Analyzer!$J$7*336)),0,SpeedConv*(CC$10*Analyzer!$E$5)/(Analyzer!$J$7*336)),0) -> 339.0152015 | CD15: =IF(ShowB,IF(ISERROR((CD$10*Analyzer!$E$5)/(Analyzer!$J$7*336)),0,SpeedConv*(CD$10*Analyzer!$E$5)/(Analyzer!$J$7*336)),0) -> 343.1495333 | CE15: =IF(ShowB,IF(ISERROR((CE$10*Analyzer!$E$5)/(Analyzer!$J$7*336)),0,SpeedConv*(CE$10*Analyzer!$E$5)/(Analyzer!$J$7*336)),0) -> 347.283865 | CF15: =IF(ShowB,IF(ISERROR((CF$10*Analyzer!$E$5)/(Analyzer!$J$7*336)),0,SpeedConv*(CF$10*Analyzer!$E$5)/(Analyzer!$J$7*336)),0) -> 351.4181967 | CG15: =IF(ShowB,IF(ISERROR((CG$10*Analyzer!$E$5)/(Analyzer!$J$7*336)),0,SpeedConv*(CG$10*Analyzer!$E$5)/(Analyzer!$J$7*336)),0) -> 355.5525284 | CH15: =IF(ShowB,IF(ISERROR((CH$10*Analyzer!$E$5)/(Analyzer!$J$7*336)),0,SpeedConv*(CH$10*Analyzer!$E$5)/(Analyzer!$J$7*336)),0) -> 359.6868602 | CI15: =IF(ShowB,IF(ISERROR((CI$10*Analyzer!$E$5)/(Analyzer!$J$7*336)),0,SpeedConv*(CI$10*Analyzer!$E$5)/(Analyzer!$J$7*336)),0) -> 363.8211919 | CJ15: =IF(ShowB,IF(ISERROR((CJ$10*Analyzer!$E$5)/(Analyzer!$J$7*336)),0,SpeedConv*(CJ$10*Analyzer!$E$5)/(Analyzer!$J$7*336)),0) -> 367.9555236 | CK15: =IF(ShowB,IF(ISERROR((CK$10*Analyzer!$E$5)/(Analyzer!$J$7*336)),0,SpeedConv*(CK$10*Analyzer!$E$5)/(Analyzer!$J$7*336)),0) -> 372.0898553 | CL15: =IF(ShowB,IF(ISERROR((CL$10*Analyzer!$E$5)/(Analyzer!$J$7*336)),0,SpeedConv*(CL$10*Analyzer!$E$5)/(Analyzer!$J$7*336)),0) -> 376.2241871 | CM15: =IF(ShowB,IF(ISERROR((CM$10*Analyzer!$E$5)/(Analyzer!$J$7*336)),0,SpeedConv*(CM$10*Analyzer!$E$5)/(Analyzer!$J$7*336)),0) -> 380.3585188 | CN15: =IF(ShowB,IF(ISERROR((CN$10*Analyzer!$E$5)/(Analyzer!$J$7*336)),0,SpeedConv*(CN$10*Analyzer!$E$5)/(Analyzer!$J$7*336)),0) -> 384.4928505 | CO15: =IF(ShowB,IF(ISERROR((CO$10*Analyzer!$E$5)/(Analyzer!$J$7*336)),0,SpeedConv*(CO$10*Analyzer!$E$5)/(Analyzer!$J$7*336)),0) -> 388.6271822 | CP15: =IF(ShowB,IF(ISERROR((CP$10*Analyzer!$E$5)/(Analyzer!$J$7*336)),0,SpeedConv*(CP$10*Analyzer!$E$5)/(Analyzer!$J$7*336)),0) -> 392.761514 | CQ15: =IF(ShowB,IF(ISERROR((CQ$10*Analyzer!$E$5)/(Analyzer!$J$7*336)),0,SpeedConv*(CQ$10*Analyzer!$E$5)/(Analyzer!$J$7*336)),0) -> 396.8958457 | CR15: =IF(ShowB,IF(ISERROR((CR$10*Analyzer!$E$5)/(Analyzer!$J$7*336)),0,SpeedConv*(CR$10*Analyzer!$E$5)/(Analyzer!$J$7*336)),0) -> 401.0301774 | CS15: =IF(ShowB,IF(ISERROR((CS$10*Analyzer!$E$5)/(Analyzer!$J$7*336)),0,SpeedConv*(CS$10*Analyzer!$E$5)/(Analyzer!$J$7*336)),0) -> 405.1645091 | CT15: =IF(ShowB,IF(ISERROR((CT$10*Analyzer!$E$5)/(Analyzer!$J$7*336)),0,SpeedConv*(CT$10*Analyzer!$E$5)/(Analyzer!$J$7*336)),0) -> 409.2988409 | CU15: =IF(ShowB,IF(ISERROR((CU$10*Analyzer!$E$5)/(Analyzer!$J$7*336)),0,SpeedConv*(CU$10*Analyzer!$E$5)/(Analyzer!$J$7*336)),0) -> 413.4331726
A16: B-6th | B16: =IF(ShowB,IF(ISERROR((B$10*Analyzer!$E$5)/(Analyzer!$J$8*336)),0,SpeedConv*(B$10*Analyzer!$E$5)/(Analyzer!$J$8*336)),0) -> 0 | C16: =IF(ShowB,IF(ISERROR((C$10*Analyzer!$E$5)/(Analyzer!$J$8*336)),0,SpeedConv*(C$10*Analyzer!$E$5)/(Analyzer!$J$8*336)),0) -> 0 | D16: =IF(ShowB,IF(ISERROR((D$10*Analyzer!$E$5)/(Analyzer!$J$8*336)),0,SpeedConv*(D$10*Analyzer!$E$5)/(Analyzer!$J$8*336)),0) -> 0 | E16: =IF(ShowB,IF(ISERROR((E$10*Analyzer!$E$5)/(Analyzer!$J$8*336)),0,SpeedConv*(E$10*Analyzer!$E$5)/(Analyzer!$J$8*336)),0) -> 0 | F16: =IF(ShowB,IF(ISERROR((F$10*Analyzer!$E$5)/(Analyzer!$J$8*336)),0,SpeedConv*(F$10*Analyzer!$E$5)/(Analyzer!$J$8*336)),0) -> 0 | G16: =IF(ShowB,IF(ISERROR((G$10*Analyzer!$E$5)/(Analyzer!$J$8*336)),0,SpeedConv*(G$10*Analyzer!$E$5)/(Analyzer!$J$8*336)),0) -> 0 | H16: =IF(ShowB,IF(ISERROR((H$10*Analyzer!$E$5)/(Analyzer!$J$8*336)),0,SpeedConv*(H$10*Analyzer!$E$5)/(Analyzer!$J$8*336)),0) -> 0 | I16: =IF(ShowB,IF(ISERROR((I$10*Analyzer!$E$5)/(Analyzer!$J$8*336)),0,SpeedConv*(I$10*Analyzer!$E$5)/(Analyzer!$J$8*336)),0) -> 0 | J16: =IF(ShowB,IF(ISERROR((J$10*Analyzer!$E$5)/(Analyzer!$J$8*336)),0,SpeedConv*(J$10*Analyzer!$E$5)/(Analyzer!$J$8*336)),0) -> 0 | K16: =IF(ShowB,IF(ISERROR((K$10*Analyzer!$E$5)/(Analyzer!$J$8*336)),0,SpeedConv*(K$10*Analyzer!$E$5)/(Analyzer!$J$8*336)),0) -> 0 | L16: =IF(ShowB,IF(ISERROR((L$10*Analyzer!$E$5)/(Analyzer!$J$8*336)),0,SpeedConv*(L$10*Analyzer!$E$5)/(Analyzer!$J$8*336)),0) -> 0 | M16: =IF(ShowB,IF(ISERROR((M$10*Analyzer!$E$5)/(Analyzer!$J$8*336)),0,SpeedConv*(M$10*Analyzer!$E$5)/(Analyzer!$J$8*336)),0) -> 0 | N16: =IF(ShowB,IF(ISERROR((N$10*Analyzer!$E$5)/(Analyzer!$J$8*336)),0,SpeedConv*(N$10*Analyzer!$E$5)/(Analyzer!$J$8*336)),0) -> 0 | O16: =IF(ShowB,IF(ISERROR((O$10*Analyzer!$E$5)/(Analyzer!$J$8*336)),0,SpeedConv*(O$10*Analyzer!$E$5)/(Analyzer!$J$8*336)),0) -> 0 | P16: =IF(ShowB,IF(ISERROR((P$10*Analyzer!$E$5)/(Analyzer!$J$8*336)),0,SpeedConv*(P$10*Analyzer!$E$5)/(Analyzer!$J$8*336)),0) -> 0 | Q16: =IF(ShowB,IF(ISERROR((Q$10*Analyzer!$E$5)/(Analyzer!$J$8*336)),0,SpeedConv*(Q$10*Analyzer!$E$5)/(Analyzer!$J$8*336)),0) -> 0 | R16: =IF(ShowB,IF(ISERROR((R$10*Analyzer!$E$5)/(Analyzer!$J$8*336)),0,SpeedConv*(R$10*Analyzer!$E$5)/(Analyzer!$J$8*336)),0) -> 0 | S16: =IF(ShowB,IF(ISERROR((S$10*Analyzer!$E$5)/(Analyzer!$J$8*336)),0,SpeedConv*(S$10*Analyzer!$E$5)/(Analyzer!$J$8*336)),0) -> 0 | T16: =IF(ShowB,IF(ISERROR((T$10*Analyzer!$E$5)/(Analyzer!$J$8*336)),0,SpeedConv*(T$10*Analyzer!$E$5)/(Analyzer!$J$8*336)),0) -> 0 | U16: =IF(ShowB,IF(ISERROR((U$10*Analyzer!$E$5)/(Analyzer!$J$8*336)),0,SpeedConv*(U$10*Analyzer!$E$5)/(Analyzer!$J$8*336)),0) -> 0 | V16: =IF(ShowB,IF(ISERROR((V$10*Analyzer!$E$5)/(Analyzer!$J$8*336)),0,SpeedConv*(V$10*Analyzer!$E$5)/(Analyzer!$J$8*336)),0) -> 0 | W16: =IF(ShowB,IF(ISERROR((W$10*Analyzer!$E$5)/(Analyzer!$J$8*336)),0,SpeedConv*(W$10*Analyzer!$E$5)/(Analyzer!$J$8*336)),0) -> 0 | X16: =IF(ShowB,IF(ISERROR((X$10*Analyzer!$E$5)/(Analyzer!$J$8*336)),0,SpeedConv*(X$10*Analyzer!$E$5)/(Analyzer!$J$8*336)),0) -> 0 | Y16: =IF(ShowB,IF(ISERROR((Y$10*Analyzer!$E$5)/(Analyzer!$J$8*336)),0,SpeedConv*(Y$10*Analyzer!$E$5)/(Analyzer!$J$8*336)),0) -> 0 | Z16: =IF(ShowB,IF(ISERROR((Z$10*Analyzer!$E$5)/(Analyzer!$J$8*336)),0,SpeedConv*(Z$10*Analyzer!$E$5)/(Analyzer!$J$8*336)),0) -> 0 | AA16: =IF(ShowB,IF(ISERROR((AA$10*Analyzer!$E$5)/(Analyzer!$J$8*336)),0,SpeedConv*(AA$10*Analyzer!$E$5)/(Analyzer!$J$8*336)),0) -> 0 | AB16: =IF(ShowB,IF(ISERROR((AB$10*Analyzer!$E$5)/(Analyzer!$J$8*336)),0,SpeedConv*(AB$10*Analyzer!$E$5)/(Analyzer!$J$8*336)),0) -> 0 | AC16: =IF(ShowB,IF(ISERROR((AC$10*Analyzer!$E$5)/(Analyzer!$J$8*336)),0,SpeedConv*(AC$10*Analyzer!$E$5)/(Analyzer!$J$8*336)),0) -> 0 | AD16: =IF(ShowB,IF(ISERROR((AD$10*Analyzer!$E$5)/(Analyzer!$J$8*336)),0,SpeedConv*(AD$10*Analyzer!$E$5)/(Analyzer!$J$8*336)),0) -> 0 | AE16: =IF(ShowB,IF(ISERROR((AE$10*Analyzer!$E$5)/(Analyzer!$J$8*336)),0,SpeedConv*(AE$10*Analyzer!$E$5)/(Analyzer!$J$8*336)),0) -> 0 | AF16: =IF(ShowB,IF(ISERROR((AF$10*Analyzer!$E$5)/(Analyzer!$J$8*336)),0,SpeedConv*(AF$10*Analyzer!$E$5)/(Analyzer!$J$8*336)),0) -> 0 | AG16: =IF(ShowB,IF(ISERROR((AG$10*Analyzer!$E$5)/(Analyzer!$J$8*336)),0,SpeedConv*(AG$10*Analyzer!$E$5)/(Analyzer!$J$8*336)),0) -> 0 | AH16: =IF(ShowB,IF(ISERROR((AH$10*Analyzer!$E$5)/(Analyzer!$J$8*336)),0,SpeedConv*(AH$10*Analyzer!$E$5)/(Analyzer!$J$8*336)),0) -> 0 | AI16: =IF(ShowB,IF(ISERROR((AI$10*Analyzer!$E$5)/(Analyzer!$J$8*336)),0,SpeedConv*(AI$10*Analyzer!$E$5)/(Analyzer!$J$8*336)),0) -> 0 | AJ16: =IF(ShowB,IF(ISERROR((AJ$10*Analyzer!$E$5)/(Analyzer!$J$8*336)),0,SpeedConv*(AJ$10*Analyzer!$E$5)/(Analyzer!$J$8*336)),0) -> 0 | AK16: =IF(ShowB,IF(ISERROR((AK$10*Analyzer!$E$5)/(Analyzer!$J$8*336)),0,SpeedConv*(AK$10*Analyzer!$E$5)/(Analyzer!$J$8*336)),0) -> 0 | AL16: =IF(ShowB,IF(ISERROR((AL$10*Analyzer!$E$5)/(Analyzer!$J$8*336)),0,SpeedConv*(AL$10*Analyzer!$E$5)/(Analyzer!$J$8*336)),0) -> 0 | AM16: =IF(ShowB,IF(ISERROR((AM$10*Analyzer!$E$5)/(Analyzer!$J$8*336)),0,SpeedConv*(AM$10*Analyzer!$E$5)/(Analyzer!$J$8*336)),0) -> 0 | AN16: =IF(ShowB,IF(ISERROR((AN$10*Analyzer!$E$5)/(Analyzer!$J$8*336)),0,SpeedConv*(AN$10*Analyzer!$E$5)/(Analyzer!$J$8*336)),0) -> 0 | AO16: =IF(ShowB,IF(ISERROR((AO$10*Analyzer!$E$5)/(Analyzer!$J$8*336)),0,SpeedConv*(AO$10*Analyzer!$E$5)/(Analyzer!$J$8*336)),0) -> 0 | AP16: =IF(ShowB,IF(ISERROR((AP$10*Analyzer!$E$5)/(Analyzer!$J$8*336)),0,SpeedConv*(AP$10*Analyzer!$E$5)/(Analyzer!$J$8*336)),0) -> 0 | AQ16: =IF(ShowB,IF(ISERROR((AQ$10*Analyzer!$E$5)/(Analyzer!$J$8*336)),0,SpeedConv*(AQ$10*Analyzer!$E$5)/(Analyzer!$J$8*336)),0) -> 0 | AR16: =IF(ShowB,IF(ISERROR((AR$10*Analyzer!$E$5)/(Analyzer!$J$8*336)),0,SpeedConv*(AR$10*Analyzer!$E$5)/(Analyzer!$J$8*336)),0) -> 0 | AS16: =IF(ShowB,IF(ISERROR((AS$10*Analyzer!$E$5)/(Analyzer!$J$8*336)),0,SpeedConv*(AS$10*Analyzer!$E$5)/(Analyzer!$J$8*336)),0) -> 0 | AT16: =IF(ShowB,IF(ISERROR((AT$10*Analyzer!$E$5)/(Analyzer!$J$8*336)),0,SpeedConv*(AT$10*Analyzer!$E$5)/(Analyzer!$J$8*336)),0) -> 0 | AU16: =IF(ShowB,IF(ISERROR((AU$10*Analyzer!$E$5)/(Analyzer!$J$8*336)),0,SpeedConv*(AU$10*Analyzer!$E$5)/(Analyzer!$J$8*336)),0) -> 0 | AV16: =IF(ShowB,IF(ISERROR((AV$10*Analyzer!$E$5)/(Analyzer!$J$8*336)),0,SpeedConv*(AV$10*Analyzer!$E$5)/(Analyzer!$J$8*336)),0) -> 0 | AW16: =IF(ShowB,IF(ISERROR((AW$10*Analyzer!$E$5)/(Analyzer!$J$8*336)),0,SpeedConv*(AW$10*Analyzer!$E$5)/(Analyzer!$J$8*336)),0) -> 0 | AX16: =IF(ShowB,IF(ISERROR((AX$10*Analyzer!$E$5)/(Analyzer!$J$8*336)),0,SpeedConv*(AX$10*Analyzer!$E$5)/(Analyzer!$J$8*336)),0) -> 0 | AY16: =IF(ShowB,IF(ISERROR((AY$10*Analyzer!$E$5)/(Analyzer!$J$8*336)),0,SpeedConv*(AY$10*Analyzer!$E$5)/(Analyzer!$J$8*336)),0) -> 0 | AZ16: =IF(ShowB,IF(ISERROR((AZ$10*Analyzer!$E$5)/(Analyzer!$J$8*336)),0,SpeedConv*(AZ$10*Analyzer!$E$5)/(Analyzer!$J$8*336)),0) -> 0 | BA16: =IF(ShowB,IF(ISERROR((BA$10*Analyzer!$E$5)/(Analyzer!$J$8*336)),0,SpeedConv*(BA$10*Analyzer!$E$5)/(Analyzer!$J$8*336)),0) -> 0 | BB16: =IF(ShowB,IF(ISERROR((BB$10*Analyzer!$E$5)/(Analyzer!$J$8*336)),0,SpeedConv*(BB$10*Analyzer!$E$5)/(Analyzer!$J$8*336)),0) -> 0 | BC16: =IF(ShowB,IF(ISERROR((BC$10*Analyzer!$E$5)/(Analyzer!$J$8*336)),0,SpeedConv*(BC$10*Analyzer!$E$5)/(Analyzer!$J$8*336)),0) -> 0 | BD16: =IF(ShowB,IF(ISERROR((BD$10*Analyzer!$E$5)/(Analyzer!$J$8*336)),0,SpeedConv*(BD$10*Analyzer!$E$5)/(Analyzer!$J$8*336)),0) -> 0 | BE16: =IF(ShowB,IF(ISERROR((BE$10*Analyzer!$E$5)/(Analyzer!$J$8*336)),0,SpeedConv*(BE$10*Analyzer!$E$5)/(Analyzer!$J$8*336)),0) -> 0 | BF16: =IF(ShowB,IF(ISERROR((BF$10*Analyzer!$E$5)/(Analyzer!$J$8*336)),0,SpeedConv*(BF$10*Analyzer!$E$5)/(Analyzer!$J$8*336)),0) -> 0 | BG16: =IF(ShowB,IF(ISERROR((BG$10*Analyzer!$E$5)/(Analyzer!$J$8*336)),0,SpeedConv*(BG$10*Analyzer!$E$5)/(Analyzer!$J$8*336)),0) -> 0 | BH16: =IF(ShowB,IF(ISERROR((BH$10*Analyzer!$E$5)/(Analyzer!$J$8*336)),0,SpeedConv*(BH$10*Analyzer!$E$5)/(Analyzer!$J$8*336)),0) -> 0 | BI16: =IF(ShowB,IF(ISERROR((BI$10*Analyzer!$E$5)/(Analyzer!$J$8*336)),0,SpeedConv*(BI$10*Analyzer!$E$5)/(Analyzer!$J$8*336)),0) -> 0 | BJ16: =IF(ShowB,IF(ISERROR((BJ$10*Analyzer!$E$5)/(Analyzer!$J$8*336)),0,SpeedConv*(BJ$10*Analyzer!$E$5)/(Analyzer!$J$8*336)),0) -> 0 | BK16: =IF(ShowB,IF(ISERROR((BK$10*Analyzer!$E$5)/(Analyzer!$J$8*336)),0,SpeedConv*(BK$10*Analyzer!$E$5)/(Analyzer!$J$8*336)),0) -> 0 | BL16: =IF(ShowB,IF(ISERROR((BL$10*Analyzer!$E$5)/(Analyzer!$J$8*336)),0,SpeedConv*(BL$10*Analyzer!$E$5)/(Analyzer!$J$8*336)),0) -> 0 | BM16: =IF(ShowB,IF(ISERROR((BM$10*Analyzer!$E$5)/(Analyzer!$J$8*336)),0,SpeedConv*(BM$10*Analyzer!$E$5)/(Analyzer!$J$8*336)),0) -> 0 | BN16: =IF(ShowB,IF(ISERROR((BN$10*Analyzer!$E$5)/(Analyzer!$J$8*336)),0,SpeedConv*(BN$10*Analyzer!$E$5)/(Analyzer!$J$8*336)),0) -> 0 | BO16: =IF(ShowB,IF(ISERROR((BO$10*Analyzer!$E$5)/(Analyzer!$J$8*336)),0,SpeedConv*(BO$10*Analyzer!$E$5)/(Analyzer!$J$8*336)),0) -> 0 | BP16: =IF(ShowB,IF(ISERROR((BP$10*Analyzer!$E$5)/(Analyzer!$J$8*336)),0,SpeedConv*(BP$10*Analyzer!$E$5)/(Analyzer!$J$8*336)),0) -> 0 | BQ16: =IF(ShowB,IF(ISERROR((BQ$10*Analyzer!$E$5)/(Analyzer!$J$8*336)),0,SpeedConv*(BQ$10*Analyzer!$E$5)/(Analyzer!$J$8*336)),0) -> 0 | BR16: =IF(ShowB,IF(ISERROR((BR$10*Analyzer!$E$5)/(Analyzer!$J$8*336)),0,SpeedConv*(BR$10*Analyzer!$E$5)/(Analyzer!$J$8*336)),0) -> 0 | BS16: =IF(ShowB,IF(ISERROR((BS$10*Analyzer!$E$5)/(Analyzer!$J$8*336)),0,SpeedConv*(BS$10*Analyzer!$E$5)/(Analyzer!$J$8*336)),0) -> 0 | BT16: =IF(ShowB,IF(ISERROR((BT$10*Analyzer!$E$5)/(Analyzer!$J$8*336)),0,SpeedConv*(BT$10*Analyzer!$E$5)/(Analyzer!$J$8*336)),0) -> 0 | BU16: =IF(ShowB,IF(ISERROR((BU$10*Analyzer!$E$5)/(Analyzer!$J$8*336)),0,SpeedConv*(BU$10*Analyzer!$E$5)/(Analyzer!$J$8*336)),0) -> 0 | BV16: =IF(ShowB,IF(ISERROR((BV$10*Analyzer!$E$5)/(Analyzer!$J$8*336)),0,SpeedConv*(BV$10*Analyzer!$E$5)/(Analyzer!$J$8*336)),0) -> 0 | BW16: =IF(ShowB,IF(ISERROR((BW$10*Analyzer!$E$5)/(Analyzer!$J$8*336)),0,SpeedConv*(BW$10*Analyzer!$E$5)/(Analyzer!$J$8*336)),0) -> 0 | BX16: =IF(ShowB,IF(ISERROR((BX$10*Analyzer!$E$5)/(Analyzer!$J$8*336)),0,SpeedConv*(BX$10*Analyzer!$E$5)/(Analyzer!$J$8*336)),0) -> 0 | BY16: =IF(ShowB,IF(ISERROR((BY$10*Analyzer!$E$5)/(Analyzer!$J$8*336)),0,SpeedConv*(BY$10*Analyzer!$E$5)/(Analyzer!$J$8*336)),0) -> 0 | BZ16: =IF(ShowB,IF(ISERROR((BZ$10*Analyzer!$E$5)/(Analyzer!$J$8*336)),0,SpeedConv*(BZ$10*Analyzer!$E$5)/(Analyzer!$J$8*336)),0) -> 0 | CA16: =IF(ShowB,IF(ISERROR((CA$10*Analyzer!$E$5)/(Analyzer!$J$8*336)),0,SpeedConv*(CA$10*Analyzer!$E$5)/(Analyzer!$J$8*336)),0) -> 0 | CB16: =IF(ShowB,IF(ISERROR((CB$10*Analyzer!$E$5)/(Analyzer!$J$8*336)),0,SpeedConv*(CB$10*Analyzer!$E$5)/(Analyzer!$J$8*336)),0) -> 0 | CC16: =IF(ShowB,IF(ISERROR((CC$10*Analyzer!$E$5)/(Analyzer!$J$8*336)),0,SpeedConv*(CC$10*Analyzer!$E$5)/(Analyzer!$J$8*336)),0) -> 0 | CD16: =IF(ShowB,IF(ISERROR((CD$10*Analyzer!$E$5)/(Analyzer!$J$8*336)),0,SpeedConv*(CD$10*Analyzer!$E$5)/(Analyzer!$J$8*336)),0) -> 0 | CE16: =IF(ShowB,IF(ISERROR((CE$10*Analyzer!$E$5)/(Analyzer!$J$8*336)),0,SpeedConv*(CE$10*Analyzer!$E$5)/(Analyzer!$J$8*336)),0) -> 0 | CF16: =IF(ShowB,IF(ISERROR((CF$10*Analyzer!$E$5)/(Analyzer!$J$8*336)),0,SpeedConv*(CF$10*Analyzer!$E$5)/(Analyzer!$J$8*336)),0) -> 0 | CG16: =IF(ShowB,IF(ISERROR((CG$10*Analyzer!$E$5)/(Analyzer!$J$8*336)),0,SpeedConv*(CG$10*Analyzer!$E$5)/(Analyzer!$J$8*336)),0) -> 0 | CH16: =IF(ShowB,IF(ISERROR((CH$10*Analyzer!$E$5)/(Analyzer!$J$8*336)),0,SpeedConv*(CH$10*Analyzer!$E$5)/(Analyzer!$J$8*336)),0) -> 0 | CI16: =IF(ShowB,IF(ISERROR((CI$10*Analyzer!$E$5)/(Analyzer!$J$8*336)),0,SpeedConv*(CI$10*Analyzer!$E$5)/(Analyzer!$J$8*336)),0) -> 0 | CJ16: =IF(ShowB,IF(ISERROR((CJ$10*Analyzer!$E$5)/(Analyzer!$J$8*336)),0,SpeedConv*(CJ$10*Analyzer!$E$5)/(Analyzer!$J$8*336)),0) -> 0 | CK16: =IF(ShowB,IF(ISERROR((CK$10*Analyzer!$E$5)/(Analyzer!$J$8*336)),0,SpeedConv*(CK$10*Analyzer!$E$5)/(Analyzer!$J$8*336)),0) -> 0 | CL16: =IF(ShowB,IF(ISERROR((CL$10*Analyzer!$E$5)/(Analyzer!$J$8*336)),0,SpeedConv*(CL$10*Analyzer!$E$5)/(Analyzer!$J$8*336)),0) -> 0 | CM16: =IF(ShowB,IF(ISERROR((CM$10*Analyzer!$E$5)/(Analyzer!$J$8*336)),0,SpeedConv*(CM$10*Analyzer!$E$5)/(Analyzer!$J$8*336)),0) -> 0 | CN16: =IF(ShowB,IF(ISERROR((CN$10*Analyzer!$E$5)/(Analyzer!$J$8*336)),0,SpeedConv*(CN$10*Analyzer!$E$5)/(Analyzer!$J$8*336)),0) -> 0 | CO16: =IF(ShowB,IF(ISERROR((CO$10*Analyzer!$E$5)/(Analyzer!$J$8*336)),0,SpeedConv*(CO$10*Analyzer!$E$5)/(Analyzer!$J$8*336)),0) -> 0 | CP16: =IF(ShowB,IF(ISERROR((CP$10*Analyzer!$E$5)/(Analyzer!$J$8*336)),0,SpeedConv*(CP$10*Analyzer!$E$5)/(Analyzer!$J$8*336)),0) -> 0 | CQ16: =IF(ShowB,IF(ISERROR((CQ$10*Analyzer!$E$5)/(Analyzer!$J$8*336)),0,SpeedConv*(CQ$10*Analyzer!$E$5)/(Analyzer!$J$8*336)),0) -> 0 | CR16: =IF(ShowB,IF(ISERROR((CR$10*Analyzer!$E$5)/(Analyzer!$J$8*336)),0,SpeedConv*(CR$10*Analyzer!$E$5)/(Analyzer!$J$8*336)),0) -> 0 | CS16: =IF(ShowB,IF(ISERROR((CS$10*Analyzer!$E$5)/(Analyzer!$J$8*336)),0,SpeedConv*(CS$10*Analyzer!$E$5)/(Analyzer!$J$8*336)),0) -> 0 | CT16: =IF(ShowB,IF(ISERROR((CT$10*Analyzer!$E$5)/(Analyzer!$J$8*336)),0,SpeedConv*(CT$10*Analyzer!$E$5)/(Analyzer!$J$8*336)),0) -> 0 | CU16: =IF(ShowB,IF(ISERROR((CU$10*Analyzer!$E$5)/(Analyzer!$J$8*336)),0,SpeedConv*(CU$10*Analyzer!$E$5)/(Analyzer!$J$8*336)),0) -> 0
A17: Stock | B17: FALSE
B18: 600 | C18: 800 | D18: 1000 | E18: 1200 | F18: 1400 | G18: 1600 | H18: 1800 | I18: 2000 | J18: 2200 | K18: 2400 | L18: 2600 | M18: 2800 | N18: 3000 | O18: 3200 | P18: 3400 | Q18: 3600 | R18: 3800 | S18: 4000 | T18: 4200 | U18: 4400 | V18: 4600 | W18: 4800 | X18: 5000 | Y18: 5200 | Z18: 5400 | AA18: 5600 | AB18: 5800 | AC18: 6000 | AD18: 6200 | AE18: 6400 | AF18: 6600 | AG18: 6800 | AH18: 7000 | AI18: 7200 | AJ18: 7400 | AK18: 7600 | AL18: 7800 | AM18: 8000 | AN18: 8200 | AO18: 8400 | AP18: 8600 | AQ18: 8800 | AR18: 9000 | AS18: 9200 | AT18: 9400 | AU18: 9600 | AV18: 9800 | AW18: 10000 | AX18: 10200 | AY18: 10400 | AZ18: 10600 | BA18: 10800 | BB18: 11000 | BC18: 11200 | BD18: 11400 | BE18: 11600 | BF18: 11800 | BG18: 12000 | BH18: 12200 | BI18: 12400 | BJ18: 12600 | BK18: 12800 | BL18: 13000 | BM18: 13200 | BN18: 13400 | BO18: 13600 | BP18: 13800 | BQ18: 14000 | BR18: 14200 | BS18: 14400 | BT18: 14600 | BU18: 14800 | BV18: 15000 | BW18: 15200 | BX18: 15400 | BY18: 15600 | BZ18: 15800 | CA18: 16000 | CB18: 16200 | CC18: 16400 | CD18: 16600 | CE18: 16800 | CF18: 17000 | CG18: 17200 | CH18: 17400 | CI18: 17600 | CJ18: 17800 | CK18: 18000 | CL18: 18200 | CM18: 18400 | CN18: 18600 | CO18: 18800 | CP18: 19000 | CQ18: 19200 | CR18: 19400 | CS18: 19600 | CT18: 19800 | CU18: 20000
A19: St-1st | B19: =IF(ShowStock,IF(ISERROR((B$18*Analyzer!$G$5)/(Analyzer!$K$3*336)),0,SpeedConv*(B$18*Analyzer!$G$5)/(Analyzer!$K$3*336)),0) -> 0 | C19: =IF(ShowStock,IF(ISERROR((C$18*Analyzer!$G$5)/(Analyzer!$K$3*336)),0,SpeedConv*(C$18*Analyzer!$G$5)/(Analyzer!$K$3*336)),0) -> 0 | D19: =IF(ShowStock,IF(ISERROR((D$18*Analyzer!$G$5)/(Analyzer!$K$3*336)),0,SpeedConv*(D$18*Analyzer!$G$5)/(Analyzer!$K$3*336)),0) -> 0 | E19: =IF(ShowStock,IF(ISERROR((E$18*Analyzer!$G$5)/(Analyzer!$K$3*336)),0,SpeedConv*(E$18*Analyzer!$G$5)/(Analyzer!$K$3*336)),0) -> 0 | F19: =IF(ShowStock,IF(ISERROR((F$18*Analyzer!$G$5)/(Analyzer!$K$3*336)),0,SpeedConv*(F$18*Analyzer!$G$5)/(Analyzer!$K$3*336)),0) -> 0 | G19: =IF(ShowStock,IF(ISERROR((G$18*Analyzer!$G$5)/(Analyzer!$K$3*336)),0,SpeedConv*(G$18*Analyzer!$G$5)/(Analyzer!$K$3*336)),0) -> 0 | H19: =IF(ShowStock,IF(ISERROR((H$18*Analyzer!$G$5)/(Analyzer!$K$3*336)),0,SpeedConv*(H$18*Analyzer!$G$5)/(Analyzer!$K$3*336)),0) -> 0 | I19: =IF(ShowStock,IF(ISERROR((I$18*Analyzer!$G$5)/(Analyzer!$K$3*336)),0,SpeedConv*(I$18*Analyzer!$G$5)/(Analyzer!$K$3*336)),0) -> 0 | J19: =IF(ShowStock,IF(ISERROR((J$18*Analyzer!$G$5)/(Analyzer!$K$3*336)),0,SpeedConv*(J$18*Analyzer!$G$5)/(Analyzer!$K$3*336)),0) -> 0 | K19: =IF(ShowStock,IF(ISERROR((K$18*Analyzer!$G$5)/(Analyzer!$K$3*336)),0,SpeedConv*(K$18*Analyzer!$G$5)/(Analyzer!$K$3*336)),0) -> 0 | L19: =IF(ShowStock,IF(ISERROR((L$18*Analyzer!$G$5)/(Analyzer!$K$3*336)),0,SpeedConv*(L$18*Analyzer!$G$5)/(Analyzer!$K$3*336)),0) -> 0 | M19: =IF(ShowStock,IF(ISERROR((M$18*Analyzer!$G$5)/(Analyzer!$K$3*336)),0,SpeedConv*(M$18*Analyzer!$G$5)/(Analyzer!$K$3*336)),0) -> 0 | N19: =IF(ShowStock,IF(ISERROR((N$18*Analyzer!$G$5)/(Analyzer!$K$3*336)),0,SpeedConv*(N$18*Analyzer!$G$5)/(Analyzer!$K$3*336)),0) -> 0 | O19: =IF(ShowStock,IF(ISERROR((O$18*Analyzer!$G$5)/(Analyzer!$K$3*336)),0,SpeedConv*(O$18*Analyzer!$G$5)/(Analyzer!$K$3*336)),0) -> 0 | P19: =IF(ShowStock,IF(ISERROR((P$18*Analyzer!$G$5)/(Analyzer!$K$3*336)),0,SpeedConv*(P$18*Analyzer!$G$5)/(Analyzer!$K$3*336)),0) -> 0 | Q19: =IF(ShowStock,IF(ISERROR((Q$18*Analyzer!$G$5)/(Analyzer!$K$3*336)),0,SpeedConv*(Q$18*Analyzer!$G$5)/(Analyzer!$K$3*336)),0) -> 0 | R19: =IF(ShowStock,IF(ISERROR((R$18*Analyzer!$G$5)/(Analyzer!$K$3*336)),0,SpeedConv*(R$18*Analyzer!$G$5)/(Analyzer!$K$3*336)),0) -> 0 | S19: =IF(ShowStock,IF(ISERROR((S$18*Analyzer!$G$5)/(Analyzer!$K$3*336)),0,SpeedConv*(S$18*Analyzer!$G$5)/(Analyzer!$K$3*336)),0) -> 0 | T19: =IF(ShowStock,IF(ISERROR((T$18*Analyzer!$G$5)/(Analyzer!$K$3*336)),0,SpeedConv*(T$18*Analyzer!$G$5)/(Analyzer!$K$3*336)),0) -> 0 | U19: =IF(ShowStock,IF(ISERROR((U$18*Analyzer!$G$5)/(Analyzer!$K$3*336)),0,SpeedConv*(U$18*Analyzer!$G$5)/(Analyzer!$K$3*336)),0) -> 0 | V19: =IF(ShowStock,IF(ISERROR((V$18*Analyzer!$G$5)/(Analyzer!$K$3*336)),0,SpeedConv*(V$18*Analyzer!$G$5)/(Analyzer!$K$3*336)),0) -> 0 | W19: =IF(ShowStock,IF(ISERROR((W$18*Analyzer!$G$5)/(Analyzer!$K$3*336)),0,SpeedConv*(W$18*Analyzer!$G$5)/(Analyzer!$K$3*336)),0) -> 0 | X19: =IF(ShowStock,IF(ISERROR((X$18*Analyzer!$G$5)/(Analyzer!$K$3*336)),0,SpeedConv*(X$18*Analyzer!$G$5)/(Analyzer!$K$3*336)),0) -> 0 | Y19: =IF(ShowStock,IF(ISERROR((Y$18*Analyzer!$G$5)/(Analyzer!$K$3*336)),0,SpeedConv*(Y$18*Analyzer!$G$5)/(Analyzer!$K$3*336)),0) -> 0 | Z19: =IF(ShowStock,IF(ISERROR((Z$18*Analyzer!$G$5)/(Analyzer!$K$3*336)),0,SpeedConv*(Z$18*Analyzer!$G$5)/(Analyzer!$K$3*336)),0) -> 0 | AA19: =IF(ShowStock,IF(ISERROR((AA$18*Analyzer!$G$5)/(Analyzer!$K$3*336)),0,SpeedConv*(AA$18*Analyzer!$G$5)/(Analyzer!$K$3*336)),0) -> 0 | AB19: =IF(ShowStock,IF(ISERROR((AB$18*Analyzer!$G$5)/(Analyzer!$K$3*336)),0,SpeedConv*(AB$18*Analyzer!$G$5)/(Analyzer!$K$3*336)),0) -> 0 | AC19: =IF(ShowStock,IF(ISERROR((AC$18*Analyzer!$G$5)/(Analyzer!$K$3*336)),0,SpeedConv*(AC$18*Analyzer!$G$5)/(Analyzer!$K$3*336)),0) -> 0 | AD19: =IF(ShowStock,IF(ISERROR((AD$18*Analyzer!$G$5)/(Analyzer!$K$3*336)),0,SpeedConv*(AD$18*Analyzer!$G$5)/(Analyzer!$K$3*336)),0) -> 0 | AE19: =IF(ShowStock,IF(ISERROR((AE$18*Analyzer!$G$5)/(Analyzer!$K$3*336)),0,SpeedConv*(AE$18*Analyzer!$G$5)/(Analyzer!$K$3*336)),0) -> 0 | AF19: =IF(ShowStock,IF(ISERROR((AF$18*Analyzer!$G$5)/(Analyzer!$K$3*336)),0,SpeedConv*(AF$18*Analyzer!$G$5)/(Analyzer!$K$3*336)),0) -> 0 | AG19: =IF(ShowStock,IF(ISERROR((AG$18*Analyzer!$G$5)/(Analyzer!$K$3*336)),0,SpeedConv*(AG$18*Analyzer!$G$5)/(Analyzer!$K$3*336)),0) -> 0 | AH19: =IF(ShowStock,IF(ISERROR((AH$18*Analyzer!$G$5)/(Analyzer!$K$3*336)),0,SpeedConv*(AH$18*Analyzer!$G$5)/(Analyzer!$K$3*336)),0) -> 0 | AI19: =IF(ShowStock,IF(ISERROR((AI$18*Analyzer!$G$5)/(Analyzer!$K$3*336)),0,SpeedConv*(AI$18*Analyzer!$G$5)/(Analyzer!$K$3*336)),0) -> 0 | AJ19: =IF(ShowStock,IF(ISERROR((AJ$18*Analyzer!$G$5)/(Analyzer!$K$3*336)),0,SpeedConv*(AJ$18*Analyzer!$G$5)/(Analyzer!$K$3*336)),0) -> 0 | AK19: =IF(ShowStock,IF(ISERROR((AK$18*Analyzer!$G$5)/(Analyzer!$K$3*336)),0,SpeedConv*(AK$18*Analyzer!$G$5)/(Analyzer!$K$3*336)),0) -> 0 | AL19: =IF(ShowStock,IF(ISERROR((AL$18*Analyzer!$G$5)/(Analyzer!$K$3*336)),0,SpeedConv*(AL$18*Analyzer!$G$5)/(Analyzer!$K$3*336)),0) -> 0 | AM19: =IF(ShowStock,IF(ISERROR((AM$18*Analyzer!$G$5)/(Analyzer!$K$3*336)),0,SpeedConv*(AM$18*Analyzer!$G$5)/(Analyzer!$K$3*336)),0) -> 0 | AN19: =IF(ShowStock,IF(ISERROR((AN$18*Analyzer!$G$5)/(Analyzer!$K$3*336)),0,SpeedConv*(AN$18*Analyzer!$G$5)/(Analyzer!$K$3*336)),0) -> 0 | AO19: =IF(ShowStock,IF(ISERROR((AO$18*Analyzer!$G$5)/(Analyzer!$K$3*336)),0,SpeedConv*(AO$18*Analyzer!$G$5)/(Analyzer!$K$3*336)),0) -> 0 | AP19: =IF(ShowStock,IF(ISERROR((AP$18*Analyzer!$G$5)/(Analyzer!$K$3*336)),0,SpeedConv*(AP$18*Analyzer!$G$5)/(Analyzer!$K$3*336)),0) -> 0 | AQ19: =IF(ShowStock,IF(ISERROR((AQ$18*Analyzer!$G$5)/(Analyzer!$K$3*336)),0,SpeedConv*(AQ$18*Analyzer!$G$5)/(Analyzer!$K$3*336)),0) -> 0 | AR19: =IF(ShowStock,IF(ISERROR((AR$18*Analyzer!$G$5)/(Analyzer!$K$3*336)),0,SpeedConv*(AR$18*Analyzer!$G$5)/(Analyzer!$K$3*336)),0) -> 0 | AS19: =IF(ShowStock,IF(ISERROR((AS$18*Analyzer!$G$5)/(Analyzer!$K$3*336)),0,SpeedConv*(AS$18*Analyzer!$G$5)/(Analyzer!$K$3*336)),0) -> 0 | AT19: =IF(ShowStock,IF(ISERROR((AT$18*Analyzer!$G$5)/(Analyzer!$K$3*336)),0,SpeedConv*(AT$18*Analyzer!$G$5)/(Analyzer!$K$3*336)),0) -> 0 | AU19: =IF(ShowStock,IF(ISERROR((AU$18*Analyzer!$G$5)/(Analyzer!$K$3*336)),0,SpeedConv*(AU$18*Analyzer!$G$5)/(Analyzer!$K$3*336)),0) -> 0 | AV19: =IF(ShowStock,IF(ISERROR((AV$18*Analyzer!$G$5)/(Analyzer!$K$3*336)),0,SpeedConv*(AV$18*Analyzer!$G$5)/(Analyzer!$K$3*336)),0) -> 0 | AW19: =IF(ShowStock,IF(ISERROR((AW$18*Analyzer!$G$5)/(Analyzer!$K$3*336)),0,SpeedConv*(AW$18*Analyzer!$G$5)/(Analyzer!$K$3*336)),0) -> 0 | AX19: =IF(ShowStock,IF(ISERROR((AX$18*Analyzer!$G$5)/(Analyzer!$K$3*336)),0,SpeedConv*(AX$18*Analyzer!$G$5)/(Analyzer!$K$3*336)),0) -> 0 | AY19: =IF(ShowStock,IF(ISERROR((AY$18*Analyzer!$G$5)/(Analyzer!$K$3*336)),0,SpeedConv*(AY$18*Analyzer!$G$5)/(Analyzer!$K$3*336)),0) -> 0 | AZ19: =IF(ShowStock,IF(ISERROR((AZ$18*Analyzer!$G$5)/(Analyzer!$K$3*336)),0,SpeedConv*(AZ$18*Analyzer!$G$5)/(Analyzer!$K$3*336)),0) -> 0 | BA19: =IF(ShowStock,IF(ISERROR((BA$18*Analyzer!$G$5)/(Analyzer!$K$3*336)),0,SpeedConv*(BA$18*Analyzer!$G$5)/(Analyzer!$K$3*336)),0) -> 0 | BB19: =IF(ShowStock,IF(ISERROR((BB$18*Analyzer!$G$5)/(Analyzer!$K$3*336)),0,SpeedConv*(BB$18*Analyzer!$G$5)/(Analyzer!$K$3*336)),0) -> 0 | BC19: =IF(ShowStock,IF(ISERROR((BC$18*Analyzer!$G$5)/(Analyzer!$K$3*336)),0,SpeedConv*(BC$18*Analyzer!$G$5)/(Analyzer!$K$3*336)),0) -> 0 | BD19: =IF(ShowStock,IF(ISERROR((BD$18*Analyzer!$G$5)/(Analyzer!$K$3*336)),0,SpeedConv*(BD$18*Analyzer!$G$5)/(Analyzer!$K$3*336)),0) -> 0 | BE19: =IF(ShowStock,IF(ISERROR((BE$18*Analyzer!$G$5)/(Analyzer!$K$3*336)),0,SpeedConv*(BE$18*Analyzer!$G$5)/(Analyzer!$K$3*336)),0) -> 0 | BF19: =IF(ShowStock,IF(ISERROR((BF$18*Analyzer!$G$5)/(Analyzer!$K$3*336)),0,SpeedConv*(BF$18*Analyzer!$G$5)/(Analyzer!$K$3*336)),0) -> 0 | BG19: =IF(ShowStock,IF(ISERROR((BG$18*Analyzer!$G$5)/(Analyzer!$K$3*336)),0,SpeedConv*(BG$18*Analyzer!$G$5)/(Analyzer!$K$3*336)),0) -> 0 | BH19: =IF(ShowStock,IF(ISERROR((BH$18*Analyzer!$G$5)/(Analyzer!$K$3*336)),0,SpeedConv*(BH$18*Analyzer!$G$5)/(Analyzer!$K$3*336)),0) -> 0 | BI19: =IF(ShowStock,IF(ISERROR((BI$18*Analyzer!$G$5)/(Analyzer!$K$3*336)),0,SpeedConv*(BI$18*Analyzer!$G$5)/(Analyzer!$K$3*336)),0) -> 0 | BJ19: =IF(ShowStock,IF(ISERROR((BJ$18*Analyzer!$G$5)/(Analyzer!$K$3*336)),0,SpeedConv*(BJ$18*Analyzer!$G$5)/(Analyzer!$K$3*336)),0) -> 0 | BK19: =IF(ShowStock,IF(ISERROR((BK$18*Analyzer!$G$5)/(Analyzer!$K$3*336)),0,SpeedConv*(BK$18*Analyzer!$G$5)/(Analyzer!$K$3*336)),0) -> 0 | BL19: =IF(ShowStock,IF(ISERROR((BL$18*Analyzer!$G$5)/(Analyzer!$K$3*336)),0,SpeedConv*(BL$18*Analyzer!$G$5)/(Analyzer!$K$3*336)),0) -> 0 | BM19: =IF(ShowStock,IF(ISERROR((BM$18*Analyzer!$G$5)/(Analyzer!$K$3*336)),0,SpeedConv*(BM$18*Analyzer!$G$5)/(Analyzer!$K$3*336)),0) -> 0 | BN19: =IF(ShowStock,IF(ISERROR((BN$18*Analyzer!$G$5)/(Analyzer!$K$3*336)),0,SpeedConv*(BN$18*Analyzer!$G$5)/(Analyzer!$K$3*336)),0) -> 0 | BO19: =IF(ShowStock,IF(ISERROR((BO$18*Analyzer!$G$5)/(Analyzer!$K$3*336)),0,SpeedConv*(BO$18*Analyzer!$G$5)/(Analyzer!$K$3*336)),0) -> 0 | BP19: =IF(ShowStock,IF(ISERROR((BP$18*Analyzer!$G$5)/(Analyzer!$K$3*336)),0,SpeedConv*(BP$18*Analyzer!$G$5)/(Analyzer!$K$3*336)),0) -> 0 | BQ19: =IF(ShowStock,IF(ISERROR((BQ$18*Analyzer!$G$5)/(Analyzer!$K$3*336)),0,SpeedConv*(BQ$18*Analyzer!$G$5)/(Analyzer!$K$3*336)),0) -> 0 | BR19: =IF(ShowStock,IF(ISERROR((BR$18*Analyzer!$G$5)/(Analyzer!$K$3*336)),0,SpeedConv*(BR$18*Analyzer!$G$5)/(Analyzer!$K$3*336)),0) -> 0 | BS19: =IF(ShowStock,IF(ISERROR((BS$18*Analyzer!$G$5)/(Analyzer!$K$3*336)),0,SpeedConv*(BS$18*Analyzer!$G$5)/(Analyzer!$K$3*336)),0) -> 0 | BT19: =IF(ShowStock,IF(ISERROR((BT$18*Analyzer!$G$5)/(Analyzer!$K$3*336)),0,SpeedConv*(BT$18*Analyzer!$G$5)/(Analyzer!$K$3*336)),0) -> 0 | BU19: =IF(ShowStock,IF(ISERROR((BU$18*Analyzer!$G$5)/(Analyzer!$K$3*336)),0,SpeedConv*(BU$18*Analyzer!$G$5)/(Analyzer!$K$3*336)),0) -> 0 | BV19: =IF(ShowStock,IF(ISERROR((BV$18*Analyzer!$G$5)/(Analyzer!$K$3*336)),0,SpeedConv*(BV$18*Analyzer!$G$5)/(Analyzer!$K$3*336)),0) -> 0 | BW19: =IF(ShowStock,IF(ISERROR((BW$18*Analyzer!$G$5)/(Analyzer!$K$3*336)),0,SpeedConv*(BW$18*Analyzer!$G$5)/(Analyzer!$K$3*336)),0) -> 0 | BX19: =IF(ShowStock,IF(ISERROR((BX$18*Analyzer!$G$5)/(Analyzer!$K$3*336)),0,SpeedConv*(BX$18*Analyzer!$G$5)/(Analyzer!$K$3*336)),0) -> 0 | BY19: =IF(ShowStock,IF(ISERROR((BY$18*Analyzer!$G$5)/(Analyzer!$K$3*336)),0,SpeedConv*(BY$18*Analyzer!$G$5)/(Analyzer!$K$3*336)),0) -> 0 | BZ19: =IF(ShowStock,IF(ISERROR((BZ$18*Analyzer!$G$5)/(Analyzer!$K$3*336)),0,SpeedConv*(BZ$18*Analyzer!$G$5)/(Analyzer!$K$3*336)),0) -> 0 | CA19: =IF(ShowStock,IF(ISERROR((CA$18*Analyzer!$G$5)/(Analyzer!$K$3*336)),0,SpeedConv*(CA$18*Analyzer!$G$5)/(Analyzer!$K$3*336)),0) -> 0 | CB19: =IF(ShowStock,IF(ISERROR((CB$18*Analyzer!$G$5)/(Analyzer!$K$3*336)),0,SpeedConv*(CB$18*Analyzer!$G$5)/(Analyzer!$K$3*336)),0) -> 0 | CC19: =IF(ShowStock,IF(ISERROR((CC$18*Analyzer!$G$5)/(Analyzer!$K$3*336)),0,SpeedConv*(CC$18*Analyzer!$G$5)/(Analyzer!$K$3*336)),0) -> 0 | CD19: =IF(ShowStock,IF(ISERROR((CD$18*Analyzer!$G$5)/(Analyzer!$K$3*336)),0,SpeedConv*(CD$18*Analyzer!$G$5)/(Analyzer!$K$3*336)),0) -> 0 | CE19: =IF(ShowStock,IF(ISERROR((CE$18*Analyzer!$G$5)/(Analyzer!$K$3*336)),0,SpeedConv*(CE$18*Analyzer!$G$5)/(Analyzer!$K$3*336)),0) -> 0 | CF19: =IF(ShowStock,IF(ISERROR((CF$18*Analyzer!$G$5)/(Analyzer!$K$3*336)),0,SpeedConv*(CF$18*Analyzer!$G$5)/(Analyzer!$K$3*336)),0) -> 0 | CG19: =IF(ShowStock,IF(ISERROR((CG$18*Analyzer!$G$5)/(Analyzer!$K$3*336)),0,SpeedConv*(CG$18*Analyzer!$G$5)/(Analyzer!$K$3*336)),0) -> 0 | CH19: =IF(ShowStock,IF(ISERROR((CH$18*Analyzer!$G$5)/(Analyzer!$K$3*336)),0,SpeedConv*(CH$18*Analyzer!$G$5)/(Analyzer!$K$3*336)),0) -> 0 | CI19: =IF(ShowStock,IF(ISERROR((CI$18*Analyzer!$G$5)/(Analyzer!$K$3*336)),0,SpeedConv*(CI$18*Analyzer!$G$5)/(Analyzer!$K$3*336)),0) -> 0 | CJ19: =IF(ShowStock,IF(ISERROR((CJ$18*Analyzer!$G$5)/(Analyzer!$K$3*336)),0,SpeedConv*(CJ$18*Analyzer!$G$5)/(Analyzer!$K$3*336)),0) -> 0 | CK19: =IF(ShowStock,IF(ISERROR((CK$18*Analyzer!$G$5)/(Analyzer!$K$3*336)),0,SpeedConv*(CK$18*Analyzer!$G$5)/(Analyzer!$K$3*336)),0) -> 0 | CL19: =IF(ShowStock,IF(ISERROR((CL$18*Analyzer!$G$5)/(Analyzer!$K$3*336)),0,SpeedConv*(CL$18*Analyzer!$G$5)/(Analyzer!$K$3*336)),0) -> 0 | CM19: =IF(ShowStock,IF(ISERROR((CM$18*Analyzer!$G$5)/(Analyzer!$K$3*336)),0,SpeedConv*(CM$18*Analyzer!$G$5)/(Analyzer!$K$3*336)),0) -> 0 | CN19: =IF(ShowStock,IF(ISERROR((CN$18*Analyzer!$G$5)/(Analyzer!$K$3*336)),0,SpeedConv*(CN$18*Analyzer!$G$5)/(Analyzer!$K$3*336)),0) -> 0 | CO19: =IF(ShowStock,IF(ISERROR((CO$18*Analyzer!$G$5)/(Analyzer!$K$3*336)),0,SpeedConv*(CO$18*Analyzer!$G$5)/(Analyzer!$K$3*336)),0) -> 0 | CP19: =IF(ShowStock,IF(ISERROR((CP$18*Analyzer!$G$5)/(Analyzer!$K$3*336)),0,SpeedConv*(CP$18*Analyzer!$G$5)/(Analyzer!$K$3*336)),0) -> 0 | CQ19: =IF(ShowStock,IF(ISERROR((CQ$18*Analyzer!$G$5)/(Analyzer!$K$3*336)),0,SpeedConv*(CQ$18*Analyzer!$G$5)/(Analyzer!$K$3*336)),0) -> 0 | CR19: =IF(ShowStock,IF(ISERROR((CR$18*Analyzer!$G$5)/(Analyzer!$K$3*336)),0,SpeedConv*(CR$18*Analyzer!$G$5)/(Analyzer!$K$3*336)),0) -> 0 | CS19: =IF(ShowStock,IF(ISERROR((CS$18*Analyzer!$G$5)/(Analyzer!$K$3*336)),0,SpeedConv*(CS$18*Analyzer!$G$5)/(Analyzer!$K$3*336)),0) -> 0 | CT19: =IF(ShowStock,IF(ISERROR((CT$18*Analyzer!$G$5)/(Analyzer!$K$3*336)),0,SpeedConv*(CT$18*Analyzer!$G$5)/(Analyzer!$K$3*336)),0) -> 0 | CU19: =IF(ShowStock,IF(ISERROR((CU$18*Analyzer!$G$5)/(Analyzer!$K$3*336)),0,SpeedConv*(CU$18*Analyzer!$G$5)/(Analyzer!$K$3*336)),0) -> 0
A20: St-2nd | B20: =IF(ShowStock,IF(ISERROR((B$18*Analyzer!$G$5)/(Analyzer!$K$4*336)),0,SpeedConv*(B$18*Analyzer!$G$5)/(Analyzer!$K$4*336)),0) -> 0 | C20: =IF(ShowStock,IF(ISERROR((C$18*Analyzer!$G$5)/(Analyzer!$K$4*336)),0,SpeedConv*(C$18*Analyzer!$G$5)/(Analyzer!$K$4*336)),0) -> 0 | D20: =IF(ShowStock,IF(ISERROR((D$18*Analyzer!$G$5)/(Analyzer!$K$4*336)),0,SpeedConv*(D$18*Analyzer!$G$5)/(Analyzer!$K$4*336)),0) -> 0 | E20: =IF(ShowStock,IF(ISERROR((E$18*Analyzer!$G$5)/(Analyzer!$K$4*336)),0,SpeedConv*(E$18*Analyzer!$G$5)/(Analyzer!$K$4*336)),0) -> 0 | F20: =IF(ShowStock,IF(ISERROR((F$18*Analyzer!$G$5)/(Analyzer!$K$4*336)),0,SpeedConv*(F$18*Analyzer!$G$5)/(Analyzer!$K$4*336)),0) -> 0 | G20: =IF(ShowStock,IF(ISERROR((G$18*Analyzer!$G$5)/(Analyzer!$K$4*336)),0,SpeedConv*(G$18*Analyzer!$G$5)/(Analyzer!$K$4*336)),0) -> 0 | H20: =IF(ShowStock,IF(ISERROR((H$18*Analyzer!$G$5)/(Analyzer!$K$4*336)),0,SpeedConv*(H$18*Analyzer!$G$5)/(Analyzer!$K$4*336)),0) -> 0 | I20: =IF(ShowStock,IF(ISERROR((I$18*Analyzer!$G$5)/(Analyzer!$K$4*336)),0,SpeedConv*(I$18*Analyzer!$G$5)/(Analyzer!$K$4*336)),0) -> 0 | J20: =IF(ShowStock,IF(ISERROR((J$18*Analyzer!$G$5)/(Analyzer!$K$4*336)),0,SpeedConv*(J$18*Analyzer!$G$5)/(Analyzer!$K$4*336)),0) -> 0 | K20: =IF(ShowStock,IF(ISERROR((K$18*Analyzer!$G$5)/(Analyzer!$K$4*336)),0,SpeedConv*(K$18*Analyzer!$G$5)/(Analyzer!$K$4*336)),0) -> 0 | L20: =IF(ShowStock,IF(ISERROR((L$18*Analyzer!$G$5)/(Analyzer!$K$4*336)),0,SpeedConv*(L$18*Analyzer!$G$5)/(Analyzer!$K$4*336)),0) -> 0 | M20: =IF(ShowStock,IF(ISERROR((M$18*Analyzer!$G$5)/(Analyzer!$K$4*336)),0,SpeedConv*(M$18*Analyzer!$G$5)/(Analyzer!$K$4*336)),0) -> 0 | N20: =IF(ShowStock,IF(ISERROR((N$18*Analyzer!$G$5)/(Analyzer!$K$4*336)),0,SpeedConv*(N$18*Analyzer!$G$5)/(Analyzer!$K$4*336)),0) -> 0 | O20: =IF(ShowStock,IF(ISERROR((O$18*Analyzer!$G$5)/(Analyzer!$K$4*336)),0,SpeedConv*(O$18*Analyzer!$G$5)/(Analyzer!$K$4*336)),0) -> 0 | P20: =IF(ShowStock,IF(ISERROR((P$18*Analyzer!$G$5)/(Analyzer!$K$4*336)),0,SpeedConv*(P$18*Analyzer!$G$5)/(Analyzer!$K$4*336)),0) -> 0 | Q20: =IF(ShowStock,IF(ISERROR((Q$18*Analyzer!$G$5)/(Analyzer!$K$4*336)),0,SpeedConv*(Q$18*Analyzer!$G$5)/(Analyzer!$K$4*336)),0) -> 0 | R20: =IF(ShowStock,IF(ISERROR((R$18*Analyzer!$G$5)/(Analyzer!$K$4*336)),0,SpeedConv*(R$18*Analyzer!$G$5)/(Analyzer!$K$4*336)),0) -> 0 | S20: =IF(ShowStock,IF(ISERROR((S$18*Analyzer!$G$5)/(Analyzer!$K$4*336)),0,SpeedConv*(S$18*Analyzer!$G$5)/(Analyzer!$K$4*336)),0) -> 0 | T20: =IF(ShowStock,IF(ISERROR((T$18*Analyzer!$G$5)/(Analyzer!$K$4*336)),0,SpeedConv*(T$18*Analyzer!$G$5)/(Analyzer!$K$4*336)),0) -> 0 | U20: =IF(ShowStock,IF(ISERROR((U$18*Analyzer!$G$5)/(Analyzer!$K$4*336)),0,SpeedConv*(U$18*Analyzer!$G$5)/(Analyzer!$K$4*336)),0) -> 0 | V20: =IF(ShowStock,IF(ISERROR((V$18*Analyzer!$G$5)/(Analyzer!$K$4*336)),0,SpeedConv*(V$18*Analyzer!$G$5)/(Analyzer!$K$4*336)),0) -> 0 | W20: =IF(ShowStock,IF(ISERROR((W$18*Analyzer!$G$5)/(Analyzer!$K$4*336)),0,SpeedConv*(W$18*Analyzer!$G$5)/(Analyzer!$K$4*336)),0) -> 0 | X20: =IF(ShowStock,IF(ISERROR((X$18*Analyzer!$G$5)/(Analyzer!$K$4*336)),0,SpeedConv*(X$18*Analyzer!$G$5)/(Analyzer!$K$4*336)),0) -> 0 | Y20: =IF(ShowStock,IF(ISERROR((Y$18*Analyzer!$G$5)/(Analyzer!$K$4*336)),0,SpeedConv*(Y$18*Analyzer!$G$5)/(Analyzer!$K$4*336)),0) -> 0 | Z20: =IF(ShowStock,IF(ISERROR((Z$18*Analyzer!$G$5)/(Analyzer!$K$4*336)),0,SpeedConv*(Z$18*Analyzer!$G$5)/(Analyzer!$K$4*336)),0) -> 0 | AA20: =IF(ShowStock,IF(ISERROR((AA$18*Analyzer!$G$5)/(Analyzer!$K$4*336)),0,SpeedConv*(AA$18*Analyzer!$G$5)/(Analyzer!$K$4*336)),0) -> 0 | AB20: =IF(ShowStock,IF(ISERROR((AB$18*Analyzer!$G$5)/(Analyzer!$K$4*336)),0,SpeedConv*(AB$18*Analyzer!$G$5)/(Analyzer!$K$4*336)),0) -> 0 | AC20: =IF(ShowStock,IF(ISERROR((AC$18*Analyzer!$G$5)/(Analyzer!$K$4*336)),0,SpeedConv*(AC$18*Analyzer!$G$5)/(Analyzer!$K$4*336)),0) -> 0 | AD20: =IF(ShowStock,IF(ISERROR((AD$18*Analyzer!$G$5)/(Analyzer!$K$4*336)),0,SpeedConv*(AD$18*Analyzer!$G$5)/(Analyzer!$K$4*336)),0) -> 0 | AE20: =IF(ShowStock,IF(ISERROR((AE$18*Analyzer!$G$5)/(Analyzer!$K$4*336)),0,SpeedConv*(AE$18*Analyzer!$G$5)/(Analyzer!$K$4*336)),0) -> 0 | AF20: =IF(ShowStock,IF(ISERROR((AF$18*Analyzer!$G$5)/(Analyzer!$K$4*336)),0,SpeedConv*(AF$18*Analyzer!$G$5)/(Analyzer!$K$4*336)),0) -> 0 | AG20: =IF(ShowStock,IF(ISERROR((AG$18*Analyzer!$G$5)/(Analyzer!$K$4*336)),0,SpeedConv*(AG$18*Analyzer!$G$5)/(Analyzer!$K$4*336)),0) -> 0 | AH20: =IF(ShowStock,IF(ISERROR((AH$18*Analyzer!$G$5)/(Analyzer!$K$4*336)),0,SpeedConv*(AH$18*Analyzer!$G$5)/(Analyzer!$K$4*336)),0) -> 0 | AI20: =IF(ShowStock,IF(ISERROR((AI$18*Analyzer!$G$5)/(Analyzer!$K$4*336)),0,SpeedConv*(AI$18*Analyzer!$G$5)/(Analyzer!$K$4*336)),0) -> 0 | AJ20: =IF(ShowStock,IF(ISERROR((AJ$18*Analyzer!$G$5)/(Analyzer!$K$4*336)),0,SpeedConv*(AJ$18*Analyzer!$G$5)/(Analyzer!$K$4*336)),0) -> 0 | AK20: =IF(ShowStock,IF(ISERROR((AK$18*Analyzer!$G$5)/(Analyzer!$K$4*336)),0,SpeedConv*(AK$18*Analyzer!$G$5)/(Analyzer!$K$4*336)),0) -> 0 | AL20: =IF(ShowStock,IF(ISERROR((AL$18*Analyzer!$G$5)/(Analyzer!$K$4*336)),0,SpeedConv*(AL$18*Analyzer!$G$5)/(Analyzer!$K$4*336)),0) -> 0 | AM20: =IF(ShowStock,IF(ISERROR((AM$18*Analyzer!$G$5)/(Analyzer!$K$4*336)),0,SpeedConv*(AM$18*Analyzer!$G$5)/(Analyzer!$K$4*336)),0) -> 0 | AN20: =IF(ShowStock,IF(ISERROR((AN$18*Analyzer!$G$5)/(Analyzer!$K$4*336)),0,SpeedConv*(AN$18*Analyzer!$G$5)/(Analyzer!$K$4*336)),0) -> 0 | AO20: =IF(ShowStock,IF(ISERROR((AO$18*Analyzer!$G$5)/(Analyzer!$K$4*336)),0,SpeedConv*(AO$18*Analyzer!$G$5)/(Analyzer!$K$4*336)),0) -> 0 | AP20: =IF(ShowStock,IF(ISERROR((AP$18*Analyzer!$G$5)/(Analyzer!$K$4*336)),0,SpeedConv*(AP$18*Analyzer!$G$5)/(Analyzer!$K$4*336)),0) -> 0 | AQ20: =IF(ShowStock,IF(ISERROR((AQ$18*Analyzer!$G$5)/(Analyzer!$K$4*336)),0,SpeedConv*(AQ$18*Analyzer!$G$5)/(Analyzer!$K$4*336)),0) -> 0 | AR20: =IF(ShowStock,IF(ISERROR((AR$18*Analyzer!$G$5)/(Analyzer!$K$4*336)),0,SpeedConv*(AR$18*Analyzer!$G$5)/(Analyzer!$K$4*336)),0) -> 0 | AS20: =IF(ShowStock,IF(ISERROR((AS$18*Analyzer!$G$5)/(Analyzer!$K$4*336)),0,SpeedConv*(AS$18*Analyzer!$G$5)/(Analyzer!$K$4*336)),0) -> 0 | AT20: =IF(ShowStock,IF(ISERROR((AT$18*Analyzer!$G$5)/(Analyzer!$K$4*336)),0,SpeedConv*(AT$18*Analyzer!$G$5)/(Analyzer!$K$4*336)),0) -> 0 | AU20: =IF(ShowStock,IF(ISERROR((AU$18*Analyzer!$G$5)/(Analyzer!$K$4*336)),0,SpeedConv*(AU$18*Analyzer!$G$5)/(Analyzer!$K$4*336)),0) -> 0 | AV20: =IF(ShowStock,IF(ISERROR((AV$18*Analyzer!$G$5)/(Analyzer!$K$4*336)),0,SpeedConv*(AV$18*Analyzer!$G$5)/(Analyzer!$K$4*336)),0) -> 0 | AW20: =IF(ShowStock,IF(ISERROR((AW$18*Analyzer!$G$5)/(Analyzer!$K$4*336)),0,SpeedConv*(AW$18*Analyzer!$G$5)/(Analyzer!$K$4*336)),0) -> 0 | AX20: =IF(ShowStock,IF(ISERROR((AX$18*Analyzer!$G$5)/(Analyzer!$K$4*336)),0,SpeedConv*(AX$18*Analyzer!$G$5)/(Analyzer!$K$4*336)),0) -> 0 | AY20: =IF(ShowStock,IF(ISERROR((AY$18*Analyzer!$G$5)/(Analyzer!$K$4*336)),0,SpeedConv*(AY$18*Analyzer!$G$5)/(Analyzer!$K$4*336)),0) -> 0 | AZ20: =IF(ShowStock,IF(ISERROR((AZ$18*Analyzer!$G$5)/(Analyzer!$K$4*336)),0,SpeedConv*(AZ$18*Analyzer!$G$5)/(Analyzer!$K$4*336)),0) -> 0 | BA20: =IF(ShowStock,IF(ISERROR((BA$18*Analyzer!$G$5)/(Analyzer!$K$4*336)),0,SpeedConv*(BA$18*Analyzer!$G$5)/(Analyzer!$K$4*336)),0) -> 0 | BB20: =IF(ShowStock,IF(ISERROR((BB$18*Analyzer!$G$5)/(Analyzer!$K$4*336)),0,SpeedConv*(BB$18*Analyzer!$G$5)/(Analyzer!$K$4*336)),0) -> 0 | BC20: =IF(ShowStock,IF(ISERROR((BC$18*Analyzer!$G$5)/(Analyzer!$K$4*336)),0,SpeedConv*(BC$18*Analyzer!$G$5)/(Analyzer!$K$4*336)),0) -> 0 | BD20: =IF(ShowStock,IF(ISERROR((BD$18*Analyzer!$G$5)/(Analyzer!$K$4*336)),0,SpeedConv*(BD$18*Analyzer!$G$5)/(Analyzer!$K$4*336)),0) -> 0 | BE20: =IF(ShowStock,IF(ISERROR((BE$18*Analyzer!$G$5)/(Analyzer!$K$4*336)),0,SpeedConv*(BE$18*Analyzer!$G$5)/(Analyzer!$K$4*336)),0) -> 0 | BF20: =IF(ShowStock,IF(ISERROR((BF$18*Analyzer!$G$5)/(Analyzer!$K$4*336)),0,SpeedConv*(BF$18*Analyzer!$G$5)/(Analyzer!$K$4*336)),0) -> 0 | BG20: =IF(ShowStock,IF(ISERROR((BG$18*Analyzer!$G$5)/(Analyzer!$K$4*336)),0,SpeedConv*(BG$18*Analyzer!$G$5)/(Analyzer!$K$4*336)),0) -> 0 | BH20: =IF(ShowStock,IF(ISERROR((BH$18*Analyzer!$G$5)/(Analyzer!$K$4*336)),0,SpeedConv*(BH$18*Analyzer!$G$5)/(Analyzer!$K$4*336)),0) -> 0 | BI20: =IF(ShowStock,IF(ISERROR((BI$18*Analyzer!$G$5)/(Analyzer!$K$4*336)),0,SpeedConv*(BI$18*Analyzer!$G$5)/(Analyzer!$K$4*336)),0) -> 0 | BJ20: =IF(ShowStock,IF(ISERROR((BJ$18*Analyzer!$G$5)/(Analyzer!$K$4*336)),0,SpeedConv*(BJ$18*Analyzer!$G$5)/(Analyzer!$K$4*336)),0) -> 0 | BK20: =IF(ShowStock,IF(ISERROR((BK$18*Analyzer!$G$5)/(Analyzer!$K$4*336)),0,SpeedConv*(BK$18*Analyzer!$G$5)/(Analyzer!$K$4*336)),0) -> 0 | BL20: =IF(ShowStock,IF(ISERROR((BL$18*Analyzer!$G$5)/(Analyzer!$K$4*336)),0,SpeedConv*(BL$18*Analyzer!$G$5)/(Analyzer!$K$4*336)),0) -> 0 | BM20: =IF(ShowStock,IF(ISERROR((BM$18*Analyzer!$G$5)/(Analyzer!$K$4*336)),0,SpeedConv*(BM$18*Analyzer!$G$5)/(Analyzer!$K$4*336)),0) -> 0 | BN20: =IF(ShowStock,IF(ISERROR((BN$18*Analyzer!$G$5)/(Analyzer!$K$4*336)),0,SpeedConv*(BN$18*Analyzer!$G$5)/(Analyzer!$K$4*336)),0) -> 0 | BO20: =IF(ShowStock,IF(ISERROR((BO$18*Analyzer!$G$5)/(Analyzer!$K$4*336)),0,SpeedConv*(BO$18*Analyzer!$G$5)/(Analyzer!$K$4*336)),0) -> 0 | BP20: =IF(ShowStock,IF(ISERROR((BP$18*Analyzer!$G$5)/(Analyzer!$K$4*336)),0,SpeedConv*(BP$18*Analyzer!$G$5)/(Analyzer!$K$4*336)),0) -> 0 | BQ20: =IF(ShowStock,IF(ISERROR((BQ$18*Analyzer!$G$5)/(Analyzer!$K$4*336)),0,SpeedConv*(BQ$18*Analyzer!$G$5)/(Analyzer!$K$4*336)),0) -> 0 | BR20: =IF(ShowStock,IF(ISERROR((BR$18*Analyzer!$G$5)/(Analyzer!$K$4*336)),0,SpeedConv*(BR$18*Analyzer!$G$5)/(Analyzer!$K$4*336)),0) -> 0 | BS20: =IF(ShowStock,IF(ISERROR((BS$18*Analyzer!$G$5)/(Analyzer!$K$4*336)),0,SpeedConv*(BS$18*Analyzer!$G$5)/(Analyzer!$K$4*336)),0) -> 0 | BT20: =IF(ShowStock,IF(ISERROR((BT$18*Analyzer!$G$5)/(Analyzer!$K$4*336)),0,SpeedConv*(BT$18*Analyzer!$G$5)/(Analyzer!$K$4*336)),0) -> 0 | BU20: =IF(ShowStock,IF(ISERROR((BU$18*Analyzer!$G$5)/(Analyzer!$K$4*336)),0,SpeedConv*(BU$18*Analyzer!$G$5)/(Analyzer!$K$4*336)),0) -> 0 | BV20: =IF(ShowStock,IF(ISERROR((BV$18*Analyzer!$G$5)/(Analyzer!$K$4*336)),0,SpeedConv*(BV$18*Analyzer!$G$5)/(Analyzer!$K$4*336)),0) -> 0 | BW20: =IF(ShowStock,IF(ISERROR((BW$18*Analyzer!$G$5)/(Analyzer!$K$4*336)),0,SpeedConv*(BW$18*Analyzer!$G$5)/(Analyzer!$K$4*336)),0) -> 0 | BX20: =IF(ShowStock,IF(ISERROR((BX$18*Analyzer!$G$5)/(Analyzer!$K$4*336)),0,SpeedConv*(BX$18*Analyzer!$G$5)/(Analyzer!$K$4*336)),0) -> 0 | BY20: =IF(ShowStock,IF(ISERROR((BY$18*Analyzer!$G$5)/(Analyzer!$K$4*336)),0,SpeedConv*(BY$18*Analyzer!$G$5)/(Analyzer!$K$4*336)),0) -> 0 | BZ20: =IF(ShowStock,IF(ISERROR((BZ$18*Analyzer!$G$5)/(Analyzer!$K$4*336)),0,SpeedConv*(BZ$18*Analyzer!$G$5)/(Analyzer!$K$4*336)),0) -> 0 | CA20: =IF(ShowStock,IF(ISERROR((CA$18*Analyzer!$G$5)/(Analyzer!$K$4*336)),0,SpeedConv*(CA$18*Analyzer!$G$5)/(Analyzer!$K$4*336)),0) -> 0 | CB20: =IF(ShowStock,IF(ISERROR((CB$18*Analyzer!$G$5)/(Analyzer!$K$4*336)),0,SpeedConv*(CB$18*Analyzer!$G$5)/(Analyzer!$K$4*336)),0) -> 0 | CC20: =IF(ShowStock,IF(ISERROR((CC$18*Analyzer!$G$5)/(Analyzer!$K$4*336)),0,SpeedConv*(CC$18*Analyzer!$G$5)/(Analyzer!$K$4*336)),0) -> 0 | CD20: =IF(ShowStock,IF(ISERROR((CD$18*Analyzer!$G$5)/(Analyzer!$K$4*336)),0,SpeedConv*(CD$18*Analyzer!$G$5)/(Analyzer!$K$4*336)),0) -> 0 | CE20: =IF(ShowStock,IF(ISERROR((CE$18*Analyzer!$G$5)/(Analyzer!$K$4*336)),0,SpeedConv*(CE$18*Analyzer!$G$5)/(Analyzer!$K$4*336)),0) -> 0 | CF20: =IF(ShowStock,IF(ISERROR((CF$18*Analyzer!$G$5)/(Analyzer!$K$4*336)),0,SpeedConv*(CF$18*Analyzer!$G$5)/(Analyzer!$K$4*336)),0) -> 0 | CG20: =IF(ShowStock,IF(ISERROR((CG$18*Analyzer!$G$5)/(Analyzer!$K$4*336)),0,SpeedConv*(CG$18*Analyzer!$G$5)/(Analyzer!$K$4*336)),0) -> 0 | CH20: =IF(ShowStock,IF(ISERROR((CH$18*Analyzer!$G$5)/(Analyzer!$K$4*336)),0,SpeedConv*(CH$18*Analyzer!$G$5)/(Analyzer!$K$4*336)),0) -> 0 | CI20: =IF(ShowStock,IF(ISERROR((CI$18*Analyzer!$G$5)/(Analyzer!$K$4*336)),0,SpeedConv*(CI$18*Analyzer!$G$5)/(Analyzer!$K$4*336)),0) -> 0 | CJ20: =IF(ShowStock,IF(ISERROR((CJ$18*Analyzer!$G$5)/(Analyzer!$K$4*336)),0,SpeedConv*(CJ$18*Analyzer!$G$5)/(Analyzer!$K$4*336)),0) -> 0 | CK20: =IF(ShowStock,IF(ISERROR((CK$18*Analyzer!$G$5)/(Analyzer!$K$4*336)),0,SpeedConv*(CK$18*Analyzer!$G$5)/(Analyzer!$K$4*336)),0) -> 0 | CL20: =IF(ShowStock,IF(ISERROR((CL$18*Analyzer!$G$5)/(Analyzer!$K$4*336)),0,SpeedConv*(CL$18*Analyzer!$G$5)/(Analyzer!$K$4*336)),0) -> 0 | CM20: =IF(ShowStock,IF(ISERROR((CM$18*Analyzer!$G$5)/(Analyzer!$K$4*336)),0,SpeedConv*(CM$18*Analyzer!$G$5)/(Analyzer!$K$4*336)),0) -> 0 | CN20: =IF(ShowStock,IF(ISERROR((CN$18*Analyzer!$G$5)/(Analyzer!$K$4*336)),0,SpeedConv*(CN$18*Analyzer!$G$5)/(Analyzer!$K$4*336)),0) -> 0 | CO20: =IF(ShowStock,IF(ISERROR((CO$18*Analyzer!$G$5)/(Analyzer!$K$4*336)),0,SpeedConv*(CO$18*Analyzer!$G$5)/(Analyzer!$K$4*336)),0) -> 0 | CP20: =IF(ShowStock,IF(ISERROR((CP$18*Analyzer!$G$5)/(Analyzer!$K$4*336)),0,SpeedConv*(CP$18*Analyzer!$G$5)/(Analyzer!$K$4*336)),0) -> 0 | CQ20: =IF(ShowStock,IF(ISERROR((CQ$18*Analyzer!$G$5)/(Analyzer!$K$4*336)),0,SpeedConv*(CQ$18*Analyzer!$G$5)/(Analyzer!$K$4*336)),0) -> 0 | CR20: =IF(ShowStock,IF(ISERROR((CR$18*Analyzer!$G$5)/(Analyzer!$K$4*336)),0,SpeedConv*(CR$18*Analyzer!$G$5)/(Analyzer!$K$4*336)),0) -> 0 | CS20: =IF(ShowStock,IF(ISERROR((CS$18*Analyzer!$G$5)/(Analyzer!$K$4*336)),0,SpeedConv*(CS$18*Analyzer!$G$5)/(Analyzer!$K$4*336)),0) -> 0 | CT20: =IF(ShowStock,IF(ISERROR((CT$18*Analyzer!$G$5)/(Analyzer!$K$4*336)),0,SpeedConv*(CT$18*Analyzer!$G$5)/(Analyzer!$K$4*336)),0) -> 0 | CU20: =IF(ShowStock,IF(ISERROR((CU$18*Analyzer!$G$5)/(Analyzer!$K$4*336)),0,SpeedConv*(CU$18*Analyzer!$G$5)/(Analyzer!$K$4*336)),0) -> 0
A21: St-3rd | B21: =IF(ShowStock,IF(ISERROR((B$18*Analyzer!$G$5)/(Analyzer!$K$5*336)),0,SpeedConv*(B$18*Analyzer!$G$5)/(Analyzer!$K$5*336)),0) -> 0 | C21: =IF(ShowStock,IF(ISERROR((C$18*Analyzer!$G$5)/(Analyzer!$K$5*336)),0,SpeedConv*(C$18*Analyzer!$G$5)/(Analyzer!$K$5*336)),0) -> 0 | D21: =IF(ShowStock,IF(ISERROR((D$18*Analyzer!$G$5)/(Analyzer!$K$5*336)),0,SpeedConv*(D$18*Analyzer!$G$5)/(Analyzer!$K$5*336)),0) -> 0 | E21: =IF(ShowStock,IF(ISERROR((E$18*Analyzer!$G$5)/(Analyzer!$K$5*336)),0,SpeedConv*(E$18*Analyzer!$G$5)/(Analyzer!$K$5*336)),0) -> 0 | F21: =IF(ShowStock,IF(ISERROR((F$18*Analyzer!$G$5)/(Analyzer!$K$5*336)),0,SpeedConv*(F$18*Analyzer!$G$5)/(Analyzer!$K$5*336)),0) -> 0 | G21: =IF(ShowStock,IF(ISERROR((G$18*Analyzer!$G$5)/(Analyzer!$K$5*336)),0,SpeedConv*(G$18*Analyzer!$G$5)/(Analyzer!$K$5*336)),0) -> 0 | H21: =IF(ShowStock,IF(ISERROR((H$18*Analyzer!$G$5)/(Analyzer!$K$5*336)),0,SpeedConv*(H$18*Analyzer!$G$5)/(Analyzer!$K$5*336)),0) -> 0 | I21: =IF(ShowStock,IF(ISERROR((I$18*Analyzer!$G$5)/(Analyzer!$K$5*336)),0,SpeedConv*(I$18*Analyzer!$G$5)/(Analyzer!$K$5*336)),0) -> 0 | J21: =IF(ShowStock,IF(ISERROR((J$18*Analyzer!$G$5)/(Analyzer!$K$5*336)),0,SpeedConv*(J$18*Analyzer!$G$5)/(Analyzer!$K$5*336)),0) -> 0 | K21: =IF(ShowStock,IF(ISERROR((K$18*Analyzer!$G$5)/(Analyzer!$K$5*336)),0,SpeedConv*(K$18*Analyzer!$G$5)/(Analyzer!$K$5*336)),0) -> 0 | L21: =IF(ShowStock,IF(ISERROR((L$18*Analyzer!$G$5)/(Analyzer!$K$5*336)),0,SpeedConv*(L$18*Analyzer!$G$5)/(Analyzer!$K$5*336)),0) -> 0 | M21: =IF(ShowStock,IF(ISERROR((M$18*Analyzer!$G$5)/(Analyzer!$K$5*336)),0,SpeedConv*(M$18*Analyzer!$G$5)/(Analyzer!$K$5*336)),0) -> 0 | N21: =IF(ShowStock,IF(ISERROR((N$18*Analyzer!$G$5)/(Analyzer!$K$5*336)),0,SpeedConv*(N$18*Analyzer!$G$5)/(Analyzer!$K$5*336)),0) -> 0 | O21: =IF(ShowStock,IF(ISERROR((O$18*Analyzer!$G$5)/(Analyzer!$K$5*336)),0,SpeedConv*(O$18*Analyzer!$G$5)/(Analyzer!$K$5*336)),0) -> 0 | P21: =IF(ShowStock,IF(ISERROR((P$18*Analyzer!$G$5)/(Analyzer!$K$5*336)),0,SpeedConv*(P$18*Analyzer!$G$5)/(Analyzer!$K$5*336)),0) -> 0 | Q21: =IF(ShowStock,IF(ISERROR((Q$18*Analyzer!$G$5)/(Analyzer!$K$5*336)),0,SpeedConv*(Q$18*Analyzer!$G$5)/(Analyzer!$K$5*336)),0) -> 0 | R21: =IF(ShowStock,IF(ISERROR((R$18*Analyzer!$G$5)/(Analyzer!$K$5*336)),0,SpeedConv*(R$18*Analyzer!$G$5)/(Analyzer!$K$5*336)),0) -> 0 | S21: =IF(ShowStock,IF(ISERROR((S$18*Analyzer!$G$5)/(Analyzer!$K$5*336)),0,SpeedConv*(S$18*Analyzer!$G$5)/(Analyzer!$K$5*336)),0) -> 0 | T21: =IF(ShowStock,IF(ISERROR((T$18*Analyzer!$G$5)/(Analyzer!$K$5*336)),0,SpeedConv*(T$18*Analyzer!$G$5)/(Analyzer!$K$5*336)),0) -> 0 | U21: =IF(ShowStock,IF(ISERROR((U$18*Analyzer!$G$5)/(Analyzer!$K$5*336)),0,SpeedConv*(U$18*Analyzer!$G$5)/(Analyzer!$K$5*336)),0) -> 0 | V21: =IF(ShowStock,IF(ISERROR((V$18*Analyzer!$G$5)/(Analyzer!$K$5*336)),0,SpeedConv*(V$18*Analyzer!$G$5)/(Analyzer!$K$5*336)),0) -> 0 | W21: =IF(ShowStock,IF(ISERROR((W$18*Analyzer!$G$5)/(Analyzer!$K$5*336)),0,SpeedConv*(W$18*Analyzer!$G$5)/(Analyzer!$K$5*336)),0) -> 0 | X21: =IF(ShowStock,IF(ISERROR((X$18*Analyzer!$G$5)/(Analyzer!$K$5*336)),0,SpeedConv*(X$18*Analyzer!$G$5)/(Analyzer!$K$5*336)),0) -> 0 | Y21: =IF(ShowStock,IF(ISERROR((Y$18*Analyzer!$G$5)/(Analyzer!$K$5*336)),0,SpeedConv*(Y$18*Analyzer!$G$5)/(Analyzer!$K$5*336)),0) -> 0 | Z21: =IF(ShowStock,IF(ISERROR((Z$18*Analyzer!$G$5)/(Analyzer!$K$5*336)),0,SpeedConv*(Z$18*Analyzer!$G$5)/(Analyzer!$K$5*336)),0) -> 0 | AA21: =IF(ShowStock,IF(ISERROR((AA$18*Analyzer!$G$5)/(Analyzer!$K$5*336)),0,SpeedConv*(AA$18*Analyzer!$G$5)/(Analyzer!$K$5*336)),0) -> 0 | AB21: =IF(ShowStock,IF(ISERROR((AB$18*Analyzer!$G$5)/(Analyzer!$K$5*336)),0,SpeedConv*(AB$18*Analyzer!$G$5)/(Analyzer!$K$5*336)),0) -> 0 | AC21: =IF(ShowStock,IF(ISERROR((AC$18*Analyzer!$G$5)/(Analyzer!$K$5*336)),0,SpeedConv*(AC$18*Analyzer!$G$5)/(Analyzer!$K$5*336)),0) -> 0 | AD21: =IF(ShowStock,IF(ISERROR((AD$18*Analyzer!$G$5)/(Analyzer!$K$5*336)),0,SpeedConv*(AD$18*Analyzer!$G$5)/(Analyzer!$K$5*336)),0) -> 0 | AE21: =IF(ShowStock,IF(ISERROR((AE$18*Analyzer!$G$5)/(Analyzer!$K$5*336)),0,SpeedConv*(AE$18*Analyzer!$G$5)/(Analyzer!$K$5*336)),0) -> 0 | AF21: =IF(ShowStock,IF(ISERROR((AF$18*Analyzer!$G$5)/(Analyzer!$K$5*336)),0,SpeedConv*(AF$18*Analyzer!$G$5)/(Analyzer!$K$5*336)),0) -> 0 | AG21: =IF(ShowStock,IF(ISERROR((AG$18*Analyzer!$G$5)/(Analyzer!$K$5*336)),0,SpeedConv*(AG$18*Analyzer!$G$5)/(Analyzer!$K$5*336)),0) -> 0 | AH21: =IF(ShowStock,IF(ISERROR((AH$18*Analyzer!$G$5)/(Analyzer!$K$5*336)),0,SpeedConv*(AH$18*Analyzer!$G$5)/(Analyzer!$K$5*336)),0) -> 0 | AI21: =IF(ShowStock,IF(ISERROR((AI$18*Analyzer!$G$5)/(Analyzer!$K$5*336)),0,SpeedConv*(AI$18*Analyzer!$G$5)/(Analyzer!$K$5*336)),0) -> 0 | AJ21: =IF(ShowStock,IF(ISERROR((AJ$18*Analyzer!$G$5)/(Analyzer!$K$5*336)),0,SpeedConv*(AJ$18*Analyzer!$G$5)/(Analyzer!$K$5*336)),0) -> 0 | AK21: =IF(ShowStock,IF(ISERROR((AK$18*Analyzer!$G$5)/(Analyzer!$K$5*336)),0,SpeedConv*(AK$18*Analyzer!$G$5)/(Analyzer!$K$5*336)),0) -> 0 | AL21: =IF(ShowStock,IF(ISERROR((AL$18*Analyzer!$G$5)/(Analyzer!$K$5*336)),0,SpeedConv*(AL$18*Analyzer!$G$5)/(Analyzer!$K$5*336)),0) -> 0 | AM21: =IF(ShowStock,IF(ISERROR((AM$18*Analyzer!$G$5)/(Analyzer!$K$5*336)),0,SpeedConv*(AM$18*Analyzer!$G$5)/(Analyzer!$K$5*336)),0) -> 0 | AN21: =IF(ShowStock,IF(ISERROR((AN$18*Analyzer!$G$5)/(Analyzer!$K$5*336)),0,SpeedConv*(AN$18*Analyzer!$G$5)/(Analyzer!$K$5*336)),0) -> 0 | AO21: =IF(ShowStock,IF(ISERROR((AO$18*Analyzer!$G$5)/(Analyzer!$K$5*336)),0,SpeedConv*(AO$18*Analyzer!$G$5)/(Analyzer!$K$5*336)),0) -> 0 | AP21: =IF(ShowStock,IF(ISERROR((AP$18*Analyzer!$G$5)/(Analyzer!$K$5*336)),0,SpeedConv*(AP$18*Analyzer!$G$5)/(Analyzer!$K$5*336)),0) -> 0 | AQ21: =IF(ShowStock,IF(ISERROR((AQ$18*Analyzer!$G$5)/(Analyzer!$K$5*336)),0,SpeedConv*(AQ$18*Analyzer!$G$5)/(Analyzer!$K$5*336)),0) -> 0 | AR21: =IF(ShowStock,IF(ISERROR((AR$18*Analyzer!$G$5)/(Analyzer!$K$5*336)),0,SpeedConv*(AR$18*Analyzer!$G$5)/(Analyzer!$K$5*336)),0) -> 0 | AS21: =IF(ShowStock,IF(ISERROR((AS$18*Analyzer!$G$5)/(Analyzer!$K$5*336)),0,SpeedConv*(AS$18*Analyzer!$G$5)/(Analyzer!$K$5*336)),0) -> 0 | AT21: =IF(ShowStock,IF(ISERROR((AT$18*Analyzer!$G$5)/(Analyzer!$K$5*336)),0,SpeedConv*(AT$18*Analyzer!$G$5)/(Analyzer!$K$5*336)),0) -> 0 | AU21: =IF(ShowStock,IF(ISERROR((AU$18*Analyzer!$G$5)/(Analyzer!$K$5*336)),0,SpeedConv*(AU$18*Analyzer!$G$5)/(Analyzer!$K$5*336)),0) -> 0 | AV21: =IF(ShowStock,IF(ISERROR((AV$18*Analyzer!$G$5)/(Analyzer!$K$5*336)),0,SpeedConv*(AV$18*Analyzer!$G$5)/(Analyzer!$K$5*336)),0) -> 0 | AW21: =IF(ShowStock,IF(ISERROR((AW$18*Analyzer!$G$5)/(Analyzer!$K$5*336)),0,SpeedConv*(AW$18*Analyzer!$G$5)/(Analyzer!$K$5*336)),0) -> 0 | AX21: =IF(ShowStock,IF(ISERROR((AX$18*Analyzer!$G$5)/(Analyzer!$K$5*336)),0,SpeedConv*(AX$18*Analyzer!$G$5)/(Analyzer!$K$5*336)),0) -> 0 | AY21: =IF(ShowStock,IF(ISERROR((AY$18*Analyzer!$G$5)/(Analyzer!$K$5*336)),0,SpeedConv*(AY$18*Analyzer!$G$5)/(Analyzer!$K$5*336)),0) -> 0 | AZ21: =IF(ShowStock,IF(ISERROR((AZ$18*Analyzer!$G$5)/(Analyzer!$K$5*336)),0,SpeedConv*(AZ$18*Analyzer!$G$5)/(Analyzer!$K$5*336)),0) -> 0 | BA21: =IF(ShowStock,IF(ISERROR((BA$18*Analyzer!$G$5)/(Analyzer!$K$5*336)),0,SpeedConv*(BA$18*Analyzer!$G$5)/(Analyzer!$K$5*336)),0) -> 0 | BB21: =IF(ShowStock,IF(ISERROR((BB$18*Analyzer!$G$5)/(Analyzer!$K$5*336)),0,SpeedConv*(BB$18*Analyzer!$G$5)/(Analyzer!$K$5*336)),0) -> 0 | BC21: =IF(ShowStock,IF(ISERROR((BC$18*Analyzer!$G$5)/(Analyzer!$K$5*336)),0,SpeedConv*(BC$18*Analyzer!$G$5)/(Analyzer!$K$5*336)),0) -> 0 | BD21: =IF(ShowStock,IF(ISERROR((BD$18*Analyzer!$G$5)/(Analyzer!$K$5*336)),0,SpeedConv*(BD$18*Analyzer!$G$5)/(Analyzer!$K$5*336)),0) -> 0 | BE21: =IF(ShowStock,IF(ISERROR((BE$18*Analyzer!$G$5)/(Analyzer!$K$5*336)),0,SpeedConv*(BE$18*Analyzer!$G$5)/(Analyzer!$K$5*336)),0) -> 0 | BF21: =IF(ShowStock,IF(ISERROR((BF$18*Analyzer!$G$5)/(Analyzer!$K$5*336)),0,SpeedConv*(BF$18*Analyzer!$G$5)/(Analyzer!$K$5*336)),0) -> 0 | BG21: =IF(ShowStock,IF(ISERROR((BG$18*Analyzer!$G$5)/(Analyzer!$K$5*336)),0,SpeedConv*(BG$18*Analyzer!$G$5)/(Analyzer!$K$5*336)),0) -> 0 | BH21: =IF(ShowStock,IF(ISERROR((BH$18*Analyzer!$G$5)/(Analyzer!$K$5*336)),0,SpeedConv*(BH$18*Analyzer!$G$5)/(Analyzer!$K$5*336)),0) -> 0 | BI21: =IF(ShowStock,IF(ISERROR((BI$18*Analyzer!$G$5)/(Analyzer!$K$5*336)),0,SpeedConv*(BI$18*Analyzer!$G$5)/(Analyzer!$K$5*336)),0) -> 0 | BJ21: =IF(ShowStock,IF(ISERROR((BJ$18*Analyzer!$G$5)/(Analyzer!$K$5*336)),0,SpeedConv*(BJ$18*Analyzer!$G$5)/(Analyzer!$K$5*336)),0) -> 0 | BK21: =IF(ShowStock,IF(ISERROR((BK$18*Analyzer!$G$5)/(Analyzer!$K$5*336)),0,SpeedConv*(BK$18*Analyzer!$G$5)/(Analyzer!$K$5*336)),0) -> 0 | BL21: =IF(ShowStock,IF(ISERROR((BL$18*Analyzer!$G$5)/(Analyzer!$K$5*336)),0,SpeedConv*(BL$18*Analyzer!$G$5)/(Analyzer!$K$5*336)),0) -> 0 | BM21: =IF(ShowStock,IF(ISERROR((BM$18*Analyzer!$G$5)/(Analyzer!$K$5*336)),0,SpeedConv*(BM$18*Analyzer!$G$5)/(Analyzer!$K$5*336)),0) -> 0 | BN21: =IF(ShowStock,IF(ISERROR((BN$18*Analyzer!$G$5)/(Analyzer!$K$5*336)),0,SpeedConv*(BN$18*Analyzer!$G$5)/(Analyzer!$K$5*336)),0) -> 0 | BO21: =IF(ShowStock,IF(ISERROR((BO$18*Analyzer!$G$5)/(Analyzer!$K$5*336)),0,SpeedConv*(BO$18*Analyzer!$G$5)/(Analyzer!$K$5*336)),0) -> 0 | BP21: =IF(ShowStock,IF(ISERROR((BP$18*Analyzer!$G$5)/(Analyzer!$K$5*336)),0,SpeedConv*(BP$18*Analyzer!$G$5)/(Analyzer!$K$5*336)),0) -> 0 | BQ21: =IF(ShowStock,IF(ISERROR((BQ$18*Analyzer!$G$5)/(Analyzer!$K$5*336)),0,SpeedConv*(BQ$18*Analyzer!$G$5)/(Analyzer!$K$5*336)),0) -> 0 | BR21: =IF(ShowStock,IF(ISERROR((BR$18*Analyzer!$G$5)/(Analyzer!$K$5*336)),0,SpeedConv*(BR$18*Analyzer!$G$5)/(Analyzer!$K$5*336)),0) -> 0 | BS21: =IF(ShowStock,IF(ISERROR((BS$18*Analyzer!$G$5)/(Analyzer!$K$5*336)),0,SpeedConv*(BS$18*Analyzer!$G$5)/(Analyzer!$K$5*336)),0) -> 0 | BT21: =IF(ShowStock,IF(ISERROR((BT$18*Analyzer!$G$5)/(Analyzer!$K$5*336)),0,SpeedConv*(BT$18*Analyzer!$G$5)/(Analyzer!$K$5*336)),0) -> 0 | BU21: =IF(ShowStock,IF(ISERROR((BU$18*Analyzer!$G$5)/(Analyzer!$K$5*336)),0,SpeedConv*(BU$18*Analyzer!$G$5)/(Analyzer!$K$5*336)),0) -> 0 | BV21: =IF(ShowStock,IF(ISERROR((BV$18*Analyzer!$G$5)/(Analyzer!$K$5*336)),0,SpeedConv*(BV$18*Analyzer!$G$5)/(Analyzer!$K$5*336)),0) -> 0 | BW21: =IF(ShowStock,IF(ISERROR((BW$18*Analyzer!$G$5)/(Analyzer!$K$5*336)),0,SpeedConv*(BW$18*Analyzer!$G$5)/(Analyzer!$K$5*336)),0) -> 0 | BX21: =IF(ShowStock,IF(ISERROR((BX$18*Analyzer!$G$5)/(Analyzer!$K$5*336)),0,SpeedConv*(BX$18*Analyzer!$G$5)/(Analyzer!$K$5*336)),0) -> 0 | BY21: =IF(ShowStock,IF(ISERROR((BY$18*Analyzer!$G$5)/(Analyzer!$K$5*336)),0,SpeedConv*(BY$18*Analyzer!$G$5)/(Analyzer!$K$5*336)),0) -> 0 | BZ21: =IF(ShowStock,IF(ISERROR((BZ$18*Analyzer!$G$5)/(Analyzer!$K$5*336)),0,SpeedConv*(BZ$18*Analyzer!$G$5)/(Analyzer!$K$5*336)),0) -> 0 | CA21: =IF(ShowStock,IF(ISERROR((CA$18*Analyzer!$G$5)/(Analyzer!$K$5*336)),0,SpeedConv*(CA$18*Analyzer!$G$5)/(Analyzer!$K$5*336)),0) -> 0 | CB21: =IF(ShowStock,IF(ISERROR((CB$18*Analyzer!$G$5)/(Analyzer!$K$5*336)),0,SpeedConv*(CB$18*Analyzer!$G$5)/(Analyzer!$K$5*336)),0) -> 0 | CC21: =IF(ShowStock,IF(ISERROR((CC$18*Analyzer!$G$5)/(Analyzer!$K$5*336)),0,SpeedConv*(CC$18*Analyzer!$G$5)/(Analyzer!$K$5*336)),0) -> 0 | CD21: =IF(ShowStock,IF(ISERROR((CD$18*Analyzer!$G$5)/(Analyzer!$K$5*336)),0,SpeedConv*(CD$18*Analyzer!$G$5)/(Analyzer!$K$5*336)),0) -> 0 | CE21: =IF(ShowStock,IF(ISERROR((CE$18*Analyzer!$G$5)/(Analyzer!$K$5*336)),0,SpeedConv*(CE$18*Analyzer!$G$5)/(Analyzer!$K$5*336)),0) -> 0 | CF21: =IF(ShowStock,IF(ISERROR((CF$18*Analyzer!$G$5)/(Analyzer!$K$5*336)),0,SpeedConv*(CF$18*Analyzer!$G$5)/(Analyzer!$K$5*336)),0) -> 0 | CG21: =IF(ShowStock,IF(ISERROR((CG$18*Analyzer!$G$5)/(Analyzer!$K$5*336)),0,SpeedConv*(CG$18*Analyzer!$G$5)/(Analyzer!$K$5*336)),0) -> 0 | CH21: =IF(ShowStock,IF(ISERROR((CH$18*Analyzer!$G$5)/(Analyzer!$K$5*336)),0,SpeedConv*(CH$18*Analyzer!$G$5)/(Analyzer!$K$5*336)),0) -> 0 | CI21: =IF(ShowStock,IF(ISERROR((CI$18*Analyzer!$G$5)/(Analyzer!$K$5*336)),0,SpeedConv*(CI$18*Analyzer!$G$5)/(Analyzer!$K$5*336)),0) -> 0 | CJ21: =IF(ShowStock,IF(ISERROR((CJ$18*Analyzer!$G$5)/(Analyzer!$K$5*336)),0,SpeedConv*(CJ$18*Analyzer!$G$5)/(Analyzer!$K$5*336)),0) -> 0 | CK21: =IF(ShowStock,IF(ISERROR((CK$18*Analyzer!$G$5)/(Analyzer!$K$5*336)),0,SpeedConv*(CK$18*Analyzer!$G$5)/(Analyzer!$K$5*336)),0) -> 0 | CL21: =IF(ShowStock,IF(ISERROR((CL$18*Analyzer!$G$5)/(Analyzer!$K$5*336)),0,SpeedConv*(CL$18*Analyzer!$G$5)/(Analyzer!$K$5*336)),0) -> 0 | CM21: =IF(ShowStock,IF(ISERROR((CM$18*Analyzer!$G$5)/(Analyzer!$K$5*336)),0,SpeedConv*(CM$18*Analyzer!$G$5)/(Analyzer!$K$5*336)),0) -> 0 | CN21: =IF(ShowStock,IF(ISERROR((CN$18*Analyzer!$G$5)/(Analyzer!$K$5*336)),0,SpeedConv*(CN$18*Analyzer!$G$5)/(Analyzer!$K$5*336)),0) -> 0 | CO21: =IF(ShowStock,IF(ISERROR((CO$18*Analyzer!$G$5)/(Analyzer!$K$5*336)),0,SpeedConv*(CO$18*Analyzer!$G$5)/(Analyzer!$K$5*336)),0) -> 0 | CP21: =IF(ShowStock,IF(ISERROR((CP$18*Analyzer!$G$5)/(Analyzer!$K$5*336)),0,SpeedConv*(CP$18*Analyzer!$G$5)/(Analyzer!$K$5*336)),0) -> 0 | CQ21: =IF(ShowStock,IF(ISERROR((CQ$18*Analyzer!$G$5)/(Analyzer!$K$5*336)),0,SpeedConv*(CQ$18*Analyzer!$G$5)/(Analyzer!$K$5*336)),0) -> 0 | CR21: =IF(ShowStock,IF(ISERROR((CR$18*Analyzer!$G$5)/(Analyzer!$K$5*336)),0,SpeedConv*(CR$18*Analyzer!$G$5)/(Analyzer!$K$5*336)),0) -> 0 | CS21: =IF(ShowStock,IF(ISERROR((CS$18*Analyzer!$G$5)/(Analyzer!$K$5*336)),0,SpeedConv*(CS$18*Analyzer!$G$5)/(Analyzer!$K$5*336)),0) -> 0 | CT21: =IF(ShowStock,IF(ISERROR((CT$18*Analyzer!$G$5)/(Analyzer!$K$5*336)),0,SpeedConv*(CT$18*Analyzer!$G$5)/(Analyzer!$K$5*336)),0) -> 0 | CU21: =IF(ShowStock,IF(ISERROR((CU$18*Analyzer!$G$5)/(Analyzer!$K$5*336)),0,SpeedConv*(CU$18*Analyzer!$G$5)/(Analyzer!$K$5*336)),0) -> 0
A22: St-4th | B22: =IF(ShowStock,IF(ISERROR((B$18*Analyzer!$G$5)/(Analyzer!$K$6*336)),0,SpeedConv*(B$18*Analyzer!$G$5)/(Analyzer!$K$6*336)),0) -> 0 | C22: =IF(ShowStock,IF(ISERROR((C$18*Analyzer!$G$5)/(Analyzer!$K$6*336)),0,SpeedConv*(C$18*Analyzer!$G$5)/(Analyzer!$K$6*336)),0) -> 0 | D22: =IF(ShowStock,IF(ISERROR((D$18*Analyzer!$G$5)/(Analyzer!$K$6*336)),0,SpeedConv*(D$18*Analyzer!$G$5)/(Analyzer!$K$6*336)),0) -> 0 | E22: =IF(ShowStock,IF(ISERROR((E$18*Analyzer!$G$5)/(Analyzer!$K$6*336)),0,SpeedConv*(E$18*Analyzer!$G$5)/(Analyzer!$K$6*336)),0) -> 0 | F22: =IF(ShowStock,IF(ISERROR((F$18*Analyzer!$G$5)/(Analyzer!$K$6*336)),0,SpeedConv*(F$18*Analyzer!$G$5)/(Analyzer!$K$6*336)),0) -> 0 | G22: =IF(ShowStock,IF(ISERROR((G$18*Analyzer!$G$5)/(Analyzer!$K$6*336)),0,SpeedConv*(G$18*Analyzer!$G$5)/(Analyzer!$K$6*336)),0) -> 0 | H22: =IF(ShowStock,IF(ISERROR((H$18*Analyzer!$G$5)/(Analyzer!$K$6*336)),0,SpeedConv*(H$18*Analyzer!$G$5)/(Analyzer!$K$6*336)),0) -> 0 | I22: =IF(ShowStock,IF(ISERROR((I$18*Analyzer!$G$5)/(Analyzer!$K$6*336)),0,SpeedConv*(I$18*Analyzer!$G$5)/(Analyzer!$K$6*336)),0) -> 0 | J22: =IF(ShowStock,IF(ISERROR((J$18*Analyzer!$G$5)/(Analyzer!$K$6*336)),0,SpeedConv*(J$18*Analyzer!$G$5)/(Analyzer!$K$6*336)),0) -> 0 | K22: =IF(ShowStock,IF(ISERROR((K$18*Analyzer!$G$5)/(Analyzer!$K$6*336)),0,SpeedConv*(K$18*Analyzer!$G$5)/(Analyzer!$K$6*336)),0) -> 0 | L22: =IF(ShowStock,IF(ISERROR((L$18*Analyzer!$G$5)/(Analyzer!$K$6*336)),0,SpeedConv*(L$18*Analyzer!$G$5)/(Analyzer!$K$6*336)),0) -> 0 | M22: =IF(ShowStock,IF(ISERROR((M$18*Analyzer!$G$5)/(Analyzer!$K$6*336)),0,SpeedConv*(M$18*Analyzer!$G$5)/(Analyzer!$K$6*336)),0) -> 0 | N22: =IF(ShowStock,IF(ISERROR((N$18*Analyzer!$G$5)/(Analyzer!$K$6*336)),0,SpeedConv*(N$18*Analyzer!$G$5)/(Analyzer!$K$6*336)),0) -> 0 | O22: =IF(ShowStock,IF(ISERROR((O$18*Analyzer!$G$5)/(Analyzer!$K$6*336)),0,SpeedConv*(O$18*Analyzer!$G$5)/(Analyzer!$K$6*336)),0) -> 0 | P22: =IF(ShowStock,IF(ISERROR((P$18*Analyzer!$G$5)/(Analyzer!$K$6*336)),0,SpeedConv*(P$18*Analyzer!$G$5)/(Analyzer!$K$6*336)),0) -> 0 | Q22: =IF(ShowStock,IF(ISERROR((Q$18*Analyzer!$G$5)/(Analyzer!$K$6*336)),0,SpeedConv*(Q$18*Analyzer!$G$5)/(Analyzer!$K$6*336)),0) -> 0 | R22: =IF(ShowStock,IF(ISERROR((R$18*Analyzer!$G$5)/(Analyzer!$K$6*336)),0,SpeedConv*(R$18*Analyzer!$G$5)/(Analyzer!$K$6*336)),0) -> 0 | S22: =IF(ShowStock,IF(ISERROR((S$18*Analyzer!$G$5)/(Analyzer!$K$6*336)),0,SpeedConv*(S$18*Analyzer!$G$5)/(Analyzer!$K$6*336)),0) -> 0 | T22: =IF(ShowStock,IF(ISERROR((T$18*Analyzer!$G$5)/(Analyzer!$K$6*336)),0,SpeedConv*(T$18*Analyzer!$G$5)/(Analyzer!$K$6*336)),0) -> 0 | U22: =IF(ShowStock,IF(ISERROR((U$18*Analyzer!$G$5)/(Analyzer!$K$6*336)),0,SpeedConv*(U$18*Analyzer!$G$5)/(Analyzer!$K$6*336)),0) -> 0 | V22: =IF(ShowStock,IF(ISERROR((V$18*Analyzer!$G$5)/(Analyzer!$K$6*336)),0,SpeedConv*(V$18*Analyzer!$G$5)/(Analyzer!$K$6*336)),0) -> 0 | W22: =IF(ShowStock,IF(ISERROR((W$18*Analyzer!$G$5)/(Analyzer!$K$6*336)),0,SpeedConv*(W$18*Analyzer!$G$5)/(Analyzer!$K$6*336)),0) -> 0 | X22: =IF(ShowStock,IF(ISERROR((X$18*Analyzer!$G$5)/(Analyzer!$K$6*336)),0,SpeedConv*(X$18*Analyzer!$G$5)/(Analyzer!$K$6*336)),0) -> 0 | Y22: =IF(ShowStock,IF(ISERROR((Y$18*Analyzer!$G$5)/(Analyzer!$K$6*336)),0,SpeedConv*(Y$18*Analyzer!$G$5)/(Analyzer!$K$6*336)),0) -> 0 | Z22: =IF(ShowStock,IF(ISERROR((Z$18*Analyzer!$G$5)/(Analyzer!$K$6*336)),0,SpeedConv*(Z$18*Analyzer!$G$5)/(Analyzer!$K$6*336)),0) -> 0 | AA22: =IF(ShowStock,IF(ISERROR((AA$18*Analyzer!$G$5)/(Analyzer!$K$6*336)),0,SpeedConv*(AA$18*Analyzer!$G$5)/(Analyzer!$K$6*336)),0) -> 0 | AB22: =IF(ShowStock,IF(ISERROR((AB$18*Analyzer!$G$5)/(Analyzer!$K$6*336)),0,SpeedConv*(AB$18*Analyzer!$G$5)/(Analyzer!$K$6*336)),0) -> 0 | AC22: =IF(ShowStock,IF(ISERROR((AC$18*Analyzer!$G$5)/(Analyzer!$K$6*336)),0,SpeedConv*(AC$18*Analyzer!$G$5)/(Analyzer!$K$6*336)),0) -> 0 | AD22: =IF(ShowStock,IF(ISERROR((AD$18*Analyzer!$G$5)/(Analyzer!$K$6*336)),0,SpeedConv*(AD$18*Analyzer!$G$5)/(Analyzer!$K$6*336)),0) -> 0 | AE22: =IF(ShowStock,IF(ISERROR((AE$18*Analyzer!$G$5)/(Analyzer!$K$6*336)),0,SpeedConv*(AE$18*Analyzer!$G$5)/(Analyzer!$K$6*336)),0) -> 0 | AF22: =IF(ShowStock,IF(ISERROR((AF$18*Analyzer!$G$5)/(Analyzer!$K$6*336)),0,SpeedConv*(AF$18*Analyzer!$G$5)/(Analyzer!$K$6*336)),0) -> 0 | AG22: =IF(ShowStock,IF(ISERROR((AG$18*Analyzer!$G$5)/(Analyzer!$K$6*336)),0,SpeedConv*(AG$18*Analyzer!$G$5)/(Analyzer!$K$6*336)),0) -> 0 | AH22: =IF(ShowStock,IF(ISERROR((AH$18*Analyzer!$G$5)/(Analyzer!$K$6*336)),0,SpeedConv*(AH$18*Analyzer!$G$5)/(Analyzer!$K$6*336)),0) -> 0 | AI22: =IF(ShowStock,IF(ISERROR((AI$18*Analyzer!$G$5)/(Analyzer!$K$6*336)),0,SpeedConv*(AI$18*Analyzer!$G$5)/(Analyzer!$K$6*336)),0) -> 0 | AJ22: =IF(ShowStock,IF(ISERROR((AJ$18*Analyzer!$G$5)/(Analyzer!$K$6*336)),0,SpeedConv*(AJ$18*Analyzer!$G$5)/(Analyzer!$K$6*336)),0) -> 0 | AK22: =IF(ShowStock,IF(ISERROR((AK$18*Analyzer!$G$5)/(Analyzer!$K$6*336)),0,SpeedConv*(AK$18*Analyzer!$G$5)/(Analyzer!$K$6*336)),0) -> 0 | AL22: =IF(ShowStock,IF(ISERROR((AL$18*Analyzer!$G$5)/(Analyzer!$K$6*336)),0,SpeedConv*(AL$18*Analyzer!$G$5)/(Analyzer!$K$6*336)),0) -> 0 | AM22: =IF(ShowStock,IF(ISERROR((AM$18*Analyzer!$G$5)/(Analyzer!$K$6*336)),0,SpeedConv*(AM$18*Analyzer!$G$5)/(Analyzer!$K$6*336)),0) -> 0 | AN22: =IF(ShowStock,IF(ISERROR((AN$18*Analyzer!$G$5)/(Analyzer!$K$6*336)),0,SpeedConv*(AN$18*Analyzer!$G$5)/(Analyzer!$K$6*336)),0) -> 0 | AO22: =IF(ShowStock,IF(ISERROR((AO$18*Analyzer!$G$5)/(Analyzer!$K$6*336)),0,SpeedConv*(AO$18*Analyzer!$G$5)/(Analyzer!$K$6*336)),0) -> 0 | AP22: =IF(ShowStock,IF(ISERROR((AP$18*Analyzer!$G$5)/(Analyzer!$K$6*336)),0,SpeedConv*(AP$18*Analyzer!$G$5)/(Analyzer!$K$6*336)),0) -> 0 | AQ22: =IF(ShowStock,IF(ISERROR((AQ$18*Analyzer!$G$5)/(Analyzer!$K$6*336)),0,SpeedConv*(AQ$18*Analyzer!$G$5)/(Analyzer!$K$6*336)),0) -> 0 | AR22: =IF(ShowStock,IF(ISERROR((AR$18*Analyzer!$G$5)/(Analyzer!$K$6*336)),0,SpeedConv*(AR$18*Analyzer!$G$5)/(Analyzer!$K$6*336)),0) -> 0 | AS22: =IF(ShowStock,IF(ISERROR((AS$18*Analyzer!$G$5)/(Analyzer!$K$6*336)),0,SpeedConv*(AS$18*Analyzer!$G$5)/(Analyzer!$K$6*336)),0) -> 0 | AT22: =IF(ShowStock,IF(ISERROR((AT$18*Analyzer!$G$5)/(Analyzer!$K$6*336)),0,SpeedConv*(AT$18*Analyzer!$G$5)/(Analyzer!$K$6*336)),0) -> 0 | AU22: =IF(ShowStock,IF(ISERROR((AU$18*Analyzer!$G$5)/(Analyzer!$K$6*336)),0,SpeedConv*(AU$18*Analyzer!$G$5)/(Analyzer!$K$6*336)),0) -> 0 | AV22: =IF(ShowStock,IF(ISERROR((AV$18*Analyzer!$G$5)/(Analyzer!$K$6*336)),0,SpeedConv*(AV$18*Analyzer!$G$5)/(Analyzer!$K$6*336)),0) -> 0 | AW22: =IF(ShowStock,IF(ISERROR((AW$18*Analyzer!$G$5)/(Analyzer!$K$6*336)),0,SpeedConv*(AW$18*Analyzer!$G$5)/(Analyzer!$K$6*336)),0) -> 0 | AX22: =IF(ShowStock,IF(ISERROR((AX$18*Analyzer!$G$5)/(Analyzer!$K$6*336)),0,SpeedConv*(AX$18*Analyzer!$G$5)/(Analyzer!$K$6*336)),0) -> 0 | AY22: =IF(ShowStock,IF(ISERROR((AY$18*Analyzer!$G$5)/(Analyzer!$K$6*336)),0,SpeedConv*(AY$18*Analyzer!$G$5)/(Analyzer!$K$6*336)),0) -> 0 | AZ22: =IF(ShowStock,IF(ISERROR((AZ$18*Analyzer!$G$5)/(Analyzer!$K$6*336)),0,SpeedConv*(AZ$18*Analyzer!$G$5)/(Analyzer!$K$6*336)),0) -> 0 | BA22: =IF(ShowStock,IF(ISERROR((BA$18*Analyzer!$G$5)/(Analyzer!$K$6*336)),0,SpeedConv*(BA$18*Analyzer!$G$5)/(Analyzer!$K$6*336)),0) -> 0 | BB22: =IF(ShowStock,IF(ISERROR((BB$18*Analyzer!$G$5)/(Analyzer!$K$6*336)),0,SpeedConv*(BB$18*Analyzer!$G$5)/(Analyzer!$K$6*336)),0) -> 0 | BC22: =IF(ShowStock,IF(ISERROR((BC$18*Analyzer!$G$5)/(Analyzer!$K$6*336)),0,SpeedConv*(BC$18*Analyzer!$G$5)/(Analyzer!$K$6*336)),0) -> 0 | BD22: =IF(ShowStock,IF(ISERROR((BD$18*Analyzer!$G$5)/(Analyzer!$K$6*336)),0,SpeedConv*(BD$18*Analyzer!$G$5)/(Analyzer!$K$6*336)),0) -> 0 | BE22: =IF(ShowStock,IF(ISERROR((BE$18*Analyzer!$G$5)/(Analyzer!$K$6*336)),0,SpeedConv*(BE$18*Analyzer!$G$5)/(Analyzer!$K$6*336)),0) -> 0 | BF22: =IF(ShowStock,IF(ISERROR((BF$18*Analyzer!$G$5)/(Analyzer!$K$6*336)),0,SpeedConv*(BF$18*Analyzer!$G$5)/(Analyzer!$K$6*336)),0) -> 0 | BG22: =IF(ShowStock,IF(ISERROR((BG$18*Analyzer!$G$5)/(Analyzer!$K$6*336)),0,SpeedConv*(BG$18*Analyzer!$G$5)/(Analyzer!$K$6*336)),0) -> 0 | BH22: =IF(ShowStock,IF(ISERROR((BH$18*Analyzer!$G$5)/(Analyzer!$K$6*336)),0,SpeedConv*(BH$18*Analyzer!$G$5)/(Analyzer!$K$6*336)),0) -> 0 | BI22: =IF(ShowStock,IF(ISERROR((BI$18*Analyzer!$G$5)/(Analyzer!$K$6*336)),0,SpeedConv*(BI$18*Analyzer!$G$5)/(Analyzer!$K$6*336)),0) -> 0 | BJ22: =IF(ShowStock,IF(ISERROR((BJ$18*Analyzer!$G$5)/(Analyzer!$K$6*336)),0,SpeedConv*(BJ$18*Analyzer!$G$5)/(Analyzer!$K$6*336)),0) -> 0 | BK22: =IF(ShowStock,IF(ISERROR((BK$18*Analyzer!$G$5)/(Analyzer!$K$6*336)),0,SpeedConv*(BK$18*Analyzer!$G$5)/(Analyzer!$K$6*336)),0) -> 0 | BL22: =IF(ShowStock,IF(ISERROR((BL$18*Analyzer!$G$5)/(Analyzer!$K$6*336)),0,SpeedConv*(BL$18*Analyzer!$G$5)/(Analyzer!$K$6*336)),0) -> 0 | BM22: =IF(ShowStock,IF(ISERROR((BM$18*Analyzer!$G$5)/(Analyzer!$K$6*336)),0,SpeedConv*(BM$18*Analyzer!$G$5)/(Analyzer!$K$6*336)),0) -> 0 | BN22: =IF(ShowStock,IF(ISERROR((BN$18*Analyzer!$G$5)/(Analyzer!$K$6*336)),0,SpeedConv*(BN$18*Analyzer!$G$5)/(Analyzer!$K$6*336)),0) -> 0 | BO22: =IF(ShowStock,IF(ISERROR((BO$18*Analyzer!$G$5)/(Analyzer!$K$6*336)),0,SpeedConv*(BO$18*Analyzer!$G$5)/(Analyzer!$K$6*336)),0) -> 0 | BP22: =IF(ShowStock,IF(ISERROR((BP$18*Analyzer!$G$5)/(Analyzer!$K$6*336)),0,SpeedConv*(BP$18*Analyzer!$G$5)/(Analyzer!$K$6*336)),0) -> 0 | BQ22: =IF(ShowStock,IF(ISERROR((BQ$18*Analyzer!$G$5)/(Analyzer!$K$6*336)),0,SpeedConv*(BQ$18*Analyzer!$G$5)/(Analyzer!$K$6*336)),0) -> 0 | BR22: =IF(ShowStock,IF(ISERROR((BR$18*Analyzer!$G$5)/(Analyzer!$K$6*336)),0,SpeedConv*(BR$18*Analyzer!$G$5)/(Analyzer!$K$6*336)),0) -> 0 | BS22: =IF(ShowStock,IF(ISERROR((BS$18*Analyzer!$G$5)/(Analyzer!$K$6*336)),0,SpeedConv*(BS$18*Analyzer!$G$5)/(Analyzer!$K$6*336)),0) -> 0 | BT22: =IF(ShowStock,IF(ISERROR((BT$18*Analyzer!$G$5)/(Analyzer!$K$6*336)),0,SpeedConv*(BT$18*Analyzer!$G$5)/(Analyzer!$K$6*336)),0) -> 0 | BU22: =IF(ShowStock,IF(ISERROR((BU$18*Analyzer!$G$5)/(Analyzer!$K$6*336)),0,SpeedConv*(BU$18*Analyzer!$G$5)/(Analyzer!$K$6*336)),0) -> 0 | BV22: =IF(ShowStock,IF(ISERROR((BV$18*Analyzer!$G$5)/(Analyzer!$K$6*336)),0,SpeedConv*(BV$18*Analyzer!$G$5)/(Analyzer!$K$6*336)),0) -> 0 | BW22: =IF(ShowStock,IF(ISERROR((BW$18*Analyzer!$G$5)/(Analyzer!$K$6*336)),0,SpeedConv*(BW$18*Analyzer!$G$5)/(Analyzer!$K$6*336)),0) -> 0 | BX22: =IF(ShowStock,IF(ISERROR((BX$18*Analyzer!$G$5)/(Analyzer!$K$6*336)),0,SpeedConv*(BX$18*Analyzer!$G$5)/(Analyzer!$K$6*336)),0) -> 0 | BY22: =IF(ShowStock,IF(ISERROR((BY$18*Analyzer!$G$5)/(Analyzer!$K$6*336)),0,SpeedConv*(BY$18*Analyzer!$G$5)/(Analyzer!$K$6*336)),0) -> 0 | BZ22: =IF(ShowStock,IF(ISERROR((BZ$18*Analyzer!$G$5)/(Analyzer!$K$6*336)),0,SpeedConv*(BZ$18*Analyzer!$G$5)/(Analyzer!$K$6*336)),0) -> 0 | CA22: =IF(ShowStock,IF(ISERROR((CA$18*Analyzer!$G$5)/(Analyzer!$K$6*336)),0,SpeedConv*(CA$18*Analyzer!$G$5)/(Analyzer!$K$6*336)),0) -> 0 | CB22: =IF(ShowStock,IF(ISERROR((CB$18*Analyzer!$G$5)/(Analyzer!$K$6*336)),0,SpeedConv*(CB$18*Analyzer!$G$5)/(Analyzer!$K$6*336)),0) -> 0 | CC22: =IF(ShowStock,IF(ISERROR((CC$18*Analyzer!$G$5)/(Analyzer!$K$6*336)),0,SpeedConv*(CC$18*Analyzer!$G$5)/(Analyzer!$K$6*336)),0) -> 0 | CD22: =IF(ShowStock,IF(ISERROR((CD$18*Analyzer!$G$5)/(Analyzer!$K$6*336)),0,SpeedConv*(CD$18*Analyzer!$G$5)/(Analyzer!$K$6*336)),0) -> 0 | CE22: =IF(ShowStock,IF(ISERROR((CE$18*Analyzer!$G$5)/(Analyzer!$K$6*336)),0,SpeedConv*(CE$18*Analyzer!$G$5)/(Analyzer!$K$6*336)),0) -> 0 | CF22: =IF(ShowStock,IF(ISERROR((CF$18*Analyzer!$G$5)/(Analyzer!$K$6*336)),0,SpeedConv*(CF$18*Analyzer!$G$5)/(Analyzer!$K$6*336)),0) -> 0 | CG22: =IF(ShowStock,IF(ISERROR((CG$18*Analyzer!$G$5)/(Analyzer!$K$6*336)),0,SpeedConv*(CG$18*Analyzer!$G$5)/(Analyzer!$K$6*336)),0) -> 0 | CH22: =IF(ShowStock,IF(ISERROR((CH$18*Analyzer!$G$5)/(Analyzer!$K$6*336)),0,SpeedConv*(CH$18*Analyzer!$G$5)/(Analyzer!$K$6*336)),0) -> 0 | CI22: =IF(ShowStock,IF(ISERROR((CI$18*Analyzer!$G$5)/(Analyzer!$K$6*336)),0,SpeedConv*(CI$18*Analyzer!$G$5)/(Analyzer!$K$6*336)),0) -> 0 | CJ22: =IF(ShowStock,IF(ISERROR((CJ$18*Analyzer!$G$5)/(Analyzer!$K$6*336)),0,SpeedConv*(CJ$18*Analyzer!$G$5)/(Analyzer!$K$6*336)),0) -> 0 | CK22: =IF(ShowStock,IF(ISERROR((CK$18*Analyzer!$G$5)/(Analyzer!$K$6*336)),0,SpeedConv*(CK$18*Analyzer!$G$5)/(Analyzer!$K$6*336)),0) -> 0 | CL22: =IF(ShowStock,IF(ISERROR((CL$18*Analyzer!$G$5)/(Analyzer!$K$6*336)),0,SpeedConv*(CL$18*Analyzer!$G$5)/(Analyzer!$K$6*336)),0) -> 0 | CM22: =IF(ShowStock,IF(ISERROR((CM$18*Analyzer!$G$5)/(Analyzer!$K$6*336)),0,SpeedConv*(CM$18*Analyzer!$G$5)/(Analyzer!$K$6*336)),0) -> 0 | CN22: =IF(ShowStock,IF(ISERROR((CN$18*Analyzer!$G$5)/(Analyzer!$K$6*336)),0,SpeedConv*(CN$18*Analyzer!$G$5)/(Analyzer!$K$6*336)),0) -> 0 | CO22: =IF(ShowStock,IF(ISERROR((CO$18*Analyzer!$G$5)/(Analyzer!$K$6*336)),0,SpeedConv*(CO$18*Analyzer!$G$5)/(Analyzer!$K$6*336)),0) -> 0 | CP22: =IF(ShowStock,IF(ISERROR((CP$18*Analyzer!$G$5)/(Analyzer!$K$6*336)),0,SpeedConv*(CP$18*Analyzer!$G$5)/(Analyzer!$K$6*336)),0) -> 0 | CQ22: =IF(ShowStock,IF(ISERROR((CQ$18*Analyzer!$G$5)/(Analyzer!$K$6*336)),0,SpeedConv*(CQ$18*Analyzer!$G$5)/(Analyzer!$K$6*336)),0) -> 0 | CR22: =IF(ShowStock,IF(ISERROR((CR$18*Analyzer!$G$5)/(Analyzer!$K$6*336)),0,SpeedConv*(CR$18*Analyzer!$G$5)/(Analyzer!$K$6*336)),0) -> 0 | CS22: =IF(ShowStock,IF(ISERROR((CS$18*Analyzer!$G$5)/(Analyzer!$K$6*336)),0,SpeedConv*(CS$18*Analyzer!$G$5)/(Analyzer!$K$6*336)),0) -> 0 | CT22: =IF(ShowStock,IF(ISERROR((CT$18*Analyzer!$G$5)/(Analyzer!$K$6*336)),0,SpeedConv*(CT$18*Analyzer!$G$5)/(Analyzer!$K$6*336)),0) -> 0 | CU22: =IF(ShowStock,IF(ISERROR((CU$18*Analyzer!$G$5)/(Analyzer!$K$6*336)),0,SpeedConv*(CU$18*Analyzer!$G$5)/(Analyzer!$K$6*336)),0) -> 0
A23: St-5th | B23: =IF(ShowStock,IF(ISERROR((B$18*Analyzer!$G$5)/(Analyzer!$K$7*336)),0,SpeedConv*(B$18*Analyzer!$G$5)/(Analyzer!$K$7*336)),0) -> 0 | C23: =IF(ShowStock,IF(ISERROR((C$18*Analyzer!$G$5)/(Analyzer!$K$7*336)),0,SpeedConv*(C$18*Analyzer!$G$5)/(Analyzer!$K$7*336)),0) -> 0 | D23: =IF(ShowStock,IF(ISERROR((D$18*Analyzer!$G$5)/(Analyzer!$K$7*336)),0,SpeedConv*(D$18*Analyzer!$G$5)/(Analyzer!$K$7*336)),0) -> 0 | E23: =IF(ShowStock,IF(ISERROR((E$18*Analyzer!$G$5)/(Analyzer!$K$7*336)),0,SpeedConv*(E$18*Analyzer!$G$5)/(Analyzer!$K$7*336)),0) -> 0 | F23: =IF(ShowStock,IF(ISERROR((F$18*Analyzer!$G$5)/(Analyzer!$K$7*336)),0,SpeedConv*(F$18*Analyzer!$G$5)/(Analyzer!$K$7*336)),0) -> 0 | G23: =IF(ShowStock,IF(ISERROR((G$18*Analyzer!$G$5)/(Analyzer!$K$7*336)),0,SpeedConv*(G$18*Analyzer!$G$5)/(Analyzer!$K$7*336)),0) -> 0 | H23: =IF(ShowStock,IF(ISERROR((H$18*Analyzer!$G$5)/(Analyzer!$K$7*336)),0,SpeedConv*(H$18*Analyzer!$G$5)/(Analyzer!$K$7*336)),0) -> 0 | I23: =IF(ShowStock,IF(ISERROR((I$18*Analyzer!$G$5)/(Analyzer!$K$7*336)),0,SpeedConv*(I$18*Analyzer!$G$5)/(Analyzer!$K$7*336)),0) -> 0 | J23: =IF(ShowStock,IF(ISERROR((J$18*Analyzer!$G$5)/(Analyzer!$K$7*336)),0,SpeedConv*(J$18*Analyzer!$G$5)/(Analyzer!$K$7*336)),0) -> 0 | K23: =IF(ShowStock,IF(ISERROR((K$18*Analyzer!$G$5)/(Analyzer!$K$7*336)),0,SpeedConv*(K$18*Analyzer!$G$5)/(Analyzer!$K$7*336)),0) -> 0 | L23: =IF(ShowStock,IF(ISERROR((L$18*Analyzer!$G$5)/(Analyzer!$K$7*336)),0,SpeedConv*(L$18*Analyzer!$G$5)/(Analyzer!$K$7*336)),0) -> 0 | M23: =IF(ShowStock,IF(ISERROR((M$18*Analyzer!$G$5)/(Analyzer!$K$7*336)),0,SpeedConv*(M$18*Analyzer!$G$5)/(Analyzer!$K$7*336)),0) -> 0 | N23: =IF(ShowStock,IF(ISERROR((N$18*Analyzer!$G$5)/(Analyzer!$K$7*336)),0,SpeedConv*(N$18*Analyzer!$G$5)/(Analyzer!$K$7*336)),0) -> 0 | O23: =IF(ShowStock,IF(ISERROR((O$18*Analyzer!$G$5)/(Analyzer!$K$7*336)),0,SpeedConv*(O$18*Analyzer!$G$5)/(Analyzer!$K$7*336)),0) -> 0 | P23: =IF(ShowStock,IF(ISERROR((P$18*Analyzer!$G$5)/(Analyzer!$K$7*336)),0,SpeedConv*(P$18*Analyzer!$G$5)/(Analyzer!$K$7*336)),0) -> 0 | Q23: =IF(ShowStock,IF(ISERROR((Q$18*Analyzer!$G$5)/(Analyzer!$K$7*336)),0,SpeedConv*(Q$18*Analyzer!$G$5)/(Analyzer!$K$7*336)),0) -> 0 | R23: =IF(ShowStock,IF(ISERROR((R$18*Analyzer!$G$5)/(Analyzer!$K$7*336)),0,SpeedConv*(R$18*Analyzer!$G$5)/(Analyzer!$K$7*336)),0) -> 0 | S23: =IF(ShowStock,IF(ISERROR((S$18*Analyzer!$G$5)/(Analyzer!$K$7*336)),0,SpeedConv*(S$18*Analyzer!$G$5)/(Analyzer!$K$7*336)),0) -> 0 | T23: =IF(ShowStock,IF(ISERROR((T$18*Analyzer!$G$5)/(Analyzer!$K$7*336)),0,SpeedConv*(T$18*Analyzer!$G$5)/(Analyzer!$K$7*336)),0) -> 0 | U23: =IF(ShowStock,IF(ISERROR((U$18*Analyzer!$G$5)/(Analyzer!$K$7*336)),0,SpeedConv*(U$18*Analyzer!$G$5)/(Analyzer!$K$7*336)),0) -> 0 | V23: =IF(ShowStock,IF(ISERROR((V$18*Analyzer!$G$5)/(Analyzer!$K$7*336)),0,SpeedConv*(V$18*Analyzer!$G$5)/(Analyzer!$K$7*336)),0) -> 0 | W23: =IF(ShowStock,IF(ISERROR((W$18*Analyzer!$G$5)/(Analyzer!$K$7*336)),0,SpeedConv*(W$18*Analyzer!$G$5)/(Analyzer!$K$7*336)),0) -> 0 | X23: =IF(ShowStock,IF(ISERROR((X$18*Analyzer!$G$5)/(Analyzer!$K$7*336)),0,SpeedConv*(X$18*Analyzer!$G$5)/(Analyzer!$K$7*336)),0) -> 0 | Y23: =IF(ShowStock,IF(ISERROR((Y$18*Analyzer!$G$5)/(Analyzer!$K$7*336)),0,SpeedConv*(Y$18*Analyzer!$G$5)/(Analyzer!$K$7*336)),0) -> 0 | Z23: =IF(ShowStock,IF(ISERROR((Z$18*Analyzer!$G$5)/(Analyzer!$K$7*336)),0,SpeedConv*(Z$18*Analyzer!$G$5)/(Analyzer!$K$7*336)),0) -> 0 | AA23: =IF(ShowStock,IF(ISERROR((AA$18*Analyzer!$G$5)/(Analyzer!$K$7*336)),0,SpeedConv*(AA$18*Analyzer!$G$5)/(Analyzer!$K$7*336)),0) -> 0 | AB23: =IF(ShowStock,IF(ISERROR((AB$18*Analyzer!$G$5)/(Analyzer!$K$7*336)),0,SpeedConv*(AB$18*Analyzer!$G$5)/(Analyzer!$K$7*336)),0) -> 0 | AC23: =IF(ShowStock,IF(ISERROR((AC$18*Analyzer!$G$5)/(Analyzer!$K$7*336)),0,SpeedConv*(AC$18*Analyzer!$G$5)/(Analyzer!$K$7*336)),0) -> 0 | AD23: =IF(ShowStock,IF(ISERROR((AD$18*Analyzer!$G$5)/(Analyzer!$K$7*336)),0,SpeedConv*(AD$18*Analyzer!$G$5)/(Analyzer!$K$7*336)),0) -> 0 | AE23: =IF(ShowStock,IF(ISERROR((AE$18*Analyzer!$G$5)/(Analyzer!$K$7*336)),0,SpeedConv*(AE$18*Analyzer!$G$5)/(Analyzer!$K$7*336)),0) -> 0 | AF23: =IF(ShowStock,IF(ISERROR((AF$18*Analyzer!$G$5)/(Analyzer!$K$7*336)),0,SpeedConv*(AF$18*Analyzer!$G$5)/(Analyzer!$K$7*336)),0) -> 0 | AG23: =IF(ShowStock,IF(ISERROR((AG$18*Analyzer!$G$5)/(Analyzer!$K$7*336)),0,SpeedConv*(AG$18*Analyzer!$G$5)/(Analyzer!$K$7*336)),0) -> 0 | AH23: =IF(ShowStock,IF(ISERROR((AH$18*Analyzer!$G$5)/(Analyzer!$K$7*336)),0,SpeedConv*(AH$18*Analyzer!$G$5)/(Analyzer!$K$7*336)),0) -> 0 | AI23: =IF(ShowStock,IF(ISERROR((AI$18*Analyzer!$G$5)/(Analyzer!$K$7*336)),0,SpeedConv*(AI$18*Analyzer!$G$5)/(Analyzer!$K$7*336)),0) -> 0 | AJ23: =IF(ShowStock,IF(ISERROR((AJ$18*Analyzer!$G$5)/(Analyzer!$K$7*336)),0,SpeedConv*(AJ$18*Analyzer!$G$5)/(Analyzer!$K$7*336)),0) -> 0 | AK23: =IF(ShowStock,IF(ISERROR((AK$18*Analyzer!$G$5)/(Analyzer!$K$7*336)),0,SpeedConv*(AK$18*Analyzer!$G$5)/(Analyzer!$K$7*336)),0) -> 0 | AL23: =IF(ShowStock,IF(ISERROR((AL$18*Analyzer!$G$5)/(Analyzer!$K$7*336)),0,SpeedConv*(AL$18*Analyzer!$G$5)/(Analyzer!$K$7*336)),0) -> 0 | AM23: =IF(ShowStock,IF(ISERROR((AM$18*Analyzer!$G$5)/(Analyzer!$K$7*336)),0,SpeedConv*(AM$18*Analyzer!$G$5)/(Analyzer!$K$7*336)),0) -> 0 | AN23: =IF(ShowStock,IF(ISERROR((AN$18*Analyzer!$G$5)/(Analyzer!$K$7*336)),0,SpeedConv*(AN$18*Analyzer!$G$5)/(Analyzer!$K$7*336)),0) -> 0 | AO23: =IF(ShowStock,IF(ISERROR((AO$18*Analyzer!$G$5)/(Analyzer!$K$7*336)),0,SpeedConv*(AO$18*Analyzer!$G$5)/(Analyzer!$K$7*336)),0) -> 0 | AP23: =IF(ShowStock,IF(ISERROR((AP$18*Analyzer!$G$5)/(Analyzer!$K$7*336)),0,SpeedConv*(AP$18*Analyzer!$G$5)/(Analyzer!$K$7*336)),0) -> 0 | AQ23: =IF(ShowStock,IF(ISERROR((AQ$18*Analyzer!$G$5)/(Analyzer!$K$7*336)),0,SpeedConv*(AQ$18*Analyzer!$G$5)/(Analyzer!$K$7*336)),0) -> 0 | AR23: =IF(ShowStock,IF(ISERROR((AR$18*Analyzer!$G$5)/(Analyzer!$K$7*336)),0,SpeedConv*(AR$18*Analyzer!$G$5)/(Analyzer!$K$7*336)),0) -> 0 | AS23: =IF(ShowStock,IF(ISERROR((AS$18*Analyzer!$G$5)/(Analyzer!$K$7*336)),0,SpeedConv*(AS$18*Analyzer!$G$5)/(Analyzer!$K$7*336)),0) -> 0 | AT23: =IF(ShowStock,IF(ISERROR((AT$18*Analyzer!$G$5)/(Analyzer!$K$7*336)),0,SpeedConv*(AT$18*Analyzer!$G$5)/(Analyzer!$K$7*336)),0) -> 0 | AU23: =IF(ShowStock,IF(ISERROR((AU$18*Analyzer!$G$5)/(Analyzer!$K$7*336)),0,SpeedConv*(AU$18*Analyzer!$G$5)/(Analyzer!$K$7*336)),0) -> 0 | AV23: =IF(ShowStock,IF(ISERROR((AV$18*Analyzer!$G$5)/(Analyzer!$K$7*336)),0,SpeedConv*(AV$18*Analyzer!$G$5)/(Analyzer!$K$7*336)),0) -> 0 | AW23: =IF(ShowStock,IF(ISERROR((AW$18*Analyzer!$G$5)/(Analyzer!$K$7*336)),0,SpeedConv*(AW$18*Analyzer!$G$5)/(Analyzer!$K$7*336)),0) -> 0 | AX23: =IF(ShowStock,IF(ISERROR((AX$18*Analyzer!$G$5)/(Analyzer!$K$7*336)),0,SpeedConv*(AX$18*Analyzer!$G$5)/(Analyzer!$K$7*336)),0) -> 0 | AY23: =IF(ShowStock,IF(ISERROR((AY$18*Analyzer!$G$5)/(Analyzer!$K$7*336)),0,SpeedConv*(AY$18*Analyzer!$G$5)/(Analyzer!$K$7*336)),0) -> 0 | AZ23: =IF(ShowStock,IF(ISERROR((AZ$18*Analyzer!$G$5)/(Analyzer!$K$7*336)),0,SpeedConv*(AZ$18*Analyzer!$G$5)/(Analyzer!$K$7*336)),0) -> 0 | BA23: =IF(ShowStock,IF(ISERROR((BA$18*Analyzer!$G$5)/(Analyzer!$K$7*336)),0,SpeedConv*(BA$18*Analyzer!$G$5)/(Analyzer!$K$7*336)),0) -> 0 | BB23: =IF(ShowStock,IF(ISERROR((BB$18*Analyzer!$G$5)/(Analyzer!$K$7*336)),0,SpeedConv*(BB$18*Analyzer!$G$5)/(Analyzer!$K$7*336)),0) -> 0 | BC23: =IF(ShowStock,IF(ISERROR((BC$18*Analyzer!$G$5)/(Analyzer!$K$7*336)),0,SpeedConv*(BC$18*Analyzer!$G$5)/(Analyzer!$K$7*336)),0) -> 0 | BD23: =IF(ShowStock,IF(ISERROR((BD$18*Analyzer!$G$5)/(Analyzer!$K$7*336)),0,SpeedConv*(BD$18*Analyzer!$G$5)/(Analyzer!$K$7*336)),0) -> 0 | BE23: =IF(ShowStock,IF(ISERROR((BE$18*Analyzer!$G$5)/(Analyzer!$K$7*336)),0,SpeedConv*(BE$18*Analyzer!$G$5)/(Analyzer!$K$7*336)),0) -> 0 | BF23: =IF(ShowStock,IF(ISERROR((BF$18*Analyzer!$G$5)/(Analyzer!$K$7*336)),0,SpeedConv*(BF$18*Analyzer!$G$5)/(Analyzer!$K$7*336)),0) -> 0 | BG23: =IF(ShowStock,IF(ISERROR((BG$18*Analyzer!$G$5)/(Analyzer!$K$7*336)),0,SpeedConv*(BG$18*Analyzer!$G$5)/(Analyzer!$K$7*336)),0) -> 0 | BH23: =IF(ShowStock,IF(ISERROR((BH$18*Analyzer!$G$5)/(Analyzer!$K$7*336)),0,SpeedConv*(BH$18*Analyzer!$G$5)/(Analyzer!$K$7*336)),0) -> 0 | BI23: =IF(ShowStock,IF(ISERROR((BI$18*Analyzer!$G$5)/(Analyzer!$K$7*336)),0,SpeedConv*(BI$18*Analyzer!$G$5)/(Analyzer!$K$7*336)),0) -> 0 | BJ23: =IF(ShowStock,IF(ISERROR((BJ$18*Analyzer!$G$5)/(Analyzer!$K$7*336)),0,SpeedConv*(BJ$18*Analyzer!$G$5)/(Analyzer!$K$7*336)),0) -> 0 | BK23: =IF(ShowStock,IF(ISERROR((BK$18*Analyzer!$G$5)/(Analyzer!$K$7*336)),0,SpeedConv*(BK$18*Analyzer!$G$5)/(Analyzer!$K$7*336)),0) -> 0 | BL23: =IF(ShowStock,IF(ISERROR((BL$18*Analyzer!$G$5)/(Analyzer!$K$7*336)),0,SpeedConv*(BL$18*Analyzer!$G$5)/(Analyzer!$K$7*336)),0) -> 0 | BM23: =IF(ShowStock,IF(ISERROR((BM$18*Analyzer!$G$5)/(Analyzer!$K$7*336)),0,SpeedConv*(BM$18*Analyzer!$G$5)/(Analyzer!$K$7*336)),0) -> 0 | BN23: =IF(ShowStock,IF(ISERROR((BN$18*Analyzer!$G$5)/(Analyzer!$K$7*336)),0,SpeedConv*(BN$18*Analyzer!$G$5)/(Analyzer!$K$7*336)),0) -> 0 | BO23: =IF(ShowStock,IF(ISERROR((BO$18*Analyzer!$G$5)/(Analyzer!$K$7*336)),0,SpeedConv*(BO$18*Analyzer!$G$5)/(Analyzer!$K$7*336)),0) -> 0 | BP23: =IF(ShowStock,IF(ISERROR((BP$18*Analyzer!$G$5)/(Analyzer!$K$7*336)),0,SpeedConv*(BP$18*Analyzer!$G$5)/(Analyzer!$K$7*336)),0) -> 0 | BQ23: =IF(ShowStock,IF(ISERROR((BQ$18*Analyzer!$G$5)/(Analyzer!$K$7*336)),0,SpeedConv*(BQ$18*Analyzer!$G$5)/(Analyzer!$K$7*336)),0) -> 0 | BR23: =IF(ShowStock,IF(ISERROR((BR$18*Analyzer!$G$5)/(Analyzer!$K$7*336)),0,SpeedConv*(BR$18*Analyzer!$G$5)/(Analyzer!$K$7*336)),0) -> 0 | BS23: =IF(ShowStock,IF(ISERROR((BS$18*Analyzer!$G$5)/(Analyzer!$K$7*336)),0,SpeedConv*(BS$18*Analyzer!$G$5)/(Analyzer!$K$7*336)),0) -> 0 | BT23: =IF(ShowStock,IF(ISERROR((BT$18*Analyzer!$G$5)/(Analyzer!$K$7*336)),0,SpeedConv*(BT$18*Analyzer!$G$5)/(Analyzer!$K$7*336)),0) -> 0 | BU23: =IF(ShowStock,IF(ISERROR((BU$18*Analyzer!$G$5)/(Analyzer!$K$7*336)),0,SpeedConv*(BU$18*Analyzer!$G$5)/(Analyzer!$K$7*336)),0) -> 0 | BV23: =IF(ShowStock,IF(ISERROR((BV$18*Analyzer!$G$5)/(Analyzer!$K$7*336)),0,SpeedConv*(BV$18*Analyzer!$G$5)/(Analyzer!$K$7*336)),0) -> 0 | BW23: =IF(ShowStock,IF(ISERROR((BW$18*Analyzer!$G$5)/(Analyzer!$K$7*336)),0,SpeedConv*(BW$18*Analyzer!$G$5)/(Analyzer!$K$7*336)),0) -> 0 | BX23: =IF(ShowStock,IF(ISERROR((BX$18*Analyzer!$G$5)/(Analyzer!$K$7*336)),0,SpeedConv*(BX$18*Analyzer!$G$5)/(Analyzer!$K$7*336)),0) -> 0 | BY23: =IF(ShowStock,IF(ISERROR((BY$18*Analyzer!$G$5)/(Analyzer!$K$7*336)),0,SpeedConv*(BY$18*Analyzer!$G$5)/(Analyzer!$K$7*336)),0) -> 0 | BZ23: =IF(ShowStock,IF(ISERROR((BZ$18*Analyzer!$G$5)/(Analyzer!$K$7*336)),0,SpeedConv*(BZ$18*Analyzer!$G$5)/(Analyzer!$K$7*336)),0) -> 0 | CA23: =IF(ShowStock,IF(ISERROR((CA$18*Analyzer!$G$5)/(Analyzer!$K$7*336)),0,SpeedConv*(CA$18*Analyzer!$G$5)/(Analyzer!$K$7*336)),0) -> 0 | CB23: =IF(ShowStock,IF(ISERROR((CB$18*Analyzer!$G$5)/(Analyzer!$K$7*336)),0,SpeedConv*(CB$18*Analyzer!$G$5)/(Analyzer!$K$7*336)),0) -> 0 | CC23: =IF(ShowStock,IF(ISERROR((CC$18*Analyzer!$G$5)/(Analyzer!$K$7*336)),0,SpeedConv*(CC$18*Analyzer!$G$5)/(Analyzer!$K$7*336)),0) -> 0 | CD23: =IF(ShowStock,IF(ISERROR((CD$18*Analyzer!$G$5)/(Analyzer!$K$7*336)),0,SpeedConv*(CD$18*Analyzer!$G$5)/(Analyzer!$K$7*336)),0) -> 0 | CE23: =IF(ShowStock,IF(ISERROR((CE$18*Analyzer!$G$5)/(Analyzer!$K$7*336)),0,SpeedConv*(CE$18*Analyzer!$G$5)/(Analyzer!$K$7*336)),0) -> 0 | CF23: =IF(ShowStock,IF(ISERROR((CF$18*Analyzer!$G$5)/(Analyzer!$K$7*336)),0,SpeedConv*(CF$18*Analyzer!$G$5)/(Analyzer!$K$7*336)),0) -> 0 | CG23: =IF(ShowStock,IF(ISERROR((CG$18*Analyzer!$G$5)/(Analyzer!$K$7*336)),0,SpeedConv*(CG$18*Analyzer!$G$5)/(Analyzer!$K$7*336)),0) -> 0 | CH23: =IF(ShowStock,IF(ISERROR((CH$18*Analyzer!$G$5)/(Analyzer!$K$7*336)),0,SpeedConv*(CH$18*Analyzer!$G$5)/(Analyzer!$K$7*336)),0) -> 0 | CI23: =IF(ShowStock,IF(ISERROR((CI$18*Analyzer!$G$5)/(Analyzer!$K$7*336)),0,SpeedConv*(CI$18*Analyzer!$G$5)/(Analyzer!$K$7*336)),0) -> 0 | CJ23: =IF(ShowStock,IF(ISERROR((CJ$18*Analyzer!$G$5)/(Analyzer!$K$7*336)),0,SpeedConv*(CJ$18*Analyzer!$G$5)/(Analyzer!$K$7*336)),0) -> 0 | CK23: =IF(ShowStock,IF(ISERROR((CK$18*Analyzer!$G$5)/(Analyzer!$K$7*336)),0,SpeedConv*(CK$18*Analyzer!$G$5)/(Analyzer!$K$7*336)),0) -> 0 | CL23: =IF(ShowStock,IF(ISERROR((CL$18*Analyzer!$G$5)/(Analyzer!$K$7*336)),0,SpeedConv*(CL$18*Analyzer!$G$5)/(Analyzer!$K$7*336)),0) -> 0 | CM23: =IF(ShowStock,IF(ISERROR((CM$18*Analyzer!$G$5)/(Analyzer!$K$7*336)),0,SpeedConv*(CM$18*Analyzer!$G$5)/(Analyzer!$K$7*336)),0) -> 0 | CN23: =IF(ShowStock,IF(ISERROR((CN$18*Analyzer!$G$5)/(Analyzer!$K$7*336)),0,SpeedConv*(CN$18*Analyzer!$G$5)/(Analyzer!$K$7*336)),0) -> 0 | CO23: =IF(ShowStock,IF(ISERROR((CO$18*Analyzer!$G$5)/(Analyzer!$K$7*336)),0,SpeedConv*(CO$18*Analyzer!$G$5)/(Analyzer!$K$7*336)),0) -> 0 | CP23: =IF(ShowStock,IF(ISERROR((CP$18*Analyzer!$G$5)/(Analyzer!$K$7*336)),0,SpeedConv*(CP$18*Analyzer!$G$5)/(Analyzer!$K$7*336)),0) -> 0 | CQ23: =IF(ShowStock,IF(ISERROR((CQ$18*Analyzer!$G$5)/(Analyzer!$K$7*336)),0,SpeedConv*(CQ$18*Analyzer!$G$5)/(Analyzer!$K$7*336)),0) -> 0 | CR23: =IF(ShowStock,IF(ISERROR((CR$18*Analyzer!$G$5)/(Analyzer!$K$7*336)),0,SpeedConv*(CR$18*Analyzer!$G$5)/(Analyzer!$K$7*336)),0) -> 0 | CS23: =IF(ShowStock,IF(ISERROR((CS$18*Analyzer!$G$5)/(Analyzer!$K$7*336)),0,SpeedConv*(CS$18*Analyzer!$G$5)/(Analyzer!$K$7*336)),0) -> 0 | CT23: =IF(ShowStock,IF(ISERROR((CT$18*Analyzer!$G$5)/(Analyzer!$K$7*336)),0,SpeedConv*(CT$18*Analyzer!$G$5)/(Analyzer!$K$7*336)),0) -> 0 | CU23: =IF(ShowStock,IF(ISERROR((CU$18*Analyzer!$G$5)/(Analyzer!$K$7*336)),0,SpeedConv*(CU$18*Analyzer!$G$5)/(Analyzer!$K$7*336)),0) -> 0
A24: St-6th | B24: =IF(ShowStock,IF(ISERROR((B$18*Analyzer!$G$5)/(Analyzer!$K$8*336)),0,SpeedConv*(B$18*Analyzer!$G$5)/(Analyzer!$K$8*336)),0) -> 0 | C24: =IF(ShowStock,IF(ISERROR((C$18*Analyzer!$G$5)/(Analyzer!$K$8*336)),0,SpeedConv*(C$18*Analyzer!$G$5)/(Analyzer!$K$8*336)),0) -> 0 | D24: =IF(ShowStock,IF(ISERROR((D$18*Analyzer!$G$5)/(Analyzer!$K$8*336)),0,SpeedConv*(D$18*Analyzer!$G$5)/(Analyzer!$K$8*336)),0) -> 0 | E24: =IF(ShowStock,IF(ISERROR((E$18*Analyzer!$G$5)/(Analyzer!$K$8*336)),0,SpeedConv*(E$18*Analyzer!$G$5)/(Analyzer!$K$8*336)),0) -> 0 | F24: =IF(ShowStock,IF(ISERROR((F$18*Analyzer!$G$5)/(Analyzer!$K$8*336)),0,SpeedConv*(F$18*Analyzer!$G$5)/(Analyzer!$K$8*336)),0) -> 0 | G24: =IF(ShowStock,IF(ISERROR((G$18*Analyzer!$G$5)/(Analyzer!$K$8*336)),0,SpeedConv*(G$18*Analyzer!$G$5)/(Analyzer!$K$8*336)),0) -> 0 | H24: =IF(ShowStock,IF(ISERROR((H$18*Analyzer!$G$5)/(Analyzer!$K$8*336)),0,SpeedConv*(H$18*Analyzer!$G$5)/(Analyzer!$K$8*336)),0) -> 0 | I24: =IF(ShowStock,IF(ISERROR((I$18*Analyzer!$G$5)/(Analyzer!$K$8*336)),0,SpeedConv*(I$18*Analyzer!$G$5)/(Analyzer!$K$8*336)),0) -> 0 | J24: =IF(ShowStock,IF(ISERROR((J$18*Analyzer!$G$5)/(Analyzer!$K$8*336)),0,SpeedConv*(J$18*Analyzer!$G$5)/(Analyzer!$K$8*336)),0) -> 0 | K24: =IF(ShowStock,IF(ISERROR((K$18*Analyzer!$G$5)/(Analyzer!$K$8*336)),0,SpeedConv*(K$18*Analyzer!$G$5)/(Analyzer!$K$8*336)),0) -> 0 | L24: =IF(ShowStock,IF(ISERROR((L$18*Analyzer!$G$5)/(Analyzer!$K$8*336)),0,SpeedConv*(L$18*Analyzer!$G$5)/(Analyzer!$K$8*336)),0) -> 0 | M24: =IF(ShowStock,IF(ISERROR((M$18*Analyzer!$G$5)/(Analyzer!$K$8*336)),0,SpeedConv*(M$18*Analyzer!$G$5)/(Analyzer!$K$8*336)),0) -> 0 | N24: =IF(ShowStock,IF(ISERROR((N$18*Analyzer!$G$5)/(Analyzer!$K$8*336)),0,SpeedConv*(N$18*Analyzer!$G$5)/(Analyzer!$K$8*336)),0) -> 0 | O24: =IF(ShowStock,IF(ISERROR((O$18*Analyzer!$G$5)/(Analyzer!$K$8*336)),0,SpeedConv*(O$18*Analyzer!$G$5)/(Analyzer!$K$8*336)),0) -> 0 | P24: =IF(ShowStock,IF(ISERROR((P$18*Analyzer!$G$5)/(Analyzer!$K$8*336)),0,SpeedConv*(P$18*Analyzer!$G$5)/(Analyzer!$K$8*336)),0) -> 0 | Q24: =IF(ShowStock,IF(ISERROR((Q$18*Analyzer!$G$5)/(Analyzer!$K$8*336)),0,SpeedConv*(Q$18*Analyzer!$G$5)/(Analyzer!$K$8*336)),0) -> 0 | R24: =IF(ShowStock,IF(ISERROR((R$18*Analyzer!$G$5)/(Analyzer!$K$8*336)),0,SpeedConv*(R$18*Analyzer!$G$5)/(Analyzer!$K$8*336)),0) -> 0 | S24: =IF(ShowStock,IF(ISERROR((S$18*Analyzer!$G$5)/(Analyzer!$K$8*336)),0,SpeedConv*(S$18*Analyzer!$G$5)/(Analyzer!$K$8*336)),0) -> 0 | T24: =IF(ShowStock,IF(ISERROR((T$18*Analyzer!$G$5)/(Analyzer!$K$8*336)),0,SpeedConv*(T$18*Analyzer!$G$5)/(Analyzer!$K$8*336)),0) -> 0 | U24: =IF(ShowStock,IF(ISERROR((U$18*Analyzer!$G$5)/(Analyzer!$K$8*336)),0,SpeedConv*(U$18*Analyzer!$G$5)/(Analyzer!$K$8*336)),0) -> 0 | V24: =IF(ShowStock,IF(ISERROR((V$18*Analyzer!$G$5)/(Analyzer!$K$8*336)),0,SpeedConv*(V$18*Analyzer!$G$5)/(Analyzer!$K$8*336)),0) -> 0 | W24: =IF(ShowStock,IF(ISERROR((W$18*Analyzer!$G$5)/(Analyzer!$K$8*336)),0,SpeedConv*(W$18*Analyzer!$G$5)/(Analyzer!$K$8*336)),0) -> 0 | X24: =IF(ShowStock,IF(ISERROR((X$18*Analyzer!$G$5)/(Analyzer!$K$8*336)),0,SpeedConv*(X$18*Analyzer!$G$5)/(Analyzer!$K$8*336)),0) -> 0 | Y24: =IF(ShowStock,IF(ISERROR((Y$18*Analyzer!$G$5)/(Analyzer!$K$8*336)),0,SpeedConv*(Y$18*Analyzer!$G$5)/(Analyzer!$K$8*336)),0) -> 0 | Z24: =IF(ShowStock,IF(ISERROR((Z$18*Analyzer!$G$5)/(Analyzer!$K$8*336)),0,SpeedConv*(Z$18*Analyzer!$G$5)/(Analyzer!$K$8*336)),0) -> 0 | AA24: =IF(ShowStock,IF(ISERROR((AA$18*Analyzer!$G$5)/(Analyzer!$K$8*336)),0,SpeedConv*(AA$18*Analyzer!$G$5)/(Analyzer!$K$8*336)),0) -> 0 | AB24: =IF(ShowStock,IF(ISERROR((AB$18*Analyzer!$G$5)/(Analyzer!$K$8*336)),0,SpeedConv*(AB$18*Analyzer!$G$5)/(Analyzer!$K$8*336)),0) -> 0 | AC24: =IF(ShowStock,IF(ISERROR((AC$18*Analyzer!$G$5)/(Analyzer!$K$8*336)),0,SpeedConv*(AC$18*Analyzer!$G$5)/(Analyzer!$K$8*336)),0) -> 0 | AD24: =IF(ShowStock,IF(ISERROR((AD$18*Analyzer!$G$5)/(Analyzer!$K$8*336)),0,SpeedConv*(AD$18*Analyzer!$G$5)/(Analyzer!$K$8*336)),0) -> 0 | AE24: =IF(ShowStock,IF(ISERROR((AE$18*Analyzer!$G$5)/(Analyzer!$K$8*336)),0,SpeedConv*(AE$18*Analyzer!$G$5)/(Analyzer!$K$8*336)),0) -> 0 | AF24: =IF(ShowStock,IF(ISERROR((AF$18*Analyzer!$G$5)/(Analyzer!$K$8*336)),0,SpeedConv*(AF$18*Analyzer!$G$5)/(Analyzer!$K$8*336)),0) -> 0 | AG24: =IF(ShowStock,IF(ISERROR((AG$18*Analyzer!$G$5)/(Analyzer!$K$8*336)),0,SpeedConv*(AG$18*Analyzer!$G$5)/(Analyzer!$K$8*336)),0) -> 0 | AH24: =IF(ShowStock,IF(ISERROR((AH$18*Analyzer!$G$5)/(Analyzer!$K$8*336)),0,SpeedConv*(AH$18*Analyzer!$G$5)/(Analyzer!$K$8*336)),0) -> 0 | AI24: =IF(ShowStock,IF(ISERROR((AI$18*Analyzer!$G$5)/(Analyzer!$K$8*336)),0,SpeedConv*(AI$18*Analyzer!$G$5)/(Analyzer!$K$8*336)),0) -> 0 | AJ24: =IF(ShowStock,IF(ISERROR((AJ$18*Analyzer!$G$5)/(Analyzer!$K$8*336)),0,SpeedConv*(AJ$18*Analyzer!$G$5)/(Analyzer!$K$8*336)),0) -> 0 | AK24: =IF(ShowStock,IF(ISERROR((AK$18*Analyzer!$G$5)/(Analyzer!$K$8*336)),0,SpeedConv*(AK$18*Analyzer!$G$5)/(Analyzer!$K$8*336)),0) -> 0 | AL24: =IF(ShowStock,IF(ISERROR((AL$18*Analyzer!$G$5)/(Analyzer!$K$8*336)),0,SpeedConv*(AL$18*Analyzer!$G$5)/(Analyzer!$K$8*336)),0) -> 0 | AM24: =IF(ShowStock,IF(ISERROR((AM$18*Analyzer!$G$5)/(Analyzer!$K$8*336)),0,SpeedConv*(AM$18*Analyzer!$G$5)/(Analyzer!$K$8*336)),0) -> 0 | AN24: =IF(ShowStock,IF(ISERROR((AN$18*Analyzer!$G$5)/(Analyzer!$K$8*336)),0,SpeedConv*(AN$18*Analyzer!$G$5)/(Analyzer!$K$8*336)),0) -> 0 | AO24: =IF(ShowStock,IF(ISERROR((AO$18*Analyzer!$G$5)/(Analyzer!$K$8*336)),0,SpeedConv*(AO$18*Analyzer!$G$5)/(Analyzer!$K$8*336)),0) -> 0 | AP24: =IF(ShowStock,IF(ISERROR((AP$18*Analyzer!$G$5)/(Analyzer!$K$8*336)),0,SpeedConv*(AP$18*Analyzer!$G$5)/(Analyzer!$K$8*336)),0) -> 0 | AQ24: =IF(ShowStock,IF(ISERROR((AQ$18*Analyzer!$G$5)/(Analyzer!$K$8*336)),0,SpeedConv*(AQ$18*Analyzer!$G$5)/(Analyzer!$K$8*336)),0) -> 0 | AR24: =IF(ShowStock,IF(ISERROR((AR$18*Analyzer!$G$5)/(Analyzer!$K$8*336)),0,SpeedConv*(AR$18*Analyzer!$G$5)/(Analyzer!$K$8*336)),0) -> 0 | AS24: =IF(ShowStock,IF(ISERROR((AS$18*Analyzer!$G$5)/(Analyzer!$K$8*336)),0,SpeedConv*(AS$18*Analyzer!$G$5)/(Analyzer!$K$8*336)),0) -> 0 | AT24: =IF(ShowStock,IF(ISERROR((AT$18*Analyzer!$G$5)/(Analyzer!$K$8*336)),0,SpeedConv*(AT$18*Analyzer!$G$5)/(Analyzer!$K$8*336)),0) -> 0 | AU24: =IF(ShowStock,IF(ISERROR((AU$18*Analyzer!$G$5)/(Analyzer!$K$8*336)),0,SpeedConv*(AU$18*Analyzer!$G$5)/(Analyzer!$K$8*336)),0) -> 0 | AV24: =IF(ShowStock,IF(ISERROR((AV$18*Analyzer!$G$5)/(Analyzer!$K$8*336)),0,SpeedConv*(AV$18*Analyzer!$G$5)/(Analyzer!$K$8*336)),0) -> 0 | AW24: =IF(ShowStock,IF(ISERROR((AW$18*Analyzer!$G$5)/(Analyzer!$K$8*336)),0,SpeedConv*(AW$18*Analyzer!$G$5)/(Analyzer!$K$8*336)),0) -> 0 | AX24: =IF(ShowStock,IF(ISERROR((AX$18*Analyzer!$G$5)/(Analyzer!$K$8*336)),0,SpeedConv*(AX$18*Analyzer!$G$5)/(Analyzer!$K$8*336)),0) -> 0 | AY24: =IF(ShowStock,IF(ISERROR((AY$18*Analyzer!$G$5)/(Analyzer!$K$8*336)),0,SpeedConv*(AY$18*Analyzer!$G$5)/(Analyzer!$K$8*336)),0) -> 0 | AZ24: =IF(ShowStock,IF(ISERROR((AZ$18*Analyzer!$G$5)/(Analyzer!$K$8*336)),0,SpeedConv*(AZ$18*Analyzer!$G$5)/(Analyzer!$K$8*336)),0) -> 0 | BA24: =IF(ShowStock,IF(ISERROR((BA$18*Analyzer!$G$5)/(Analyzer!$K$8*336)),0,SpeedConv*(BA$18*Analyzer!$G$5)/(Analyzer!$K$8*336)),0) -> 0 | BB24: =IF(ShowStock,IF(ISERROR((BB$18*Analyzer!$G$5)/(Analyzer!$K$8*336)),0,SpeedConv*(BB$18*Analyzer!$G$5)/(Analyzer!$K$8*336)),0) -> 0 | BC24: =IF(ShowStock,IF(ISERROR((BC$18*Analyzer!$G$5)/(Analyzer!$K$8*336)),0,SpeedConv*(BC$18*Analyzer!$G$5)/(Analyzer!$K$8*336)),0) -> 0 | BD24: =IF(ShowStock,IF(ISERROR((BD$18*Analyzer!$G$5)/(Analyzer!$K$8*336)),0,SpeedConv*(BD$18*Analyzer!$G$5)/(Analyzer!$K$8*336)),0) -> 0 | BE24: =IF(ShowStock,IF(ISERROR((BE$18*Analyzer!$G$5)/(Analyzer!$K$8*336)),0,SpeedConv*(BE$18*Analyzer!$G$5)/(Analyzer!$K$8*336)),0) -> 0 | BF24: =IF(ShowStock,IF(ISERROR((BF$18*Analyzer!$G$5)/(Analyzer!$K$8*336)),0,SpeedConv*(BF$18*Analyzer!$G$5)/(Analyzer!$K$8*336)),0) -> 0 | BG24: =IF(ShowStock,IF(ISERROR((BG$18*Analyzer!$G$5)/(Analyzer!$K$8*336)),0,SpeedConv*(BG$18*Analyzer!$G$5)/(Analyzer!$K$8*336)),0) -> 0 | BH24: =IF(ShowStock,IF(ISERROR((BH$18*Analyzer!$G$5)/(Analyzer!$K$8*336)),0,SpeedConv*(BH$18*Analyzer!$G$5)/(Analyzer!$K$8*336)),0) -> 0 | BI24: =IF(ShowStock,IF(ISERROR((BI$18*Analyzer!$G$5)/(Analyzer!$K$8*336)),0,SpeedConv*(BI$18*Analyzer!$G$5)/(Analyzer!$K$8*336)),0) -> 0 | BJ24: =IF(ShowStock,IF(ISERROR((BJ$18*Analyzer!$G$5)/(Analyzer!$K$8*336)),0,SpeedConv*(BJ$18*Analyzer!$G$5)/(Analyzer!$K$8*336)),0) -> 0 | BK24: =IF(ShowStock,IF(ISERROR((BK$18*Analyzer!$G$5)/(Analyzer!$K$8*336)),0,SpeedConv*(BK$18*Analyzer!$G$5)/(Analyzer!$K$8*336)),0) -> 0 | BL24: =IF(ShowStock,IF(ISERROR((BL$18*Analyzer!$G$5)/(Analyzer!$K$8*336)),0,SpeedConv*(BL$18*Analyzer!$G$5)/(Analyzer!$K$8*336)),0) -> 0 | BM24: =IF(ShowStock,IF(ISERROR((BM$18*Analyzer!$G$5)/(Analyzer!$K$8*336)),0,SpeedConv*(BM$18*Analyzer!$G$5)/(Analyzer!$K$8*336)),0) -> 0 | BN24: =IF(ShowStock,IF(ISERROR((BN$18*Analyzer!$G$5)/(Analyzer!$K$8*336)),0,SpeedConv*(BN$18*Analyzer!$G$5)/(Analyzer!$K$8*336)),0) -> 0 | BO24: =IF(ShowStock,IF(ISERROR((BO$18*Analyzer!$G$5)/(Analyzer!$K$8*336)),0,SpeedConv*(BO$18*Analyzer!$G$5)/(Analyzer!$K$8*336)),0) -> 0 | BP24: =IF(ShowStock,IF(ISERROR((BP$18*Analyzer!$G$5)/(Analyzer!$K$8*336)),0,SpeedConv*(BP$18*Analyzer!$G$5)/(Analyzer!$K$8*336)),0) -> 0 | BQ24: =IF(ShowStock,IF(ISERROR((BQ$18*Analyzer!$G$5)/(Analyzer!$K$8*336)),0,SpeedConv*(BQ$18*Analyzer!$G$5)/(Analyzer!$K$8*336)),0) -> 0 | BR24: =IF(ShowStock,IF(ISERROR((BR$18*Analyzer!$G$5)/(Analyzer!$K$8*336)),0,SpeedConv*(BR$18*Analyzer!$G$5)/(Analyzer!$K$8*336)),0) -> 0 | BS24: =IF(ShowStock,IF(ISERROR((BS$18*Analyzer!$G$5)/(Analyzer!$K$8*336)),0,SpeedConv*(BS$18*Analyzer!$G$5)/(Analyzer!$K$8*336)),0) -> 0 | BT24: =IF(ShowStock,IF(ISERROR((BT$18*Analyzer!$G$5)/(Analyzer!$K$8*336)),0,SpeedConv*(BT$18*Analyzer!$G$5)/(Analyzer!$K$8*336)),0) -> 0 | BU24: =IF(ShowStock,IF(ISERROR((BU$18*Analyzer!$G$5)/(Analyzer!$K$8*336)),0,SpeedConv*(BU$18*Analyzer!$G$5)/(Analyzer!$K$8*336)),0) -> 0 | BV24: =IF(ShowStock,IF(ISERROR((BV$18*Analyzer!$G$5)/(Analyzer!$K$8*336)),0,SpeedConv*(BV$18*Analyzer!$G$5)/(Analyzer!$K$8*336)),0) -> 0 | BW24: =IF(ShowStock,IF(ISERROR((BW$18*Analyzer!$G$5)/(Analyzer!$K$8*336)),0,SpeedConv*(BW$18*Analyzer!$G$5)/(Analyzer!$K$8*336)),0) -> 0 | BX24: =IF(ShowStock,IF(ISERROR((BX$18*Analyzer!$G$5)/(Analyzer!$K$8*336)),0,SpeedConv*(BX$18*Analyzer!$G$5)/(Analyzer!$K$8*336)),0) -> 0 | BY24: =IF(ShowStock,IF(ISERROR((BY$18*Analyzer!$G$5)/(Analyzer!$K$8*336)),0,SpeedConv*(BY$18*Analyzer!$G$5)/(Analyzer!$K$8*336)),0) -> 0 | BZ24: =IF(ShowStock,IF(ISERROR((BZ$18*Analyzer!$G$5)/(Analyzer!$K$8*336)),0,SpeedConv*(BZ$18*Analyzer!$G$5)/(Analyzer!$K$8*336)),0) -> 0 | CA24: =IF(ShowStock,IF(ISERROR((CA$18*Analyzer!$G$5)/(Analyzer!$K$8*336)),0,SpeedConv*(CA$18*Analyzer!$G$5)/(Analyzer!$K$8*336)),0) -> 0 | CB24: =IF(ShowStock,IF(ISERROR((CB$18*Analyzer!$G$5)/(Analyzer!$K$8*336)),0,SpeedConv*(CB$18*Analyzer!$G$5)/(Analyzer!$K$8*336)),0) -> 0 | CC24: =IF(ShowStock,IF(ISERROR((CC$18*Analyzer!$G$5)/(Analyzer!$K$8*336)),0,SpeedConv*(CC$18*Analyzer!$G$5)/(Analyzer!$K$8*336)),0) -> 0 | CD24: =IF(ShowStock,IF(ISERROR((CD$18*Analyzer!$G$5)/(Analyzer!$K$8*336)),0,SpeedConv*(CD$18*Analyzer!$G$5)/(Analyzer!$K$8*336)),0) -> 0 | CE24: =IF(ShowStock,IF(ISERROR((CE$18*Analyzer!$G$5)/(Analyzer!$K$8*336)),0,SpeedConv*(CE$18*Analyzer!$G$5)/(Analyzer!$K$8*336)),0) -> 0 | CF24: =IF(ShowStock,IF(ISERROR((CF$18*Analyzer!$G$5)/(Analyzer!$K$8*336)),0,SpeedConv*(CF$18*Analyzer!$G$5)/(Analyzer!$K$8*336)),0) -> 0 | CG24: =IF(ShowStock,IF(ISERROR((CG$18*Analyzer!$G$5)/(Analyzer!$K$8*336)),0,SpeedConv*(CG$18*Analyzer!$G$5)/(Analyzer!$K$8*336)),0) -> 0 | CH24: =IF(ShowStock,IF(ISERROR((CH$18*Analyzer!$G$5)/(Analyzer!$K$8*336)),0,SpeedConv*(CH$18*Analyzer!$G$5)/(Analyzer!$K$8*336)),0) -> 0 | CI24: =IF(ShowStock,IF(ISERROR((CI$18*Analyzer!$G$5)/(Analyzer!$K$8*336)),0,SpeedConv*(CI$18*Analyzer!$G$5)/(Analyzer!$K$8*336)),0) -> 0 | CJ24: =IF(ShowStock,IF(ISERROR((CJ$18*Analyzer!$G$5)/(Analyzer!$K$8*336)),0,SpeedConv*(CJ$18*Analyzer!$G$5)/(Analyzer!$K$8*336)),0) -> 0 | CK24: =IF(ShowStock,IF(ISERROR((CK$18*Analyzer!$G$5)/(Analyzer!$K$8*336)),0,SpeedConv*(CK$18*Analyzer!$G$5)/(Analyzer!$K$8*336)),0) -> 0 | CL24: =IF(ShowStock,IF(ISERROR((CL$18*Analyzer!$G$5)/(Analyzer!$K$8*336)),0,SpeedConv*(CL$18*Analyzer!$G$5)/(Analyzer!$K$8*336)),0) -> 0 | CM24: =IF(ShowStock,IF(ISERROR((CM$18*Analyzer!$G$5)/(Analyzer!$K$8*336)),0,SpeedConv*(CM$18*Analyzer!$G$5)/(Analyzer!$K$8*336)),0) -> 0 | CN24: =IF(ShowStock,IF(ISERROR((CN$18*Analyzer!$G$5)/(Analyzer!$K$8*336)),0,SpeedConv*(CN$18*Analyzer!$G$5)/(Analyzer!$K$8*336)),0) -> 0 | CO24: =IF(ShowStock,IF(ISERROR((CO$18*Analyzer!$G$5)/(Analyzer!$K$8*336)),0,SpeedConv*(CO$18*Analyzer!$G$5)/(Analyzer!$K$8*336)),0) -> 0 | CP24: =IF(ShowStock,IF(ISERROR((CP$18*Analyzer!$G$5)/(Analyzer!$K$8*336)),0,SpeedConv*(CP$18*Analyzer!$G$5)/(Analyzer!$K$8*336)),0) -> 0 | CQ24: =IF(ShowStock,IF(ISERROR((CQ$18*Analyzer!$G$5)/(Analyzer!$K$8*336)),0,SpeedConv*(CQ$18*Analyzer!$G$5)/(Analyzer!$K$8*336)),0) -> 0 | CR24: =IF(ShowStock,IF(ISERROR((CR$18*Analyzer!$G$5)/(Analyzer!$K$8*336)),0,SpeedConv*(CR$18*Analyzer!$G$5)/(Analyzer!$K$8*336)),0) -> 0 | CS24: =IF(ShowStock,IF(ISERROR((CS$18*Analyzer!$G$5)/(Analyzer!$K$8*336)),0,SpeedConv*(CS$18*Analyzer!$G$5)/(Analyzer!$K$8*336)),0) -> 0 | CT24: =IF(ShowStock,IF(ISERROR((CT$18*Analyzer!$G$5)/(Analyzer!$K$8*336)),0,SpeedConv*(CT$18*Analyzer!$G$5)/(Analyzer!$K$8*336)),0) -> 0 | CU24: =IF(ShowStock,IF(ISERROR((CU$18*Analyzer!$G$5)/(Analyzer!$K$8*336)),0,SpeedConv*(CU$18*Analyzer!$G$5)/(Analyzer!$K$8*336)),0) -> 0
A26: Reference Speed | B26: =SpeedConv*60 -> 60 | C26: =SpeedConv*60 -> 60 | D26: 60 | E26: 60 | F26: 60 | G26: 60 | H26: 60 | I26: 60 | J26: 60 | K26: 60 | L26: 60 | M26: 60 | N26: 60 | O26: 60 | P26: 60 | Q26: 60 | R26: 60 | S26: 60 | T26: 60 | U26: 60 | V26: 60 | W26: 60 | X26: 60 | Y26: 60 | Z26: 60 | AA26: 60 | AB26: 60 | AC26: 60 | AD26: 60 | AE26: 60 | AF26: 60 | AG26: 60 | AH26: =SpeedConv*60 -> 60 | AI26: 60 | AJ26: 60 | AK26: 60 | AL26: 60 | AM26: 60 | AN26: 60 | AO26: 60 | AP26: 60 | AQ26: 60 | AR26: 60 | AS26: 60 | AT26: 60 | AU26: 60 | AV26: 60 | AW26: 60 | AX26: 60 | AY26: 60 | AZ26: 60 | BA26: 60 | BB26: 60 | BC26: 60 | BD26: 60 | BE26: 60 | BF26: 60 | BG26: 60 | BH26: 60 | BI26: 60 | BJ26: 60 | BK26: 60 | BL26: 60 | BM26: 60 | BN26: =SpeedConv*60 -> 60 | BO26: 60 | BP26: 60 | BQ26: 60 | BR26: 60 | BS26: 60 | BT26: 60 | BU26: 60 | BV26: 60 | BW26: 60 | BX26: 60 | BY26: 60 | BZ26: 60 | CA26: 60 | CB26: 60 | CC26: 60 | CD26: 60 | CE26: 60 | CF26: 60 | CG26: 60 | CH26: 60 | CI26: 60 | CJ26: 60 | CK26: 60 | CL26: 60 | CM26: 60 | CN26: 60 | CO26: 60 | CP26: 60 | CQ26: 60 | CR26: 60 | CS26: 60 | CT26: 60 | CU26: 60
A29: 1 | B29: 1 | C29: MPH | F29: KPH of MPH | G29: MPH | H29: KPH
A30: 2 | B30: 1.60934 | C30: KPH | F30: 32.1868 | G30: 20 | H30: 30
A31: 1 | B31: =VLOOKUP(SpeedType,SpeedRange,2,FALSE) -> 1 | C31: =VLOOKUP(SpeedType,SpeedRange,3,FALSE) -> MPH | F31: 40.2335 | G31: 25 | H31: 35
F32: 48.2802 | G32: 30 | H32: 40
F33: 56.3269 | G33: 35 | H33: 45
F34: 64.3736 | G34: 40 | H34: 50
F35: 72.4203 | G35: 45 | H35: 55
F36: 80.467 | G36: 50 | H36: 60
F37: 88.5137 | G37: 55 | H37: 65
F38: 96.5604 | G38: 60 | H38: 70
F39: 104.6071 | G39: 65 | H39: 75
F40: 112.6538 | G40: 70 | H40: 80
F41: 120.7005 | G41: 75 | H41: 85
F42: 128.7472 | G42: 80 | H42: 90
F43: 136.7939 | G43: 85 | H43: 95
F44: 144.8406 | G44: 90 | H44: 100
F45: 152.8873 | G45: 95 | H45: 105
F46: 160.934 | G46: 100 | H46: 110
F47: 168.9807 | G47: 105 | H47: 115
F48: 177.0274 | G48: 110 | H48: 120
F49: 185.0741 | G49: 115 | H49: 125
F50: 193.1208 | G50: 120 | H50: 130
F51: 201.1675 | G51: 125 | H51: 135
F52: 209.2142 | G52: 130 | H52: 140
F53: 217.2609 | G53: 135 | H53: 145
F54: 225.3076 | G54: 140 | H54: 150
F55: 233.3543 | G55: 145 | H55: 155
F56: 241.401 | G56: 150 | H56: 160
F57: 249.4477 | G57: 155 | H57: 165
F58: 257.4944 | G58: 160 | H58: 170
F59: 265.5411 | G59: 165 | H59: 175
F60: 273.5878 | G60: 170 | H60: 180
F61: 281.6345 | G61: 175 | H61: 185
F62: 289.6812 | G62: 180 | H62: 190
F63: 297.7279 | G63: 185 | H63: 195
F64: 305.7746 | G64: 190 | H64: 200
F65: 313.8213 | G65: 195 | H65: 205
F66: 321.868 | G66: 200 | H66: 210
F67: 329.9147 | G67: 205 | H67: 215
F68: 337.9614 | G68: 210 | H68: 220
H69: 225
H70: 230
H71: 235
H72: 240
H73: 245
H74: 250
H75: 255
H76: 260
H77: 265
H78: 270
H79: 275
H80: 280
H81: 285
H82: 290
H83: 295
H84: 300
H85: 305
H86: 310
H87: 315
H88: 320
H89: 325
H90: 330
H91: 335
H92: 340

Sheet Tire Calculation
B1: Results given are approximate values and do NOT account for temperature, tire squish, wear, speed, etc.
B22: Determining total tire height from tire sidewall (as shown above 185/65x16)
A23: Tire | B23: Width | C23: Aspect Ratio | D23: Rim Diameter in Inches | E23: Overall Diameter | F23: Overall Diameter | G23: Overall Diameter | H23: Overall Diameter | J23: Section (Tire) Width | K23: Section (Sidewall) Height | L23: Section (Sidewall) Height
A24: A | B24: 185 | C24: 65 | D24: 15 | E24: =TEXT(2 * (B24 * (C24 / 2540)) + D24,"00.00") & CHAR(34) -> 24.47" | F24: =TEXT(Decimal_Inches1,"0" & IF(ABS(Decimal_Inches1-ROUND(Decimal_Inches1-0,0))>1/64, " 0/" & CHOOSE(MATCH(MIN(ABS(ROUND(Decimal_Inches1*{2,4,8,16,32},0)-Decimal_Inches1*{2,4,8,16,32})/{2,4,8,16,32}),ABS(ROUND(Decimal_Inches1*{2,4,8,16,32},0)-Decimal_Inches1*{2,4,8,16,32})/{2,4,8,16,32},0),2,4,8,16,32),"")) & """" -> 24 15/32" | G24: =TEXT((2 * ($B24 * ($C24 / 2540)) + $D24) * 25.4,"00.0") & "mm" -> 621.5mm | H24: =TEXT((2 * ($B24 * ($C24 / 2540)) + $D24) * 2.54,"00.0") & "cm" -> 62.2cm | I24: =2 * (B24 * (C24 / 2540)) + D24 -> 24.46850394 | J24: =TEXT(B24/25.4,"0.00") & CHAR(34) -> 7.28" | K24: =TEXT(VALUE(SUBSTITUTE(J24,"""","")*(C24/100)),"0.00")& CHAR(34) -> 4.73" | L24: =TEXT(VALUE(SUBSTITUTE(K24,"""",""))*25.4,"000.0") & "mm" -> 120.1mm
A25: B | B25: 215 | C25: 40 | D25: 16 | E25: =TEXT(2 * (B25 * (C25 / 2540)) + D25,"00.00") & CHAR(34) -> 22.77" | F25: =TEXT(Decimal_Inches2,"0" &IF(ABS(Decimal_Inches2-ROUND(Decimal_Inches2,0))>1/64, " 0/"&CHOOSE(MATCH(MIN(ABS(ROUND(Decimal_Inches2*{2,4,8,16,32},0)-Decimal_Inches2*{2,4,8,16,32})/{2,4,8,16,32}),ABS(ROUND(Decimal_Inches2*{2,4,8,16,32},0)-Decimal_Inches2*{2,4,8,16,32})/{2,4,8,16,32},0),2,4,8,16,32),""))&"""" -> 22 25/32" | G25: =TEXT((2 * ($B25 * ($C25 / 2540)) + $D25) * 25.4,"00.0") & "mm" -> 578.4mm | H25: =TEXT((2 * ($B25 * ($C25 / 2540)) + $D25) * 2.54,"00.0") & "cm" -> 57.8cm | I25: =2 * (B25 * (C25 / 2540)) + D25 -> 22.77165354 | J25: =TEXT(B25/25.4,"0.00") & CHAR(34) -> 8.46" | K25: 3.38" | L25: =TEXT(VALUE(SUBSTITUTE(K25,"""",""))*25.4,"000.0") & "mm" -> 085.9mm
A26: C | E26: =TEXT(2 * (B26 * (C26 / 2540)) + D26,"00.00") & CHAR(34) -> 00.00" | F26: =TEXT(Decimal_Inches3,"0" &IF(ABS(Decimal_Inches3-ROUND(Decimal_Inches3,0))>1/64, " 0/"&CHOOSE(MATCH(MIN(ABS(ROUND(Decimal_Inches3*{2,4,8,16,32},0)-Decimal_Inches3*{2,4,8,16,32})/{2,4,8,16,32}),ABS(ROUND(Decimal_Inches3*{2,4,8,16,32},0)-Decimal_Inches3*{2,4,8,16,32})/{2,4,8,16,32},0),2,4,8,16,32),""))&"""" -> 0" | G26: =TEXT((2 * ($B26 * ($C26 / 2540)) + $D26) * 25.4,"00.0") & "mm" -> 00.0mm | H26: =TEXT((2 * ($B26 * ($C26 / 2540)) + $D26) * 2.54,"00.0") & "cm" -> 00.0cm | I26: =2 * (B26 * (C26 / 2540)) + D26 -> 0 | J26: =TEXT(B26/25.4,"0.00") & CHAR(34) -> 0.00" | K26: 0.00" | L26: 000.0mm
A27: D | E27: =TEXT(2 * (B27 * (C27 / 2540)) + D27,"00.00") & CHAR(34) -> 00.00" | F27: =TEXT(Decimal_Inches4,"0" & IF(ABS(Decimal_Inches4-ROUND(Decimal_Inches4-0,0))>1/64, " 0/" & CHOOSE(MATCH(MIN(ABS(ROUND(Decimal_Inches4*{2,4,8,16,32},0)-Decimal_Inches4*{2,4,8,16,32})/{2,4,8,16,32}),ABS(ROUND(Decimal_Inches4*{2,4,8,16,32},0)-Decimal_Inches4*{2,4,8,16,32})/{2,4,8,16,32},0),2,4,8,16,32),"")) & """" -> 0" | G27: =TEXT((2 * ($B27 * ($C27 / 2540)) + $D27) * 25.4,"00.0") & "mm" -> 00.0mm | H27: =TEXT((2 * ($B27 * ($C27 / 2540)) + $D27) * 2.54,"00.0") & "cm" -> 00.0cm | I27: =2 * (B27 * (C27 / 2540)) + D27 -> 0 | J27: =TEXT(B27/25.4,"0.00") & CHAR(34) -> 0.00" | K27: 0.00" | L27: 000.0mm
A28: E | E28: 00.00" | F28: =TEXT(Decimal_Inches5,"0" &IF(ABS(Decimal_Inches5-ROUND(Decimal_Inches5,0))>1/64, " 0/"&CHOOSE(MATCH(MIN(ABS(ROUND(Decimal_Inches5*{2,4,8,16,32},0)-Decimal_Inches5*{2,4,8,16,32})/{2,4,8,16,32}),ABS(ROUND(Decimal_Inches5*{2,4,8,16,32},0)-Decimal_Inches5*{2,4,8,16,32})/{2,4,8,16,32},0),2,4,8,16,32),""))&"""" -> 0" | G28: 00.0mm | H28: 00.0cm | I28: 0 | J28: =TEXT(B28/25.4,"0.00") & CHAR(34) -> 0.00" | K28: 0.00" | L28: 000.0mm
A29: F | E29: 00.00" | F29: =TEXT(Decimal_Inches6,"0" &IF(ABS(Decimal_Inches6-ROUND(Decimal_Inches6,0))>1/64, " 0/"&CHOOSE(MATCH(MIN(ABS(ROUND(Decimal_Inches6*{2,4,8,16,32},0)-Decimal_Inches6*{2,4,8,16,32})/{2,4,8,16,32}),ABS(ROUND(Decimal_Inches6*{2,4,8,16,32},0)-Decimal_Inches6*{2,4,8,16,32})/{2,4,8,16,32},0),2,4,8,16,32),""))&"""" -> 0" | G29: 00.0mm | H29: 00.0cm | I29: 0 | J29: 0.00" | K29: 0.00" | L29: 000.0mm
A30: G | E30: 00.00" | F30: =TEXT(Decimal_Inches7,"0" & IF(ABS(Decimal_Inches7-ROUND(Decimal_Inches7-0,0))>1/64, " 0/" & CHOOSE(MATCH(MIN(ABS(ROUND(Decimal_Inches7*{2,4,8,16,32},0)-Decimal_Inches7*{2,4,8,16,32})/{2,4,8,16,32}),ABS(ROUND(Decimal_Inches7*{2,4,8,16,32},0)-Decimal_Inches7*{2,4,8,16,32})/{2,4,8,16,32},0),2,4,8,16,32),"")) & """" -> 0" | G30: 00.0mm | H30: 00.0cm | I30: 0 | J30: 0.00" | K30: 0.00" | L30: 000.0mm
A31: H | E31: 00.00" | F31: =TEXT(Decimal_Inches8,"0" &IF(ABS(Decimal_Inches8-ROUND(Decimal_Inches8,0))>1/64, " 0/"&CHOOSE(MATCH(MIN(ABS(ROUND(Decimal_Inches8*{2,4,8,16,32},0)-Decimal_Inches8*{2,4,8,16,32})/{2,4,8,16,32}),ABS(ROUND(Decimal_Inches8*{2,4,8,16,32},0)-Decimal_Inches8*{2,4,8,16,32})/{2,4,8,16,32},0),2,4,8,16,32),""))&"""" -> 0" | G31: 00.0mm | H31: 00.0cm | I31: 0 | J31: 0.00" | K31: 0.00" | L31: 000.0mm
A32: I | E32: 00.00" | F32: =TEXT(Decimal_Inches9,"0" &IF(ABS(Decimal_Inches9-ROUND(Decimal_Inches9,0))>1/64, " 0/"&CHOOSE(MATCH(MIN(ABS(ROUND(Decimal_Inches9*{2,4,8,16,32},0)-Decimal_Inches9*{2,4,8,16,32})/{2,4,8,16,32}),ABS(ROUND(Decimal_Inches9*{2,4,8,16,32},0)-Decimal_Inches9*{2,4,8,16,32})/{2,4,8,16,32},0),2,4,8,16,32),""))&"""" -> 0" | G32: 00.0mm | H32: 00.0cm | I32: 0 | J32: 0.00" | K32: 0.00" | L32: 000.0mm
A33: J | E33: 00.00" | F33: =TEXT(Decimal_Inches10,"0" & IF(ABS(Decimal_Inches10-ROUND(Decimal_Inches10-0,0))>1/64, " 0/" & CHOOSE(MATCH(MIN(ABS(ROUND(Decimal_Inches10*{2,4,8,16,32},0)-Decimal_Inches10*{2,4,8,16,32})/{2,4,8,16,32}),ABS(ROUND(Decimal_Inches10*{2,4,8,16,32},0)-Decimal_Inches10*{2,4,8,16,32})/{2,4,8,16,32},0),2,4,8,16,32),"")) & """" -> 0" | G33: 00.0mm | H33: 00.0cm | I33: 0 | J33: 0.00" | K33: 0.00" | L33: 000.0mm

Sheet Gear Listing
A1: Gear Ratio Computation Chart | E1: Note: May not be complete.
E2: Ring & Pinion
B3: Gear | C3: 5.143 | D3: 4.857 | E3: 4.625 | F3: 4.375 | G3: 4.125 | H3: 3.875
A4: 1st | B4: 3.8 | C4: =$C$3*B4 -> 19.5434 | D4: =$D$3*B4 -> 18.4566 | E4: =$E$3*B4 -> 17.575 | F4: =$F$3*B4 -> 16.625 | G4: =$G$3*B4 -> 15.675 | H4: =$H$3*B4 -> 14.725
B5: 3.777 | C5: =$C$3*B5 -> 19.425111 | D5: =$D$3*B5 -> 18.344889 | E5: =$E$3*B5 -> 17.468625 | F5: =$F$3*B5 -> 16.524375 | G5: =$G$3*B5 -> 15.580125 | H5: =$H$3*B5 -> 14.635875
B6: 3.555 | C6: 18.283365 | D6: =$D$3*B6 -> 17.266635 | E6: =$E$3*B6 -> 16.441875 | F6: =$F$3*B6 -> 15.553125 | G6: =$G$3*B6 -> 14.664375 | H6: =$H$3*B6 -> 13.775625
A8: 2nd | B8: 2.312 | C8: 11.890616 | D8: =$D$3*B8 -> 11.229384 | E8: =$E$3*B8 -> 10.693 | F8: =$F$3*B8 -> 10.115 | G8: =$G$3*B8 -> 9.537 | H8: =$H$3*B8 -> 8.959
B9: 2.25 | C9: 11.57175 | D9: 10.92825 | E9: 10.40625 | F9: 9.84375 | G9: 9.28125 | H9: 8.71875
B10: 2.058 | C10: 10.584294 | D10: 9.995706 | E10: 9.51825 | F10: 9.00375 | G10: 8.48925 | H10: 7.97475
A12: 3rd | B12: 1.72 | C12: 8.84596 | D12: 8.35404 | E12: 7.955 | F12: 7.525 | G12: 7.095 | H12: 6.665
B13: 1.695 | C13: 8.717385 | D13: =$D$3*B13 -> 8.232615 | E13: =$E$3*B13 -> 7.839375 | F13: =$F$3*B13 -> 7.415625 | G13: =$G$3*B13 -> 6.991875 | H13: =$H$3*B13 -> 6.568125
B14: 1.65 | C14: 8.48595 | D14: =$D$3*B14 -> 8.01405 | E14: =$E$3*B14 -> 7.63125 | F14: =$F$3*B14 -> 7.21875 | G14: =$G$3*B14 -> 6.80625 | H14: =$H$3*B14 -> 6.39375
B15: 1.583 | C15: 8.141369 | D15: 7.688631 | E15: 7.321375 | F15: 6.925625 | G15: 6.529875 | H15: 6.134125
B16: 1.555 | C16: 7.997365 | D16: 7.552635 | E16: 7.191875 | F16: 6.803125 | G16: 6.414375 | H16: 6.025625
B17: 1.48 | C17: 7.61164 | D17: 7.18836 | E17: 6.845 | F17: 6.475 | G17: 6.105 | H17: 5.735
B18: 1.44 | C18: 7.40592 | D18: =$D$3*B18 -> 6.99408 | E18: =$E$3*B18 -> 6.66 | F18: =$F$3*B18 -> 6.3 | G18: =$G$3*B18 -> 5.94 | H18: =$H$3*B18 -> 5.58
B19: 1.421 | C19: 7.308203 | D19: 6.901797 | E19: 6.572125 | F19: 6.216875 | G19: 5.861625 | H19: 5.506375
B20: 1.318 | C20: 6.778474 | D20: 6.401526 | E20: 6.09575 | F20: 5.76625 | G20: 5.43675 | H20: 5.10725
B21: 1.261 | C21: 6.485323 | D21: 6.124677 | E21: 5.832125 | F21: 5.516875 | G21: 5.201625 | H21: 4.886375
B22: 1.217 | C22: 6.259031 | D22: 5.910969 | E22: 5.628625 | F22: 5.324375 | G22: 5.020125 | H22: 4.715875
A24: 4th | B24: 1.428 | C24: 7.344204 | D24: 6.935796 | E24: 6.6045 | F24: 6.2475 | G24: 5.8905 | H24: 5.5335
B25: 1.37 | C25: 7.04591 | D25: =$D$3*B25 -> 6.65409 | E25: =$E$3*B25 -> 6.33625 | F25: =$F$3*B25 -> 5.99375 | G25: =$G$3*B25 -> 5.65125 | H25: =$H$3*B25 -> 5.30875
B26: 1.318 | C26: 6.778474 | D26: 6.401526 | E26: 6.09575 | F26: 5.76625 | G26: 5.43675 | H26: 5.10725
B27: 1.217 | C27: 6.259031 | D27: 5.910969 | E27: 5.628625 | F27: 5.324375 | G27: 5.020125 | H27: 4.715875
B28: 1.19 | C28: 6.12017 | D28: 5.77983 | E28: 5.50375 | F28: 5.20625 | G28: 4.90875 | H28: 4.61125
B29: 1.17 | C29: 6.01731 | D29: =$D$3*B29 -> 5.68269 | E29: =$E$3*B29 -> 5.41125 | F29: =$F$3*B29 -> 5.11875 | G29: =$G$3*B29 -> 4.82625 | H29: =$H$3*B29 -> 4.53375
B30: 1.125 | C30: 5.785875 | D30: 5.464125 | E30: 5.203125 | F30: 4.921875 | G30: 4.640625 | H30: 4.359375
B31: 1.09 | C31: 5.60587 | D31: 5.29413 | E31: 5.04125 | F31: 4.76875 | G31: 4.49625 | H31: 4.22375
B32: 1.04 | C32: 5.34872 | D32: 5.05128 | E32: 4.81 | F32: 4.55 | G32: 4.29 | H32: 4.03
B33: 0.931 | C33: 4.788133 | D33: 4.521867 | E33: 4.305875 | F33: 4.073125 | G33: 3.840375 | H33: 3.607625
B34: 0.889 | C34: 4.572127 | D34: 4.317873 | E34: 4.111625 | F34: 3.889375 | G34: 3.667125 | H34: 3.444875
B35: 0.821 | C35: 4.222403 | D35: 3.987597 | E35: 3.797125 | F35: 3.591875 | G35: 3.386625 | H35: 3.181375
E38: Air-cooled VW only

Sheet Instructions
